{"text_format":"2","workbook":"xlsx","n_sheets":3,"sheets":["Tabelle1","Tabelle2","Tabelle3"],"not_rendered":{"charts":0,"images":0,"macros":0,"external_links":0,"defined_names":0,"comments":0,"pivot_tables":0},"unopened":[],"bounds":{"document_bytes":16777216,"sheet_cells":100000,"run_cost":"one","rows_first":2000,"rows_last":500,"rows_between":2000,"halvings":0,"cell_chars":16384,"cell_head_chars":4096},"cells_cut":0,"cells_raw":0,"read":"whole","date_system":"1900"}

{"sheet":"Tabelle1","index":0,"n_rows":750,"n_cols":57,"rows_kept":750,"cut":false,"hidden":false,"merged":[[0,2,0,3],[0,4,0,22],[0,23,0,33],[0,36,0,37],[0,38,0,46]]}
[null,null,"Artname",null,"Lebensraum",{"$nulls":18},"Phagie",{"$nulls":10},"Charakterart laut Praxishandbuch Schmetterlingsschutz",null,"Familie und deutscher Name",null,"Angaben zur Häufigkeit: historisch und aktuell"]
["K&R Nummer"," Koch Nummer","Gattung","Artname","Lebensraum laut Ebert","Magerrasen","Moor / Feuchtweise","Heidelandschaft","Wiesen und Weiden / Offenland","Brachen / Ruderalgelände","Heckenlandschaft","Waldrand / Lichtung","Vorwald / Niederwald","Auwald / Bruchwald","Laubwald","Mischwald","Nadelwald","Obstwiesen","Straßenrand / Böschung / Damm","Steinbruch / Weinberg","Industriebrache / Bahngelände","Gärten und Parks","Ubiquist (Praxishandbuch)","Futterpflanzen laut Ebert","Laubbäume / Büsche","Nadelbäume","krautige Pflanzen","Gräser","Wurzeln","Flechten","sonstiges","monophag","oligophag","polyphag","Hauptvorkommen","Nebenvorkommen","Deutscher Artname","Familie","Weymer (Zitat)","Häufigkeit um 1870 numerisch","Kinkler (Zitat)","Häufigkeit 1920-1990 numerisch","Nachweise 0990-1009","Häufigkeit 1990-2009 numerisch","Häufigkeit bis 2009 (textlich)","Häufigkeit ab 2009","Anzahl Nachweise ab 2009","Tendenz","T","Kategorie","Klasse 2009","Kategorie","Kommentare","Klasse 2019"]
[78,2215,"Phymatopus","hecta","Feuchte bis mesophile Wälder, überall vertreten",{"$nulls":9},1,1,{"$nulls":7},"Polyphag an diversen Wurzeln",{"$nulls":4},1,{"$nulls":4},1,null,null,"Heidekraut-Wurzelbohrer","Hepialidae (Wurzelbohrer)","Häufig",4,"Nicht selten",3,17,3,"verbreitet",2,3,"gleichbleibend",4,9,{"$f":"IF(AX3=1,\"Einzelfund\",IF(OR(AX3=2,AX3=3),\"Abnehmend\",IF(OR(AX3=4,AX3=7,AX3=8,AX3=11),\"Zunehmend\",IF(AX3=5,\"Gleichbleibend selten\",IF(OR(AX3=6,AX3=9,AX3=10,AX3=12),\"Gleichbleibend verbreitet bis sehr häufig\",\"nicht bewertet\")))))","v":"Gleichbleibend verbreitet bis sehr häufig"},9,null,"Abnehmend"]
[4000,2015,"Zygaena","trifolii","Feuchte, moorige Wiesen, Nasswiesen, Bachtäler, Auwälder",null,1,{"$nulls":6},1,{"$nulls":9},"Sumpfhornklee, Hornklee",null,null,1,{"$nulls":5},1,null,"1_4","4_3","Feuchtwiesen-Rotwidderchen","Zygaenidae (Widderchen)","auf Waldwiesen überall häufig",4,"Lokal",3,120,4,"häufig",2,2,"schwankend",4,9,"Gleichbleibend verbreitet bis sehr häufig",9,null,"Abnehmend"]
[6731,2093,"Trichiura","crataegi","Schlehengebüsch an Auwälder, Magerrasen, aufgelassene Weinberge, warme Südhanglage",1,{"$nulls":4},1,1,null,1,{"$nulls":5},1,null,null,null,"Weide, Hasel, Birke, Eiche, Schlehe",1,{"$nulls":8},1,"3_6","1_1","Weißdornspinner","Lasiocampidae (Glucken)","Nur selten",2,"Zerstreut und meist einzeln",2,0,0,"verschwunden",0,0,"abnehmend",2,2,"Abnehmend",2," ","Abnehmend"]
[6738,2097,"Eriogaster","lanestris","Kalkmagerrasen, Wacholderheiden, Gebüsche, Lichtungen, auf Sandboden",1,null,1,null,null,1,1,1,{"$nulls":10},"Weide, Birke, Weißdorn, Himbeere, Linde",1,null,1,{"$nulls":6},1,"3_6",null,"Frühlings-Wollafter","Lasiocampidae (Glucken)","die Raupen nesterweise auf Schlehen",4,"nicht mehr beobachtet",0,0,0,"verschwunden",0,0,"abnehmend",2,3,"Abnehmend",3," ","Abnehmend"]
[6743,2090,"Malacosoma","neustria","Gebüsche, Auen und Bruchwälder, Streuobstwiesen",{"$nulls":5},1,1,1,1,null,null,null,1,{"$nulls":5},"Pappel, Weide, Birke, Obstbäume, Weißdorn, Rose, Brombeere",1,null,1,{"$nulls":6},1,"4_7","3_5","Ringel-Spinner","Lasiocampidae (Glucken)","Ueberall gemein",6,"Verbreitet und meist nicht selten",3,0,0,"verschwunden",0,0,"abnehmend",2,3,"Abnehmend",3," ","Abnehmend"]
[6752,2098,"Lasiocampa","quercus","Auwälder, trockene Eichenmischwälder, gebüschreiche Ränder und Vorgehölze, Lichtungen, Schlagfluren",{"$nulls":6},1,1,1,1,1,{"$nulls":19},"1_1, 2_1, 3_4, 3_6","Eichen-Spinner","Lasiocampidae (Glucken)","Häufig",4,"vereinzelt bis häufig",3,0,0,"verschwunden",0,0,"abnehmend",2,3,"Abnehmend",3," ","Abnehmend"]
[6755,2100,"Macrothylacia","rubi","Überall im Offenland",{"$nulls":18},"Diverse Laubbäume, Sträucher, Gräser und krautige Pflanzen",1,null,1,1,{"$nulls":5},1,null,null,"Brombeer-Spinner","Lasiocampidae (Glucken)","Sehr gemein",7,"meist nicht selten bis häufig ",4,9,3,"verbreitet",2,8,"abnehmend",2,6,"Gleichbleibend verbreitet bis sehr häufig",6," ","Abnehmend"]
[6777,2105,"Gastropacha","quercifolia","Auwälder, Gebüsche, Moore, Streuobstwiesen, Dämme und Böschungen",null,1,null,null,null,1,1,1,1,null,null,null,1,1,1,null,1,null,"Obstbäume, Schlehe, Faulbaum",1,{"$nulls":7},1,null,"3_6","1_1, 4_6","Kupfer-Glucke","Lasiocampidae (Glucken)","Die R.[aupe] ist…in manchen Jahren…häufig",4,"vereinzelt",2,0,0,"verschwunden",0,0,"abnehmend",2,3,"Abnehmend",3," ","Abnehmend"]
[6778,2106,"Gastropacha","populifolia","Auwälder",{"$nulls":8},1,{"$nulls":9},"Schwarz-Pappel",1,{"$nulls":6},1,null,null,"3_1",null,"Pappel-Glucke","Lasiocampidae (Glucken)","Selten. Am 30. Juli 1871 fand ich 13 Eier…an der Rinde eines Pappelbaums",2,"überall…sehr selten",1,0,0,"verschwunden",0,0,"abnehmend",2,2,"Abnehmend",2," ","Abnehmend"]
[6780,2107,"Odonestis","pruni","Auwälder, gebüschreiche Trockenhänge, Steuobstwiesen, Heckenlandschaft",{"$nulls":5},1,null,null,1,null,null,null,1,null,1,null,null,null,"Rotbuche, Eiche, Pflaume, Schlehe, Obstbäume",1,{"$nulls":8},1,"3_6, 4_7","3_1","Pflaumen-Glucke","Lasiocampidae (Glucken)","selten ",2,"Zerstreut und einzeln",2,0,0,"verschwunden",0,0,"abnehmend",2,2,"Abnehmend",2," ","Abnehmend"]
[6784,2111,"Endromis","versicolora","Auen- und Bruchwälder, Moore, Eichen-Hainbuchen Wald, Birkenbestände",null,1,{"$nulls":6},1,1,1,{"$nulls":7},"Birke ",1,{"$nulls":6},1,null,null,"1_3, 3_4",null,"Birkenspinner","Endromidae (Birkenspinner)","Der Schm.[etterling] wird einzeln…die R.[aupe] dagegen gesellschaftlich auf Birken gefunden",2,"mehr oder weniger selten",2,0,0,"verschwunden",0,0,"abnehmend",2,2,"Abnehmend",2," ","Abnehmend"]
[6840,2129,"Hemaris","fuciformis","Sonnige Kahlschläge, Lichtungen, gebüschreiche Trockenhänge",{"$nulls":5},1,1,{"$nulls":7},1,null,null,null,"Schneebeere, rote Heckenkirsche",1,{"$nulls":7},1,null,"3_8","3_1","Hummel-Schwärmer","Sphingidae (Schwärmer)","Selten",2,"sporadisch ",2,0,0,"verschwunden",0,0,"abnehmend",2,2,"Abnehmend",2," ","Abnehmend"]
[6853,2133,"Hyles","euphorbiae","Offene Landschaften, Sandfluren, Dämme und Böschungen",null,null,1,1,1,1,{"$nulls":7},1,{"$nulls":4},"Wolfsmilch",null,null,1,{"$nulls":4},1,{"$nulls":4},"Wolfsmilch-Schwärmer","Sphingidae (Schwärmer)","Ueber[all] gemein",6,"Seit 1964 nicht mehr gefunden ",1,0,0,"verschwunden",0,0,"abnehmend",2,3,"Abnehmend",3," ","Abnehmend"]
[6904,1125,"Pyrgus","malvae","Wacholderheiden, krautreiche Wegränder, Säume an Hecken und Waldrändern, Böschungen und Dämme, Streuobstwiesen, Heidelandschaft",null,null,1,null,null,1,1,{"$nulls":6},1,{"$nulls":4},"Fingerkraut, Erdbeere, Odermennig, Wiesenknopf, Mädesüß",null,null,1,{"$nulls":5},1,null,"2_2","2_1, 3_6, 4_4","Kleiner Würfel-Dickkopffalter","Hesperiidae (Dickkopffalter)","überall verbreitet",3,"Im Bergland besonders im letzten Jahrzehnt [d.h. 1960-1970, Anm. d. Autoren] selten",1,0,0,"verschwunden",0,0,"abnehmend",2,2,"Abnehmend",2," ","Abnehmend"]
[6993,1005,"Aporia","crataegi","Gebüsch und Waldsäume, Trockenhänge, Böschungen, Heckenlandschaft, Streuobstwiesen, gebüschreiche Ruderalflächen",{"$nulls":4},1,1,1,{"$nulls":5},1,1,null,1,null,null,"Obstbäume, Weißdorn, Rose, Schlehe, Faulbaum, Hartriegel",1,{"$nulls":7},1,null,"3_6","1_2, 4_4, 4_7","Baum-Weißling","Pieridae (Weißlinge)","in einzelnen Jahren häufig",3,"verbreitet, meist einzeln",2,0,1,"verschwunden",0,0,"abnehmend",2,1,"Einzelfund",2,"F. Sonnenburg, 2005, sehr selten da Einzelfund, so ist er ja auch einsortiert","Abnehmend"]
[7047,1090,"Thecla","betulae","Gärten, Streuobstwiesn, Brachen, Ruderalflächen, Schlagfluren, Gebüsche, Heckenlandschaft, Steinbrüche, Wacholderheiden",null,null,1,null,1,1,{"$nulls":6},1,null,1,1,1,null,"Schlehe, Obstbäume",1,{"$nulls":7},1,null,"3_6","2_2","Nierenfleck-Zipfelfalter","Lycaenidae (Bläulinge)","Nicht häufig",3,"Selten und immer nur einzeln",2,0,0,"verschwunden",1,1,"abnehmend",2,2,"Abnehmend",2," ","Abnehmend"]
[7058,1083,"Callophrys","rubi","Offenland, Lichtungen, Sand- und Kiesgruben, Dämme und Böschungen",null,null,1,1,1,1,{"$nulls":7},1,{"$nulls":4},"Hinbeere, Besenginster, Hopfenklee, Esparsette, Hartriegel, Moorbeere, Gamander",null,null,1,{"$nulls":6},1,"3_4","1_3, 2_1, 3_6, 3_8","Grüner Zipfelfalter","Lycaenidae (Bläulinge)","Häufig",4,"scheint...verschwunden zu sein",0,0,0,"verschwunden",0,0,"abnehmend",2,3,"Abnehmend",3," ","Abnehmend"]
[7065,1086,"Satyrium","ilicis","Eichenjungwuchs, Lichtungen, Eichen-Hainbuchen Wald, Eichengestrüpp an Hängen",{"$nulls":5},1,1,1,null,1,1,{"$nulls":7},"Eiche",1,{"$nulls":6},1,null,null,"3_4, 3_5","3_8","Brauner Eichen-Zipfelfalter","Lycaenidae (Bläulinge)","Häufig",4,"Früher häufiger. In den letzten 00 Jahren [d.h.1960-1970, Anm. d. Autoren] nur in der Zone D [Naturraum Niederrhein. Bucht, Anm. d. Autoren] gefunden",0,0,0,"verschwunden",0,0,"abnehmend",2,3,"Abnehmend",3," ","Abnehmend"]
[7152,1116,"Polyommatus","semiargus","Magere Wiesen, Böschungen, Dämme, Streuobstwiesen, Brachen, Ruderalflächen, feuchte Talwiesen",null,1,null,1,1,{"$nulls":7},1,1,null,1,null,null,"Roter Wieseklee, Mittlerer Klee",null,null,1,{"$nulls":5},1,null,"3_6",null,"Rotklee-Bläuling","Lycaenidae (Bläulinge)","Verbreitet und nicht selten",3,"meist selten",2,0,0,"verschwunden",1,1,"abnehmend",2,2,"Abnehmend",2," ","Abnehmend"]
[7204,1077,"Argynnis","aglaja","Lichtungen, Schneisen in Laubwäldern, offene Feuchtbiotope, Moore, Wacholderheiden, Bergwiesen",null,1,1,null,null,null,1,{"$nulls":11},"Veilchen",null,null,1,{"$nulls":4},1,null,null,"2_2, 3_6","3_4, 3_8","Großer Perlmuttfalter","Nymphalidae (Edelfalter)","nicht selten",3,"Früher überall verbreitet, heute...nur noch vereinzelt",2,0,1,"sehr selten",0,0,"abnehmend",2,2,"Abnehmend",2,"Fehlbestimmung diskutieren o.k","Abnehmend"]
[7220,1070,"Boloria","euphrosyne","Laubwälder mit Hainveilchen, Waldwiesen",{"$nulls":6},1,null,null,1,1,{"$nulls":7},"Veilchen",null,null,1,{"$nulls":4},1,null,null,"3_6","2_2, 3_3, 3_4, 3_8","Silberfleck-Perlmuttfalter","Nymphalidae (Edelfalter)","oft auf Waldwiesen",4,"seitdem [1961] nicht mehr",0,0,0,"verschwunden",0,0,"abnehmend",2,3,"Abnehmend",3," ","Abnehmend"]
[7222,1069,"Boloria","selene","Moore, Waldrand, Lichtungen",null,1,{"$nulls":4},1,{"$nulls":11},"Veilchen",null,null,1,{"$nulls":4},1,null,null,"1_2, 1_4",null,"Braunfleckiger Perlmuttfalter","Nymphalidae (Edelfalter)","Häufig",4,"lokal häufig",3,0,0,"verschwunden",1,5,"abnehmend",2,3,"Abnehmend",3," ","Abnehmend"]
[7257,1055,"Nymphalis","antiopa","Gebüsch- und Vorhölzer, Hügelland, offene, sonnige Lehnen, Gärten, Streuobstwiesen",{"$nulls":5},1,1,1,{"$nulls":4},1,1,null,null,1,null,"Birke, Weide",1,{"$nulls":7},1,null,null,null,"Trauermantel","Nymphalidae (Edelfalter)","Raupe…bei Elb.[erfeld] im Juni nesterweise",4,"Vor 1956 überall verbreitet, aber immer nur vereinzelt.",2,0,1,"sehr selten",0,0,"abnehmend",2,3,"Abnehmend",3," ","Abnehmend"]
[7258,1053,"Nymphalis","polychloros","Keine besonderen Biotopansprüche",{"$nulls":17},1,"Weide, Pappel, Ulme, Obstbäume",1,{"$nulls":8},1,"3_8, 4_7","3_4, 4_6, 4_9","Großer Fuchs","Nymphalidae (Edelfalter)","Häufig",4,"Früher allgemein verbreitet",1,1,1,"sehr selten",1,4,"abnehmend",2,3,"Abnehmend",3," ","Abnehmend"]
[7268,1059,"Euphydryas","aurinia","Feuchtwiesen, Moore, Wiesen, mit der Grünlandbewirtschaftung verschwunden (Ebert)",null,1,null,1,1,1,{"$nulls":12},"Teufelsabbiß",null,null,1,{"$nulls":4},1,null,null,"2_2","1_4","Goldener Scheckenfalter","Nymphalidae (Edelfalter)","Bei Elberfeld nur einzeln, dagegen häufig auf sumpfigen Waldwiesen",4,"Wuppertal",1,0,0,"verschwunden",0,0,"abnehmend",2,3,"Abnehmend",3," ","Abnehmend"]
[7283,1065,"Melitaea","athalia","Buschreiche Hänge, aufgelassene Weinberge, Moore, blütenreiche Saumgesellschaften",null,1,null,null,null,1,{"$nulls":7},1,1,1,1,null,"Wachtelweizen, Augentrost, Spitzwegerich",null,null,1,{"$nulls":5},1,null,"3_4, 3_6","3_8","Wachtelweizen-Scheckenfalter","Nymphalidae (Edelfalter)","Ueberall gemein",6,"bis 1960 noch recht häufig, in den letzten 00 Jahren spärlich",2,0,0,"verschwunden",0,0,"abnehmend",2,3,"Abnehmend",3," ","Abnehmend"]
[7287,1046,"Limenitis","camilla","Waldränder und Waldwege mit Geißblatt-Bewuchs",{"$nulls":6},1,1,1,1,1,{"$nulls":7},"Geißblatt, Schneebeere, Heckenkirsche",1,{"$nulls":6},1,null,null,"3_1","3_8","Kleiner Eisvogel","Nymphalidae (Edelfalter)","häufig",4,"Früher...nicht selten",2,0,0,"verschwunden",0,0,"abnehmend",2,3,"Abnehmend",3," ","Abnehmend"]
[7309,1031,"Lasiommata","megera","Halbtrockenrasen, offene, Buschreiche Trockenhänge, Felsen, Böschungen und Dmme, Bahnanlagen, sandige, trockene Stellen, Weinberge, Steinbrüche, Streuobstweisen, Hohlwege",{"$nulls":18},"Schaf-Schwingel, Fieder-Zwenke",null,null,null,1,{"$nulls":4},1,null,null,null,"Mauerfuchs","Nymphalidae (Edelfalter)","Ueberall häufig",4,"Überall... Nicht selten, aber auch nie in großer Häufigkeit",3,70,4,"häufig",2,11,"schwankend",4,9,"Gleichbleibend verbreitet bis sehr häufig",9,"abnehmend, in den letzten Jahren kaum noch Funde, Kommetar Tim: wird sich dann in Zukunft zeigen? Kommentieren","Abnehmend"]
[7334,1042,"Coenonympha","pamphilus","Überwiegend im Offenland, überall, auch auf kleinen Grasflächen",{"$nulls":18},"Roter Schwingel, Wiesen-Rispengras, Flecht-Straußgras, Zartes Straußgras",null,null,null,1,{"$nulls":4},1,null,"4_2","2_1, 2_2","Kleines Wiesenvögelchen","Nymphalidae (Edelfalter)","Ueberall sehr gemein",7,"verbreitet und häufig",4,120,4,"häufig",2,13,"abnehmend",2,6,"Gleichbleibend verbreitet bis sehr häufig",6,"stark zurückgehend, anders einstufen? Kommentar Tim: wird sich noch zeigen? Kommentieren","Abnehmend"]
[7415,1022,"Melanargia","galathea","Blumenreiche, wenig gedüngte, trocken-magere Glatthaferwiesen, Waldränder, Dämme, Lichtungen, Streuobstwiesen",1,null,null,1,null,null,1,{"$nulls":5},1,1,{"$nulls":4},"Gräser",null,null,null,1,{"$nulls":4},1,null,"2_2","4_2","Schachbrettfalter","Nymphalidae (Edelfalter)","stellenweise gemein",6,"verbreitet...,einzeln",3,0,1,"sehr selten",0,0,"abnehmend",2,3,"Abnehmend",3,"sehr selten, Einzelfund Wuppertalsperre kommentieren","Abnehmend"]
[7436,1027,"Hipparchia","semele","Offenland, Mager- und Trockenrasen, gebüschreiche Trockenhänge, Schuttflächen, Sandböden, Steinbrüche, Waldränder",1,null,null,1,1,null,1,{"$nulls":7},1,null,null,null,"Gräser",null,null,null,1,{"$nulls":4},1,null,"2_1, 2_2, 2_3","4_4","Ockerbindiger Samtfalter","Nymphalidae (Edelfalter)","Bei Elberf.[eld] einzeln",2,"seltener geworden",2,0,0,"verschwunden",0,0,"abnehmend",2,2,"Abnehmend",2," ","Abnehmend"]
[7501,2115,"Falcaria","lacertinaria","Birken und Erlenwälder, Bruchwälder, Moore, Talgründe von Flüssen und Bächen",null,1,null,1,{"$nulls":4},1,{"$nulls":9},"Birke ",1,{"$nulls":6},1,{"$nulls":4},"Birken-Sichelflügler","Drepanidae (Sichelflügler)","Häufig…",4,"verbreitet",3,4,2,"selten",2,10,"abnehmend",2,3,"Abnehmend",3," ","Abnehmend"]
[7512,2118,"Cilix","glaucata","Besonnte Hecken mit Schlehen und Weißdorn, Waldränder, Feldgehölze, südexponierte Hänge",{"$nulls":5},1,1,{"$nulls":7},1,null,null,null,"Schlehe, Weißdorn",1,{"$nulls":7},1,null,"3_6","4_6","Silberspanner","Drepanidae (Sichelflügler)","nicht selten",3,"Vereinzelt",2,0,0,"verschwunden",0,0,"abnehmend",2,2,{"$f":"IF(AX35=1,\"Einzelfund\",IF(OR(AX35=2,AX35=3),\"Abnehmend\",IF(OR(AX35=4,AX35=7,AX35=8,AX35=11),\"Zunehmend\",IF(AX35=5,\"Gleichbleibend selten\",IF(OR(AX35=6,AX35=9,AX35=10,AX35=12),\"Gleichbleibend verbreitet bis sehr häufig\",\"nicht bewertet\")))))","v":"Abnehmend"},2," ","Abnehmend"]
[7522,4281,"Abraxas","grossulariata","Eichen-Ulmen-Aue, feuchte Wälder mit üppiger Krautschicht, Standorte von Traubenkirsche, Holunder, Hasel, schattige Waldsäume, Gärten (Stachelbeere!)",{"$nulls":6},1,null,1,1,1,{"$nulls":5},1,null,"Weide, Hasel, Stachelbeere, Weißdorn, Schlehe, Traubenkirsche",1,{"$nulls":8},1,"4_9","3_1, 3_6, 4_6","Stachelbeerspanner","Geometridae (Spanner)","Ueberall gemein",6,"Während die Art aus dem Wuppertaler Raum seit Weymer (1863) von allen Sammlern als bodenständig und häufig angegeben wird, ist der Falter sonst heute nur einzeln zu finden.",2,1,1,"sehr selten",0,0,"abnehmend",2,3,"Abnehmend",3," ","Abnehmend"]
[7524,4282,"Calospilos","sylvata","Feuchtgebiete, Bruchwälder, Auen, Waldränder, Schluchtwälder",null,1,{"$nulls":4},1,null,1,1,1,{"$nulls":7},"Hasel, Ulme, Traubenkirsche, Vogelkirsche, Wolliger Schneeball",1,{"$nulls":8},1,"3_1",null,"Ulmen-Harlekin","Geometridae (Spanner)","selten   ",2,"Zwar verbreitet, aber immer nur einzeln. ",2,0,1,"sehr selten",0,0,"gleichbleibend",4,5,"Gleichbleibend selten",5,"verschollen? Kommetar Tim: abwarten? Kommentieren","Abnehmend"]
[7567,4336,"Itame","brunneata","Heidelbeerwälder, Moore",null,1,{"$nulls":7},1,1,1,{"$nulls":6},"Heidelbeere, Moorbeere ",null,null,1,{"$nulls":4},1,null,null,"1_3, 3_5",null,"Waldmoorpanner","Geometridae (Spanner)","nicht selten",3,"einzeln und selten",2,5,1,"sehr selten",1,0,"abnehmend",2,2,"Abnehmend",2," ","Abnehmend"]
[7606,4294,"Plagodis","pulveraria","Auwald, Bruchwald, lichte, buschreiche Laubwälder, Wälder mit Heidelbeerunterwuchs, Moore",null,1,{"$nulls":6},1,1,1,1,{"$nulls":6},"Hasel, Eberesche, Mehlbeerbaum, Traubenkirsche, Heidelbeere",1,null,1,{"$nulls":6},1,"3_4",null,"Heckenkirschenspanner","Geometridae (Spanner)","nicht selten",3,"Ziemlich selten",2,0,0,"verschwunden",1,0,"abnehmend",2,2,"Abnehmend",2," ","Abnehmend"]
[7609,4373,"Pachycnemia","hippocastanaria","Heiden und Moore",null,1,1,{"$nulls":15},"Heidekraut",null,null,1,{"$nulls":4},1,null,null,"2_1",null,"Schmalflügeliger Heidekrautspanner","Geometridae (Spanner)","nicht selten",3,"Überall dort, wo Heidekraut wächst",3,0,0,"verschwunden",0,0,"abnehmend",2,2,"Abnehmend",2," ","Abnehmend"]
[7628,4321,"Hypoxystis","pluviaria","Eichen-Niederwald mit Besenginsterbewuchs",null,null,1,{"$nulls":4},1,{"$nulls":10},"Besenginster",1,{"$nulls":6},1,{"$nulls":4},"Blaßgelber Sprenkelspanner","Geometridae (Spanner)","Nicht häufig aber verbreitet",3,"Keine Funde seit Weymer.",0,0,0,"verschwunden",0,5,"abnehmend",2,2,"Abnehmend",2," ","Abnehmend"]
[7630,4307,"Apeira","syringaria","Unterholz lichter Laubwälder, feuchte, krautreiche Waldränder, Waldwege, Gärten (Flieder, Liguster)",{"$nulls":6},1,null,1,1,1,{"$nulls":5},1,null,"Esche, Liguster, Flieder, Geißblatt, Rote Heckenkirsche",1,{"$nulls":8},1,"3_6","3_2","Fliederspanner","Geometridae (Spanner)","ziemlich oft gef.[angen",4,"nur in Einzelstücken",2,1,1,"sehr selten",2,4,"abnehmend",2,3,"Abnehmend",3," ","Abnehmend"]
[7632,4299,"Ennomos","autumnaria","Feuchte bis mäßig trockene Laubmischwälder, Gärten",{"$nulls":9},1,1,{"$nulls":5},1,null,"Weißdorn, Eiche",1,{"$nulls":7},1,null,null,null,"Herbst-Zackenrandspanner","Geometridae (Spanner)","Ueberall nicht selten ",3,"verbreitet, aber meist einzeln...früher häufiger",2,0,0,"verschwunden",0,0,"abnehmend",2,2,"Abnehmend",2," ","Abnehmend"]
[7633,4309,"Ennomos","quercinaria","Lichte, feuchte Laubwälder, Auwälder, Eichen- Rotbuchen- Wald, Gärten, Parks",null,1,{"$nulls":6},1,1,1,{"$nulls":5},1,null,"Weide, Buche, Zitterpappel, Hainbuche, Rotbuche, Schlehe, Weißdorn, Ahorn",1,{"$nulls":8},1,"3_5","3_3","Eichen-Zackenrandspanner","Geometridae (Spanner)","Ueberall häufig ",4,"verbreitet, aber nie häufig ",3,9,2,"selten",2,3,"abnehmend",2,3,"Abnehmend",3," ","Abnehmend"]
[7636,4303,"Ennomos","erosaria","Feuchte bis mäßig trockene Laubmischwälder, Ginstersäume, Wacholderheiden, Gärten",null,null,1,{"$nulls":6},1,1,{"$nulls":7},"Weide, Birke, Eiche",1,{"$nulls":8},1,"3_5",null,"Birken-Zackenrandspanner","Geometridae (Spanner)","Nicht selten und verbreitet",3,"weit verbreitet und gelegentlich häufig",3,0,1,"sehr selten",0,0,"abnehmend",2,2,"Abnehmend",2," ","Abnehmend"]
[7665,4313,"Angerona","prunaria","Auenwälder, Moore, Magerrasen, Sandgebiete, Offenland mit Gebüschen und Hecken",1,1,null,1,null,null,1,null,1,{"$nulls":5},1,1,null,null,"Laubbäume, Besenginster, Himbeere, Stachelbeere, Rote Heckenkirsche",1,{"$nulls":8},1,"3_4, 3_6","3_5, 4_6","Schlehenspanner","Geometridae (Spanner)","manchmal…nicht selten",3,"In den letzten Jahren auffallend seltener",2,0,0,"verschwunden",0,0,"abnehmend",2,2,"Abnehmend",2," ","Abnehmend"]
[7773,4354,"Cleora","cinctaria","Überall",{"$nulls":17},1,"Kiefer, Ginster, Schlehe, Birke, Kronwicke, Thymian",1,1,1,{"$nulls":6},1,"2_1",null,"Ringfleck-Rindenspanner","Geometridae (Spanner)","Ueberall nicht selten ",3,"wurde früher...nachgewiesen",0,0,0,"verschwunden",0,0,"abnehmend",2,2,"Abnehmend",2," ","Abnehmend"]
[7802,4371,"Aethalura","punctulata","Lichte, feuchte Erlen- Birken- Wälder, Auwäler, sumpfige Standorte",null,1,{"$nulls":6},1,{"$nulls":9},"Birke, Erle",1,{"$nulls":7},1,null,null,null,"Grauer Erlen-Rindenspanner","Geometridae (Spanner)","Ueberall sehr häufig",5,"Überall...verbreitet",4,0,2,"selten",2,12,"abnehmend",2,3,"Abnehmend",3," ","Abnehmend"]
[7804,4383,"Ematurga","atomaria","Heiden, Moore, lichte Kiefernwälder, Dämme, Haltrockenrasen, Wacholderheiden",1,1,1,{"$nulls":8},1,null,1,{"$nulls":4},"Sauerampfer, Ginster, Schlehe, Schwarzdorn, Hornklee, Luzerne, Johanniskraut, Heidekraut, Heidelbeere, Schafgarbe, Beifuß",1,null,1,{"$nulls":6},1,"2_1","1_3, 2_2","Heideland-Tagspanner","Geometridae (Spanner)","Ueberall sehr gemein",7,"früher recht häufig",3,0,0,"verschwunden",3,20,"abnehmend",2,3,"Abnehmend",3," ","Abnehmend"]
[7822,4384,"Bupalus","piniaria","Moore, Kiefernbestände",null,1,{"$nulls":9},1,{"$nulls":6},"Kiefer",null,1,{"$nulls":5},1,{"$nulls":4},"Kiefernspanner","Geometridae (Spanner)","Ueberall sehr gemein",7,"verbreitet. Lokal zahlreich",3,9,2,"selten",2,10,"abnehmend",2,3,"Abnehmend",3," ","Abnehmend"]
[7833,4338,"Theria","rupicapraria","Warme Steppenlandschaften, xerotherme Gebüschstandorte, Hanglagen, Haltrockenrasen, sonnige Waldränder, Schlehenhecken",1,null,1,1,null,1,1,{"$nulls":11},"Schlehe, Weißdorn",1,{"$nulls":7},1,null,"3_6","4_6","Später Schlehenbusch-Winterspanner","Geometridae (Spanner)","Oft",4,"weiter verbreitet",3,0,0,"verschwunden",0,0,"abnehmend",2,3,"Abnehmend",3," ","Abnehmend"]
[7837,4298,"Campaea","honoraria","Eichenjungholzbestände",{"$nulls":7},1,{"$nulls":10},"Eiche",1,{"$nulls":6},1,null,null,"3_6","3_4, 3_5","Rötlichbrauner Eichenspanner","Geometridae (Spanner)","Nicht häufig ",3,"Keine Nachweise seit Weymer",0,0,0,"verschwunden",0,0,"abnehmend",2,2,"Abnehmend",2," ","Abnehmend"]
[7939,4390,"Perconia","strigillaria","Ginsterbestände, Sandböden, Bahndämme, Wacholderheiden",1,null,1,{"$nulls":11},1,1,null,null,"Besenginster",null,null,1,{"$nulls":4},1,null,null,"1_3","2_1, 3_4","Heide-Streifenspanneer","Geometridae (Spanner)","Verbreitet und häufig",4,"oft in Anzahl",3,5,1,"sehr selten",1,5,"abnehmend",2,3,"Abnehmend",3," ","Abnehmend"]
[7954,4004,"Alsophila","aceraria","Eichen-Hainbuchenwald, Hartholz-Auwälder, Rotbuchenwälder",{"$nulls":8},1,1,1,{"$nulls":7},"Eiche, Ahorn",1,{"$nulls":7},1,null,"3_5",null,"Herbst-Kreuzflügel","Geometridae (Spanner)","Selten",2,"selten",2,0,0,"verschwunden",0,0,"abnehmend",2,2,"Abnehmend",2," ","Abnehmend"]
[7965,4008,"Pseudoterpna","pruinata","Warme Berghänge, Offenland, Waldwege, Besenginsterheide, Straßenränder, Bahndämme",null,null,1,1,null,1,1,{"$nulls":6},1,1,1,null,null,"Ginster, schwarzwerdender Geißklee",null,null,1,{"$nulls":5},1,null,"2_1","3_4, 4_4","Ginster-Grünspanner","Geometridae (Spanner)","Ueberall häufig",4,"verbreitet",3,1,1,"sehr selten",2,10,"abnehmend",2,3,"Abnehmend",3," ","Abnehmend"]
[8003,4018,"Jodis","putata","Moore, saure Silikatböden mit Heidelbeere",null,1,{"$nulls":16},"Heidelbeere, Moorbeere",null,null,1,{"$nulls":4},1,null,null,"3_4",null,"Heidelbeer-Grünspanner","Geometridae (Spanner)","Ueberall…häufig ",4,"Es ist anzunehmen, dass I. putata im Gegensatz zu früher in ihrer Häufigkeit abgenommen hat.\" ",3,0,0,"verschwunden",0,0,"abnehmend",2,3,"Abnehmend",3," ","Abnehmend"]
[8019,4026,"Cyclophora","porata","Eichengebüsche",{"$nulls":5},1,null,1,{"$nulls":10},"Eiche",1,{"$nulls":6},1,null,null,"3_4, 3_5",null,"Gelbbrauner Eichen-Gürtelpuppenspanner","Geometridae (Spanner)","Nicht häufig",3,"Eine in den letzten Jahren selten gewordene Art ",2,0,0,"verschwunden",0,0,"abnehmend",2,2,"Abnehmend",2," ","Abnehmend"]
[8045,4046,"Scopula","ornata","Offenlandbewohner, Gebüsche, Waldränder, Wacholderheiden, Dämme und öschungen, Moorwiesen, Gärten, Ruderalflächen",null,1,null,1,1,null,1,{"$nulls":6},1,null,1,1,null,"Feld-Thymian",null,null,1,{"$nulls":4},1,null,null,"2_2",null,"Schmuck-Kleinspanner","Geometridae (Spanner)","Selten ",2,"seltener geworden ",1,0,0,"verschwunden",0,0,"abnehmend",2,2,"Abnehmend",2," ","Abnehmend"]
[8067,4031,"Scopula","ternata","Moore, Wälder mit Heidelbeerbeständen",null,1,{"$nulls":7},1,1,1,{"$nulls":6},"Heidelbeere ",null,null,1,{"$nulls":4},1,null,null,"3_5",null,"Heidelbeer-Kleinspanner","Geometridae (Spanner)","Selten",2,"sehr selten geworden",1,0,0,"verschwunden",0,0,"abnehmend",2,2,"Abnehmend",2," ","Abnehmend"]
[8069,4036,"Scopula","floslactata","Lichte Wälder, gebüschreiche Täler, Lichtungen, Schneisen, Ruderalflächen, verbuschte Weinhänge, sumpfige Waldwiesen",null,1,null,null,1,1,1,null,null,1,1,null,null,null,1,1,null,null,"Heidelbeere ",null,null,1,{"$nulls":4},1,{"$nulls":4},"Labkrautkleinspanner","Geometridae (Spanner)","Ueberall häufig ",4,"verbreitet, aber einzeln ",3,1,1,"sehr selten",2,20,"abnehmend",2,3,"Abnehmend",3," ","Abnehmend"]
[8187,4071,"Idaea","straminata","Moore, Silikat-Magerrasen, Halbtrockenrasen, Sandrasen",1,1,{"$nulls":16},"Abgefallene Blätter",{"$nulls":6},1,null,null,1,"2_2",null,"Olivgrauer Doppellinien-Zwergspanner","Geometridae (Spanner)","verbreitet aber nur einzeln.   ",3,"Keine Angaben über neue Funde",0,5,1,"sehr selten",0,0,"schwankend",4,5,"Gleichbleibend selten",5,"Letzter Fund 18.7.93, verschollen? Kommetar Tim: abwarten? Kommentieeren","Abnehmend"]
[8229,4082,"Scotopteryx","moeniata","Halbtrockenrasen, Waldränder, Streuobstwiesen, Brachen, krautreiche Wald- und Wegränder",1,null,null,1,null,null,1,{"$nulls":5},1,{"$nulls":5},"Flügel-Ginster",null,null,1,{"$nulls":4},1,{"$nulls":4},"Winkelbinden-Wellenstriemenspanner","Geometridae (Spanner)","Oefter",3,"Keine neueren Funde seit Weymer",0,0,0,"verschwunden",0,0,"abnehmend",2,2,"Abnehmend",2," ","Abnehmend"]
[8239,4081,"Scotopteryx","chenopodiata","Überall  ",{"$nulls":17},1,"Wicke und andere krautige Pflanzen",null,null,1,{"$nulls":6},1,null,null,"Platterbsenspanner","Geometridae (Spanner)","Ueberall häufig",4,"früher häufig",3,51,4,"häufig",2,18,"schwankend",4,9,"Gleichbleibend verbreitet bis sehr häufig",9,null,"Abnehmend"]
[8241,4080,"Scotopteryx","luridata","Ginsterbestände",null,null,1,null,null,1,{"$nulls":9},1,null,null,"Ginster",null,null,1,{"$nulls":4},1,{"$nulls":4},"Braungrauer Wellenstriemenspanner","Geometridae (Spanner)","Ueberall sehr häufig",5,"deutlich seltener [als mucronata, Amn. d. Autoren] ",1,0,0,"verschwunden",0,0,"abnehmend",2,3,"Abnehmend",3," ","Abnehmend"]
[8330,4114,"Eulithis","prunata","Wald, Waldrand, Hecken, Gärten, Gebüsche",{"$nulls":5},1,1,1,1,1,1,{"$nulls":5},1,null,"Stachelbeere, Johannisbeere",1,{"$nulls":6},1,null,null,"4_7",null,"Dunkelbrauner Haarbüschelspanner","Geometridae (Spanner)","Ueberall häufig",4,"Auffällig ist das verstärkte Auftreten in Wuppertal und Umgebung",4,2,2,"selten",2,10,"abnehmend",2,3,"Abnehmend",3," ","Abnehmend"]
[8331,4115,"Eulithis","testata","Heiden und Moore",null,1,1,{"$nulls":15},"Saalweide, Heidekraut, Heidelbeere",1,null,1,{"$nulls":5},1,null,null,null,"Bräunlichgelber Haarbüschelspanner","Geometridae (Spanner)","Verbreitet und nicht selten",3,"verbreitet und lokal häufig ",3,1,1,"sehr selten",1,1,"abnehmend",2,2,"Abnehmend",2," ","Abnehmend"]
[8332,4116,"Eulithis","populata","Wälder, Wegränder, Heidelbeerbestände",{"$nulls":6},1,null,1,1,1,{"$nulls":7},"Heidelbeere ",null,null,1,{"$nulls":4},1,{"$nulls":4},"Veränderlicher Haarbüschelspanner","Geometridae (Spanner)","Ueberall häufig",4,"Mischwälder des Berglandes ",2,0,2,"selten",1,3,"abnehmend",2,3,{"$f":"IF(AX67=1,\"Einzelfund\",IF(OR(AX67=2,AX67=3),\"Abnehmend\",IF(OR(AX67=4,AX67=7,AX67=8,AX67=11),\"Zunehmend\",IF(AX67=5,\"Gleichbleibend selten\",IF(OR(AX67=6,AX67=9,AX67=10,AX67=12),\"Gleichbleibend verbreitet bis sehr häufig\",\"nicht bewertet\")))))","v":"Abnehmend"},3," ","Abnehmend"]
[8334,4117,"Eulithis","mellinata","Siedlungsbereich, Hausgärten, Obstplantagen",{"$nulls":12},1,null,null,null,1,null,"Johannisbeeren, Stachelbeeren",null,null,1,{"$nulls":4},1,null,null,"4_7, 4_9",null,"Scheckrand-Haarbüschelspanner","Geometridae (Spanner)","Keine Angaben",0,"Im ganzen Gebiet vorkommend   ",4,5,1,"sehr selten",1,7,"schwankend",4,5,"Gleichbleibend selten",5," ","Abnehmend"]
[8356,4125,"Thera","obeliscata","Kiefernbestände, Heidelandschaft, Moore, Parks",null,1,1,{"$nulls":8},1,{"$nulls":4},1,null,"Wald-Kiefer",null,1,{"$nulls":5},1,null,null,"3_7",null,"Brauner Kiefernwald-Blattspanner","Geometridae (Spanner)","sehr häufig ",5,"verbreitet ",3,7,2,"selten",3,15,"abnehmend",2,3,"Abnehmend",3," ","Abnehmend"]
[8371,4144,"Colostygia","olivata","Mäßig trockene bis feuchte Laub- Misch und Nadelwälder, Wege, Schneisen, Steinbrüche",{"$nulls":9},1,1,1,null,null,1,null,null,null,"Labkraut",null,null,1,{"$nulls":4},1,null,null,"3_4",null,"Moosgrüner Bindenspanner","Geometridae (Spanner)","Nicht häufig ",3,"Das Vorkommen bei Wuppertal ist wahrscheinlich heute erloschen",0,0,0,"verschwunden",0,1,"abnehmend",2,2,"Abnehmend",2," ","Abnehmend"]
[8419,4177,"Rheumaptera","hastata","Moore  ",null,1,{"$nulls":16},"Birke ",1,{"$nulls":6},1,null,null,"1_1","3_4","Grosser Speerspanner","Geometridae (Spanner)","Einzeln bei Elb.[erfeld], Barmen, mehrfach bei Ronsdorf ",2,"vereinzelt...In den letzten Jahren seltener",2,0,0,"verschwunden",0,0,"abnehmend",2,2,"Abnehmend",2," ","Abnehmend"]
[8428,4108,"Triphosa","dubitata","Streuobstwiesen, Hecken und Gebüsche, Gärten und Parks",{"$nulls":5},1,1,{"$nulls":5},1,null,null,null,1,null,"Kreuzdorn",1,{"$nulls":6},1,null,null,"3_6","4_6","Olivbrauner Wegdornspanner","Geometridae (Spanner)","Nicht häufig",3,"Immer einzeln",2,0,1,"sehr selten",1,2,"abnehmend",2,2,"Abnehmend",2," ","Abnehmend"]
[8462,4192,"Perizoma","blandiata","Augentrost-Bestände",1,null,null,1,{"$nulls":14},"Augentrost",null,null,1,{"$nulls":4},1,{"$nulls":4},"Augentrost-Kapselspanner","Geometridae (Spanner)","Meist selten",2,"einzeln und selten",2,0,0,"verschwunden",0,0,"abnehmend",2,2,"Abnehmend",2," ","Abnehmend"]
[8463,4193,"Perizoma","albulata","Magerwiesen, Brachen, Rasengesellschaften",1,null,null,1,1,{"$nulls":13},"Klappertopf",null,null,1,{"$nulls":4},1,null,null,"2_2","1_4","Klappertopf-Kapselspanner","Geometridae (Spanner)","Auf feuchten Waldwiesen überall…sehr häufig",5,"heute nur noch sehr selten",1,0,0,"verschwunden",0,0,"abnehmend",2,3,"Abnehmend",3," ","Abnehmend"]
[8465,4149,"Perizoma","didymata","Heidelbeer-Massenbestände",null,1,1,{"$nulls":6},1,1,1,{"$nulls":6},"Heidelbeere, Rauschbeere, Gelber Enzian, Fuch´s Greiskraut",null,null,1,{"$nulls":6},1,null,null,"Bergwald-Kräuterspanner","Geometridae (Spanner)","Verbreitet, aber nicht häufig ",3,"nicht häufig...stark zurückgegangen",3,0,0,"verschwunden",1,0,"abnehmend",2,2,"Abnehmend",2," ","Abnehmend"]
[8605,4273,"Rhinoprora","debiliata","Halbschattige Bereiche in Wäldern, Moore",null,1,{"$nulls":7},1,1,1,{"$nulls":6},"Blüten von Heidelbeere und Moorbeere",{"$nulls":6},1,1,null,null,"3_4, 3_5","1_1, 3_7","Heidelbeer-Blütenspanner","Geometridae (Spanner)","einzeln   ",2,"seltener geworden  ",1,1,2,"selten",0,0,"schwankend",4,5,"Gleichbleibend selten",5," ","Abnehmend"]
[8610,4090,"Chesias","rufata","Ginsterheide",null,null,1,{"$nulls":10},1,1,1,null,null,"Besenginster, Deutscher Ginster",null,null,1,{"$nulls":4},1,null,null,"2_1, 3_4",null,"Früher Ginsterspanner","Geometridae (Spanner)","Verbreitet, aber nicht häufig",3,"lokaler und weniger zahlreich [als legatella]",2,0,0,"verschwunden",0,0,"abnehmend",2,2,"Abnehmend",2," ","Abnehmend"]
[8631,4007,"Odezia","atrata","Berg- und Talwiesen, meist am Waldrand, Wegränder, Dämme, Gräben, Moore",null,1,null,1,null,1,1,{"$nulls":6},1,{"$nulls":4},"Hecken-Kälberkropf, Apiaceae",null,null,1,{"$nulls":5},1,null,"1_4",null,"Schwarzspanner","Geometridae (Spanner)","Einmal von mir am 12. Juli 1857 auf der Hilgershöh bei Rittershausen, dagegen 1876 und 1877 von Hav.[erkampf] bei Ronsdorf öfter, auch von Ol.[earius] in Obersiebeneick gef.[unden] ",2,"nur noch selten und lokal",2,0,2,"selten",0,0,"gleichbleibend",4,5,"Gleichbleibend selten",5," ","Abnehmend"]
[8698,2168,"Clostera","curtula","Auwälder, Lichtungen, Kahlschläge, gebüschreiche Trockenhäge, Wegränder, Gärten, Parks",{"$nulls":5},1,1,null,1,{"$nulls":4},1,null,null,1,null,"Weide, Pappel",1,{"$nulls":7},1,null,null,null,"Erpelschwanz","Notodontidae (Zahnspinner)","Häufig",4,"Überall ",4,6,2,"selten",2,10,"abnehmend",2,3,"Abnehmend",3," ","Abnehmend"]
[8699,2170,"Clostera","pigra","Auwälder, Lichtungen, Kahlschläge, gebüschreiche Trockenhäge, Wegränder, Gärten, Parks",{"$nulls":5},1,1,null,1,{"$nulls":4},1,null,null,1,null,"Weide, Pappel",1,{"$nulls":7},1,null,null,null,"Kleiner Erpelschwanz","Notodontidae (Zahnspinner)","Häufig",4,"vereinzelt ",2,0,0,"verschwunden",0,0,"abnehmend",2,3,"Abnehmend",3," ","Abnehmend"]
[8700,2169,"Clostera","anachoreta","Auenwälder, Stromtäler, Moore mit Weiden- und Pappelgehölzen",null,1,{"$nulls":4},1,1,1,{"$nulls":9},"Pappel, Weide",1,{"$nulls":7},1,null,null,null,"Schwarzfleck-Erpelschwanz","Notodontidae (Zahnspinner)","Selten",2,"Wuppertal (4.6.1954 u. 5.8.1954…)",1,0,0,"verschwunden",0,0,"abnehmend",2,2,"Abnehmend",2," ","Abnehmend"]
[8704,2143,"Cerura","vinula","Moore, Flusslandschaft, Weidengehölze",null,1,null,null,null,1,1,null,1,{"$nulls":9},"Pappel, Weide",1,{"$nulls":7},1,null,"3_6","3_1","Großer Gabelschwanz","Notodontidae (Zahnspinner)","Häufig",4,"Überall verbreitet und nicht selten",3,0,0,"verschwunden",0,0,"abnehmend",2,3,"Abnehmend",3," ","Abnehmend"]
[8710,2141,"Furcula","bifida","Auwälder, gebüschreiches Offenland",null,null,null,1,null,1,null,null,1,{"$nulls":9},"Pappel, Weide",1,{"$nulls":7},1,null,null,null,"Kleiner Gabelschwanz","Notodontidae (Zahnspinner)","Häufig",4,"nur sehr selten",1,0,0,"verschwunden",0,0,"abnehmend",2,3,"Abnehmend",3," ","Abnehmend"]
[8717,2156,"Notodonta","torva","Moore, auch auf Trockenhängen, Biotopanspruch unklar",1,1,{"$nulls":16},"Zitter-Pappel, Silber-Pappel",1,{"$nulls":6},1,null,null,"3_6",null,"Gelbbrauer Zahnspinner","Notodontidae (Zahnspinner)","Selten",2,"Vereinzelt   ",2,1,1,"sehr selten",0,0,"gleichbleibend",4,5,"Gleichbleibend selten",5," ","Abnehmend"]
[8787,3008,"Acronicta","rumicis","Moore, Brachen, Weidengebüsch, Wegränder, Böschungen, Kiesgruben, Schuttplätze",null,1,null,null,1,{"$nulls":8},1,1,1,null,null,"Weide, Birke, Hainbuche, diverse krautige Pflanzen",1,null,1,{"$nulls":6},1,null,null,"Ampfer-Rindeneule","Noctuidae (Eulenfalter)","Gemein",6,"verbreitet",3,0,1,"sehr selten",3,30,"abnehmend",2,3,"Abnehmend",3,"selten, weitere Funde 2008 kommentieren","Abnehmend"]
[8839,3446,"Paracolax ","tristalis","Eichenwälder, Eichen-Hainbuchen Wälder",{"$nulls":9},1,1,{"$nulls":7},"Eiche",1,{"$nulls":6},1,{"$nulls":4},"Trübgelbe Spannereule","Noctuidae (Eulenfalter)","Ueberall häufig",4,"lokal und selten",2,0,0,"verschwunden",1,1,"abnehmend",2,3,"Abnehmend",3," ","Abnehmend"]
[8852,3447,"Pechipogo","strigilata","Laub-Nadel Mischwälder, Schwerpunkt im Niederwald",{"$nulls":7},1,null,null,1,1,{"$nulls":6},"Birke ",1,{"$nulls":6},1,null,null,"3_4",null,"Bart-Spannereule","Noctuidae (Eulenfalter)","Verbreitet und nicht selten",3,"nur lokal und einzeln, früher deutlich häufiger",2,0,0,"verschwunden",0,0,"abnehmend",2,2,"Abnehmend",2," ","Abnehmend"]
[8897,3403,"Minucia ","lunaris","Lichte Eichen- und Eichenmischwälder, sonnige Randbereiche und Waldwege, Steppenheiden, Eichenhecken",null,null,1,null,null,1,1,null,null,1,1,{"$nulls":7},"Eiche",1,{"$nulls":6},1,null,null,"3_4","3_5","Braunes Ordensband","Noctuidae (Eulenfalter)","früher selten, seit 1870 aber alljährlich öfter",3,"verbreitet und lokal nicht selten ",3,0,0,"verschwunden",0,0,"abnehmend",2,2,"Abnehmend",2," ","Abnehmend"]
[8965,3388,"Tyta","luctuosa","Offenland, an warmen, trockenen Stellen, Brachen, Weinberge",null,null,null,1,1,{"$nulls":9},1,1,null,null,"Ackerwinde, Winde",null,null,1,{"$nulls":4},1,{"$nulls":4},"Ackerwinden-Trauereule","Noctuidae (Eulenfalter)","selten",2,"nicht bodenständig",2,0,0,"verschwunden",0,0,"abnehmend",2,2,"Abnehmend",2," ","Abnehmend"]
[8995,3451,"Hypena","rostralis","Laub- und Mischwälder, Lichtungen, Hecken, Gärten",{"$nulls":5},1,1,null,null,1,1,{"$nulls":5},1,null,"Brennnessel, Hopfen",null,null,1,{"$nulls":5},1,null,"3_8",null,"Hopfen-Schnabeleule","Noctuidae (Eulenfalter)","gemein",6,"Im Bergland vereinzelt",2,0,1,"sehr selten",3,25,"abnehmend",2,3,"Abnehmend",3," ","Abnehmend"]
[9006,3435,"Phytometra","viridaria","Sonnige, trockene bis feuchte Wiesen, Wacholderheiden, Steppenheiden, Lichtungen und Schläge",null,null,1,1,null,null,1,{"$nulls":11},"Gewöhnliche Kreuzblume",null,null,1,{"$nulls":4},1,null,null,"2_2","2_1","Kreuzblumen-Bunteulchen","Noctuidae (Eulenfalter)","nicht häufig",3,"nur noch vereinzelt und selten",2,0,0,"verschwunden",0,0,"abnehmend",2,2,"Abnehmend",2," ","Abnehmend"]
[9221,3188,"Cucullia","asteris","Bestände von Goldrute, Gold-Aster: Magerrasen, Wacholderheiden, Wegränder, lichte Waldmäntel, Böschungen, Säume und Hecken, Gärten",1,null,1,null,null,1,1,{"$nulls":6},1,null,1,1,null,"Ewöhnliche Goldrute, Astern",null,null,1,{"$nulls":4},1,{"$nulls":4},"Astern-Mönch","Noctuidae (Eulenfalter)","Selten",2,"Im Bergland...selten",2,0,0,"verschwunden",0,0,"abnehmend",2,2,"Abnehmend",2," ","Abnehmend"]
[9311,3264,"Amphipyra","tragopoginis","Wiesen, Weiden, Moore, Halbtrockenrasen, Ruderalflächen, Gebüsche",1,1,null,1,1,1,{"$nulls":9},1,null,null,"Rittersporn, Steinklee, Labkraut, Königskerze, Bocksbart",null,null,1,{"$nulls":6},1,null,null,"Dreipunkt-Glanzeule","Noctuidae (Eulenfalter)","Ueberall häufig",4,"Überall...verbreitet und häufig",4,2,1,"sehr selten",2,10,"abnehmend",2,3,"Abnehmend",3," ","Abnehmend"]
[9323,3198,"Brachionycha","nubeculosa","Frische bis feuchte Laubwälder",{"$nulls":9},1,1,{"$nulls":7},"Laubbäume",1,{"$nulls":8},1,"3_1, 3_5",null,"Frühlings-Rauhhaareule","Noctuidae (Eulenfalter)","in einzelnen Exemplaren",2,"früher nicht selten",3,0,0,"verschwunden",0,0,"schwankend",4,5,"Gleichbleibend selten",5," ","Abnehmend"]
[9331,2180,"Diloba","caeruleocephala","Gebüsch, Magerrasen, Bahndämme, Hecken",1,{"$nulls":4},1,{"$nulls":9},1,null,null,"Apfel, Birne, Weßdorn, Schlehe, Traubenkirsche",1,{"$nulls":7},1,null,"3_6, 4_6, 4_7",null,"Blaukopf","Noctuidae (Eulenfalter)","Häufig",4,"meist in Anzahl",2,3,1,"sehr selten",1,0,"abnehmend",2,3,"Abnehmend",3," ","Abnehmend"]
[9483,3265,"Rusina","ferruginea","Sonnige bis schattige Stellen in und um Wälder und Gebüsche, Gärten",{"$nulls":5},1,1,{"$nulls":9},1,null,"Wiesen-Storchschnabel, Ampfer, Veilchen, Erdbeere",null,null,1,{"$nulls":6},1,null,null,"Dunkle Waldschatteneule","Noctuidae (Eulenfalter)","Ueberall häufig",4,"häufig",4,69,4,"häufig",2,10,"gleichbleibend",4,9,"Gleichbleibend verbreitet bis sehr häufig",9,null,"Abnehmend"]
[9536,3250,"Parastichtis","suspecta","Auwälder und Feuchtgebiete, Kiesgruben, Moore",null,1,{"$nulls":6},1,{"$nulls":5},1,1,null,null,"Pappel, später krautige Pflanzen",1,null,1,{"$nulls":6},1,null,null,"Pappelkätzcheneule","Noctuidae (Eulenfalter)","Verbreitet, aber nicht häufig",3,"Verbreitet und regelmäßig   ",3,9,2,"selten",1,10,"gleichbleibend",4,5,"Gleichbleibend selten",5," ","Abnehmend"]
[9598,3232,"Jodia","croceago","Sonnige, lichte Eichenwälder, Waldränder mit Eichengebüsch, typisch im Niederwald",{"$nulls":7},1,null,1,1,{"$nulls":7},"Niedriges Eichengebüsch",1,{"$nulls":6},1,null,null,"3_6",null,"Safran-Wintereule","Noctuidae (Eulenfalter)","Ueberall nicht selten",3,"Seitdem [Weymer, 1878] keine Meldungen mehr",0,0,0,"verschwunden",0,0,"abnehmend",2,2,"Abnehmend",2," ","Abnehmend"]
[9642,3200,"Brachylomia","viminalis","mesophile Waldrändder und Säume, Weidengebüsch an Ufern, Feuchtweisen, Steinbrüche, Kiesgruben",null,1,{"$nulls":4},1,null,1,{"$nulls":5},1,null,null,null,"Pappel, Weide",1,{"$nulls":7},1,null,"3_1",null,"Violettgraue Weideneule","Noctuidae (Eulenfalter)","as Vorkommen von…viminalis ist noch unsicher  ",0,"recht häufig",3,4,2,"selten",0,0,"schwankend",4,5,{"$f":"IF(AX99=1,\"Einzelfund\",IF(OR(AX99=2,AX99=3),\"Abnehmend\",IF(OR(AX99=4,AX99=7,AX99=8,AX99=11),\"Zunehmend\",IF(AX99=5,\"Gleichbleibend selten\",IF(OR(AX99=6,AX99=9,AX99=10,AX99=12),\"Gleichbleibend verbreitet bis sehr häufig\",\"nicht bewertet\")))))","v":"Gleichbleibend selten"},5," ","Abnehmend"]
[9662,3207,"Lithophane","lamda","Moore  ",null,1,{"$nulls":16},"Gagelstrauch, Moor-Heidelbeere, Pappel, Weide",1,null,1,{"$nulls":6},1,"1_1, 1_3",null,"Gagelstrauch-Moor-Holzeule","Noctuidae (Eulenfalter)","nur einzeln",2,"an Gagelmoore gebundene Art",2,0,0,"verschwunden",0,0,"abnehmend",2,2,"Abnehmend",2," ","Abnehmend"]
[9670,3210,"Xylena","vetusta","Feuchte Habitate: feuchte Wiesen, Staudenfluren, an Teichen, Flüssen, Bächen",null,1,null,null,null,1,1,{"$nulls":11},"Teich-Ampfer, Flockenblume",null,null,1,{"$nulls":5},1,null,"1_4",null,"Braune Moderholzeule","Noctuidae (Eulenfalter)","Nicht häufig",3,"Eine sporadisch auftretende Art, früher häufiger ",2,0,1,"sehr selten",0,0,"abnehmend",2,2,"Abnehmend",2," ","Abnehmend"]
[9671,3211,"Xylena","exsoleta","Sonnige, warme Offenlandbiotope, Ruderalflächen, Weinberge, Böschungen",null,null,null,1,1,{"$nulls":8},1,null,1,null,null,"Diverse krautige Pflanzen",null,null,1,{"$nulls":6},1,"3_6",null,"Graue Moderholzeule","Noctuidae (Eulenfalter)","Seltener als der vorige [=vetusta]",2,"Wie X. vetusta sporadisch und in den letzten Jahren seltener auftretend",2,0,0,"verschwunden",0,0,"abnehmend",2,2,"Abnehmend",2," ","Abnehmend"]
[9741,3217,"Mniotype","adusta","Feuchte Staudenfluren, Heidekrautbestände, Hiedelbeerbestände",null,1,{"$nulls":7},1,1,1,{"$nulls":6},"Diverse Kräuter und junge Bäume (Niederwald?)",1,null,1,{"$nulls":6},1,"3_4","3_1, 3_6","Rotbraune Waldrandeule","Noctuidae (Eulenfalter)","Selten",2,"lokal und selten",2,0,0,"verschwunden",0,0,"abnehmend",2,2,"Abnehmend",2," ","Abnehmend"]
[9758,3274,"Apamea","lateritia","Heiden, Moore, Sandboden, nicht auf Kalkboden",null,1,1,{"$nulls":15},"Gräser und Graswurzeln",null,null,null,1,{"$nulls":4},1,null,"2_1",null,"Ziegelrote Grasbüscheleule","Noctuidae (Eulenfalter)","Nicht häufig",3,"lokal nicht selten",3,0,0,"verschwunden",0,0,"abnehmend",2,2,"Abnehmend",2," ","Abnehmend"]
[9766,3278,"Apamea","remissa","An Wälder gebunden, im inneren von lichten Laubwäldern",{"$nulls":9},1,1,{"$nulls":7},"Waldgräser, Land-Reitgras, Pfeifengras",null,null,null,1,{"$nulls":4},1,null,null,null,"Kleine Veränderliche Grasbüscheleule","Noctuidae (Eulenfalter)","Stets einzeln und selten",2,"in den Laubmischwäldern häufig",4,6,3,"verbreitet",2,9,"schwankend",4,9,"Gleichbleibend verbreitet bis sehr häufig",9,null,"Abnehmend"]
[9770,3275,"Apamea","anceps","Sonnige, trockene bis frische Grasflure, Wegränder, Weiden, Halbtrockenrasen, Gärten, Weinberge, Brachwiesen",1,null,null,1,1,1,{"$nulls":7},1,1,1,null,null,"Gräser",null,null,null,1,{"$nulls":4},1,null,null,null,"Feldflur-Grasbüscheleule","Noctuidae (Eulenfalter)","Ziemlich selten  ",2,"Verbreitet aber nicht häufig    ",3,0,1,"sehr selten",0,0,"schwankend",4,5,"Gleichbleibend selten",5,"Letzter Fund am 8.6.93, verschollen? Kommentieren","Abnehmend"]
[9918,3113,"Lacanobia","thalassina","Euyöke Art, überall",{"$nulls":17},1,"Birke, Eiche, Brombeere, Besenginster, Faulbaum, Heidelbeere, Geißblatt",1,null,1,{"$nulls":6},1,null,null,"Schwarzstrich-Kräutereule","Noctuidae (Eulenfalter)","Häufig",4,"verbreitet und häufig",4,9,3,"verbreitet",1,6,"abnehmend",4,2,"Abnehmend",2,"abnehmend o.k","Abnehmend"]
[9919,3111,"Lacanobia","contigua","Lichtungen, Auwald, Laubmischwald, Gebüsche",{"$nulls":5},1,1,null,1,1,1,{"$nulls":5},1,null,"Birke, Melde, Brombeere, Besenginster, Heidelbeere, Moorbere, Heidekraut, Enzian, Glockenblume",1,null,1,{"$nulls":6},1,null,null,"Pfeilflecken-Käutereule","Noctuidae (Eulenfalter)","Häufig",4,"verbreitet, aber nicht häufig",3,1,1,"sehr selten",0,0,"abnehmend",2,3,"Abnehmend",3," ","Abnehmend"]
[9920,3114,"Lacanobia","suasa","Krautreiche Säume im Wald und am Waldrand, Kulturland, Halbtrockenrasen, Gärten, Böschungen",1,null,null,null,1,null,1,{"$nulls":6},1,null,1,1,{"$nulls":12},"4_9","2_1","Veränderliche Kräutereule","Noctuidae (Eulenfalter)","alljährlich  ",3,"vereinzelt ",2,0,2,"selten",1,2,"gleichbleibend",4,5,"Gleichbleibend selten",5," ","Abnehmend"]
[9925,3120,"Hada","plebeja","Heiden, Moore, Schutthalden",null,1,1,{"$nulls":11},1,1,null,null,"Habichtskraut",null,null,1,{"$nulls":4},1,null,null,"3_4","1_1, 2_1, 3_1","Zahneule","Noctuidae (Eulenfalter)","Ueberall…häufig",4,"früher häufig",2,1,1,"sehr selten",1,3,"abnehmend",2,3,"Abnehmend",3," ","Abnehmend"]
[9985,3119,"Melanchra","pisi","Breite ökologische Valenz, überall",{"$nulls":17},1,"Gehölze und krautige Pflanzen",1,null,1,{"$nulls":6},1,null,null,"Erbseneule","Noctuidae (Eulenfalter)","Ueberall häufig",4,"verbreitet und häufig ",4,9,3,"verbreitet",2,7,"abnehmend",4,2,"Abnehmend",2,"abnehmend","Abnehmend"]
[9992,3136,"Polia","hepatica","Wälder mit Heidelbeer- und Heidkrautbeständen",{"$nulls":9},1,1,1,{"$nulls":6},"Birke, Hainbuche, Heidekraut, Heidelbeere, Moorbeere",1,null,1,{"$nulls":6},1,"3_1",null,"Birken-Blättereule","Noctuidae (Eulenfalter)","Nicht selten",3,"einzeln oder nicht häufig ",3,0,0,"verschwunden",0,0,"abnehmend",2,2,"Abnehmend",2," ","Abnehmend"]
[9999,3158,"Mythimna","turca","Feuchte und nasse Waldränder, Wassergräben, Moore",null,1,{"$nulls":4},1,{"$nulls":11},"Zittergras-Gegge, Rauhe Segge, Große Sternmiere",null,null,1,1,{"$nulls":5},1,"1_2",null,"Rotbraune Graseule","Noctuidae (Eulenfalter)","Ziemlich selten",2,"Im Bergland nur Einzelfunde ",2,0,0,"verschwunden",0,0,"abnehmend",2,2,"Abnehmend",2," ","Abnehmend"]
[10011,3166,"Mythimna","comma","Frische bis feuchte Wiesen und Weiden, Bachtäler, Auen, Moore, Binnesäume in Wäldern, Kiesgruben, Seen und Teiche",null,1,{"$nulls":4},1,null,1,{"$nulls":9},"Gräser",null,null,null,1,{"$nulls":4},1,null,"1_4",null,"Berg-Graseule","Noctuidae (Eulenfalter)","Verbreitet",3,"verbreitet, jedoch einzeln",3,27,3,"verbreitet",1,4,"gleichbleibend",4,9,"Gleichbleibend verbreitet bis sehr häufig",9,null,"Abnehmend"]
[10064,3142,"Tholera","cespitis","Magerrasen, Moore, Lichtungen, Streuobstwiesen, Habitat nicht eindeutig",1,1,{"$nulls":4},1,1,{"$nulls":4},1,{"$nulls":5},"Gräser",null,null,null,1,{"$nulls":4},1,null,null,null,"Dunkelbraune Lolcheule","Noctuidae (Eulenfalter)","Selten",2,"recht vereinzelt",2,0,0,"sehr selten",1,1,"abnehmend",2,2,"Abnehmend",2,"sehr selten, Nachtrag o.k","Abnehmend"]
[10068,3138,"Pachetra","sagittigera","Offenland, Buchen und Eichenwälder auf kalkreichen Standorten, trockene Lichtungen und Säume",null,null,null,1,1,1,1,null,null,1,1,{"$nulls":7},"Gräser",null,null,null,1,{"$nulls":4},1,null,null,null,"Trockenrasen-Blättereule","Noctuidae (Eulenfalter)","Ueberall häufig ",4,"verbreitet",3,43,3,"verbreitet",2,8,"gleichbleibend",4,9,"Gleichbleibend verbreitet bis sehr häufig",9,null,"Abnehmend"]
[10113,3061,"Lycophotia","porphyrea","Heide, Hochmoore, Borstgrasrasen",null,1,1,{"$nulls":15},"Heidekraut",null,null,1,{"$nulls":4},1,null,null,"2_1","1_3, 3_4","Kleine Heidekrauteule","Noctuidae (Eulenfalter)","Häufig…",4,"Verbreitet",3,2,2,"selten",2,5,"abnehmend",2,3,"Abnehmend",3," ","Abnehmend"]
[10139,3056,"Rhyacia","simulans","Heiden, Sandböden, offene Stellen auf lockeren Böden",null,null,1,1,1,{"$nulls":10},1,null,null,"Gräser, krautige Pflanzen",null,null,1,1,{"$nulls":5},1,null,null,"Simulans-Bodeneule","Noctuidae (Eulenfalter)","Selten",2,"überwiegend auf Sandboden",2,0,0,"verschwunden",0,0,"abnehmend",2,2,"Abnehmend",2," ","Abnehmend"]
[10171,3081,"Graphiphora","augur","Frische bis nasse Stellen mit kühlem Mikroklima, in Gewässernähe, Uferböschungen, Waldränder, Bachtäler",null,1,null,null,null,1,1,{"$nulls":11},"Weide, Schlee, Kratzbeere, Roter Hartriegel",1,{"$nulls":8},1,null,null,"Parklandeule","Noctuidae (Eulenfalter)","nicht häufig",3,"Verbreitet und jahrweise häufig",4,5,3,"verbreitet",1,1,"schwankend",4,9,"Gleichbleibend verbreitet bis sehr häufig",9,null,"Abnehmend"]
[10204,3066,"Xestia","baja","Frische bis feuchte Standorte an Binnensäumen und Rändern von Wäldern, Gärten, Parks, Streuobstwiesen",{"$nulls":5},1,1,{"$nulls":5},1,{"$nulls":5},"Blaues Pfeifengras, Hasel, Schlehe, Weißes Labkrau, Wiesen-Salbei u.a.",1,null,1,{"$nulls":6},1,null,null,"Baja-Bodeneule","Noctuidae (Eulenfalter)","Ueberall sehr häufig",5,"verbreitet und häufig",4,69,4,"häufig",3,20,"gleichbleibend",4,9,"Gleichbleibend verbreitet bis sehr häufig",9,"selten, nur 5 FO kommentieren","Abnehmend"]
[10207,3079,"Xestia","castanea","Zwergstrauchheiden, Gebüsche, Sandmagerrasen, nicht auf Kalkboden",null,null,1,null,null,1,1,{"$nulls":11},"Zitter-Pappel, Schlehe, Besenginster, Heidekraut und Heidelbeere",1,null,1,{"$nulls":6},1,null,null,"Ginsterheiden-Bodeneule","Noctuidae (Eulenfalter)","In allen Wäldern um Elb.[erfeld], wo Calluna vulgaris wächst,...in einzelnen Jahren häufig",3,"Keine Funde seit Weymer",0,0,0,"verschwunden",0,0,"abnehmend",2,2,"Abnehmend",2," ","Abnehmend"]
[10218,3073,"Eugraphe","sigma","Gebüsch, Waldrand, Wegränder, Böschungen",{"$nulls":5},1,1,{"$nulls":6},1,{"$nulls":4},"Schlehe, Heckenkirsche, Hartriegel, Liguster",1,{"$nulls":8},1,"4_4",null,"Sigma-Bodeneule","Noctuidae (Eulenfalter)","überall sehr häufig ",5,"Früher häufiger zu finden...In den letzten Jahren nur noch sehr selten beobachtet",1,0,0,"verschwunden",0,0,"abnehmend",2,3,"Abnehmend",3," ","Abnehmend"]
[10224,3088,"Cerastis","rubricosa","Überall   ",{"$nulls":17},1,"Polyphag an  krautigen Pflanzen",null,null,1,{"$nulls":6},1,null,null,"Rotbraune Frühlings-Bodeneule","Noctuidae (Eulenfalter)","Nicht häufig",3,"Überall verbreitet und ziemlich häufig",4,1,1,"sehr selten",1,4,"schwankend",4,5,"Gleichbleibend selten",5," ","Abnehmend"]
[10228,3094,"Naenia","typica","Luftfeuche Bereiche in unmittelbarer Nähe zu Gewässern, nährstoffreiche Staudenflure, Gebüsche mit Laub-Jungholz, feuchte Talgründe, gelegtntlich in Gärten",null,1,{"$nulls":4},1,1,{"$nulls":5},1,null,null,1,null,"Polyphag an  krautigen Pflanzen und Gehölzen",1,null,1,{"$nulls":6},1,null,null,"Buchdruckereule","Noctuidae (Eulenfalter)","Früher häufig, jetzt viel weniger gefunden",2,"vereinzelt  ",2,7,2,"selten",0,0,"gleichbleibend",4,5,"Gleichbleibend selten",5,"letzter Fund am 17.7.93, daher verschollen? , sonst aber schwankend kommentieren","Abnehmend"]
[10392,2073,"Dicallomera","fascelina","Offenland, Heiden und Moore",null,1,1,1,{"$nulls":14},"Diverse Kräuter, an Ginster",null,null,1,{"$nulls":6},1,"2_1",null,"Ginster-Bürstenspinner","Lymantriidae (Trägspinner)","Selten ",2,"selten",2,0,0,"verschwunden",0,0,"abnehmend",2,2,"Abnehmend",2," ","Abnehmend"]
[10396,2077,"Orgyia","recens","Moore mit Weiden und Birkenbeständen",null,1,{"$nulls":6},1,{"$nulls":9},"Weide, Birke, Eiche",1,{"$nulls":8},1,"3_6","4_6","Eckfleck-Bürstenspinner","Lymantriidae (Trägspinner)","Oft erzogen",4,"Seit 24 Jahren [d.h. seit 1939 , Anm. d. Autoren] nicht mehr gefunden ",0,0,0,"verschwunden",0,0,"abnehmend",2,3,"Abnehmend",3," ","Abnehmend"]
[10405,2087,"Euproctis","chrysorrhoea","Offene Landschaften mit einzeln stehenden Bäumen und Sträuchern",1,1,1,1,1,1,{"$nulls":10},1,null,"Pappel, Weide, Obstbäume, Weißdorn, Brombeere",1,null,1,{"$nulls":6},1,"3_6, 4_6","4_7","Goldafter","Lymantriidae (Trägspinner)","Gemein",6,"heute vereinzelt, früher häufiger",2,0,1,"sehr selten",1,1,"abnehmend",2,3,"Abnehmend",3," ","Abnehmend"]
[10406,2086,"Euproctis","similis","Auen, Ufer, Bruchwälder, Moore, Gärten und Parks",null,1,{"$nulls":6},1,{"$nulls":7},1,null,"Pappel, Weide, Obstbäume, Weißdorn, Heidelbeere, Faulbaum, Eiche, Moorbeere, Hartriegel",1,null,1,{"$nulls":6},1,null,null,"Schwan","Lymantriidae (Trägspinner)","Häufig",4,"hauptsächlich in Bruchgebieten an feuchten Stellen ",2,2,1,"sehr selten",0,0,"abnehmend",2,3,"Abnehmend",3," ","Abnehmend"]
[10414,2081,"Leucoma","salicis","Auwälder, Bruchwälder, Moore",null,1,{"$nulls":6},1,{"$nulls":9},"Weide, Pappel",1,{"$nulls":7},1,null,null,null,"Pappel-Spinner","Lymantriidae (Trägspinner)","Ueberall gemein",6,"verbreitet",3,0,1,"sehr selten",1,1,"abnehmend",2,3,"Abnehmend",3," ","Abnehmend"]
[10423,2026,"Meganola","strigula","Eichenjungwuchs, Lichtungen, Wege, Eichen-Ulmen-Hartriegelaue",{"$nulls":6},1,1,1,{"$nulls":9},"Eiche",1,{"$nulls":6},1,null,null,"3_6","3_4, 3_5","Hellgraues Graueulchen","Nolidae (Graueulchen)","häufig",4,"Lokal und selten",2,0,0,"verschwunden",0,0,"abnehmend",2,3,"Abnehmend",3," ","Abnehmend"]
[10427,2023,"Nola","cucullatella","Wacholderheiden, Schlehenhecken, Obstgärten, Streuobstwiesen",null,null,1,null,null,1,{"$nulls":6},1,null,null,null,1,null,"Apfel, Schlehe, Obstbäume",1,{"$nulls":7},1,null,"3_6, 4_6","4_7","Violettgraues Graueulchen","Nolidae (Graueulchen)","Nicht selten",3,"Einzeln",2,1,1,"sehr selten",1,3,"abnehmend",2,2,{"$f":"IF(AX131=1,\"Einzelfund\",IF(OR(AX131=2,AX131=3),\"Abnehmend\",IF(OR(AX131=4,AX131=7,AX131=8,AX131=11),\"Zunehmend\",IF(AX131=5,\"Gleichbleibend selten\",IF(OR(AX131=6,AX131=9,AX131=10,AX131=12),\"Gleichbleibend verbreitet bis sehr häufig\",\"nicht bewertet\")))))","v":"Abnehmend"},2," ","Abnehmend"]
[10449,3394,"Bena","bicolorana","Sonnige, grasige Laub- und Mischwälder, xerothermophile Art",{"$nulls":9},1,1,{"$nulls":7},"Eiche",1,{"$nulls":6},1,null,null,"3_5",null,"Eichen-Kahneule","Noctuidae (Eulenfalter)","häufig",4,"Vereinzelt",3,0,2,"selten",3,20,"abnehmend",2,3,"Abnehmend",3," ","Abnehmend"]
[10475,2032,"Miltochrista","miniata","Auen, Kiefernwälder, Sandböden, Waldrand, Hecken-Ufer und Röhrichtgesellschaften, Eichen- und Haselniederwald",null,1,null,null,null,1,1,1,1,null,null,1,{"$nulls":6},"Flechten und Algen",{"$nulls":5},1,null,null,1,null,"3_1","3_4, 3_6","Rosen-Flechtenbärchen","Arctiidae (Bärenspinner)","Nicht selten",3,"Vereinzelt",2,3,1,"sehr selten",1,3,"abnehmend",2,2,"Abnehmend",2," ","Abnehmend"]
[10477,2035,"Cybosia","mesomella","Moore, Heiden, Ödland, Sanddünen, Bahndämme",null,1,1,null,1,{"$nulls":8},1,1,1,null,null,"Flechten",{"$nulls":5},1,null,1,{"$nulls":4},"Elfenbein-Flechtenbärchen","Arctiidae (Bärenspinner)","Ueberall häufig",4,"verbreitet",3,0,1,"sehr selten",2,12,"abnehmend",2,3,"Abnehmend",3," ","Abnehmend"]
[10557,2056,"Parasemia","plantaginis","Waldwiesen, Lichtungen, Schlagflure, Feuchtwiesen, Moore",null,1,{"$nulls":4},1,{"$nulls":11},"Tag-Lichtnelke, Großer Wegerich, Wegerich",null,null,1,{"$nulls":5},1,null,null,null,"Wegerich-Bär","Arctiidae (Bärenspinner)","Ebenso [= einzeln, wie sannio]",2,"lokal",2,0,0,"verschwunden",1,5,"abnehmend",2,2,"Abnehmend",2," ","Abnehmend"]
[10598,2066,"Arctia","caja","Waldränder, Wegränder, Schneisen, Lichtungen, Offenland, Moore, Uferränder, Schuttplätze",null,1,1,1,1,1,1,{"$nulls":6},1,1,1,null,null,"Weide, Eiche, diverse krautige Pflanzen",1,null,1,{"$nulls":6},1,"4_2","1_4, 4_3","Brauner Bär","Arctiidae (Bärenspinner)","Ueberall häufig",4,"jahrweise häufig",3,9,2,"selten",2,9,"abnehmend",2,3,"Abnehmend",3," ","Abnehmend"]
[10605,2070,"Euplagia","quadripunctaria","Lichtungen, Schneisen, Binnensäume, Wegränder, Heckengebiete, hochstaudenreiche Randgebiete",{"$nulls":5},1,1,1,{"$nulls":5},1,null,1,null,null,"Weide, Eiche, Brennessel, diverse krautige Pflanzen",1,null,1,{"$nulls":6},1,"2_3",null,"Russischer Bär,Spanische Fahne","Arctiidae (Bärenspinner)","Wird seit 1863 fast alljährlich nicht selten im Juli an den steilen Bergabhängen der Wupper bei Friederichsthal, südlich von Solingen, gefangen",3,"mit Sicherheit heute [d.h. 1974, Anm. d. Autoren] bei uns nicht mehr bodenständig",0,0,0,"verschwunden",1,1,"abnehmend",2,2,"Abnehmend",2," ","Abnehmend",null,{"$f":"COUNTA(AI3:AI137)","v":88},{"$f":"COUNTA(W3:W137)","v":6}]
[3912,2182,"Heterogenea","asella","Mesophile Wälder, auch im Waldinneren, Waldwege, Kahlschläge, Lichtungen",{"$nulls":18},"Diverse Laubbäume  ",1,{"$nulls":8},1,"3_3","3_6","Kleiner Asselspinner","Limacodidae (Schneckenspinner)","W. und K. erwähnen die Art nicht.",0,"W. und K. erwähnen die Art nicht",0,0,1,"sehr selten",1,2,"Einzelfund(e)",1,1,"Einzelfund",1," ","Einzelfund"]
[6773,2104,"Phyllodesma","tremulifolia","Auenwälder, Laubmischwälder, Gärten, Parks",{"$nulls":18},"Hänge-Birke, Rotbuche, Eiche, Eberesche",1,{"$nulls":8},1,"3_6","4_8, 4_9","Kleine Eichen-Glucke","Lasiocampidae (Glucken)","Selten bei Elb.[erfeld], Barmen…öfter bei Ronsdorf  ",2,"nicht mehr nachgewiesen",0,0,0,"verschwunden",0,0,"Einzelfund(e)",1,1,"Einzelfund",1," ","Einzelfund"]
[6849,null,"Proserpinus","proserpina",{"$nulls":32},"Nachtkerzenschwärmer","Sphingidae (Schwärmer)","keine Angaben",0,"keine Angaben",0,null,1,null,1,{"$nulls":4},"Einzelfund",null,null,"Einzelfund"]
[6879,1132,"Erynnis","tages","Kalkreicher Megerrasen, Trockenhänge, auch auf mageren Feuchtwiesen, Wald- und Wegränder, Böschungen, Dämme",{"$nulls":18},"Bunte Kronwicke, Gewöhnlicher Hornklee",null,null,1,{"$nulls":5},1,null,"2_2","4_4","Kronwicken-Dickkopffalter","Hesperiidae (Dickkopffalter)","Verbreitet aber einzeln",2,"Im Bergland seit 1959 nicht mehr beobachtet",0,0,0,"verschwunden",0,0,"Einzelfund(e)",1,1,{"$f":"IF(AX141=1,\"Einzelfund\",IF(OR(AX141=2,AX141=3),\"Abnehmend\",IF(OR(AX141=4,AX141=7,AX141=8,AX141=11),\"Zunehmend\",IF(AX141=5,\"Gleichbleibend selten\",IF(OR(AX141=6,AX141=9,AX141=10,AX141=12),\"Gleichbleibend verbreitet bis sehr häufig\",\"nicht bewertet\")))))","v":"Einzelfund"},1," ","Einzelfund"]
[6882,1123,"Carcharodus","alceae","Böschungen, Dämme, Straßenränder, Brachen, Trockenrasen, Sandgruben",{"$nulls":18},"Malven-Arten, Eibisch",null,null,1,{"$nulls":5},1,null,null,null,"Malven-Dickkopffalter","Hesperiidae (Dickkopffalter)","Einzeln",2,"Keine weiteren Funde im Untersuchungsgebiet seit Weymer",0,0,0,"verschwunden",0,0,"Einzelfund(e)",1,1,"Einzelfund",1," ","Einzelfund"]
[6928,1140,"Hesperia","comma","Mger- und Trockenrasen, Wacholderheiden, Wegränder, Lichtungen, Streuobstwiesen",{"$nulls":18},"Ausdauernder Lolch",null,null,null,1,null,null,null,1,null,null,"2_1","2_2","Komma-Dickkopffalter","Hesperiidae (Dickkopffalter)","Verbreitet aber einzeln",2,"Im Bergland nur früher vereinzelt bei Elberfeld (Weymer 1878)",0,0,0,"verschwunden",0,0,"Einzelfund(e)",1,1,"Einzelfund",1," ","Einzelfund"]
[6958,1002,"Iphiclides","podalirius","Schwarzdornreiche Kalktriften, Wacholder- und Schleghenheiden, trockene Hänge und Bergkuppen, Trockenrasen und Felsfluren, sonnige Waldränder mit Schlehen-Weißdorn-Gebüsch",{"$nulls":18},"Schlehe, Felsenkirsche, Zwetschke, Pflaume, Pfirsich, Weißdorn",1,{"$nulls":7},1,null,"2_3","4_2","Segelfalter","Papilionidae (Ritterfalter)","Sehr einzeln und selten",1,"sicher nicht bodenständig",1,0,0,"verschwunden",0,0,"Einzelfund(e)",1,1,"Einzelfund",1," ","Einzelfund"]
[7037,1091,"Lycaena","virgaureae","Wald- und Wegränder im Laubmischwald, Waldwiesen, nicht in sehr warmen oder trockenen Gebieten, Bergwiesen, Naßwiesen",{"$nulls":18},"Kleiner Sauerampfer",null,null,1,{"$nulls":4},1,{"$nulls":4},"Dukaten-Feuerfalter","Lycaenidae (Bläulinge)","Keine Angaben",0,"Einzeln und selten",2,0,0,"verschwunden",0,0,"Einzelfund(e)",1,1,"Einzelfund",1," ","Einzelfund"]
[7112,1121,"Maculinea","arion","Warme und trockene, offene oder verbuschte Hänge, Walchoderheide, Schafweiden, Halbtrockenrasen mit reichlich Origanum, Weinberge, Steinbrüche, Hohlwege",{"$nulls":18},"Gewöhnlicher Dost, Feld-Thymian",null,null,1,{"$nulls":5},1,null,"2_2",null,"Schwarzgefleckter Ameisen-Bläuling ","Lycaenidae (Bläulinge)","einmal bei Barmen",1,"Keine Funde seit Weymer",0,0,0,"verschwunden",0,0,"Einzelfund(e)",1,1,"Einzelfund",1," ","Einzelfund"]
[7113,1119,"Maculinea","teleius","Feuchtwiesen, feuchte Quellwiesen, Bäche und Gräben, Moore, Dämme mit Beständen von Großem Wiesenknopf auf ungedüngtem Boden",{"$nulls":18},"Großer Wiesenknopf",null,null,1,{"$nulls":4},1,null,null,"1_4",null,"Heller Wiesenknopf-Ameisenbläuling","Lycaenidae (Bläulinge)","einmal bei Solingen",1,"Keine Funde seit dem von WEYMER mitgeteilten",0,0,0,"verschwunden",0,0,"Einzelfund(e)",1,1,"Einzelfund",1," ","Einzelfund"]
[7114,1120,"Maculinea","nausithous","Feuchtwiesen, feuchte Quellwiesen, Bäche und Gräben, Moore, Dämme mit Beständen von Großem Wiesenknopf auf ungedüngtem Boden",{"$nulls":18},"Großer Wiesenknopf",null,null,1,{"$nulls":4},1,null,null,"1_4",null,"Schwarzblauer Bläuling","Lycaenidae (Bläulinge)","einmal bei Burg",1,"Keine weiteren Funde seit Weymer",0,0,0,"verschwunden",0,0,"Einzelfund(e)",1,1,"Einzelfund",1," ","Einzelfund"]
[7115,1118,"Maculinea","alcon","Präalpine Moorwiesen, Quellmoore, Flachmoore mit Beständen der Raupenfutterpflanze (Lungen- oder Schwalbenwurzenzian",{"$nulls":18},"Lungenenzian, Schwalbenwurzenzian",null,null,1,{"$nulls":4},1,null,null,"1_3","1_1","Lungenenzian-Ameisen-Bläuling ","Lycaenidae (Bläulinge)","auf sumpfigen Wiesen bei Elberfeld…selten",2,"Keine weiteren Beobachtungen seit Weymer",0,0,0,"verschwunden",0,0,"Einzelfund(e)",1,1,"Einzelfund",1," ","Einzelfund"]
[7173,1114,"Polyommatus","coridon","Kalkmagerrasen, an Hängen und Kuppen, Wacholderheiden, Trockenrasen auf Kalkschotter, Trockenhänge, Dämme, Weinberge, Sandfluren",1,null,1,{"$nulls":10},1,1,1,null,null,"Hufeisenklee",null,null,1,{"$nulls":4},1,null,null,"2_2",null,"Silbergrüner Bläuling","Lycaenidae (Bläulinge)","nur sehr einzeln",1,"einzelne Falter",2,0,0,"verschwunden",0,0,"Einzelfund(e)",1,1,"Einzelfund",1,"K 1 o.k","Einzelfund"]
[7205,1079,"Argynnis","adippe","Hochstaudenreiche Säume an Waldräbndern, Lichtungen und Wegen von Auwäldern, trockene und feuhte Talwiesen, Wacholderheiden",{"$nulls":18},"Hunds-Veilchen, Rauhaariges Veilchen, Eohlrichendes Veilchen",null,null,1,{"$nulls":4},1,null,null,"3_4","3_6, 3_8","Feuriger Perlmuttfalter","Nymphalidae (Edelfalter)","Keine Angaben",0,"Wuppertal (02.08.1941)  ",1,0,0,"verschwunden",0,0,"Einzelfund(e)",1,1,"Einzelfund",1," ","Einzelfund"]
[7276,1067,"Melitaea","diamina","Feuchtweisenkomplexe, Moore, Wiesentäler, Waldränder, feuchte chläge, Arnikawiesen, auch auf Trockenhängen an staunassen Stellen",{"$nulls":18},"Arznei-Baldrian",null,null,1,{"$nulls":4},1,{"$nulls":4},"Baldrian-Scheckenfalter","Nymphalidae (Edelfalter)","Nur einmal bei Elberfeld",1,"Kein Fund im Untersuchungsgebiet nach Weymer",0,0,0,"verschwunden",0,0,"Einzelfund(e)",1,1,"Einzelfund",1," ","Einzelfund"]
[7286,1048,"Limenitis","populi","Laubholzreiche Wälder, Pappelpflanzungen an Waldwiesen, Lichtungen, Schneisen",{"$nulls":6},1,null,null,1,1,{"$nulls":7},"Zitter-Pappel, Schwarz-Pappel, Ontario-Pappel",1,{"$nulls":6},1,null,null,"3_8","3_1","Großer Eisvogel","Nymphalidae (Edelfalter)","Viel seltener als Iris",1,"immer nur sehr einzeln",2,0,0,"verschwunden",0,0,"schwankend",4,5,"Gleichbleibend selten",5,"als verschwunden bezeichnet, siehe abe rz. B. 7524, dieser mit Letztnachweis vom 23.7.93 sehr selten: Kommentar Tim: ist aber nicht auf unserem Gebiet beobachtet worden.","Einzelfund"]
[7298,1045,"Apatura","ilia","Laubholzreiche Wälder, Auenwälder am Rhein und den Nebenflüssen, sonnige Waldränder, Waldwege, eher wärmeliebend",{"$nulls":18},"Zitter-Pappel, Schwarzpappel, Kanadische Hybird-appel, Ontario-Pappel, Sal-Weide",1,{"$nulls":6},1,null,null,"3_6","3_8","Kleiner Schillerfalter","Nymphalidae (Edelfalter)","Nur einmal am 9. Juni 1858 als Raupe auf Populus tremula auf dem Nützenberge [in W.-Elberfeld, Anm. d. Autoren] gefunden",1,"kein Fund seit Weymer im Untersuchungsgebiet",0,null,0,"verschwunden",0,0,"Einzelfund(e)",1,1,"Einzelfund",1," ","Einzelfund"]
[7340,1036,"Pyronia","tithonus","Waldrand, Wald- und Gebüschsäume, eher im Tiefland",{"$nulls":18},"Roter Schwingel, Ausdauernder Lolch, Zartes Straußgras",null,null,null,1,{"$nulls":4},1,null,"2_1, 3_6",null,"Rotbraunes Ochsenauge","Nymphalidae (Edelfalter)","In der nächsten Umgebung von Elberfeld nur einmal 1857 auf dem Nützenberg gefunden, doch…alljährlich sehr häufig bei…Ohligs",1,"Mit aller Wahrscheinlichkeit bei uns nicht mehr vorkommend",0,0,0,"verschwunden",0,0,"Einzelfund(e)",1,1,"Einzelfund",1," ","Einzelfund"]
[7510,2114,"Sabra","harpagula","Lichte Laubmischwälder mit Eichen und Linden, warme Auenwälder",{"$nulls":18},"Eiche",1,{"$nulls":6},1,null,null,"3_6",null,"Linden-Sichelflügler","Drepanidae (Sichelflügler)","Sehr selten",1,"seitdem [Weymer, 1878, Anm. d. Autoren] nicht mehr",0,0,0,"verschwunden",0,0,"Einzelfund(e)",1,1,"Einzelfund",1," ","Einzelfund"]
[7616,4318,"Epione","vespertaria","Lichte Waldränder, Waldwege",{"$nulls":18},"Zitterpappel, Sal-Weide, Birke",1,{"$nulls":7},1,null,null,null,"Espen-Saumbandspanner","Geometridae (Spanner)","Noch seltener als der vorige [repandaria]   ",1,"Erheblich seltener als E. repandaria  ",1,0,0,"verschwunden",0,0,"Einzelfund(e)",1,1,"Einzelfund",1," ","Einzelfund"]
[7642,4305,"Selenia","lunularia","Wälder, Flussniederungen",{"$nulls":18},"Laubbäume",1,{"$nulls":8},1,"3_6",null,"Zweistreifiger Mondfleckspanner","Geometridae (Spanner)","Sehr selten   ",1,"Keine neuen Funde seit Weymer mehr",0,0,0,"verschwunden",1,10,"Einzelfund(e)",1,1,"Einzelfund",1," ","Einzelfund"]
[7790,4362,"Cleorodes","lichenaria","Wälder, Felslandschaft, Obstwiesen, Gärten",{"$nulls":18},"Flechten",{"$nulls":5},1,null,1,{"$nulls":4},"Grüner Flechten-Rindenspanner","Geometridae (Spanner)","Selten   ",2,"Keine neueren Funde seit denjenigen Weymers",0,0,0,"verschwunden",0,0,"Einzelfund(e)",1,1,"Einzelfund",1," ","Einzelfund"]
[7792,4361,"Fagivorina","arenaria","Frische bis feuchte Buschenwälder",{"$nulls":18},"Rotbuche, Eiche ",1,{"$nulls":7},1,null,"3_3",null,"Scheckiger Rindenspanner","Geometridae (Spanner)","Selten   ",2,"Keine Funde mehr seit Weymer",0,0,0,"verschwunden",0,0,"Einzelfund(e)",1,1,"Einzelfund",1," ","Einzelfund"]
[7831,4288,"Aleucis","distinctata","Schlehenhecken, Gebüsche, Trockenhänge, felsige Magerrasen, Weinberge, Streuobstwiesen, Bahndämme,",{"$nulls":18},"Schlehe ",1,{"$nulls":6},1,null,null,"3_6","4_4, 4_6","Schlehenheckenspanner","Geometridae (Spanner)","Nicht bei Weymer",0,"Remscheid (05.03.1931) ",1,0,0,"verschwunden",0,0,"Einzelfund(e)",1,1,"Einzelfund",1," ","Einzelfund"]
[7834,null,"Theria","primaria","Warme, kalkreiche Standorte, sonnige Waldränder, Handlagen, Magerrasen",{"$nulls":18},"Weißdorn ",1,{"$nulls":6},1,null,null,"3_6","4_6","Früher Schlehenbusch-Winterspanner","Geometridae (Spanner)","einmal",1,"Keine neueren Funde seit Weymer",0,0,0,"verschwunden",1,2,"Einzelfund(e)",1,1,"Einzelfund",1," ","Einzelfund"]
[7982,4012,"Chlorissa","viridata","Thermophile Wiesen und warme Offenlandbiotope, Halbtrockenrasen, warme Hänge, Gärten, Parks",{"$nulls":18},"Laubbäume, Heidekraut u.a.",1,null,1,{"$nulls":6},1,"2_1","1_3","Steppenheiden-Grünspanner","Geometridae (Spanner)","selten  ",2,"Keine Funde seit Weymer.",0,0,0,"verschwunden",0,0,"Einzelfund(e)",1,1,"Einzelfund",1,"vergleiche 7969, warum unterschiedliche Bewertung? Kommetar Tim: die Art wurde nur von Weymer beobachtet und dort als selten einstuft. Die der Summe der Häufigkeitsklassen Weymer-Kinkler-Wir ist kleiner als 6, dann wurde automatisch \"Einzelfund\" eingetragen","Einzelfund"]
[8014,4025,"Cyclophora","annularia","Hartholzauwälder, frische bis trockene Laubmischwälder, Binnensäume, Gebüschlandschaften",{"$nulls":5},1,1,null,1,1,1,{"$nulls":7},"Feld-Ahorn, evtl. andere Laubbäume",1,{"$nulls":7},1,null,"3_6",null,"Ahorn-Gürtelpuppenspanner","Geometridae (Spanner)","Nur einmal…[W.-Elb.]   ",1,"wärmere Laubwaldränder mit Feldahorn   ",2,0,0,"verschwunden",0,0,"Einzelfund(e)",1,1,"Einzelfund",1,"K 1 o.k","Einzelfund"]
[8018,4028,"Cyclophora","ruficiliaria","Warme, trockene Eichenwälder, Waldrand, Jungwuchs, Niederwald",{"$nulls":18},"Eiche",1,{"$nulls":6},1,null,null,"3_6","3_5","Braunroter Eichen-Gürtelpuppenspanner","Geometridae (Spanner)","keine Angaben",0,"keine Angaben",0,0,1,"sehr selten",0,1,"Einzelfund(e)",1,1,"Einzelfund",1," ","Einzelfund"]
[8054,4033,"Scopula","rubiginata","Halbtrockenrasen auf Sandböden, Brachen, Industriebrachen, Kalkmagerrasen",{"$nulls":18},"Ampfer und andere?",null,null,1,{"$nulls":5},1,null,null,null,"Violettroter Kleinspanner","Geometridae (Spanner)","Keine Angaben",0,"Im Bergland nur sehr spärlich",1,2,1,"sehr selten",1,2,"Einzelfund(e)",1,1,"Einzelfund",1," ","Einzelfund"]
[8104,4055,"Idaea","muricata","Feuchte bis nasse Wiesen, Auwld, Waldrand, Lichtungen, Moore, Gärten, Ruderalflure",{"$nulls":18},"Himbeere, Brombeere u.a. ?",null,null,1,{"$nulls":5},1,null,null,null,"Purpurstreifen-Zwergspanner","Geometridae (Spanner)","Keine Angaben",0,"Keine Angaben",0,5,1,"sehr selten",2,8,"Einzelfund(e)",1,1,"Einzelfund",1," ","Einzelfund"]
[8107,null,"Idaea","rusticata",{"$nulls":32},"Südlicher Zwergspanner","Geometridae (Spanner)","keine Angaben",0,"keine Angaben",0,null,0,"nicht vorhanden",1,{"$nulls":4},"nicht vorhanden",null,null,"Einzelfund"]
[8134,4063,"Idaea","inquinata","Bewohner menschlicher Siedlungen, Wohnhäuser, Strohballen",{"$nulls":18},"Heu, Stroh, welke Pflanzenteile",{"$nulls":6},1,null,null,1,null,null,"Heu-Zwergspanner","Geometridae (Spanner)","Keine Angaben",0,"Bevorzugt die wärmere Niederung.  ",1,0,0,"verschwunden",1,2,"Einzelfund(e)",1,1,"nicht bewertet",1,"war er jemals da? Kommentar Tim: Gute Frage, aber: Siehe Armins Schuppen.","Einzelfund"]
[8205,4020,"Rhodostrophia","vibicaria","Waldschläge, auf Sandboden, Sandflure, Trockenrasen, Kalkmagerrasen, Wacholderheiden, Weinberge",{"$nulls":18},"Ginster, Schlehe",null,null,1,{"$nulls":5},1,null,"2_2, 2_3",null,"Rotbandspanner","Geometridae (Spanner)","Selten, ein Ex.[emplar]…bei Ronsdorf  ",1,"sehr lokal und selten",1,0,0,"verschwunden",0,0,"Einzelfund(e)",1,1,{"$f":"IF(AX170=1,\"Einzelfund\",IF(OR(AX170=2,AX170=3),\"Abnehmend\",IF(OR(AX170=4,AX170=7,AX170=8,AX170=11),\"Zunehmend\",IF(AX170=5,\"Gleichbleibend selten\",IF(OR(AX170=6,AX170=9,AX170=10,AX170=12),\"Gleichbleibend verbreitet bis sehr häufig\",\"nicht bewertet\")))))","v":"Einzelfund"},1," ","Einzelfund"]
[8240,4079,"Scotopteryx","mucronata","Trocknarme Standorte an Waldrändern, Böschungen, Magerrasen",1,{"$nulls":5},1,{"$nulls":6},1,{"$nulls":4},"Ginster",null,null,1,{"$nulls":4},1,{"$nulls":4},"Hellgrauer Wellenstriemenspanner","Geometridae (Spanner)","Keine Angaben",0,"In den letzten Jahren deutlich seltener geworden  ",2,4,1,"sehr selten",0,0,"schwankend",4,5,"Gleichbleibend selten",5," ","Einzelfund"]
[8245,4142,"Orthonama","vittata","Moor und Sumpfwiesen, Gräben",null,1,{"$nulls":16},"Galium u.a.?",null,null,1,{"$nulls":5},1,null,"1_2, 1_4",null,"Sumpflabkraut-Blattspanner","Geometridae (Spanner)","einmal",1,"Wuppertal-Dornap (23.8.1990-Sch[mitz])",1,1,1,"sehr selten",0,0,"gleichbleibend",4,1,"Einzelfund",1,"K 1, nur drei Falter in 150 Jahren o.k","Einzelfund"]
[8254,4136,"Xanthorhoe","quadrifasciata","Überall ",{"$nulls":18},"Diverse Kräuter",null,null,1,{"$nulls":6},1,null,null,"Vierbindiger Blattspanner","Geometridae (Spanner)","Einzeln und selten bei Barmen",2,"Keine neueren Nachweise seit Weymer",0,0,0,"verschwunden",0,0,"Einzelfund(e)",1,1,"Einzelfund",1," ","Einzelfund"]
[8269,4164,"Catarhoe","cuculata","Überall",{"$nulls":18},"Labkraut",null,null,1,{"$nulls":4},1,{"$nulls":4},"Braunbinden-Blattspanner","Geometridae (Spanner)","Keine Angaben",0," Überall verbreitet, aber einzeln ",2,0,0,"verschwunden",1,1,"Einzelfund(e)",1,1,"Einzelfund",1," ","Einzelfund"]
[8279,4184,"Epirrhoe","galiata","Felsenreiche Kalkmagerrasen, Steppenheiden, Geröllhalden, Steinbrüche, nicht an kühl-feuchten Stellen",1,null,1,{"$nulls":11},1,1,null,null,"Labkraut",null,null,1,{"$nulls":4},1,null,null,"4_4",null,"Breitbinden-Labkrautspanner","Geometridae (Spanner)","Keine Angaben",0,"an warmen Plätzen   ",2,2,1,"sehr selten",0,0,"schwankend",4,null,"nicht bewertet",null,"K 1, vielleicht nur drei falter überhaupt, da unklare räumliche Zuordnung bei Kinkler o.k","Einzelfund"]
[8287,4170,"Costaconvexa","polygrammata","Erlen-Eschen-Aue, Feuchtbiotope",{"$nulls":18},"Labkraut",null,null,1,{"$nulls":4},1,{"$nulls":4},"Viellinien-Blattspanner","Geometridae (Spanner)","Keine Angaben",0,"nur alte Funde ",1,0,0,"verschwunden",1,1,"Einzelfund(e)",1,1,"Einzelfund",1," ","Einzelfund"]
[8304,4077,"Larentia","clavaria","Standorte von Malven, z.B. Gärten, xerotherem Trockenhänge",{"$nulls":18},"Malvengewächse",null,null,1,{"$nulls":4},1,null,null,"4_3",null,"Hirschbrauner Malvenspanner","Geometridae (Spanner)","Selten nur einmal am 10. Sept. 1875   ",1," Sehr lokal",1,0,0,"verschwunden",1,1,"Einzelfund(e)",1,1,"Einzelfund",1," ","Einzelfund"]
[8310,4160,"Anticlea","derivata","Hecken und Gebüsche im Offenland, Magerrasen, Wacholderheiden",{"$nulls":18},"Rosen",1,{"$nulls":6},1,null,null,"3_6","4_6","Schwarzbinden-Rosen-Blattspanner","Geometridae (Spanner)","Sehr selten   ",1,"Keine Meldungen seit Weymer",0,0,0,"verschwunden",0,0,"Einzelfund(e)",1,1,"Einzelfund",1," ","Einzelfund"]
[8376,4148,"Colostygia","multistrigaria","Trockenwarme Offenlandbiotope, Halbmagerrasen, Weinberge, Moore",1,1,{"$nulls":12},1,1,null,null,"Labkraut",null,null,1,{"$nulls":4},1,null,null,"3_4","2_1","Frühjahrs-Bindenspanner","Geometridae (Spanner)","Keine Angaben",0,"verbreitet   ",3,0,0,"verschwunden",0,0,"schwankend",4,null,"nicht bewertet",null,"K 6, weil unklare räuml. Zuordnung? O.k.","Einzelfund"]
[8414,4159,"Pareulype","berberata","Waldränder, Vorwaldstadien, Hecken und Gebüsche, Siedlungsgebiet",{"$nulls":18},"Berberitze",1,{"$nulls":6},1,null,null,"4_9","3_6","Kleiner Berberitzenspanner","Geometridae (Spanner)","Keine Angaben",0,"Seit dem Erstfund…1986…konnte die Art in den folgenden Jahren in zunehmender Häufigkeit…gefunden werden.  [Es lag aber bei Erscheinen des Nachtrags der Bergisch Land Fauna 1992 noch kein Nachweis aus unserem heutigen Untersuchungsgebiet vor, Anm. d. Autoren]",0,4,1,"sehr selten",1,10,"Einzelfund(e)",1,1,"Einzelfund",1,"zunehmend kommentieren","Einzelfund"]
[8433,4112,"Philereme","transversata","Gebüschreiche Trockenhänge, felsenreiche Wacholderheiden, Magerrasen, gebüschreiche Sandflure, Gärten und Parks",{"$nulls":18},"Kreuzdorn, Faulbaum",1,{"$nulls":6},1,null,null,"3_6","4_6","Grosser Kreuzdornspanner","Geometridae (Spanner)","Selten   ",2,"Keine Funde nach Weymer.",0,0,0,"verschwunden",2,10,"Einzelfund(e)",1,1,"Einzelfund",1," ","Einzelfund"]
[8436,4165,"Euphyia","unangulata","Wäler, Siedlungsbereich",{"$nulls":18},"Sternmiere",null,null,1,{"$nulls":4},1,null,null,"3_1",null,"Einzahn-Winkelspanner","Geometridae (Spanner)","Einzeln und selten",2,"Keine glaubwürdigen Funde nach Weymer.",0,0,0,"verschwunden",1,1,"Einzelfund(e)",1,1,"Einzelfund",1," ","Einzelfund"]
[8459,4190,"Perizoma","bifaciata","Verwschiedenbiotopbewohner",{"$nulls":18},"Zahntrost, Augentrost",null,null,1,{"$nulls":4},1,{"$nulls":4},"Zahntrost-Kapselspanner","Geometridae (Spanner)","Keine Angaben ",0,"Keine Angaben ",0,1,1,"sehr selten",1,0,"Einzelfund(e)",1,1,"Einzelfund",1," ","Einzelfund"]
[8604,4271,"Rhinoprora","chloerata","Sonnige und warme Schlehenhecken",{"$nulls":18},"Blüten von Schlehen",{"$nulls":6},1,1,null,null,"4_6","3_6","Schlehen-Blütenspanner","Geometridae (Spanner)","Keine Angaben",0,"[Solingen-]Burg (14.7.1978…)  bisher sicherlich öfter übersehen",1,0,0,"verschwunden",1,6,"Einzelfund(e)",1,1,"Einzelfund",1," ","Einzelfund"]
[8607,4274,"Anticollix","sparsata","Feuchte Wiesen, Wälder, Hecken, Bruch und Auengebiete",{"$nulls":18},"Gilbweiderich",null,null,1,{"$nulls":4},1,null,null,"1_4",null,"Gilbweiderichspanner","Geometridae (Spanner)","Keine Angaben",0,"ziemlich lokal und selten",2,0,0,"sehr selten",2,20,"Einzelfund(e)",1,1,"Einzelfund",1,"sehr selten, Fund von Axel Tetzlaff, den wir nicht berücksichtigt hatten, Nachtrag o.k. kommentieren","Einzelfund"]
[8663,4085,"Minoa","murinata","Magerrasen, sandtrockenrasen, sonne Samstandorte, wo Zypressen-Woflsmilch wächst",{"$nulls":18},"Zypressen-Wolfsmilch",null,null,1,{"$nulls":4},1,null,null,"2_1",null,"Wolfsmilchspanner","Geometridae (Spanner)","Einzeln",2,"Keine Funde seit Weymer",0,0,0,"verschwunden",0,0,"Einzelfund(e)",1,1,"Einzelfund",1," ","Einzelfund"]
[8706,null,"Cerura ","erminea",{"$nulls":32},"Weißer Gabelschwanz","Notodontidae (Zahnspinner)","keine Angaben",0,"keine Angaben",0,null,0,"nicht vorhanden",1,{"$nulls":4},"nicht vorhanden",null,null,"Einzelfund"]
[8709,2139,"Furcula","bicuspis","Auenwälder, Laubmischwälder, erlenreiche, feuchte Moore",{"$nulls":18},"Birke, Erle",1,{"$nulls":7},1,null,"3_1","1_3","Birken-Gabelschwanz","Notodontidae (Zahnspinner)","Sehr selten   ",1,"Immer nur einzeln   ",1,0,0,"verschwunden",0,8,"Einzelfund(e)",1,1,{"$f":"IF(AX188=1,\"Einzelfund\",IF(OR(AX188=2,AX188=3),\"Abnehmend\",IF(OR(AX188=4,AX188=7,AX188=8,AX188=11),\"Zunehmend\",IF(AX188=5,\"Gleichbleibend selten\",IF(OR(AX188=6,AX188=9,AX188=10,AX188=12),\"Gleichbleibend verbreitet bis sehr häufig\",\"nicht bewertet\")))))","v":"Einzelfund"},1," ","Einzelfund"]
[8718,2155,"Notodonta","tritophus","Wärmeliebende Art, Auwälder, Eichen-Hainbuchen-Wald, Siedlungen, Gärten, Charaktertier der „Trümmerflora“",{"$nulls":18},"Zitter-Pappel, Pappel ",1,{"$nulls":6},1,{"$nulls":4},"Espen-Zahnspinner","Notodontidae (Zahnspinner)","Keine Angaben",0,"meist nur einzeln ",2,0,0,"verschwunden",2,7,"Einzelfund(e)",1,null,{"$f":"IF(AX189=1,\"Einzelfund\",IF(OR(AX189=2,AX189=3),\"Abnehmend\",IF(OR(AX189=4,AX189=7,AX189=8,AX189=11),\"Zunehmend\",IF(AX189=5,\"Gleichbleibend selten\",IF(OR(AX189=6,AX189=9,AX189=10,AX189=12),\"Gleichbleibend verbreitet bis sehr häufig\",\"nicht bewertet\")))))","v":"nicht bewertet"},null,"War er jemals da, unklare räuml. Zuordnung, o.k.","Einzelfund"]
[8725,2159,"Drymonia","velitaris","Eichenreiche Wälder auf kalkarmen Standorten, warme, gebüschreiche Hänge",{"$nulls":18},"Eiche",1,{"$nulls":6},1,null,null,"3_6","3_5","Südlicher Eichenzahnspinner","Notodontidae (Zahnspinner)","Verbreitet, aber selten   ",2,"keine neueren Funde  ",0,0,0,"verschwunden",0,0,"Einzelfund(e)",1,1,{"$f":"IF(AX190=1,\"Einzelfund\",IF(OR(AX190=2,AX190=3),\"Abnehmend\",IF(OR(AX190=4,AX190=7,AX190=8,AX190=11),\"Zunehmend\",IF(AX190=5,\"Gleichbleibend selten\",IF(OR(AX190=6,AX190=9,AX190=10,AX190=12),\"Gleichbleibend verbreitet bis sehr häufig\",\"nicht bewertet\")))))","v":"Einzelfund"},1," ","Einzelfund"]
[8810,3021,"Cryphia","raptricula","Typische Art urbaner Lebensräume",{"$nulls":18},"Grünalgen",{"$nulls":6},1,1,null,null,"4_5",null,"Graue Flechteneule","Noctuidae (Eulenfalter)","keine Angaben",0,"spärlich",2,0,0,"verschwunden",1,10,"Einzelfund(e)",1,1,{"$f":"IF(AX191=1,\"Einzelfund\",IF(OR(AX191=2,AX191=3),\"Abnehmend\",IF(OR(AX191=4,AX191=7,AX191=8,AX191=11),\"Zunehmend\",IF(AX191=5,\"Gleichbleibend selten\",IF(OR(AX191=6,AX191=9,AX191=10,AX191=12),\"Gleichbleibend verbreitet bis sehr häufig\",\"nicht bewertet\")))))","v":"Einzelfund"},1," ","Einzelfund"]
[8866,3453,"Schrankia","costaestrigalis","Rheinauen, Moore, Sumpfwiesen",{"$nulls":18},"Blüten diverser krautiger Pflanzen",null,null,1,{"$nulls":6},1,"1_3",null,"Schmalflügel-Motteneule","Noctuidae (Eulenfalter)","keine Angaben",0,"eine kleine Art, die wahrscheinlich leicht übersehen wird, ROLAND meldet einen Falter 04.07.0999",1,0,0,"verschwunden",1,4,"Einzelfund(e)",1,1,"nicht bewertet",1," ","Einzelfund"]
[8932,3425,"Lygephila ","pastinum","Säume von Wäldern, Gebüschen, Hecken, Lichtungen, Schläge, auf trockenem und nassem Standort",{"$nulls":5},1,1,{"$nulls":11},"Zaun-Wicke, Vogel,-Wicke, Wicke",null,null,1,{"$nulls":4},1,{"$nulls":4},"Nierenfleck-Wickeneule","Noctuidae (Eulenfalter)","keine Angaben",0,"keine Angaben",0,11,3,"verbreitet",0,0,"zunehmend",3,8,{"$f":"IF(AX193=1,\"Einzelfund\",IF(OR(AX193=2,AX193=3),\"Abnehmend\",IF(OR(AX193=4,AX193=7,AX193=8,AX193=11),\"Zunehmend\",IF(AX193=5,\"Gleichbleibend selten\",IF(OR(AX193=6,AX193=9,AX193=10,AX193=12),\"Gleichbleibend verbreitet bis sehr häufig\",\"nicht bewertet\")))))","v":"Zunehmend"},8,"K 6?, nur ein Fundort, seit 1993 nicht mehr nachgewiesen kommentieren","Einzelfund"]
[8956,3428,"Catephia","alchymista","Eichen-Mischwälder, Schonungen, Steppenheiden, Gärten",{"$nulls":18},"Eiche",1,{"$nulls":6},1,null,null,"3_6",null,"Weisses Ordensband","Noctuidae (Eulenfalter)","sehr einzeln und selten",2,"keine Funde seit WEYMER",0,0,0,"verschwunden",0,0,"Einzelfund(e)",1,1,{"$f":"IF(AX194=1,\"Einzelfund\",IF(OR(AX194=2,AX194=3),\"Abnehmend\",IF(OR(AX194=4,AX194=7,AX194=8,AX194=11),\"Zunehmend\",IF(AX194=5,\"Gleichbleibend selten\",IF(OR(AX194=6,AX194=9,AX194=10,AX194=12),\"Gleichbleibend verbreitet bis sehr häufig\",\"nicht bewertet\")))))","v":"Einzelfund"},1," ","Einzelfund"]
[9018,3432,"Colobochyla","salicalis","Weich- und Hartholzauen, Erlen-Eschen und Eichen-Hainbuchen-Wälder",{"$nulls":8},1,1,1,{"$nulls":7},"Grau-Weide, Weide",null,null,1,{"$nulls":4},1,null,null,"3_1",null,"Weiden-Spannereule","Noctuidae (Eulenfalter)","keine Angaben",0,"erstmalig 1948 beobachtet, von diesem Zeitpunkt an mit zunehmender Häufigkeit",3,0,1,"sehr selten",0,0,"schwankend",4,5,{"$f":"IF(AX195=1,\"Einzelfund\",IF(OR(AX195=2,AX195=3),\"Abnehmend\",IF(OR(AX195=4,AX195=7,AX195=8,AX195=11),\"Zunehmend\",IF(AX195=5,\"Gleichbleibend selten\",IF(OR(AX195=6,AX195=9,AX195=10,AX195=12),\"Gleichbleibend verbreitet bis sehr häufig\",\"nicht bewertet\")))))","v":"Gleichbleibend selten"},5," ","Einzelfund"]
[9046,3410,"Diachrysia","chryson","Wasserdostbestände an mäßig frisschen bis feuchten Staandorten, Waldränder, Auwälder, Wassergräben, Moore",{"$nulls":18},"Wasserdost",null,null,1,{"$nulls":4},1,{"$nulls":4},"Wasserdost-Goldeule","Noctuidae (Eulenfalter)","keine Angaben",0,"aus Zone A bisher nur eine Meldung",1,0,0,"verschwunden",1,1,"Einzelfund(e)",1,1,{"$f":"IF(AX196=1,\"Einzelfund\",IF(OR(AX196=2,AX196=3),\"Abnehmend\",IF(OR(AX196=4,AX196=7,AX196=8,AX196=11),\"Zunehmend\",IF(AX196=5,\"Gleichbleibend selten\",IF(OR(AX196=6,AX196=9,AX196=10,AX196=12),\"Gleichbleibend verbreitet bis sehr häufig\",\"nicht bewertet\")))))","v":"Einzelfund"},1," ","Einzelfund"]
[9062,3409,"Autographa","bractea","Staudenflure, Schlagflure, Lichtungen im Wald oder in Waldnähe, Moore, schattige Stellen in Steinbrüchen",{"$nulls":18},"Asteraceen",null,null,1,{"$nulls":4},1,null,null,"3_8","4_2","Silberblatt-Goldeule","Noctuidae (Eulenfalter)","keine Angaben",0,"Die aus den Alpen in jünster Zeit in die Mittelgebirge eingewanderte Art hat sich offenbar in höheren Lagen unseres Gebietes eingebürgert",2,0,0,"verschwunden",0,0,"Einzelfund(e)",1,1,"nicht bewertet",1," ","Einzelfund"]
[9097,3386,"Emmelia","trabealis","Offenlandbewohner, mit Ackerwinde, z.B. Bahndämme, Halbtrockenrasen, Böschungen, an trockenwarmen Plätzen",{"$nulls":18},"Ackerwinde, Winde",null,null,1,{"$nulls":4},1,null,null,"4_4",null,"Ackerwinden-Bunteulchen","Noctuidae (Eulenfalter)","einmal von MAASSEN bei Vohwinkel",1,"nicht mehr gefunden",0,0,0,"verschwunden",0,0,"Einzelfund(e)",1,1,{"$f":"IF(AX198=1,\"Einzelfund\",IF(OR(AX198=2,AX198=3),\"Abnehmend\",IF(OR(AX198=4,AX198=7,AX198=8,AX198=11),\"Zunehmend\",IF(AX198=5,\"Gleichbleibend selten\",IF(OR(AX198=6,AX198=9,AX198=10,AX198=12),\"Gleichbleibend verbreitet bis sehr häufig\",\"nicht bewertet\")))))","v":"Einzelfund"},1," ","Einzelfund"]
[9117,3383,"Deltote","uncula","Feuchte Offenlandbiotope, Naßwiesen, Gewässerränder, Moore, Carex- und Cyperusarten",null,1,null,1,{"$nulls":27},"Ried-Grasmotteneulchen","Noctuidae (Eulenfalter)","bei Saurenhaus (Obersiebeneick) [Wuppertal-Elberfeld, Anm. d. Autoren] gefangen   ",1," Lokal    ",2,0,0,"verschwunden",0,0,"schwankend",4,5,{"$f":"IF(AX199=1,\"Einzelfund\",IF(OR(AX199=2,AX199=3),\"Abnehmend\",IF(OR(AX199=4,AX199=7,AX199=8,AX199=11),\"Zunehmend\",IF(AX199=5,\"Gleichbleibend selten\",IF(OR(AX199=6,AX199=9,AX199=10,AX199=12),\"Gleichbleibend verbreitet bis sehr häufig\",\"nicht bewertet\")))))","v":"Gleichbleibend selten"},5," ","Einzelfund"]
[9147,null,"Eublemma ","purpurina",{"$nulls":32},"Purpur-Prachteulchen","Noctuidae (Eulenfalter)","keine Angaben",0,"keine Angaben",0,null,0,"nicht vorhanden",1,{"$nulls":4},"nicht vorhanden",null,null,"Einzelfund"]
[9188,3177,"Cucullia","artemisiae","Beifußbestände an Wegen, Straßen, Bahndämmen, Äckern und Feldrainen, Ruderalflächen, Gärten",{"$nulls":18},"Gewöhnlicher Beifuß, Feld-Beifuß, Wermut",null,null,1,{"$nulls":4},1,null,null,"4_3",null,"Feldbeifuß-Mönch","Noctuidae (Eulenfalter)","Keine Angaben",0,"wahrscheinlich Irrgäste bzw. Arealerweiterer  ",1,0,0,"verschwunden",0,0,"Einzelfund(e)",1,1,"nicht bewertet",1,"Arealerweiterer","Einzelfund"]
[9207,3180,"Cucullia","chamomillae","Kamillen und Hundskaamillenbestände in Ackergesellschaften, Ruderalfluren, am Wegrand, Böshungen, Kiesgruben",{"$nulls":29},"4_2",null,"Kamillen-Mönch","Noctuidae (Eulenfalter)","Keine Angaben",0,"Für Zone A, in der unser Gebiet, bis auf Solingen-Ohligs, liegt, nicht erwähnt. In der Rheinebene verbreitet",0,2,1,"sehr selten",0,0,"Einzelfund(e)",1,1,{"$f":"IF(AX202=1,\"Einzelfund\",IF(OR(AX202=2,AX202=3),\"Abnehmend\",IF(OR(AX202=4,AX202=7,AX202=8,AX202=11),\"Zunehmend\",IF(AX202=5,\"Gleichbleibend selten\",IF(OR(AX202=6,AX202=9,AX202=10,AX202=12),\"Gleichbleibend verbreitet bis sehr häufig\",\"nicht bewertet\")))))","v":"Einzelfund"},1," ","Einzelfund"]
[9508,3309,"Hyppa","rectilinea","Heidelbeerbeständde im Wald auf kühlen und feuchten Standorten, Moore, nicht auf Kalkboden",null,1,{"$nulls":7},1,1,1,{"$nulls":6},"Heidelbeere und andere Krautige Pflanzen",null,null,1,{"$nulls":6},1,"3_1, 3_5",null,"Heidelbeer-Stricheule","Noctuidae (Eulenfalter)","Sehr selten   ",1,"im Bergland spärlich   ",2,0,0,"verschwunden",0,0,"schwankend",4,5,"Gleichbleibend selten",5," ","Einzelfund"]
[9513,3106,"Auchmis","detersa","Gebüsche, Waldmäntel, Saumgesellschaaften, in Kontakt mit Halbtrockenrasen, Gärten, Parks mit Berberitzenbeständen",{"$nulls":18},"Berberitze",1,{"$nulls":6},1,{"$nulls":4},"Berberitzeneule","Noctuidae (Eulenfalter)","Wurde nach Aussage von H. Neuhaus in Solingen einmal von ihm dort gefangen.   ",1,"Keine neuen Funde",0,0,0,"verschwunden",0,0,"Einzelfund(e)",1,1,"Einzelfund",1," ","Einzelfund"]
[9548,3341,"Cosmia","affinis","Ulmenreiche Laubwälder und Waldränder, Gebüschzonen, in Südlicher Hanglage",{"$nulls":18},"Feldulme, Ulme, Eiche, Schlehe, Linde",1,{"$nulls":8},1,"3_1",null,"Rotbraune Ulmeneule","Noctuidae (Eulenfalter)","Keine Funde",0,"ziemlich selten",2,0,0,"verschwunden",1,6,"Einzelfund(e)",1,1,"Einzelfund",1," ","Einzelfund"]
[9552,3252,"Atethmia","centrago","eschenreiche Laubwälder in Flußniederungen",{"$nulls":18},"Gewöhnliche Esche",1,{"$nulls":6},1,null,null,"3_1",null,"Ockergelbe Escheneule","Noctuidae (Eulenfalter)","nur einmal   ",1,"Keine Angaben",0,0,0,"verschwunden",2,10,"Einzelfund(e)",1,1,"Einzelfund",1," ","Einzelfund"]
[9560,3256,"Xanthia","gilvago","Ulmenreiche Auwälder in Bach- und Flußauen",{"$nulls":18},"Ulme",1,{"$nulls":6},1,null,null,"3_1",null,"Ulmen-Gelbeule","Noctuidae (Eulenfalter)","Selten",2,"Keine weiteren Funde",0,0,0,"verschwunden",1,6,"Einzelfund(e)",1,1,"Einzelfund",1," ","Einzelfund"]
[9573,3249,"Agrochola","nitida","frisches bis trockenes, gebüschreichen Offenland",{"$nulls":18},"Schlüsselblume, Gewöhnliche Waldrebe",null,null,1,{"$nulls":5},1,null,null,null,"Rotbraune Herbsteule","Noctuidae (Eulenfalter)","Sehr selten, 2 Ex.[emplare] dieser Art fingen wir im Herbst 1869 am Husar an Bierk.[öder].",1,"Keine Angaben",0,0,0,"verschwunden",0,0,"Einzelfund(e)",1,1,"Einzelfund",1," ","Einzelfund"]
[9655,3203,"Lithomoia","solidaginis","Moore, Heidelbeerreiche Ginsterheiden",{"$nulls":18},"Heidelbeere, Moorbeere, Preiselbeere",null,null,1,{"$nulls":5},1,null,"1_3","1_1","Rollflügel-Holzeule","Noctuidae (Eulenfalter)","Einzeln   ",2,"Dürfte bei uns nicht mehr bodenständig sein",0,0,0,"verschwunden",0,0,"Einzelfund(e)",1,1,"Einzelfund",1," ","Einzelfund"]
[9664,null,"Lithophane","leautieri",{"$nulls":32},"Zypressen-Holzeule","Noctuidae (Eulenfalter)","keine Angaben",0,"keine Angaben",0,null,0,"nicht vorhanden",1,1,null,null,null,"nicht vorhanden",null,null,"Einzelfund"]
[9699,3223,"Dryobotodes","eremita","Eichentrockenwwälder, Hartholzauwälder",{"$nulls":18},"Eiche",1,{"$nulls":6},1,null,null,"3_5",null,"Olivgrüne Eicheneule","Noctuidae (Eulenfalter)","Selten und wenig beobachtet   ",2,"Keine Funde nach Weymer",0,0,0,"verschwunden",1,7,"Einzelfund(e)",1,1,{"$f":"IF(AX211=1,\"Einzelfund\",IF(OR(AX211=2,AX211=3),\"Abnehmend\",IF(OR(AX211=4,AX211=7,AX211=8,AX211=11),\"Zunehmend\",IF(AX211=5,\"Gleichbleibend selten\",IF(OR(AX211=6,AX211=9,AX211=10,AX211=12),\"Gleichbleibend verbreitet bis sehr häufig\",\"nicht bewertet\")))))","v":"Einzelfund"},1," ","Einzelfund"]
[9710,3090,"Ammoconia","caecimacula","magere, trockene, sonnige Saumgesellschaften, Böschungen, Weinberge, Magerrasen, Schafweiden",{"$nulls":18},"Diverse krautige Pflanzen",null,null,1,{"$nulls":6},1,"2_1",null,"Graubraune Frühherbsteule","Noctuidae (Eulenfalter)","nur im Jahre 1870 häufig…sonst ",2,"nicht häufig   Keine Funde seit Weymer",0,0,0,"verschwunden",1,3,"Einzelfund(e)",1,1,"Einzelfund",1," ","Einzelfund"]
[9721,3228,"Polymixis","xanthomista","Felsbewohner, Magerrasen, Falswände, Böschungen, auf Kalkboden",{"$nulls":18},"Diverse krautige Pflanzen",null,null,1,{"$nulls":6},1,"3_6","2_3","Blaugraue Steineule","Noctuidae (Eulenfalter)","einmal",1,"Keine Angaben",0,0,0,"verschwunden",0,0,"Einzelfund(e)",1,1,"Einzelfund",1," ","Einzelfund"]
[9725,3227,"Polymixis","flavicincta","eher wärmeliebende Art, trocken-warme Eichenwälder, Ruderalflächen, Fels- und Mauerschutt",{"$nulls":18},"Diverse krautige Pflanzen",null,null,1,{"$nulls":6},1,null,null,"Gelbliche Steineule","Noctuidae (Eulenfalter)","einmal   ",1,"nur alte Funde   ",0,0,0,"verschwunden",0,0,"Einzelfund(e)",1,1,"Einzelfund",1," ","Einzelfund"]
[9753,3269,"Apamea","sublustris","Wiesen, Streuobstwwiesen, Binnendünen, Feuchtwiesen, Moore, eher in feuchtem Gelände",{"$nulls":18},"Gräser",null,null,null,1,{"$nulls":4},1,null,"2_2",null,"Rötlichgelbe Grasbüscheleule","Noctuidae (Eulenfalter)","Ein Ex.[emplar] bei Elb.[erfeld]   ",1,"Keine Angaben",0,0,0,"verschwunden",0,0,"Einzelfund(e)",1,1,"Einzelfund",1," ","Einzelfund"]
[9757,3272,"Apamea","aquila","Pfeifengrasbestände, Moore und Heiden",{"$nulls":18},"Pfeifengras",null,null,null,1,null,null,null,1,null,null,"1_3","1_4","Dunkle Pfeiffengras-Grasbüscheleule","Noctuidae (Eulenfalter)","Keine Angaben",0," Lokal ",2,0,0,"verschwunden",0,0,"Einzelfund(e)",1,null,"nicht bewertet",null,"War jemals da, unklare räuml. Zuordnung o.k","Einzelfund"]
[9759,3295,"Apamea","furva","flachgründige, felsige Halbtrockenrasen, Wacholderheiden, trockene Heiden",{"$nulls":18},"Schaf-Schwingel, Blasser Schwingel",null,null,null,1,null,null,null,1,null,null,"2_1",null,"Trockenrasen-Grasbüscheleule","Noctuidae (Eulenfalter)","Sehr selten, am 6. Juli 1872 fing ich ein Ex.[emplar]   ",1,"Keine Angaben",0,0,0,"verschwunden",0,0,"Einzelfund(e)",1,1,"Einzelfund",1," ","Einzelfund"]
[9768,3277,"Apamea","illyria","Grasige Stellen im Wald, Licchtunfen, Schneisen",{"$nulls":18},"Wiesen-Knäuelgras, Land-Reitgras",null,null,null,1,{"$nulls":4},1,null,"3_4","3_3, 3_5","Zweifarbige Grasbüscheleule","Noctuidae (Eulenfalter)","Keine Angaben  ",0,"erst in jüngster Zeit bei uns",2,0,0,"verschwunden",1,4,"Einzelfund(e)",1,null,"nicht bewertet",null,"War jemals da, unklare räuml. Zuordnung o.k","Einzelfund"]
[9829,3330,"Amphipoea","fucosa","magere, aber nicht xerotherme Wiesen und Weiden, feuchte Talwiesen und Bachauen, Bahndämme, Böschungen und Ruderalflächen",1,1,null,null,1,null,null,null,1,{"$nulls":5},1,1,null,null,"Graswurzeln",null,null,null,1,{"$nulls":4},1,null,null,null,"Gelbraune Stengeleule","Noctuidae (Eulenfalter)","Keine Angaben",0,"stets häufiger als A. oculea   ",3,0,1,"sehr selten",0,0,"schwankend",4,null,"nicht bewertet",null,"K 1 weil nur ein Fund und Angaben bei Kinkler nur mit ungenauer räumlicher Zuordnung, oder K 6 lieber in K6","Einzelfund"]
[9837,3333,"Hydraecia","petasitis","Pestwurzfluren in sonnigen bis schattigen, feuchten Standorten, Uferstaudenflure",{"$nulls":18},"Pestwurz",null,null,1,{"$nulls":4},1,null,null,"1_4",null,"Pestwurzeule","Noctuidae (Eulenfalter)","Keine Angaben ",0,"In größeren Pestwurzbeständen",2,0,1,"verschwunden",0,0,"Einzelfund(e)",1,1,"Einzelfund",1,"sehr selten, Nachtrag kommentieren","Einzelfund"]
[9848,3366,"Calamia","tridens","offene, sonnige, trockene Standorte, Charktertier für Halbtrockenrasen",{"$nulls":18},"Gräser",null,null,null,1,{"$nulls":4},1,null,"2_1","4_4","Grüneule","Noctuidae (Eulenfalter)","einmal bei Elb.[erfeld]   ",1," …bis Ende der 20er Jahre [des 20. Jhd.] ganz vereinzelt gefunden. Seitdem dort nicht mehr ",1,0,0,"verschwunden",0,0,"Einzelfund(e)",1,1,"Einzelfund",1," ","Einzelfund"]
[9859,3348,"Nonagria","typhae","Standorte von Rohrkolben an Seen und Flüssen",{"$nulls":18},"Rohrkolben, Seebinse",null,null,null,1,{"$nulls":4},1,null,"1_5",null,"Rohrkolbeneule","Noctuidae (Eulenfalter)","Keine Angaben  ",0,"Wuppertal-Dornap (R.[aupen] u. P.[uppen] alljährlich…),Wuppertal-Burgholz (21.8.1975…) ",2,0,0,"verschwunden",2,10,"Einzelfund(e)",1,1,"Einzelfund",1," ","Einzelfund"]
[9872,3353,"Arenostola","phragmitidis","mäßig trockene bis feuchte oder nasse Waldränder, Lichtungen, Schläge",{"$nulls":18},"Reitgras",null,null,null,1,null,null,null,1,null,null,"1_5",null,"Gelbweiße Schilfeule","Noctuidae (Eulenfalter)","Keine Angaben",0,"Wuppertal-Gelpe (13.7.76…)",1,0,0,"verschwunden",2,10,"Einzelfund(e)",1,1,"Einzelfund",1," ","Einzelfund"]
[9912,3112,"Lacanobia","w-latinum","euryöke Art, eher im Offenland",{"$nulls":18},"polyphag an Laubbäumen und krautigen Pflanzen",1,null,1,{"$nulls":6},1,null,null,"Graufeld-Kräutereule","Noctuidae (Eulenfalter)","Verbreitet, aber einzeln",2,"Die Funde liegen alle schon 10 Jahre und mehr zurück [d.h. vor 1950, Anm. d. Autoren.] ",0,0,0,"verschwunden",1,3,"Einzelfund(e)",1,1,"Einzelfund",1," ","Einzelfund"]
[9940,3130,"Hadena","confusa","Magerrasen, Wacholderheide, warme Hänge, Trümmerflora",{"$nulls":18},"Taubenkropf ",null,null,1,{"$nulls":4},1,null,null,"2_3, 4_4",null,"Marmorierte Nelkeneule","Noctuidae (Eulenfalter)","nur einzeln",2,"Keine Funde seit Weymer",0,0,0,"verschwunden",0,0,"Einzelfund(e)",1,1,"Einzelfund",1," ","Einzelfund"]
[9989,3121,"Papestra","biren","Tannen-Fichtenwald mit Heidebeerbeständen, Waldsäume mit Heidelbeeren",{"$nulls":6},1,{"$nulls":4},1,{"$nulls":6},"Sal-Weide, Eberesche, Heidelbeere, Moorbeere",1,null,1,{"$nulls":6},1,"1_1, 3_1",null,"Moorwaled-Blättereule","Noctuidae (Eulenfalter)","einzeln",2,"heute [d.h. 1975, Anm. d. Autoren] sehr selten...evtl. durch den Rückgang der Heidelbeere...verursacht",1,0,0,"verschwunden",0,0,"abnehmend",2,2,"Abnehmend",2," ","Einzelfund"]
[10017,3174,"Senta","flammea","Standorte von Waldkiefer, Wälder, Parks",{"$nulls":18},"Wald-Kiefer, Weißtanne, Fichte, Rottanne",null,1,{"$nulls":7},1,"1_5",null,"Striemen-Schilfeule","Noctuidae (Eulenfalter)","Keine Angaben",0,"Ganz lokal  ",1,0,0,"verschwunden",0,0,"Einzelfund(e)",1,null,"nicht bewertet",null,"War jemals da, unklare räuml. Zuordnung o.k","Einzelfund"]
[10028,null,"Mythimna","sicula",{"$nulls":32},"Kleine Wurzelstriemen-Graseule","Noctuidae (Eulenfalter)","Keine Angaben",0,"keine Angaben",0,null,0,"nicht vorhanden",2,{"$nulls":4},"nicht vorhanden",null,null,"Einzelfund"]
[10042,3155,"Orthosia","opima","unklar",{"$nulls":18},"Sal-Weide, Berberitze, u.a.",1,{"$nulls":8},1,"1_1, 2_2",null,"Opima-Kätzcheneule","Noctuidae (Eulenfalter)","Einzeln und selten",2,"sehr lokal und selten. Der letzte Falter [15.5.1935] ",0,0,0,"verschwunden",0,0,"Einzelfund(e)",1,1,{"$f":"IF(AX229=1,\"Einzelfund\",IF(OR(AX229=2,AX229=3),\"Abnehmend\",IF(OR(AX229=4,AX229=7,AX229=8,AX229=11),\"Zunehmend\",IF(AX229=5,\"Gleichbleibend selten\",IF(OR(AX229=6,AX229=9,AX229=10,AX229=12),\"Gleichbleibend verbreitet bis sehr häufig\",\"nicht bewertet\")))))","v":"Einzelfund"},1," ","Einzelfund"]
[10054,3147,"Egira","conspicillaris","Kulturland, verbuschte Gärten, Säume an Mageerrasen, Weinberge",{"$nulls":18},"vermutlich polyphag",1,null,1,{"$nulls":6},1,"3_6",null,"Holzrindeneule","Noctuidae (Eulenfalter)","Selten",2,"Keine Funde seit Weymer",0,0,0,"verschwunden",0,0,"Einzelfund(e)",1,1,"Einzelfund",1," ","Einzelfund"]
[10090,3062,"Diarsia","dahlii","Moore",{"$nulls":18},"polyphag an krautigen Pflanzen",null,null,1,{"$nulls":6},1,"1_2",null,"Moorwiesen-Erdeule","Noctuidae (Eulenfalter)"," Sehr selten, nur in einem Ex.[emplar] am 21. August 1874   ",1,"Keine Funde seit Weymer",0,0,0,"verschwunden",0,0,"Einzelfund(e)",1,1,"Einzelfund",1," ","Einzelfund"]
[10097,3101,"Noctua","orbona","trockene Magerrasen, Halbtrockenrasen, Saandrasen",{"$nulls":18},"vermutlich polyphag",1,null,1,{"$nulls":6},1,"2_1",null,"Schmalflügelige Bandeule","Noctuidae (Eulenfalter)","Einzeln",2,"Keine Funde seit Weymer",0,0,0,"verschwunden",0,0,"Einzelfund(e)",1,1,"Einzelfund",1," ","Einzelfund"]
[10110,3078,"Lycophotia","molothina","Calluna-Heiden",{"$nulls":18},"Heidekraut",null,null,1,{"$nulls":4},1,null,null,"2_1",null,"Graue Heidekrauteule","Noctuidae (Eulenfalter)","Keine Angaben",0,"Wuppertal-Elberfeld (1914 1 F.[alter]…) ",1,0,0,"verschwunden",0,0,"Einzelfund(e)",1,1,"Einzelfund",1," ","Einzelfund"]
[10161,3086,"Eurois","occulta","moorige Stellen in Zwergstrauchheiden mit Heidelbeerbeständen und Heidekraut",{"$nulls":18},"Schlehe, Heidekraut, Heidelbeere, Schlüsselblume",1,null,1,{"$nulls":6},1,"3_1","3_5","Graue Heidelbeereule","Noctuidae (Eulenfalter)","Sehr selten",1,"Seit dem deutlichen Rückgang der Heidelbeere in unseren Wäldern in den letzten 10 Jahren [d.h. seit 0944, Anm. d. Autoren] sehr selten geworden",1,0,0,"verschwunden",0,0,"Einzelfund(e)",1,1,"Einzelfund",1," ","Einzelfund"]
[10236,3089,"Protolampra","sobrina","Moore  ",{"$nulls":18},"Moorbeere, evtl. auch Heidekraut, Birke u.a.",1,null,1,{"$nulls":6},1,"1_1","1_2","Heidemoor-Bodeneule","Noctuidae (Eulenfalter)","1870 bis 1872 ziemlich oft Seit der Zeit nicht mehr beobachtet",2,"Keine Funde nach denjenigen Weymers",0,0,0,"verschwunden",0,0,"Einzelfund(e)",1,1,"Einzelfund",1," ","Einzelfund"]
[10244,3082,"Actebia","praecox","Sandböden, Kiesuntergrund, eher nicht auf xerothermen Gelände, Sandheiden, Uferböschungen",{"$nulls":18},"Polyphag an  krautigen Pflanzen, Gräsern, Laubgehölzen",1,null,1,1,{"$nulls":5},1,null,null,"Grünliche Erdeule","Noctuidae (Eulenfalter)","Sehr selten 1860 ein Ex.[emplar] bei Barmen, sonst nicht wieder aufgefunden  ",1,"Keine Nachweise nach Weymers",0,0,0,"verschwunden",0,0,"Einzelfund(e)",1,1,"Einzelfund",1," ","Einzelfund"]
[10425,2025,"Meganola","albula","Randbreiche von Laubmischwälern, Lichtungen, Wegränder, Vorwaldstadien",{"$nulls":18},"Himbeere, Brombeere",null,null,1,{"$nulls":4},1,{"$nulls":4},"Weissliches Graueulchen","Nolidae (Graueulchen)","Keine Angaben in der Literatur (W., K.)  ",0,"Keine Angaben in der Literatur (W., K.)  ",0,3,1,"sehr selten",2,10,"Einzelfund(e)",1,1,"Einzelfund",1," ","Einzelfund"]
[10431,2029,"Nola","aerugula","Laubmischwälder, ihre Randstrukturen, Kahlschläge, Wegränder",{"$nulls":18},"polyphag an  krautigen Pflanzen und Gehölzen",1,null,1,{"$nulls":6},1,"1_3",null,"Laubholz-Graueulchen","Nolidae (Graueulchen)","1871 einmal",1,"zitieren nur Weymer (1878)",0,0,0,"verschwunden",0,0,"Einzelfund(e)",1,1,"Einzelfund",1," ","Einzelfund"]
[10456,3391,"Earias","clorana","Randbereiche von Stillwasser-Biotopen, Leitart der Uferbegleitvegetation",{"$nulls":18},"Weiden-Arten",1,{"$nulls":6},1,{"$nulls":4},"Weiden-Kahneulchen","Noctuidae (Eulenfalter)","Keine Angaben bei Weymer  ",0,"Remscheid (5.6.1935…) ",1,0,0,"verschwunden",2,10,"Einzelfund(e)",1,1,"Einzelfund",1," ","Einzelfund"]
[10466,2031,"Thumatha","senex","Feuchte, seggenreichen Lichtungen im Auwald, Erlenbruchwald, feuchte Wiesen, moore, ",{"$nulls":18},"Moose und Flechten",{"$nulls":5},1,1,1,null,null,"1_3, 1_4","3_1, 3_8","Rundflügel-Flechtenbärchen","Arctiidae (Bärenspinner)","Keine Angaben in der historischen Literatur",0,"Keine Angaben in der historischen Literatur",0,1,1,"sehr selten",2,0,"Einzelfund(e)",1,1,"Einzelfund",1," ","Einzelfund"]
[10479,2047,"Pelosia","muscerda","Auwälder, Lichtungen, Erklenbruch, Feuchtwiesen, Moore, ",{"$nulls":18},"Flechten",{"$nulls":5},1,null,1,null,null,"3_1","1_1, 1_4","Mausgraues Flechtenbärchen","Arctiidae (Bärenspinner)","Weder bei W. noch K. für das Untersuchungsgebiet erwähnt. Roland meldet je einen Falter im Juni und Juli 1994 aus der Ohligser Heide, Kinkler 1996a",0,"Weder bei W. noch K. für das Untersuchungsgebiet erwähnt. Roland meldet je einen Falter im Juni und Juli 0993 aus der Ohligser Heide, Kinkler 0995a",0,4,2,"selten",2,7,"Einzelfund(e)",1,1,"Einzelfund",1," ","Einzelfund"]
[10509,2034,"Setina","irrorella","Trockenbiotope, xerotherme Standorte, Magerrasen, Bahndmme, Weinberge, Steinbrüche",{"$nulls":18},"Mose und Flechten",{"$nulls":5},1,1,null,1,null,null,null,"Trockenrasen-Flechtenbärchen","Arctiidae (Bärenspinner)","Selten…am 27. Juli 1856…ein Ex.[emplar] gefunden",1,"sehr vereinzelt  ",1,0,0,"verschwunden",0,1,"Einzelfund(e)",1,1,"Einzelfund",1," ","Einzelfund"]
[10521,2022,"Dysauxes","ancilla","Sonnige Wälder, sonnige Hänge",{"$nulls":18},"Flechten",{"$nulls":5},1,null,1,{"$nulls":4},"Kammerjungfer","Arctiidae (Bärenspinner)","in Solingen 1877 einmal bei Burg a. d. Wupper    ",1,"nicht mehr",0,0,0,"verschwunden",0,0,"Einzelfund(e)",1,1,"Einzelfund",1," ","Einzelfund"]
[10568,2059,"Spilosoma","urticae","Moore, Feuchtgebiete, Bruchwälder",{"$nulls":18},"Labkraut, Löwenzahn, andere krautige Pflanzen",null,null,1,{"$nulls":6},1,"1_4",null,"Nessel-Bär","Arctiidae (Bärenspinner)","einmal",1,"zitieren nur Weymer (1878)",0,0,0,"verschwunden",0,1,"Einzelfund(e)",1,1,"Einzelfund",1," ","Einzelfund"]
[10583,2063,"Diacrisia","sannio","Moore, Halbtrockenrasen, Streuobstwiesen, krautreiche Lichtungen, Magerrasen",1,1,{"$nulls":4},1,{"$nulls":5},1,{"$nulls":5},"Brennessel, Labkraut, Weidenröschen, Wegerich, Rainfarn, Wiesen-Schafgarbe",null,null,1,{"$nulls":6},1,"1_2, 1_3","2_1, 2_2","Rotrand-Bär","Arctiidae (Bärenspinner)","einzeln",2,"ganz vereinzelt",1,0,0,"verschwunden",0,0,"abnehmend",2,2,"Abnehmend",2," ","Einzelfund"]
[67,2214,"Korscheltellus","lupulina","Wiesen, Lichtungen, Waldrand, Obstwiesen, Bahngelände, Gärten,Obstwiesen",null,null,null,1,null,1,1,{"$nulls":5},1,null,null,1,null,null,"Polyphag an Wurzeln",{"$nulls":4},1,{"$nulls":4},1,null,null,"Kleiner Hopfen-Wurzelbohrer","Hepialidae (Wurzelbohrer)","Nur einmal am 14. Juni 1866",1,"Im Bergland nur wenige Einzelfunde",1,12,3,"verbreitet",2,11,"zunehmend",3,8,"Zunehmend",8,null,"Gleichbleibend selten"]
[69,2212,"Pharmacis","fusconebulosa","Feuchte Wiesen im Wald, Adlerfarnbestände",null,1,{"$nulls":4},1,null,1,1,1,{"$nulls":7},"Adlerfarn, Hainsimse, Simse, Farne",null,null,1,{"$nulls":7},"3_1",null,"Adlerfarn-Wurzelbohrer","Hepialidae (Wurzelbohrer)","Einzeln und selten",2,"Selten",2,0,0,"verschwunden",1,3,"abnehmend",2,2,"Abnehmend",2," ","Gleichbleibend selten"]
[4151,2208,"Cossus","cossus","Auwälder, Weidengebüsche, Moore, Streuobstwiesen, Gärten, Parks",null,1,null,null,null,1,1,1,1,null,null,null,1,null,null,null,1,null,"Im Holz von Pappel, Weide, Walnuß, Birke, Erle, Eiche, Obstbäume, Rote Heckenkirsche, Vogelkirsche, Sanddorn",{"$nulls":6},1,null,1,null,"4_8","3_1","Weidenbohrer","Cossidae (Holzbohrer)","Ueberall häufig",4,"Verbreitet aber einzeln",2,0,0,"verschwunden",2,10,"abnehmend",2,3,"Abnehmend",3," ","Gleichbleibend selten"]
[4176,2209,"Zeuzera","pyrina","Wälder, Gärten, Parks, Obstwiesen, ",{"$nulls":6},1,null,1,1,1,null,1,null,null,null,1,null,"Im Holz von Laubbäumen",{"$nulls":6},1,null,1,null,"4_7",null,"Blausieb","Cossidae (Holzbohrer)","Einzeln und selten   ",2,"Überall meist einzeln   ",3,4,1,"sehr selten",3,30,"schwankend",4,5,"Gleichbleibend selten",5," ","Gleichbleibend selten"]
[6728,2094,"Poecilocampa","populi","Laubmischwälder, am Waldrand, Gebüschreiche Trockenhänge, Auen und Bruchwälder, Parkanlagen, Alleen",{"$nulls":5},1,1,null,1,1,1,null,null,null,1,null,1,null,"Diverse Laubbäume  ",1,{"$nulls":8},1,null,null,"Kleine Pappel-Glucke","Lasiocampidae (Glucken)","selten   ",2,"Überall   ",4,3,2,"selten",2,23,"schwankend",4,5,"Gleichbleibend selten",5," ","Gleichbleibend selten"]
[6822,2126,"Smerinthus","ocellata","Auenwälder, Stromtäler, Flußlandschaft, Uferböschungen, Dämme, auch im Siedlungsbereich, Streuobstwiesen",null,1,{"$nulls":6},1,null,null,null,1,1,null,null,1,null,"Pappel, Zitter-Pappel, Weide, Birnbaum, Afelbaum, Sauerkirsche, Kirschlorbeer",1,{"$nulls":8},1,"3_1","3_4, 4_7","Abendpfauenauge","Sphingidae (Schwärmer)","Überall vereinzelt vorkommend",2,"Überall vereinzelt vorkommend",2,6,2,"selten",2,11,"gleichbleibend",4,5,"Gleichbleibend selten",5," ","Gleichbleibend selten"]
[6832,2123,"Sphinx","ligustri","Offene Landschaften, Vorwaldgesellschaften, Hecken und Gebüschgruppen im Offenland, Gärten",null,null,1,1,1,1,1,1,{"$nulls":8},1,null,"Flieder, Liguster, Esche, Forsythie",1,{"$nulls":7},1,null,"3_6, 4_9",null,"Liguster-Schwärmer","Sphingidae (Schwärmer)","Alljährlich häufig",4,"sehr selten",1,0,0,"verschwunden",2,8,"abnehmend",2,3,"Abnehmend",3," ","Gleichbleibend selten"]
[6834,2124,"Hyloicus","pinastri","Nadelwälder, Laubmischwälder, Kulturfolger",{"$nulls":9},1,1,1,{"$nulls":4},1,null,"Nadelbäume",null,1,{"$nulls":6},1,null,"3_7","4_9","Kiefern-Schwärmer","Sphingidae (Schwärmer)","Verbreitet, doch nicht häufig",3," vereinzelt   ",2,3,2,"selten",3,50,"gleichbleibend",4,5,"Gleichbleibend selten",5," ","Gleichbleibend selten"]
[6855,2134,"Hyles","galii","Waldränder, Lichtungen, Schneisen und Schläge mit Wald-Weidenröschen, Labkrautbestände an Dämmen und Böschungen",{"$nulls":6},1,null,1,1,1,null,null,1,{"$nulls":4},"Echtes Labkraut, Wald-Weidenröschen",null,null,1,{"$nulls":5},1,null,null,null,"Labkraut-Schwärmer","Sphingidae (Schwärmer)","Selten",2,"Falter fehlt oft jahrelang",2,0,0,"verschwunden",1,2,"abnehmend",2,2,"Abnehmend",2," ","Gleichbleibend selten"]
[6863,2137,"Deilephila","porcellus","Blütenreiche Feld- und Wegraine, Böschungen, Randstreifen an Wiesen, Wäldern, Hecken und Gebüschen",null,null,null,1,1,1,1,{"$nulls":6},1,{"$nulls":4},"Wiesen-Labkraut, Echtes Labkraut",null,null,1,{"$nulls":4},1,null,null,"2_1, 2_2",null,"Kleiner Wein-Schwärmer","Sphingidae (Schwärmer)","Verbreitet und manchmal nicht selten",3,"verbreitet, jedoch nur einzeln",2,1,1,"sehr selten",3,20,"abnehmend",2,2,"Abnehmend",2," ","Gleichbleibend selten"]
[7039,1069,"Lycaena","tityrus","Feuchtwiesn, verbrachte Wiesen, Mähwiesen, Halbtrockenrasen, Böschungen, Dämme, Feldraine, sonnige Schonungen, Sandfluren",{"$nulls":18},"Wiesen-Sauerampfer, Kleiner Sauerampfer",null,null,1,{"$nulls":4},1,null,null,"1_4",null,"Brauner Feuerfalter","Lycaenidae (Bläulinge)","nicht selten",3,"Wuppertal…Solingen",2,0,0,"verschwunden",3,18,"abnehmend",2,2,"Abnehmend",2,"vereinzelte Funde seit 2006, selten o.k","Gleichbleibend selten"]
[7062,1085,"Satyrium","w-album","Auenwälder, feuchte Gebüsche und Säume, Waldmäntel, Lichtungen, Schluchtwälder, schattige Hangwälder, Vorwaldstadien, Ulmenalleen",{"$nulls":18},"Flatter-Ulme, Feld-Ulme, Berg-Ulme, Holländische Ulme, Ulme",1,{"$nulls":6},1,null,null,"3_1","3_6","Ulmen-Zipfelfalter","Lycaenidae (Bläulinge)","Keine Angaben",0,"Wuppertal-Blombachtal (4.8.1986-Ha)",2,45,3,"verbreitet",2,12,"zunehmend",3,5,"Gleichbleibend selten",8,"erloschen?, nur ein Fundort und dort seit über zehn Jahren nicht mehr Kommentieren","Gleichbleibend selten"]
[7202,1081,"Argynnis","paphia","Sonnige Waldränder, Lichtungen, Schneisen, veilchenreiche Wälder",{"$nulls":6},1,1,null,1,1,{"$nulls":7},"Veilchen",null,null,1,{"$nulls":4},1,null,null,"3_4, 3_8","3_6","Kaisermantel","Nymphalidae (Edelfalter)","Häufig",4,"Früher überall verbreitet, heute...sehr vereinzelt",2,3,1,"sehr selten",3,40,"abnehmend",2,3,"Abnehmend",3," ","Gleichbleibend selten"]
[7485,2176,"Tethea","ocularis","Lichte Talböden in der Ebene, Pappelhaine, Auwälder am Rhein, Pappelalleen",null,1,{"$nulls":6},1,{"$nulls":9},"Schwarz-Pappel, Zitter-Pappel",1,{"$nulls":6},1,{"$nulls":4},"Augen-Eulenspinner","Thyatiridae (Eulenspinner)","Selten, seit 1863 nicht mehr ",0,"selten",2,1,1,"sehr selten",2,10,"schwankend",4,5,"Gleichbleibend selten",5," ","Gleichbleibend selten"]
[7494,2179,"Polyploca","ridens","Trockenwälder, wame Eichengebüsche, Laubmischwälder, eher wärmeliebend",{"$nulls":7},1,null,1,1,{"$nulls":7},"Stiel-Eiche, Eiche",1,{"$nulls":6},1,null,null,"3_5","3_4","Moosgrüner Eulenspinner","Thyatiridae (Eulenspinner)","Einzeln und selten",2,"in warmen Eichen- und Eichenmischwäldern. ",2,7,2,"selten",2,33,"gleichbleibend",4,5,"Gleichbleibend selten",5," ","Gleichbleibend selten"]
[7507,2113,"Drepana","curvatula","Auwald, Ufergehölz, Bruchwälder, besonders an Jungbäumen und Stockausschlägen",null,1,{"$nulls":5},1,1,{"$nulls":9},"Erle, Birke",1,{"$nulls":7},1,null,"3_1",null,"Erlen-Síchelflügler","Drepanidae (Sichelflügler)","Selten",2,"Wuppertal (16.6.1924 u. 18.7.1956 3F.[alter]",1,0,0,"verschwunden",1,5,"Einzelfund(e)",1,1,"Einzelfund",1,"K1 o.k.","Gleichbleibend selten"]
[7518,4002,"Archiearis","notha","Auwälder, Bruchwälder, Laubmischwälder",{"$nulls":8},1,1,1,{"$nulls":7},"Zitter-Pappel",1,{"$nulls":6},1,null,null,"3_6","3_4","Auen-Jungfernkind","Geometridae (Spanner)","Mit voriger [d. h. parthenias], doch seltener",2,"erheblich seltener [als parthenias].",1,0,0,"verschwunden",1,1,"abnehmend",2,2,"Abnehmend",2," ","Gleichbleibend selten"]
[7541,4325,"Macaria","signaria","Charakterart der Fichtenwälder",{"$nulls":11},1,{"$nulls":6},"Fichte",null,1,{"$nulls":5},1,{"$nulls":4},"Braungrauer Eckflügelspanner","Geometridae (Spanner)","Juni 1867 [3] Ex.[emplare]",1,"verteilt",2,11,3,"verbreitet",3,14,"zunehmend",3,8,"Zunehmend",8,null,"Gleichbleibend selten"]
[7543,4335,"Macaria","wauaria","Kulturfolger, Gärten, Waldlichtungen, Gebüschflure, Hecken, Moore",null,1,null,null,null,1,1,{"$nulls":9},1,null,"Stachelbeere, Johannisbeere",null,null,1,{"$nulls":4},1,{"$nulls":4},"Vauzeichen-Eckflügelspanner","Geometridae (Spanner)","Selten bei Elb.[erfeld]…, bei Barmen jedoch in einzelnen Jahren häufiger",2,"verteilt",2,4,2,"selten",2,13,"gleichbleibend",4,5,"Gleichbleibend selten",5," ","Gleichbleibend selten"]
[7607,4315,"Plagodis","dolabraria","Auenwald, eichenreiche Laubmischwälder, Waldsäume, Gebüschreiche Trockenhänge, Gärten, Kiesgruben, Steinbrüche",{"$nulls":5},1,1,null,1,1,{"$nulls":4},1,null,1,null,"Eiche, Ulme, Eberesche, Schlehe, Rote Heckenkirsche, Linde",1,{"$nulls":8},1,"3_5",null,"Hobelspanner","Geometridae (Spanner)","Verbreitet, aber nicht häufig",3,"Verbreitet und ziemlich häufig",3,5,1,"sehr selten",2,8,"abnehmend",2,2,"Abnehmend",2," ","Gleichbleibend selten"]
[7615,4317,"Epione","repandaria","Bach- und Flußauen, Waldränder, Moore, Leitart feuchter Tallagen",null,1,{"$nulls":4},1,null,1,{"$nulls":9},"Pappel, Rote Heckenkirsche",1,{"$nulls":7},1,null,null,null,"Weiden-Saumbandspanner","Geometridae (Spanner)","einzeln  ",2,"einzeln   ",2,2,1,"sehr selten",1,9,"gleichbleibend",4,5,"Gleichbleibend selten",5," ","Gleichbleibend selten"]
[7634,4301,"Ennomos","alniaria","Flussniederungen, Feuchtwiesen, Moore, Gärten und Parks",null,1,{"$nulls":6},1,{"$nulls":7},1,null,"Birke, Weide",1,{"$nulls":7},1,null,null,null,"Erlen-Zackenrandspanner","Geometridae (Spanner)","selten   ",2,"im ganzen Gebiet   ",3,2,1,"sehr selten",2,5,"schwankend",4,5,"Gleichbleibend selten",5," ","Gleichbleibend selten"]
[7635,4302,"Ennomos","fuscantaria","Flussniederungen, Feuchtwiesen, Auwälder, Gärten, Parks",null,1,{"$nulls":6},1,{"$nulls":7},1,null,"Esche, Liguster ",1,{"$nulls":7},1,null,null,null,"Eschen-Zackenrandspanner","Geometridae (Spanner)","bei Elb.[erfeld]   ",2," verbreitet, aber meist einzeln.  ",3,0,2,"selten",2,3,"schwankend",4,5,"Gleichbleibend selten",5,"sehr selten, verschollen? 25.9.93 letzter Fund Kommetar Tim: abwarten? Kommentieren","Gleichbleibend selten"]
[7647,4309,"Odontopera","bidentata","Laub- und Mischwald, Zwergstrauchheiden, Steinbrüche, Heiden, Moore",null,1,1,null,null,1,1,null,null,1,1,null,null,null,1,null,null,null,"Laubbäume",1,{"$nulls":8},1,null,null,"Doppelzahnspanner","Geometridae (Spanner)","Selten",2,"Weit verbreitet   ",3,7,2,"selten",3,16,"schwankend",4,5,"Gleichbleibend selten",5," ","Gleichbleibend selten"]
[7654,4312,"Crocallis","elinguaria","Überall",{"$nulls":17},1,"Weide",1,{"$nulls":6},1,{"$nulls":4},"Mordspanner","Geometridae (Spanner)","Verbreitet, aber nicht häufig",3,"Stellenweise häufig",3,2,1,"sehr selten",3,10,"abnehmend",2,2,"Abnehmend",2," ","Gleichbleibend selten"]
[7671,4345,"Apocheima","hispidaria","Laubwaldart, Wälder, Wadränder, Gärten und Parks, nicht in Bruch- und Auwald",{"$nulls":6},1,null,1,1,1,{"$nulls":5},1,null,"Laubbäume",1,{"$nulls":8},1,"3_5",null,"Gelbfühler-Dickleibspanner","Geometridae (Spanner)","Selten",2," verbreitet",3,1,1,"sehr selten",3,40,"schwankend",4,5,"Gleichbleibend selten",5," ","Gleichbleibend selten"]
[7674,4348,"Lycia","hirtaria","Hartholzaue, Schwarzerlen-Eschen-Auenwald, Moore",null,1,{"$nulls":6},1,{"$nulls":9},"Laubbäume, Rose, Rote Heckenkirsche",1,{"$nulls":8},1,null,null,"Schwarzfühler-Dickleibspanner","Geometridae (Spanner)","Einzeln",2,"in Laubmischwäldern",2,0,0,"verschwunden",1,20,"abnehmend",2,2,"Abnehmend",2," ","Gleichbleibend selten"]
[7762,4356,"Peribatodes","secundaria","Nadelwald und Mischwald",{"$nulls":10},1,1,{"$nulls":5},1,"Weißtanne, Fichte, Kiefer",null,1,{"$nulls":6},1,null,"3_7",null,"Fichten-Baumspanner","Geometridae (Spanner)","Sehr selten, einmal bei Elb.[erfeld]",1,"Ziemlich verbreitet   ",3,7,2,"selten",3,14,"schwankend",4,5,"Gleichbleibend selten",5," ","Gleichbleibend selten"]
[7775,4358,"Deileptenia","ribeata","Nadelwälder und Mischwald auf frischem bis feuchtem Standort, Waldrand, Waldwege, Moore",null,1,{"$nulls":8},1,1,{"$nulls":6},"Nadel- und Laubbäume",1,1,{"$nulls":7},1,"3_7",null,"Fichtenmischwald-Baumspanner","Geometridae (Spanner)","Ebenso [= Sehr selten, Anm. d. Autoren], nur …bei Barmen",1,"insbesondere im Bergland",2,4,1,"sehr selten",1,6,"schwankend",4,5,"Gleichbleibend selten",5,"23.7.92, verschollen? Kommetar Tim: abwarten? Kommentieren","Gleichbleibend selten"]
[7783,4364,"Hypomecis","roboraria","Eichenreiche Laubwälder in wärmeren Lagen, Eichen-Hainbuchen-Wald, Buchenwälder",{"$nulls":9},1,1,{"$nulls":7},"Rotbuche, Eiche ",1,{"$nulls":7},1,null,"3_5",null,"Grosser Rindenspanner","Geometridae (Spanner)","bei Elb.[erfeld]…und Barmen ",2,"Überall...verbreitet, aber meist einzeln",2,36,3,"verbreitet",3,30,"gleichbleibend",4,9,"Gleichbleibend verbreitet bis sehr häufig",9,null,"Gleichbleibend selten"]
[7798,4369,"Paradarisa","consonaria","Waldränder, offenbar gerne mit Heidelbeerbewuchs",{"$nulls":6},1,null,null,1,1,{"$nulls":7},"Gewöhnliche Eberesche",1,{"$nulls":6},1,null,null,"3_3","3_5","Glattbindiger Rindenspanner","Geometridae (Spanner)","Selten",2,"verbreitet, aber einzeln",2,0,0,"verschwunden",3,15,"abnehmend",2,2,"Abnehmend",2," ","Gleichbleibend selten"]
[7828,4289,"Lomographa","bimaculata","Warme, südexponierte Waldränder, Laub- und Mischwald",{"$nulls":6},1,null,null,1,1,{"$nulls":7},"Birke, Kirsche, Schlehe, roter Hartriegel, Weißdorn",1,{"$nulls":8},1,null,null,"Zweifleckspanner","Geometridae (Spanner)","Einzeln und selten",2,"verbreitet, aber meist nicht zahlreich",2,17,3,"verbreitet",3,35,"gleichbleibend",4,9,"Gleichbleibend verbreitet bis sehr häufig",9,null,"Gleichbleibend selten"]
[7839,4296,"Hylaea","fasciaria","Sand- Kieferwälder, Nadelmischwälder",{"$nulls":10},1,1,{"$nulls":6},"Weißtanne, Fichte, Kiefer",null,1,{"$nulls":6},1,null,"3_7",null,"Zweibindiger Nadelwald-Spanner","Geometridae (Spanner)","einzeln bei Barmen   ",2,"verbreitet",3,0,2,"selten",2,17,"schwankend",4,5,"Gleichbleibend selten",5," ","Gleichbleibend selten"]
[7857,4376,"Charissa","obscurata","Wärmeliebend, Fels- und Geröllflure, Magerrasen, Hangwälder, Calluna-Heiden, Trockenmauern, Steinbrüche, innerstädtische Ruderalflächen",1,null,1,{"$nulls":11},1,1,1,null,"Sonnenröschen, Hufeisenklee, Rundblätrige Gluckenblume, Berg- Ehrenpreis, Wicke, u.a.",null,null,1,{"$nulls":6},1,"2_3, 4_4","2_1, 4_5","Trockenrasen-Steinspanner","Geometridae (Spanner)","Einzeln  ",2,"nur ältere Funde",1,6,2,"selten",1,1,"schwankend",4,5,"Gleichbleibend selten",5,"11.8.1993, verschollen? Kommetar Tim: abwarten? Kommentieren","Gleichbleibend selten"]
[7971,4010,"Comibaena","bajularia","Eichenwälder und Eichenreiche Mischwälder, sonnige Waldränder, Lichtungen, Schneisen",{"$nulls":18},"Eiche",1,{"$nulls":6},1,null,null,"3_5, 3_6","3_4, 4_8","Grüner Eichenwaldspanner","Geometridae (Spanner)","Einzeln und selten   ",2,"nur alte Angaben  ",0,0,0,"verschwunden",3,30,"Einzelfund(e)",1,1,"Einzelfund",1," ","Gleichbleibend selten"]
[8000,4016,"Hemistola","chrysoprasaria","Auwälder, Auengebüsch, Waldränder, Lichtungen, Hecken, Ruderalgebüsch, Gärten, Parks",{"$nulls":4},1,1,1,null,1,{"$nulls":7},1,null,"Alpen-Waldrebe, gewöhnliche Waldrebe",null,null,1,{"$nulls":4},1,null,null,"3_8","3_6, 4_4","Waldreben-Grünspanner","Geometridae (Spanner)","Keine Angaben",0,"Der Falter fliegt dort, wo die Waldrebe (Clematis vitalba) wächst ",2,7,2,"selten",2,13,"zunehmend",3,4,"Zunehmend",4," ","gleichbleibend selten"]
[8002,4017,"Jodis","lactearia","Laubmischwald, Eichenbüsche, Hasel, junge Birken, in Mooren und Offenland",null,1,null,1,null,null,null,1,null,1,1,{"$nulls":7},"Eiche, Birke, Erle",1,{"$nulls":8},1,null,null,"Laubwald-Grünspanner","Geometridae (Spanner)","Selten",2,"(W-Burgholz,- Elb.,- Ronsdorf) ",2,0,1,"sehr selten",1,2,"abnehmend",2,2,"Abnehmend",2,"sehr selten, Einzelfund, Nachtrag o.k.","Gleichbleibend selten"]
[8042,4044,"Scopula","nigropunctata","Überall",{"$nulls":16},1,null,"Diverse krautige Pflanzen",null,null,1,{"$nulls":6},1,null,null,"Ziest-Kleinspanner","Geometridae (Spanner)","Verbreitet, aber einzeln  ",2,"selten",2,3,2,"selten",3,15,"gleichbleibend",4,5,"Gleichbleibend selten",5," ","Gleichbleibend selten"]
[8059,4034,"Scopula","marginepunctata","Wärmeliebende Art, sonnige, gebüsch- und krautreiche Stellen, Sandböden, Kalkböden, Weinberge, Magerrasen, Steinbrüche, Gärten",1,null,1,null,null,1,{"$nulls":8},1,1,1,null,"Sedum album, Origanum u.a. ?",null,null,1,{"$nulls":5},1,null,"2_3","2_2, 4_4, 4_5","Randfleck-Kleinspanner","Geometridae (Spanner)","Keine Angaben",0,"Im Bergland sehr vereinzelt",1,1,2,"selten",1,4,"zunehmend",3,4,"Zunehmend",4," ","gleichbleibend selten"]
[8064,4040,"Scopula","immutata","Extensiv genutzte Feuchtwiesen, Bäche, Gräben, Moore,",null,1,{"$nulls":16},"Primel u.a. krautige Pflanzen",null,null,1,{"$nulls":6},1,"1_4",null,"Vierpunkt-Kleinspanner","Geometridae (Spanner)","Einigemal   ",2," Im Bergland sehr spärlich…Wuppertal-Dornap (16.07.1990-Sch[mitz])",1,7,2,"selten",1,9,"schwankend",4,5,"Gleichbleibend selten",5," ","Gleichbleibend selten"]
[8137,4067,"Idaea","fuscovenosa","Kulturlandschaft, Siedlungen, Gärten, Hecken, Äcker und Brachen, warme Hänge, Sandgebiete",null,null,null,1,1,1,{"$nulls":10},1,null,"Moose, vertrocknete Blätter",{"$nulls":6},1,null,null,1,null,null,"Graurandiger Zwergspanner","Geometridae (Spanner)","Keine Angaben",0,"Vereinzelt   ",2,5,1,"sehr selten",2,15,"schwankend",4,5,"Gleichbleibend selten",5,"Letzter Fund 25.6.1993, verschollen? Kommetar Tim: abwarten? Kommentieren","Gleichbleibend selten"]
[8183,4074,"Idaea","emarginata","Feuchte Wiesen, Sandböden, Magerrasen",1,1,{"$nulls":16},"diverse Kräuter und Bodenlaub",null,null,1,{"$nulls":6},1,"3_1","3_4","Zackenrand-Zwergspanner","Geometridae (Spanner)","Selten ",2,"Keine Funde seit Weymer",0,0,1,"sehr selten",1,2,"schwankend",4,5,"Gleichbleibend selten",5," ","Gleichbleibend selten"]
[8274,4181,"Epirrhoe","tristata","Magerrasen, Gebüsch – und Saumgesellschaften, Heiden, Moore, Steinbrüche",1,1,1,null,null,1,1,{"$nulls":6},1,1,null,null,null,"Wiesen-Labkraut",null,null,1,{"$nulls":4},1,{"$nulls":4},"Fleckleib-Labkrautspanner","Geometridae (Spanner)","einmal  bei Ronsdorf",1,"verbreitet und meist häufig...Die Art nahm in den letzten 10 Jahren [d.h. seit ca.1975, Amn. d. Autoren] deutlich ab ",2,9,2,"selten",2,26,"gleichbleibend",4,5,"Gleichbleibend selten",5,"schwankend egal.","Gleichbleibend selten"]
[8277,4183,"Epirrhoe","rivata","Überall  ",{"$nulls":17},1,"Labkraut",null,null,1,{"$nulls":4},1,{"$nulls":4},"Weißbinden-Labkrautspanner","Geometridae (Spanner)","Selten ",2,"verbreitet, aber weniger zahlreich [als alternata]  ",3,3,2,"selten",2,8,"schwankend",4,5,"Gleichbleibend selten",5," ","Gleichbleibend selten"]
[8309,4198,"Anticlea","badiata","Hecken und Gebüsche im Offenland, Magerrasen, Wacholderheiden",1,null,1,null,null,1,{"$nulls":12},"Rosen",1,{"$nulls":6},1,null,null,"4_6",null,"Violettbrauner Rosen-Blattspanner","Geometridae (Spanner)","Sehr vereinzelt und selten  ",2,"lokal",2,0,2,"selten",2,9,"gleichbleibend",4,5,"Gleichbleibend selten",5," ","Gleichbleibend selten"]
[8312,4175,"Mesoleuca","albicillata","Mesophile Laub-Mischwälder, Auwälder, Lichtungen, Schlagflure, Waldräder, Böschungen",{"$nulls":6},1,null,1,{"$nulls":4},1,{"$nulls":4},"Himbeere, Brombeere, Rose, Schlehe",1,null,1,{"$nulls":6},1,null,null,"Himbeerspanner","Geometridae (Spanner)","in einzelnen Jahren nicht selten   ",3,"vornehmlich in Laubwäldern   ",2,2,2,"selten",3,30,"gleichbleibend",4,5,"Gleichbleibend selten",5," ","Gleichbleibend selten"]
[8335,4119,"Eulithis","pyraliata","Saumgesellschaften, Staudenflure, Gebüsche, Hecken, Waldränder, Moore, Halbtrockenrasen, Gärten",1,1,null,null,null,1,1,{"$nulls":9},1,null,"Labkraut",null,null,1,{"$nulls":4},1,{"$nulls":4},"Schwefelgelber Haarbüschelspanner","Geometridae (Spanner)","Selten",2,"verbreitet. Immer einzeln.  ",2,6,2,"selten",3,35,"gleichbleibend",4,5,"Gleichbleibend selten",5," ","Gleichbleibend selten"]
[8350,4120,"Cidaria","fulvata","Hecken und Gebüsche im Offenland, Magerrasen, Wacholderheiden",1,null,1,null,null,1,{"$nulls":12},"Rosen",1,{"$nulls":6},1,null,null,"3_6, 4_6",null,"Rosenspanner","Geometridae (Spanner)","Selten   ",2,"Im Bergland sehr…vereinzelt  ",2,6,2,"selten",2,13,"gleichbleibend",4,5,{"$f":"IF(AX293=1,\"Einzelfund\",IF(OR(AX293=2,AX293=3),\"Abnehmend\",IF(OR(AX293=4,AX293=7,AX293=8,AX293=11),\"Zunehmend\",IF(AX293=5,\"Gleichbleibend selten\",IF(OR(AX293=6,AX293=9,AX293=10,AX293=12),\"Gleichbleibend verbreitet bis sehr häufig\",\"nicht bewertet\")))))","v":"Gleichbleibend selten"},5," ","Gleichbleibend selten"]
[8352,4122,"Plemyria","rubiginata","Verschiedenbiotopbewohner",{"$nulls":17},1,"Apfel, Traubenkirsche, Schlehe u.a.",1,{"$nulls":7},1,null,null,null,"Milchweisser Bindenspanner","Geometridae (Spanner)","Selten",2,"meist einzeln  ",2,0,2,"selten",3,37,"gleichbleibend",4,5,"Gleichbleibend selten",5," ","Gleichbleibend selten"]
[8354,4128,"Pennithera","firmata","Kiefernwälder, Moore, Parks und Gärten mit Kiefern",null,1,{"$nulls":9},1,{"$nulls":4},1,null,"Wald-Kiefer",null,1,{"$nulls":5},1,null,null,"3_7",null,"Herbst-Kiefern-Nadelholzspanner","Geometridae (Spanner)","Sehr selten   ",1,"meist einzeln ",2,0,1,"sehr selten",2,16,"schwankend",4,5,"Gleichbleibend selten",5," ","Gleichbleibend selten"]
[8362,4127,"Thera","juniperata","Wacholderbestände, Heiden, Gärten, Parks",null,null,1,{"$nulls":13},1,null,"Wacholder",null,1,{"$nulls":5},1,null,null,"2_1, 2_2","4_9","Grauer Wacholder-Nadelholzspanner","Geometridae (Spanner)","Selten   ",2,"mit dem angepflanzten Wacholder verbreitet. ",2,1,1,"sehr selten",1,7,"gleichbleibend",4,5,"Gleichbleibend selten",5,null,"Gleichbleibend selten"]
[8411,4176,"Melanthia","procellata","Wälder, Waldränder, Hecken, Ruderalflächen",{"$nulls":4},1,1,1,null,1,1,{"$nulls":5},1,null,null,"Waldrebe",null,null,1,{"$nulls":4},1,{"$nulls":4},"Sturmvogel","Geometridae (Spanner)","Keine Angaben",0,"Diese an Waldrebe (Clematis vitalba) gebundene Art kommt überall dort vor, wo die Futterpflanze in größeren Beständen wächst. ",2,3,1,"sehr selten",3,22,"schwankend",4,5,"Gleichbleibend selten",5," ","Gleichbleibend selten"]
[8417,4167,"Spargania","luctuata","Moore, Feuchtwiesen, Schlagflure",{"$nulls":18},"Weidenröschen",null,null,1,{"$nulls":4},1,{"$nulls":4},"Schwarzweisser Weidenröschenspanner","Geometridae (Spanner)","[zwei]mal",1,"in lichten Laubwäldern",2,30,3,"verbreitet",0,0,"zunehmend",3,8,"Zunehmend",8,"eher Kategorie 5, nur zwei Fundorte, dort aber viele Falter, kommentieren","Gleichbleibend selten"]
[8423,4110,"Rheumaptera","undulata","Tannen-Fichtenwald, Buchen-Tannenwald mit Heidlbeerunterwuchs, Moore",null,1,{"$nulls":8},1,1,{"$nulls":6},"Sal-Weide, Breitblättrige Weide, Heidelbeere",1,null,null,1,{"$nulls":4},1,null,"3_1",null,"Wellenspanner","Geometridae (Spanner)","Nicht häufig",3," verbreitet, aber meist einzeln.   Roland meldet einen Falter von 7.94 aus der Ohligser Heide, Kinkler (0995).",2,7,2,"selten",2,9,"gleichbleibend",4,5,"Gleichbleibend selten",5," ","Gleichbleibend selten"]
[8432,4111,"Philereme","vetulata","Gebüschreiche Trockenhänge, felsenreiche Wacholderheiden, Magerrasen, gebüschreiche Sandflure, Gärten und Parks",{"$nulls":18},"Weißdorn, Kreuzdorn, Faulbaum",1,{"$nulls":7},1,null,"4_6","3_6","Kleiner Kreuzdornspanner","Geometridae (Spanner)","Stellenweise nicht selten",2,"Keine Funde seit Weymer.",0,0,0,"verschwunden",2,40,"Einzelfund(e)",1,1,"Einzelfund",1," ","Gleichbleibend selten"]
[8464,4194,"Perizoma","flavofasciata","Frische bis feuchte Staudenflure an Bächen und Flüssen, Waldränder und Gärten",null,1,{"$nulls":4},1,{"$nulls":9},1,null,"Rote Lichtnelke, Weiße Lichtnelke, Bart-Nelke",null,null,1,{"$nulls":4},1,{"$nulls":4},"Gelber Lichtnelken-Kapselspanner","Geometridae (Spanner)","Keine Angaben",0,"überall, aber einzeln    Roland meldet einen Falter von 6.93 aus der Ohligser Heide, Kinkler (0995).",2,1,1,"sehr selten",1,8,"schwankend",4,5,"Gleichbleibend selten",5," ","Gleichbleibend selten"]
[8661,4203,"Hydrelia","sylvata","Leitart von Erlensumpfgebieten, Moore, Haselniederwald",null,1,{"$nulls":4},1,1,1,{"$nulls":9},"Hasel, Erle",1,{"$nulls":7},1,null,"3_1",null,"Braungestreifter Erlenspanner","Geometridae (Spanner)","Selten",2,"Nicht häufig ",3,5,1,"sehr selten",2,9,"schwankend",4,5,"Gleichbleibend selten",5," ","Gleichbleibend selten"]
[8665,4100,"Lobophora","halterata","Auwälder und Laubmischwälder, Ufergehölze, Moore",null,1,{"$nulls":6},1,1,{"$nulls":8},"Zitter-Pappel, Pappel ",1,{"$nulls":6},1,{"$nulls":4},"Veränderlicher Lappenspanner","Geometridae (Spanner)","Selten   ",2,"nicht selten  ",3,7,2,"selten",3,40,"schwankend",4,5,"Gleichbleibend selten",5," ","Gleichbleibend selten"]
[8668,4099,"Trichopteryx","carpinata","Stromauen und Flußtäler, Lichtungen in Auwäldern, Feuchtgebiete, Moore",null,1,{"$nulls":4},1,{"$nulls":11},"Sal-Weide, Ohr-weide",1,{"$nulls":6},1,null,null,"3_1",null,"Hellgrauer Lappenspanner","Geometridae (Spanner)","Selten",2,"nicht selten  ",3,0,0,"verschwunden",2,6,"schwankend",4,5,"Gleichbleibend selten",5," ","Gleichbleibend selten"]
[8681,4095,"Acasis","viretata","Auen- und Bruchwälder, Waldränder, Bachränder, Gebüsche",{"$nulls":5},1,1,1,1,{"$nulls":9},"Gewöhnlicher Schneeball, Faulbaum",1,{"$nulls":7},1,null,"3_8",null,"Gelbgrüner Lappenspanner","Geometridae (Spanner)","Selten  ",2,"verbreitet, aber einzeln  ",2,3,2,"selten",2,20,"gleichbleibend",4,5,"Gleichbleibend selten",5," ","Gleichbleibend selten"]
[8708,2140,"Furcula","furcula","Auenwälder, Laubmischwälder, Gebüschgesellschaften, Buchenwälder",{"$nulls":5},1,1,null,1,1,1,{"$nulls":7},"Zitter-Pappel, Weide, Rotbuche",1,{"$nulls":8},1,"3_6","3_1","Buchen-Gabelschwanz","Notodontidae (Zahnspinner)","Selten ",2,"Überall verbreitet, aber meist einzeln   ",2,7,2,"selten",3,40,"gleichbleibend",4,5,"Gleichbleibend selten",5," ","Gleichbleibend selten"]
[8724,2147,"Drymonia","querna","Warm-trockene, eichenreiche Wälder",{"$nulls":9},1,1,{"$nulls":7},"Rotbuche, Stiel-Eiche",1,{"$nulls":7},1,null,"3_6","3_5, 4_9","Weißbinden-Eichenzahnspinner","Notodontidae (Zahnspinner)","Einzeln und selten",2,"Sehr selten",1,0,0,"verschwunden",1,0,"abnehmend",2,2,"Abnehmend",2," ","Gleichbleibend selten"]
[8736,2158,"Leucodonta","bicoloria","Auenwald als auch trockener Laubmischwäld, Trockenhänge, Steinbrüche, Bruch- und Moorrandwälder, Standorte von Birken",null,1,{"$nulls":4},1,1,1,1,{"$nulls":4},1,null,null,null,"Birke ",1,{"$nulls":6},1,null,null,"3_1","3_4","Weißer Birkenzahnspinner","Notodontidae (Zahnspinner)","Sehr selten",1,"meist einzeln",2,9,2,"selten",1,4,"gleichbleibend",4,5,"Gleichbleibend selten",5," ","Gleichbleibend selten"]
[8741,2161,"Odontosia","carmelita","Mischwälder mit Birken, schwerpunktmäßig Moore",null,1,{"$nulls":4},1,1,null,1,1,{"$nulls":7},"Hänge-Birke",1,{"$nulls":6},1,null,null,"3_1","3_4, 3_5","Karmeliter-Zahnspinner","Notodontidae (Zahnspinner)","Selten",2,"Lokal ",2,0,0,"verschwunden",1,3,"abnehmend",2,2,"Abnehmend",2," ","Gleichbleibend selten"]
[8747,2146,"Gluphisia","crenata","Flußbegleitender Auenwald, Ufer von Bächen und Seen, Moore, Pappelalleen im Siedlungsbereich",null,1,{"$nulls":6},1,{"$nulls":7},1,null,"Schwarz-Pappel, Pappel, Bastard-Pappel",1,{"$nulls":6},1,{"$nulls":4},"Kleiner Pappelauen-Zahnspinner","Notodontidae (Zahnspinner)","Keine Angaben",0,"verbreitet und ziemlich häufig   ",3,1,1,"sehr selten",3,40,"schwankend",4,5,"Gleichbleibend selten",5," ","gleichbleibend selten"]
[8760,2145,"Harpyia","milhauseri","Laubholzreiche Wälder, Eichen-Hainbuchen-Wälder, Eichen-Ulmen-Auwälder, krautreiche Buchenwälder, Gärten",{"$nulls":9},1,1,{"$nulls":7},"Rotbuche, Hainbuche, Eiche",1,{"$nulls":8},1,"3_5",null,"Pergament-Gabelschwanz","Notodontidae (Zahnspinner)","nur sehr vereinzelt",1,"verbreitet und nicht selten",3,5,1,"sehr selten",3,35,"schwankend",4,5,"Gleichbleibend selten",5," ","Gleichbleibend selten"]
[8772,3003,"Moma","alpium","Eichenreiche Laub- und Mischwwälder, Eichenjungwuchs",{"$nulls":18},"Rotbuche, Eiche, Roßkastanie",1,{"$nulls":8},1,"3_5, 3_6",null,"Seladoneule","Noctuidae (Eulenfalter)","nicht selten",3,"in Laubmischwäldern mit Eichenbeständen ",0,0,1,"sehr selten",3,35,"schwankend",4,5,"Gleichbleibend selten",5," ","gleichbleibend selten"]
[8774,3013,"Acronicta","alni","Mäßig trockene bis feuchte Laubmischwälder, Auwälder, Vorwaldgesellschaften",{"$nulls":6},1,1,null,1,1,{"$nulls":7},"Diverse Laubbäume und Sträucher",1,{"$nulls":8},1,"3_1",null,"Erlen-Rindeneule","Noctuidae (Eulenfalter)","Keine Angaben",0,"meist in Anzahl  ",2,9,2,"selten",3,25,"zunehmend",3,4,"Zunehmend",4," ","gleichbleibend selten"]
[8783,3014,"Acronicta","auricoma","Gebüsch und Offenlandbiotope, Waldränder, gebüschreiche Säume, Wegränder, Böschungen, Bahnanlagen",null,null,null,1,null,1,1,{"$nulls":6},1,1,1,null,null,"Diverse Laubbäume, Sträucher und krautige Pflanzen",1,null,1,{"$nulls":6},1,null,null,"Goldhaar-Rindeneule","Noctuidae (Eulenfalter)","Häufig",4,"verbreitet, aber meist einzeln",2,0,0,"verschwunden",2,20,"abnehmend",2,3,"Abnehmend",3," ","Gleichbleibend selten"]
[8816,3026,"Cryphia","domestica","Felsenlandschaft, Felsfluren und Halden, Weinbergsmauern, Trümmer",{"$nulls":14},1,1,null,null,"Flechten",{"$nulls":5},1,null,1,null,null,"2_3","4_4, 4_5","Weissliche Flechteneule","Noctuidae (Eulenfalter)","selten, nur einmal",1,"bevorzugt trocken-warme Stellen",1,6,2,"selten",1,1,"gleichbleibend",4,5,"Gleichbleibend selten",5,"Letzter Fund 29.7.92, verschollen? Abwarten, kommentieren","Gleichbleibend selten"]
[8871,3395,"Catocala","sponsa","Trockene bis frische Eichenreiche Wälder, Waldränder, Gärten und Parks",{"$nulls":6},1,null,null,1,1,{"$nulls":5},1,null,"Eiche",1,{"$nulls":6},1,null,null,"3_5, 3_6","3_1, 4_8","Grosses Eichenkarmin","Noctuidae (Eulenfalter)","Im Jahr 1868…in beträchtlicher Anzahl…In den folgenden Jahren wieder nur einzeln",2,"Vereinzelt",2,0,1,"sehr selten",2,25,"gleichbleibend",4,5,"Gleichbleibend selten",5,"schwankend für die Auswertung egaal","Gleichbleibend selten"]
[8873,3396,"Catocala","fraxini","Laub- und Mischwälder, Feldgehöze, an Fließgewässern",null,1,{"$nulls":6},1,1,1,{"$nulls":7},"Pyramiden-Pappel",1,{"$nulls":6},1,null,null,"3_6",null,"Blaues Ordensband","Noctuidae (Eulenfalter)","selten",2,"einzeln und selten",2,0,0,"verschwunden",1,1,"abnehmend",2,2,"Abnehmend",2," ","Gleichbleibend selten"]
[8882,3400,"Catocala","promissa","Lichte Eichen- und Eichenmischwälder, sonnige Randbereiche und Waldwege",{"$nulls":6},1,null,null,1,1,{"$nulls":7},"Eiche",1,{"$nulls":6},1,null,null,"3_6","3_5","Kleines Eichenkarmin","Noctuidae (Eulenfalter)","einzeln und selten",2,"Wuppertal, 25.7.1925",1,0,0,"verschwunden",1,1,"abnehmend",2,2,"Abnehmend",2," ","Gleichbleibend selten"]
[8975,3431,"Laspeyria","flexula","Laub- und Nadelwälder, Waldränder",{"$nulls":6},1,null,null,1,1,1,{"$nulls":6},"Flechten",{"$nulls":5},1,null,1,{"$nulls":4},"Sicheleule","Noctuidae (Eulenfalter)","keine Angaben",0,"in flechtenreichen Nadelholzwäldern veerbreitet und nicht selten",3,0,1,"sehr selten",3,25,"schwankend",4,5,"Gleichbleibend selten",5," ","Gleichbleibend selten"]
[9016,3433,"Parascotia","fuliginaria","Totholzreiche Laubwälder, Siedlungen, zB. Holzlagerstätten",{"$nulls":9},1,1,{"$nulls":5},1,null,"Schwämme und Totholz",{"$nulls":6},1,null,null,1,null,null,"Pilzeule","Noctuidae (Eulenfalter)","keine Angaben",0,"überall verbreitet",3,7,2,"selten",2,14,"schwankend",4,5,"Gleichbleibend selten",5," ","Gleichbleibend selten"]
[9036,3420,"Polychrysia","moneta","Eisenhutbestände in Laub-, Misch und Nadelwäldern, Waldränder, Uferböschungen, Gärten, Parks",null,1,{"$nulls":4},1,null,null,1,1,1,{"$nulls":4},1,null,"Blauer Eisenhut, Gelber Eisenhut, Rittersporn",null,null,1,{"$nulls":4},1,null,null,"4_9",null,"Eisenhut-Goldeule","Noctuidae (Eulenfalter)","wurde früher nicht gefunden. Erst seit 1875",2,"verbreitet und nicht selten, vermutlich Kulturfolger",3,0,0,"verschwunden",3,14,"schwankend",4,5,"Gleichbleibend selten",5," ","Gleichbleibend selten"]
[9053,3408,"Plusia","festucae","Schilfröhrichte, Seggenrieder, Niedermoore, Streuwiesen, Quellsümpfe, Erlenbruchwälder, Ufergesellschaften, Moore",null,1,{"$nulls":6},1,null,null,null,1,{"$nulls":5},"Breitblättriger Rohrkolben, Schilf, Rohrglasgras",null,null,null,1,{"$nulls":4},1,null,null,null,"Röhricht-Goldeule","Noctuidae (Eulenfalter)","selten",2,"verbreitet, aber meist einzeln",2,6,2,"selten",2,8,"gleichbleibend",4,5,"Gleichbleibend selten",5,"schwankend, letzter Fund 1.8.1992, verschollen, kommentieren","Gleichbleibend selten"]
[9059,3413,"Autographa","pulchrina","Waldränder, Binnensäume, Vorwaldstadien, Säume auf frischem oder mesophilen Untergrund, nährstoffreiche Staudenfluren, Ufergesellschaften, Moore",null,1,{"$nulls":4},1,1,{"$nulls":10},"Diverse krautige Pflanzen",null,null,1,{"$nulls":6},1,null,null,"Ziest-Silbereule","Noctuidae (Eulenfalter)","1 Exemplar doch halte ich es für jota, nicht für besondere Art",1,"verbreitet",3,1,2,"selten",3,18,"schwankend",4,5,"Gleichbleibend selten",5," ","Gleichbleibend selten"]
[9061,3412,"Autographa","jota","feuchte bis frische Tal- und Schluchtwälder, feuchte Staudenflure, Wegränder, Bachufer",null,1,{"$nulls":4},1,{"$nulls":6},1,{"$nulls":4},"Lungenkraut, evtl. auch andere krautige Pflanzen",null,null,1,{"$nulls":6},1,null,null,"jota-Silbereule","Noctuidae (Eulenfalter)","selten",2,"Verbreitet, aber nicht häufig",2,1,1,"sehr selten",2,8,"gleichbleibend",4,5,"Gleichbleibend selten",5," ","Gleichbleibend selten"]
[9183,3178,"Cucullia","absinthii","Beifußbestände an Wegen, Straßen, Bahndämmen, Äckern und Feldrainen, Ruderalflächen, Gärten",{"$nulls":4},1,1,{"$nulls":7},1,null,1,1,null,"Gewöhnlicher Beifuß, Feld-Beifuß, Wermut",null,null,1,{"$nulls":4},1,null,null,"4_2, 4_3",null,"Beifuß-Mönch","Noctuidae (Eulenfalter)","Selten",2,"Im Bergland nur einzeln  ",2,0,2,"selten",3,40,"gleichbleibend",4,5,"Gleichbleibend selten",5,"schwankend, egal","Gleichbleibend selten"]
[9199,3179,"Cucullia","umbratica","Fast überall im Offenland, urbane Bereiche",1,1,1,1,1,1,{"$nulls":10},1,null,"Korbblütler",null,null,1,{"$nulls":5},1,null,null,null,"Schatten-Mönch","Noctuidae (Eulenfalter)","Ueberall einzeln   ",2,"Überall und ziemlich häufig  ",4,6,2,"selten",2,14,"schwankend",4,5,"Gleichbleibend selten",5," ","Gleichbleibend selten"]
[9320,3197,"Asteroscopus","sphinx","Laub- und Mischwald, Waldränder, Vorwaldstadien, Hecken, Gebüsche, Streuobstwiesen, Gärten, Parks, Alleen",{"$nulls":18},"Laubbäume",1,{"$nulls":8},1,"3_6","3_3, 4_6","Herbst-Rauhhaareule","Noctuidae (Eulenfalter)","Selten, früher einmal bei Barmen",1,"nicht mehr gefunden",0,0,0,"verschwunden",3,40,"Einzelfund(e)",1,1,"Einzelfund",1,"K 1 oder 5, ein Neunachweis ist ja in 1","gleichbleibend selten"]
[9372,3396,"Pyrrhia","umbra","Offenland, sonnige Böschungen, Dämme, trockenwarme Wegränder, Ruderalflächen",null,null,null,1,1,{"$nulls":8},1,null,1,null,null,"Hauhechel, Esparsette, Löwenmaul, Gewöhnlichen Leinkraut, Braunwurz, Wachtelweizen, Augentrost",null,null,1,{"$nulls":6},1,null,null,"Goldbraune Hauhecheleule","Noctuidae (Eulenfalter)","Selten und einzeln",2,"Wuppertal",1,0,0,"verschwunden",1,1,"abnehmend",2,2,"Abnehmend",2," ","Gleichbleibend selten"]
[9417,3317,"Caradrina","morpheus","frische bis feuchte nährstoffreiche Stellen mit dichter Krautschicht, Wegböschungen, Waldränder, Ufer von Bächen, Flüssen, Seen, Gärten, Parks",null,1,{"$nulls":4},1,null,1,{"$nulls":4},1,null,null,1,null,"Waldrebe, Thymian, Gartenaster, Wegwarte",null,null,1,{"$nulls":6},1,null,null,"Morpheus-Staubeule","Noctuidae (Eulenfalter)","Selten",2,"Überall häufig    ",4,6,2,"selten",2,13,"schwankend",4,5,"Gleichbleibend selten",5," ","Gleichbleibend selten"]
[9450,3313,"Hoplodrina","blanda","hohe ökologische Valenz, Offenland, Wälder",{"$nulls":17},1,"Wiesen-Sauer-Ampfer, Gewöhnliches Sonnenröscchen, Wegerich, Skabiosen-Flockenblume",null,null,1,{"$nulls":6},1,null,null,"Graubraune Staubeule","Noctuidae (Eulenfalter)","Nicht selten  ",3,"verbreitet   ",3,4,2,"selten",2,30,"gleichbleibend",4,5,"Gleichbleibend selten",5," ","Gleichbleibend selten"]
[9481,3267,"Dypterygia","scabriuscula","feuchte bis trockene, Wiesen- und Rasengesellschaften, Ruderalflächen, nicht auf Kalkboden",1,1,1,1,1,{"$nulls":13},"Knötericharten, Ampferarten",null,null,1,{"$nulls":5},1,null,null,null,"Dunkle Knötericheule","Noctuidae (Eulenfalter)","Ueberall nicht selten   ",3,"verbreitet, aber einzeln",2,0,2,"selten",2,9,"gleichbleibend",4,5,"Gleichbleibend selten",5," ","Gleichbleibend selten"]
[9490,3266,"Mormo","maura","Bachbegleitende Hochstaudenfluren, Weiden- und Erlengebüsche, Pappelreihen an Flußufern",null,1,{"$nulls":4},1,null,1,{"$nulls":9},"Pappel, Weide, Erle, Ulme, Brennessel, Spitz-Ahorn, Gewöhnliche Esche",1,{"$nulls":8},1,null,null,"Schwarzes Ordensband","Noctuidae (Eulenfalter)","Oefter",3,"Vereinzelt  ",2,0,0,"verschwunden",2,25,"abnehmend",2,2,"Abnehmend",2," ","Gleichbleibend selten"]
[9496,3308,"Thalpophila","matura","Wiesenflächen, auch Waldwiesen, Gärten und Parks",null,null,null,1,null,null,1,{"$nulls":9},1,null,"Gräser",null,null,null,1,{"$nulls":4},1,null,"2_1, 2_2",null,"Gelbflügel-Raseneule","Noctuidae (Eulenfalter)","einmal",1,"Im Bergland nur vereinzelt   ",2,0,0,"verschwunden",1,3,"schwankend",4,5,"Gleichbleibend selten",5," ","Gleichbleibend selten"]
[9515,3104,"Actinotia","polyodon","trockene bis mäßig feuchte sonnige Standorte mit Echtem Johanniskraut, Ruderalflächen und Bahngelände, Wegränder",null,null,1,null,1,{"$nulls":8},1,1,1,null,null,"Echtes Johanniskraut, Johanniskrautarten",null,null,1,{"$nulls":4},1,null,null,"4_2","2_2","Vielzahn-Johanniskrauteule","Noctuidae (Eulenfalter)","Selten",2,"verbreitet und ziemlich häufig.  ",3,2,1,"sehr selten",2,20,"schwankend",4,5,"Gleichbleibend selten",5,"letzter Fund 25.7.1992, verschollen? Kommentieren","Gleichbleibend selten"]
[9518,3105,"Chloantha","hyperici","xerotherme Habitate mit Johanniskrautbeständen, Böschungen, Heiden Industriebrachen, Bahngelände",null,null,1,null,1,{"$nulls":8},1,null,1,null,null,"Echtes Johanniskraut, Johanniskrautarten",null,null,1,{"$nulls":4},1,null,null,"4_2",null,"Ruderalflur-Johanniskrauteule","Noctuidae (Eulenfalter)","Keine Angaben",0,"Seit dem Erstfund im Jahre 1975 hat sich die Art kräftig ausgebreitet. ",3,3,1,"sehr selten",1,5,"schwankend",4,5,"Gleichbleibend selten",5," ","Gleichbleibend selten"]
[9527,3337,"Ipimorpha","retusa","Uferzonen von Bächen und Flüssen, Weidengebüsche",null,1,{"$nulls":4},1,null,1,{"$nulls":9},"Pappel, Weiden-Arten",1,{"$nulls":7},1,null,"3_1",null,"Weiden-Blatteule","Noctuidae (Eulenfalter)","Selten",2,"Lokal früher häufiger",2,1,1,"sehr selten",2,20,"gleichbleibend",4,5,"Gleichbleibend selten",5," ","Gleichbleibend selten"]
[9528,3338,"Ipimorpha","subtusa","Pappelbestände an diversen Standorten",{"$nulls":6},1,null,1,1,1,null,null,1,null,null,1,null,"Zitterpappel, Pappel, Weide",1,{"$nulls":7},1,null,"3_1","4_9","Pappel-Blatteule","Noctuidae (Eulenfalter)","Selten",2,"in wechselnder Häufigkeit   ",3,4,1,"sehr selten",3,25,"schwankend",4,5,"Gleichbleibend selten",5," ","Gleichbleibend selten"]
[9531,3346,"Enargia","paleacea","Waldmantel und Sukzessionsstandorte, birkenreiche Moorgebüsche, Flußauen",null,1,null,null,1,null,1,1,1,{"$nulls":6},1,null,null,"Zittel-Pappel, Pappel",1,{"$nulls":7},1,null,null,null,"Gelbe Blatteule","Noctuidae (Eulenfalter)","Keine Angaben",0,"verbreitet.  ",3,1,1,"sehr selten",2,6,"schwankend",4,5,"Gleichbleibend selten",5," ","Gleichbleibend selten"]
[9537,3297,"Parastichtis","ypsillon","Ältere Weiden- und Pappelbestände, besonders an Bachläufen und Flußufern, Talauen, Seen",null,1,{"$nulls":4},1,null,1,{"$nulls":4},1,{"$nulls":4},"Weiden, Pappeln",1,{"$nulls":7},1,null,"3_1",null,"Weiden-Pappel-Rindeneule","Noctuidae (Eulenfalter)","Selten",2,"verbreitet, lokal häufig",3,7,2,"selten",3,40,"schwankend",4,5,"Gleichbleibend selten",5," ","Gleichbleibend selten"]
[9549,3343,"Cosmia","pyralina","Laubmischwälder und Gebüsche, Gärten und Parks",{"$nulls":5},1,1,null,null,1,1,{"$nulls":5},1,null,"Weide, Eiche, Ulme, Garten-Apfelbaum, Zwetschge, Schlehe",1,{"$nulls":8},1,null,null,"Violettbraune Ulmeneule","Noctuidae (Eulenfalter)","Keine Angaben",0,"Meist einzeln, aber überall   ",3,4,1,"sehr selten",3,20,"schwankend",4,5,"Gleichbleibend selten",5," ","Gleichbleibend selten"]
[9561,3257,"Xanthia","ocellaris","Pappelbestände in Auwäldern und Talgründen",{"$nulls":18},"Schwarz-Pappel, Kanadische Pappel",1,{"$nulls":6},1,null,null,"3_1",null,"Pappel-Gelbeule","Noctuidae (Eulenfalter)","Selten…bei Elb.[erfeld] einmal   ",1,"Keine Angaben  Roland meldet einen Falter von 10.1992 aus der Ohligser Heide, Kinkler (1996)",0,0,1,"sehr selten",1,8,"Einzelfund(e)",1,1,"Einzelfund",1," ","Gleichbleibend selten"]
[9562,3259,"Xanthia","citrago","Lindenreiche Wälder und Säume, Lindenjungwuchs, Linden im Siedlungsbereich",{"$nulls":18},"Holländische Linde, Sommer-Linde, Linde",1,{"$nulls":6},1,null,null,"3_6, 4_8",null,"Linden-Gelbeule","Noctuidae (Eulenfalter)","Selten.",2,"Seitdem [Weymer, 1878] bei uns nicht mehr ",0,0,0,"verschwunden",2,15,"Einzelfund(e)",1,1,"Einzelfund",1," ","Gleichbleibend selten"]
[9565,3242,"Agrochola","lychnidis","Ränder und Lichtungen von Laub- und Mischwäldern, Gebüsche, Hecken, Ruderalgelände, Kiesgruben",{"$nulls":4},1,1,1,{"$nulls":7},1,1,null,null,"Weide, Schlehe, Windblumen-Königskerze, u.a.",1,null,1,{"$nulls":6},1,null,null,"Veränderliche Herbsteule","Noctuidae (Eulenfalter)","1870 häufig, sonst seltener",2,"kommt bevorzugt [in] der Niederung [vor]   ",0,1,1,"sehr selten",1,1,"schwankend",4,5,"Gleichbleibend selten",5," ","Gleichbleibend selten"]
[9586,3248,"Agrochola","litura","breites Biotopspektrum, frische bis trockene Stellen im Offenland, Gärten und Parks, lichte Laubwälder",{"$nulls":17},1,"Sal-Weide, diverse krautige Pflanzen",1,null,1,{"$nulls":6},1,"3_5","3_6","Schwarzgefleckte Herbsteule","Noctuidae (Eulenfalter)","Selten",2,"Nur lokal und jahrweise häufig, besonders im Bergland.  ",2,0,2,"selten",2,10,"gleichbleibend",4,5,"Gleichbleibend selten",5," ","Gleichbleibend selten"]
[9609,3238,"Conistra","rubiginea","Reich strukturierte Waldränder und Säume, Vorwaldstadien, Weinberge, Heckenlandschaft, Gärten, Parks",{"$nulls":5},1,1,1,{"$nulls":5},1,1,null,1,null,"Laubbäume, später krautige Pflanzen",1,null,1,{"$nulls":6},1,"3_6",null,"Rost-Wintereule","Noctuidae (Eulenfalter)","Nur in einzelnen Jahren öfter",2,"In den letzten Jahren nur noch in der Niederung beobachtet",0,3,1,"sehr selten",3,30,"schwankend",4,5,"Gleichbleibend selten",5," ","Gleichbleibend selten"]
[9657,3204,"Lithophane","semibrunnea","warme, frische bis feuchte Eschenwälder, Lichte Waldränder",{"$nulls":18},"Esche",1,{"$nulls":6},1,null,null,"3_1","4_7","Schmalflügelige Holzeule","Noctuidae (Eulenfalter)","Sehr selten, 1870 am 30. Sept.[ember] ",1,"  Keine Angaben seit Weymer",0,4,1,"sehr selten",2,7,"Einzelfund(e)",1,1,"Einzelfund",1," ","Gleichbleibend selten"]
[9658,3205,"Lithophane","socia","Besonnte Büsche und Bäume in Waldrandnähe, Streuobstwiesen, Schlehengebüsch",{"$nulls":5},1,1,{"$nulls":5},1,null,null,null,1,null,"Sal-Weide, Eiche, Schlehe, Obstbäume u.a.",1,{"$nulls":8},1,"3_6",null,"Gelbbraune Holzeule","Noctuidae (Eulenfalter)","Selten",2,"in Deutschland seit vielen Jahren selten geworden ",2,1,1,"sehr selten",2,10,"gleichbleibend",4,5,"Gleichbleibend selten",5," ","Gleichbleibend selten"]
[9660,3206,"Lithophane","ornitopus","Eichenreeiche Laub- und Mischwälder, Gebüsche, Auwäder der Flußniederungen, Eichenjungwucchs, Eichen in Waldrandnähe",{"$nulls":18},"Wilber-Weide, Stiel-Eiche, Eiche",1,{"$nulls":7},1,null,"3_6",null,"Hellgraue Holzeule","Noctuidae (Eulenfalter)","Ueberall häufig",4,"In lichten Laubwäldern (Häufigkeit?)","keine Ang.",3,1,"sehr selten",2,20,"schwankend",4,5,"Gleichbleibend selten",5,"warum nicht bewertet?, schwankend, letzter Fund nach vielen Jahren ohne, Anfang 2009, war ein fehler, wurde behoben","Gleichbleibend selten"]
[9694,3218,"Dichonia","aprilina","Warme Eichenwälder in trockenen Lagen",{"$nulls":6},1,null,null,1,1,{"$nulls":7},"Eiche, meist ältere Bäume, die einzeln oder am Waldrand stehen",1,{"$nulls":6},1,null,null,"3_5","3_4","Grüne Eicheneule","Noctuidae (Eulenfalter)","Ueberall…nicht selten",3,"lokal und selten. Früher häufiger",2,1,1,"sehr selten",2,12,"abnehmend",2,2,"Abnehmend",2," ","Gleichbleibend selten"]
[9738,3216,"Blepharita","satura","Laub- und Mischwälder, Saumgesellschaften, Gebüsche",{"$nulls":5},1,1,null,null,1,1,null,null,1,{"$nulls":4},"Braunwurz, Geißblatt, Acker-Kratzdistel, u.a.",null,null,1,{"$nulls":6},1,"3_4","3_8","Dunkelbraune Waldrandeule","Noctuidae (Eulenfalter)","alljährlich nur einzelne Ex.[emplare]  ",2,"verbreitet und nicht selten ",3,3,1,"sehr selten",2,20,"schwankend",4,5,"Gleichbleibend selten",5," ","Gleichbleibend selten"]
[9756,3270,"Apamea","epomidion","Wald- und Waldrandart",{"$nulls":6},1,null,1,1,1,{"$nulls":7},"Wald-Gräser",null,null,null,1,{"$nulls":4},1,null,null,null,"Makelrand-Grasbüscheleule","Noctuidae (Eulenfalter)","Ein weibliches Ex.[emplar] fingen wir am 3. Juli 1871",1,"selten   ",2,0,0,"verschwunden",1,5,"schwankend",4,1,"Einzelfund",1,"K 1, o.k.","Gleichbleibend selten"]
[9767,3279,"Apamea","unanimis","Feuchtgebietstier, Uferbereiche von Gewässern",null,1,{"$nulls":6},1,{"$nulls":9},"Schilf, Rohr-Glasgras, Glanzgras",null,null,null,1,{"$nulls":4},1,null,"1_4, 3_1","1_5","Glanzgras-Grasbüscheleule","Noctuidae (Eulenfalter)","Selten. Nur ein Ex.[emplar]   ",2,"vereinzelt   ",2,2,1,"sehr selten",1,10,"gleichbleibend",4,5,"Gleichbleibend selten",5," ","Gleichbleibend selten"]
[9771,3281,"Apamea","sordens","trockene bis frische sonnige Glatthaferwiesen, Halbtrockenrasen, Ruderalfluren und Brachflächen, Weinberge, Böschungen, Dämme",1,null,null,1,1,{"$nulls":8},1,null,1,null,null,"Gräser, Getreide",null,null,null,1,{"$nulls":4},1,null,null,null,"Ackerrand-Grasbüscheleule","Noctuidae (Eulenfalter)","Nicht selten  ",3,"häufig   ",4,5,1,"sehr selten",2,20,"schwankend",4,5,"Gleichbleibend selten",5," ","Gleichbleibend selten"]
[9775,3283,"Apamea","ophiogramma","sonnige bis halbschattige Rohrglanzgrasbestände, Bäche, Gräben, Kiesgruben, Feuchtwiesen",null,1,null,1,{"$nulls":4},1,{"$nulls":5},1,null,null,null,"Rohr-Glanzgras",null,null,null,1,null,null,null,1,null,null,"1_4",null,"Schlangenlinien-Grasbüscheleule","Noctuidae (Eulenfalter)","Ophiogramma Esp. ist noch nicht hier gefunden worden ",0,"Verbreitet und nicht selten an sumpfigen Stellen   ",3,7,2,"selten",3,27,"schwankend",4,5,"Gleichbleibend selten",5," ","Gleichbleibend selten"]
[9795,3324,"Photedes","minima","Halbtrockenrasen, Wacholderheiden, Magerwiesen, Säume und Staudenflure",1,null,1,1,null,1,1,{"$nulls":6},1,{"$nulls":4},"Gräser",null,null,null,1,{"$nulls":4},1,null,"3_1","1_4, 3_8","Kleine Sumpfgraseule","Noctuidae (Eulenfalter)","Keine Angaben",0,"verbreitet, jedoch vereinzelt ",2,9,2,"selten",1,6,"zunehmend",3,4,"Zunehmend",4," ","gleichbleibend selten"]
[9814,3349,"Rhizedra","lutosa","Schilfbestände an stehenden und fließenden Gewässern",{"$nulls":18},"Schilfrohr",null,null,null,1,null,null,null,1,null,null,"1_5",null,"Schilfrohr-Wurzeleule","Noctuidae (Eulenfalter)","Keine Angaben",0,"Im Bergland nur wenige Einzelfunde ",1,0,1,"sehr selten",2,15,"Einzelfund(e)",1,1,"Einzelfund",1," ","gleichbleibend selten"]
[9828,3329,"Amphipoea","oculea","Bachtäler, Wassergräben, Fluß- und Teichufer",null,1,{"$nulls":4},1,null,1,{"$nulls":9},"Graswurzeln",null,null,null,1,{"$nulls":4},1,null,null,null,"Rotbraune Stengeleule","Noctuidae (Eulenfalter)","Ueberall nicht selten",3,"weit verbreitet, aber einzeln",2,0,0,"verschwunden",1,7,"abnehmend",2,2,{"$f":"IF(AX357=1,\"Einzelfund\",IF(OR(AX357=2,AX357=3),\"Abnehmend\",IF(OR(AX357=4,AX357=7,AX357=8,AX357=11),\"Zunehmend\",IF(AX357=5,\"Gleichbleibend selten\",IF(OR(AX357=6,AX357=9,AX357=10,AX357=12),\"Gleichbleibend verbreitet bis sehr häufig\",\"nicht bewertet\")))))","v":"Abnehmend"},2," ","Gleichbleibend selten"]
[9834,3334,"Hydraecia","micacea","frische, feuchte und nasse Standorte mit Staudenfluren, Feuchtwiesen, Verlandungszonen von Seen und Teichen",null,1,{"$nulls":6},1,{"$nulls":9},"An verschiedenen Wurzeln und Knollen",{"$nulls":6},1,null,null,1,null,null,"Markeule","Noctuidae (Eulenfalter)","Selten. Ol.[earius] fand 1867 ein Ex.[emplar] an den jetzt verschwundenen Pappeln am Brillerbach [in W.-Elberfeld]",1,"Verbreitet und nicht selten",3,21,3,"verbreitet",2,18,"zunehmend",3,8,"Zunehmend",8,null,"Gleichbleibend selten"]
[9841,3332,"Gortyna","flavago","frische bis feuchte, nährstoffreiche Staudenflure",{"$nulls":4},1,1,1,{"$nulls":6},1,1,1,1,null,"Diverse krautige Pflanzen",null,null,1,{"$nulls":6},1,"4_2",null,"Kletteneule","Noctuidae (Eulenfalter)","Selten",2,"vereinzelt   ",3,7,2,"selten",3,40,"schwankend",4,5,"Gleichbleibend selten",5," ","Gleichbleibend selten"]
[9857,3328,"Celaena","leucostigma","Feuchtgebietstier, Uferbereiche von Gewässern",null,1,{"$nulls":4},1,null,1,{"$nulls":9},"Gelbe Schwertlilie u.a.",null,null,1,{"$nulls":5},1,null,"1_4",null,"Schwertlilieneule","Noctuidae (Eulenfalter)","1 Ex.[emplar]…bei Elberf.[eld] und einige wenige Exemplare 1875…bei Ohligs   ",1,"Zerstreut und meist einzeln. ",2,0,0,"verschwunden",2,15,"schwankend",4,5,"Gleichbleibend selten",5," ","Gleichbleibend selten"]
[9867,3361,"Archanara","sparganii","Rohrgolbenbestände, Bestände von Gelber Schwertlilie, Nasse und feuchte Wiesen, Uferbereiche",null,1,null,1,null,null,1,null,1,{"$nulls":9},"Rohrkolben, Gelbe Sumpfschwertlilie",null,null,1,1,{"$nulls":4},1,null,"1_5",null,"Igelkolben-Schilfeule","Noctuidae (Eulenfalter)","Keine Angaben",0,"Wuppertal-Dornap (14.8.1990…R.[aupen] u. P.[uppen] alljährlich…)  Roland meldet einen Falter von 7.94 aus der Ohligser Heide, Kinkler (1996) ",2,2,1,"sehr selten",2,15,"schwankend",4,5,"Gleichbleibend selten",5," ","Gleichbleibend selten"]
[9875,3354,"Chortodes","fluxa","Wälder und Waldrand, Böschungen, Lichtungen, Schläge, Bachufer, Talwiesen",null,1,{"$nulls":4},1,null,1,{"$nulls":4},1,{"$nulls":4},"Reitgras",null,null,null,1,null,null,null,1,{"$nulls":4},"Gelbliche Sumpfgraseule","Noctuidae (Eulenfalter)","Keine Angaben",0,"lokal und vereinzelt ",2,0,2,"selten",1,5,"zunehmend",3,4,"Zunehmend",4," ","gleichbleibend selten"]
[9876,3355,"Chortodes","pygmina","Frische bis feuchte, gelegentlich auch trockene, Grasreiche Stellen auf sonnenexponierten Feuchtwiesen, Mooren, in Bachtäler, Flussufer",null,1,{"$nulls":4},1,null,1,{"$nulls":9},"Gräser",null,null,null,1,{"$nulls":4},1,null,"1_4",null,"Rötliche Sumpfgraseule","Noctuidae (Eulenfalter)","in einem Exemplar im Sept. 1871…   ",1,"vereinzelt.  ",2,0,0,"verschwunden",2,20,"schwankend",4,5,"Gleichbleibend selten",5," ","Gleichbleibend selten"]
[9895,3108,"Discestra","trifolii","Aufgelassenes Kulturland, Äcker, Brachen, Industriegebiete, Schuttplätze",null,null,null,1,1,{"$nulls":10},1,null,null,"Diverse krautige Pflanzen",null,null,1,{"$nulls":6},1,"4_9","4_3","Meldenflureule","Noctuidae (Eulenfalter)","nicht selten",3,"verbreitet, aber  vereinzelt   ",2,6,2,"selten",2,9,"gleichbleibend",4,5,"Gleichbleibend selten",5," ","Gleichbleibend selten"]
[9907,3374,"Anarta","myrtilli","Heiden und Moore",null,1,1,{"$nulls":15},"Heidekraut",null,null,1,{"$nulls":4},1,null,null,"2_1","1_3, 3_4","Heidekraut-Bunteule","Noctuidae (Eulenfalter)","Nicht selten",3,"Früher häufiger, durch den starken Rückgang des Heidekrautes...aber spärlicher geworden",2,0,0,"verschwunden",2,10,"abnehmend",2,2,"Abnehmend",2," ","Gleichbleibend selten"]
[9928,3122,"Aetheria","bicolorata","Versaumende oder ruderalisierte Halbtrockenrasen, Hänge, Böschungen, Weinberge, Lichtungen von Laubmischwäldern",1,{"$nulls":5},1,{"$nulls":6},1,1,null,null,null,"Korbblütler",null,null,1,{"$nulls":5},1,null,null,null,"Hasenlatticheule","Noctuidae (Eulenfalter)","Keine Angaben",0,"verbreitet, aber einzeln  ",2,4,1,"sehr selten",2,12,"schwankend",4,5,"Gleichbleibend selten",5," ","gleichbleibend selten"]
[9939,3131,"Hadena","compta","Im Siedlungsgebiet, an Nelken in Gärten und Parks, Bösschungen, Bahnanlgen, Straßenränder, Heckensäume, Kalkmagerrasen",1,{"$nulls":12},1,1,1,1,null,"Leimkraut, Bart-Nelke, Karthäuser-Nelke, Garten-Nelke",null,null,1,{"$nulls":4},1,null,null,"4_9",null,"Weißbinden-Nelkeneule","Noctuidae (Eulenfalter)","Keine Angaben",0,"Die häufigste Nelkeneule im Gebiet. Der Falter hat sich zu einem echten Kulturfolger entwickelt und findet sich besonders gern in nelkenreichen Gärten   ",3,3,1,"sehr selten",1,5,"schwankend",4,5,"Gleichbleibend selten",5," ","Gleichbleibend selten"]
[9955,3124,"Hadena","rivularis","Randbereiche von Wäldern, Halbtrockenrasen, Moore, Weg- und Straßenränder, Ruderalflächen und Industriebrachen",null,1,null,null,1,null,1,{"$nulls":6},1,1,1,null,null,"Taubenkropf, Leimkraut, Weiße Lichtnelke",null,null,1,{"$nulls":4},1,{"$nulls":4},"Violettbraune Kapseleule","Noctuidae (Eulenfalter)","Selten",2,"Einzeln   ",2,3,2,"selten",2,14,"gleichbleibend",4,5,"Gleichbleibend selten",5," ","Gleichbleibend selten"]
[9957,3125,"Hadena","perplexa","aufgelassenes Kulturland, Weinberge, südwestexponierte Hänge, Schuttplätze, Bahngelände",{"$nulls":4},1,{"$nulls":8},1,1,1,null,null,"Taubenkropf",null,null,1,{"$nulls":4},1,null,null,"2_2","2_3, 4_4","Leimkraut-Nelkeneule","Noctuidae (Eulenfalter)","Keine Angaben",0,"nur selten",2,23,3,"verbreitet",2,10,"zunehmend",3,8,"Zunehmend",8,"selten, nur zwei Fundorte kommentieren","gleichbleibend selten"]
[9972,3139,"Heliophobus","reticulata","Ruderalflächen, Gärten, Parks, Industriebrachen, Gleisanlagen",{"$nulls":4},1,{"$nulls":10},1,1,null,"Nelken und Seifenkraut",null,null,1,{"$nulls":4},1,null,null,"2_2, 2_3",null,"Netzeule","Noctuidae (Eulenfalter)","Selten. Am 3. Juli 1875…1 Ex.[emplar]…",1,"sehr selten   ",1,3,1,"sehr selten",1,4,"gleichbleibend",4,5,"Gleichbleibend selten",5," ","Gleichbleibend selten"]
[9991,3135,"Polia","bombycina","Unterschiedliche Lebensräume, gebüschreiche Halbtrockenrasen, Brachen, Schuttplätze, Heiden und Moore",1,1,1,1,1,{"$nulls":8},1,1,1,null,null,"Berberitze, Himbeere, Rotrer Hartriegel, Besenginster, Hauhechel, Heidelbeere, Moorbeere",1,null,1,{"$nulls":6},1,null,null,"Hauhechel-Blättereule","Noctuidae (Eulenfalter)","Nicht selten",3,"meist einzeln ",2,17,3,"verbreitet",2,6,"schwankend",4,9,"Gleichbleibend verbreitet bis sehr häufig",9,"sehr selten, nur drei FO kommentieren","Gleichbleibend selten"]
[10000,3163,"Mythimna","conigera","alle mesophilen Graslandbiotope",1,null,1,1,1,1,{"$nulls":9},1,1,null,"Gräser",null,null,null,1,{"$nulls":4},1,null,null,null,"Weißfleck-Graseule","Noctuidae (Eulenfalter)","Einzeln",2,"überall nicht selten   ",3,1,1,"sehr selten",2,6,"schwankend",4,5,"Gleichbleibend selten",5," ","Gleichbleibend selten"]
[10004,3173,"Mythimna","pudorina","Feuchtwiesen-Art, Ufer von Seen, Bächen, Flüssen",null,1,{"$nulls":4},1,null,1,{"$nulls":9},"Sumpf-Segge, Land-Reitgras, Rohr-Pfeifengras",null,null,null,1,{"$nulls":4},1,null,"1_4","1_3","Breiflügel-Graseule","Noctuidae (Eulenfalter)","Keine Angaben",0,"Überall vereinzelt bis häufig gefunden ",3,4,2,"selten",2,20,"schwankend",4,5,"Gleichbleibend selten",5," ","Gleichbleibend selten"]
[10022,3161,"Mythimna","l-album","trockenwarme, sonnige, südexponierte Grasflächen, Hanglagen, Steinbrüche, Halbtrockenrasen, Weinberge",1,null,null,1,null,1,{"$nulls":7},1,1,1,null,null,"Gräser",null,null,null,1,{"$nulls":4},1,null,null,null,"Weisses L","Noctuidae (Eulenfalter)","Selten",2,"Im Bergland nur vereinzeltes Auftreten  ",2,0,2,"selten",3,50,"gleichbleibend",4,5,"Gleichbleibend selten",5," ","Gleichbleibend selten"]
[10029,3168,"Mythimna","scirpi","trockene, warme Grasfluren auf unterschiedlichem Untergrund, Säume von Straßen und Wegen",null,null,1,1,{"$nulls":9},1,1,1,null,null,"Süßgräser",null,null,null,1,{"$nulls":4},1,null,null,null,"Kleine Punklinien-Graseule","Noctuidae (Eulenfalter)","Arealerweiterer, der zu Weymers Zeit  noch nicht bei uns vorkam",0,"lokal…häufig",3,20,3,"verbreitet",2,15,"zunehmend",3,8,"Zunehmend",8,"Arealerweiterer","gleichbleibend selten"]
[10041,3151,"Orthosia","miniosa","Eichen-Ulmen-Auenwald, eichenreiche Wälder, wärmere Standorte",{"$nulls":8},1,1,{"$nulls":8},"Eiche, Weißdorn, Brombeere, Schlehe",1,null,1,{"$nulls":6},1,"3_8","3_5, 3_6","Rötliche Kätzcheneule","Noctuidae (Eulenfalter)","Verbreitet aber einzeln",2,"im Bergland in den letzten 10 Jahren [d.h.seit ca. 1965] nur sehr selten",1,0,0,"verschwunden",2,10,"abnehmend",2,2,"Abnehmend",2," ","Gleichbleibend selten"]
[10043,3150,"Orthosia","populeti","Feuchtgebiete, Auen, lichte Bestände junger Zitterpappeln",null,1,{"$nulls":4},1,1,1,{"$nulls":9},"Zitter-Pappel, Pappel ",1,{"$nulls":6},1,{"$nulls":4},"Pappel-Kätzcheneule","Noctuidae (Eulenfalter)","Selten",2,"verbreitet, aber einzeln",2,0,0,"sehr selten",2,30,"abnehmend",2,2,"Abnehmend",2,"sehr selten, Nachtrag","Gleichbleibend selten"]
[10048,3156,"Orthosia","gracilis","vielgestaltige Lebensräume",{"$nulls":17},1,"Laubbäume und krautige Pflanzen",1,null,1,{"$nulls":6},1,null,null,"Spitzflügel-Kätzcheneule","Noctuidae (Eulenfalter)","Verbreitet, aber nicht häufig",3,"Überall verbreitet und ziemlich häufig",4,2,1,"sehr selten",2,10,"schwankend",4,2,"Abnehmend",2,"Letzter Fund 8.4.1993, bei Kinkler als \"Überall verbreitet und ziemlich häufig\" eingeschätzt, von daher K 2 o.k","Gleichbleibend selten"]
[10052,3376,"Panolis","flammea","Kiefernwälder",{"$nulls":11},1,{"$nulls":6},"Wald-Kiefer, Weißtanne, Fichte, Rottanne",null,1,{"$nulls":7},1,"3_7",null,"Kieferneule","Noctuidae (Eulenfalter)","einzeln",2,"verbreitet, aber meist nur vereinzelt.  ",2,7,2,"selten",3,50,"gleichbleibend",4,5,"Gleichbleibend selten",5," ","Gleichbleibend selten"]
[10093,3067,"Diarsia","rubi","Krautschicht am Waldrand und an Gebüschen",{"$nulls":5},1,1,{"$nulls":9},1,null,"Gräser und krautige Pflanzen",null,null,1,1,{"$nulls":5},1,null,null,"Rötliche Erdeule","Noctuidae (Eulenfalter)","Selten",2,"überall häufig. In manchen Jahren  in sehr geringer Zahl.  ",3,4,2,"selten",2,28,"schwankend",4,5,"Gleichbleibend selten",5," ","Gleichbleibend selten"]
[10206,3074,"Xestia","rhomboidea","Frische bis feuchte Standorte an Binnensäumen und Rändern von Wäldern, Gärten, Parks, Streuobstwiesen",{"$nulls":5},1,1,{"$nulls":6},1,null,null,1,null,"Brennnessel, Schlehe, Labkraut, Schlüsselblume",1,null,1,{"$nulls":6},1,null,null,"Rhombus-Bodeneule","Noctuidae (Eulenfalter)","Erzog ich am 26. Juni 1857 aus einer bei Elb.[erfeld] gefundenen Raupe, seitdem nicht wieder",1,"Lokal nicht selten",2,0,1,"sehr selten",0,0,"schwankend",4,5,"Gleichbleibend selten",5," ","Gleichbleibend selten"]
[10225,3087,"Cerastis","leucographa","Eher nicht in xerothermen Gebieten, sonst überall",{"$nulls":17},1,"Polyphag an  krautigen Pflanzen und Laubholz",1,null,1,{"$nulls":6},1,null,null,"Gelbfleck-Frühlings-Bodeneule","Noctuidae (Eulenfalter)","Selten",2,"verbreitet, aber einzeln.  ",2,1,1,"sehr selten",3,25,"gleichbleibend",4,5,"Gleichbleibend selten",5," ","Gleichbleibend selten"]
[10275,3033,"Euxoa","nigricans","Halbtrockenrasen, Säume mit kahlen Stellen, Hausgärten, Streuobstwiesen, evtl. „Kulturfolger“",1,{"$nulls":4},1,{"$nulls":6},1,1,null,null,1,null,"polyphag an  krautigen Pflanzen",null,null,1,{"$nulls":6},1,null,null,"Schwarze Erdeule","Noctuidae (Eulenfalter)","Einzeln und selten  ",2,"Wuppertal-Dornap (2.8.1990), Wuppertal-Burgholz (5. u. 20.8.1975) ",1,0,1,"sehr selten",1,4,"gleichbleibend",4,5,"Gleichbleibend selten",5,"K 1, letzter Fund am 2.8.90, daher verschollen, oder zumindest schwankend. Kommentieren","Gleichbleibend selten"]
[10350,3039,"Agrotis","clavis","Praktisch überall",{"$nulls":17},1,"polyphag an  krautigen Pflanzen",null,null,1,{"$nulls":6},1,null,null,"Magerwiesen-Bodeneule","Noctuidae (Eulenfalter)","Selten",2,"Wuppertal…Solingen…Remscheid  ",2,7,2,"selten",3,30,"gleichbleibend",4,5,"Gleichbleibend selten",5," ","Gleichbleibend selten"]
[10368,3001,"Panthea","coenobita","Nadelwälder, Mischwälder, frische bis nasse Böden, Wegränder und Schneisen im wald, Moore",null,1,{"$nulls":8},1,1,{"$nulls":6},"Tanne, Fichte, Lärche u.a. Nadelbäume",null,1,{"$nulls":6},1,null,"3_7",null,"Klosterfrau,Mönch","Noctuidae (Eulenfalter)","Keine Angaben",0,"Eine der wenigen Arten, die durch die allenthalben erfolgte Fichtenaufforstung neu auftrat oder in ihrem Bestand verstärkt wurde. Von Weymer 0767 noch nicht gemeldet   ",3,1,1,"sehr selten",3,15,"schwankend",4,5,"Gleichbleibend selten",5," ","Gleichbleibend selten"]
[10375,2083,"Lymantria","monacha","Laub- und Nadelwald, seltener im Siedlungsbereich",{"$nulls":9},1,1,1,{"$nulls":6},"Diverse Nadel- und Laubbäume",1,1,{"$nulls":7},1,null,null,"Nonne","Lymantriidae (Trägspinner)","Selten",2,"verbreitet und nicht selten  ",3,2,2,"selten",3,30,"schwankend",4,5,"Gleichbleibend selten",5," ","Gleichbleibend selten"]
[10416,2080,"Arctornis","l-nigrum","Buchenreiche Laubmischwälder",{"$nulls":9},1,1,{"$nulls":7},"Sal-Weide, Rotbuche, Linde",1,{"$nulls":8},1,"3_3",null,"Schwarzes L","Lymantriidae (Trägspinner)","Selten",2,"verbreitet ",3,1,1,"sehr selten",2,10,"schwankend",4,5,"Gleichbleibend selten",5," ","Gleichbleibend selten"]
[10429,2028,"Nola","confusalis","Laub- und Laubmischwälder",{"$nulls":9},1,1,{"$nulls":7},"Laubbäume",1,{"$nulls":8},1,"3_3","3_5","Hainbuchen-Graueulchen","Nolidae (Graueulchen)","einzeln",2,"Lokal und vereinzelt bis selten  ",2,1,1,"sehr selten",3,40,"gleichbleibend",4,5,"Gleichbleibend selten",5," ","Gleichbleibend selten"]
[10441,3389,"Nycteola","revayana","Eichenreiche Laubwälder, Waldränder, Gebüsche",{"$nulls":5},1,1,null,null,1,1,{"$nulls":7},"Eiche",1,{"$nulls":6},1,null,null,"3_4","3_3, 3_5","Übersehener Wickler-Spinner","Noctuidae (Eulenfalter)","Selten   ",2,"Vereinzelt   ",3,4,2,"selten",3,60,"schwankend",4,5,"Gleichbleibend selten",5," ","Gleichbleibend selten"]
[10485,2038,"Lithosia","quadra","Eichenreiche Wälder, gebüschreiche Trockenhänge",{"$nulls":5},1,null,1,null,1,{"$nulls":4},1,null,null,null,"Flechten",{"$nulls":5},1,null,1,{"$nulls":4},"Vierpunkt-Flechtenbärchen","Arctiidae (Bärenspinner)","Meistens selten, nur in einzelnen Jahren (1872) sehr häufig",2,"sehr selten ",1,0,1,"sehr selten",2,10,"abnehmend",2,5,"Gleichbleibend selten",2,"K5, Einzelfund 2007, Nachtrag","Gleichbleibend selten"]
[10572,2061,"Diaphora","mendica","Vielschichtige Lebensräume, eher auf trockeneren Standorten",{"$nulls":17},1,"Polyphag an krautigen Pflanzen",null,null,1,{"$nulls":6},1,null,null,"Hellgrauer Fleckleibbär","Arctiidae (Bärenspinner)","Verbreitet, aber stets einzeln",2,"vereinzelt ",2,24,3,"verbreitet",3,20,"gleichbleibend",4,9,"Gleichbleibend verbreitet bis sehr häufig",9,null,"Gleichbleibend selten"]
[10603,2069,"Callimorpha","dominula","Krautreiche Talauen, Lichtungen, Böschungen, Weg- und Straßenränder, Schlagflure, ",{"$nulls":6},1,null,1,{"$nulls":4},1,{"$nulls":4},"Diverse Gehölze und krautigen Pflanzen",1,null,1,{"$nulls":6},1,"3_8",null,"Schönbär","Arctiidae (Bärenspinner)","Selten",2,"lokal und vereinzelt.   Roland meldet einen Falter im Juli 1993 aus der Ohligser Heide, Kinkler 1996a.",2,0,1,"sehr selten",1,7,"gleichbleibend",4,5,"Gleichbleibend selten",5," ","Gleichbleibend selten",null,{"$f":"COUNTA(AI246:AI392)","v":85},{"$f":"COUNTA(W246:W392)","v":10}]
[63,2213,"Triodia","sylvina","Offenland und gebüschreiche Landschaften, auf feuchten und trockenen Böden, euryöke Art",{"$nulls":17},1,"An Wurzeln diverser Pflanzen",{"$nulls":4},1,{"$nulls":4},1,null,null,"Ampfer-Wurzelbohrer","Hepialidae (Wurzelbohrer)","Ueberall",4,"Überall häufig",4,90,4,"häufig",4,60,"gleichbleibend",4,9,"Gleichbleibend verbreitet bis sehr häufig",9,null,"Gleichbleibend verbreitet bis sehr häufig"]
[80,2211,"Hepialus","humuli","Offene Wiesen in kühlfeuchten Landschaften, Wegränder, Dämme, Böschungen, Streuobstwiesen, Gärten",null,1,null,1,{"$nulls":9},1,{"$nulls":4},"Polyphag an Wurzeln",{"$nulls":4},1,{"$nulls":4},1,"1_4",null,"Großer Hopfen-Wurzelbohrer, Geistermotte","Hepialidae (Wurzelbohrer)","Selten",2,"nicht selten",3,70,4,"häufig",2,9,"zunehmend",3,7,"Zunehmend",7,"verbreitet, hier Anzahl der Fundorte 6, bei lupulina nur fünf, der aber als verbreitet eingestuft, Kommentar Tim: Anzahl Fundorte geht noch mit ein, wenn Thomas damit fertig ist. Ich würde dies ggf. im Text anmerken.","Gleichbleibend verbreitet bis sehr häufig"]
[3907,2181,"Apoda","limacodes","Eher in trockenen und warmen Waldstrukturen, an Waldränderun und Wegen",{"$nulls":6},1,null,null,1,1,{"$nulls":7},"Eiche und andere Laubbäume",1,{"$nulls":8},1,null,null,"Großer Asselspinner","Limacodidae (Schneckenspinner)","überall häufig",4,"Überall häufig",4,7,4,"häufig",4,60,"gleichbleibend",4,9,"Gleichbleibend verbreitet bis sehr häufig",9,null,"Gleichbleibend verbreitet bis sehr häufig"]
[3956,2004,"Adscita","statices","Nasse bis wechselfeuchte Wiesen im offenen und gebüschreichen Gelände oder im Wald, Böschungen, Däme, Weg- und Strraßenränder, Heiden, Moore, Magerrasen",{"$nulls":18},"Kleiner Sauer-Ampfer, Wiesen Sauer-Ampfer",null,null,1,{"$nulls":4},1,null,null,"1_4","1_3, 2_1, 4_2","Sauerampfer-Grünwidderchen","Zygaenidae (Widderchen)","Ueberall auf Waldwiesen…häufig",4,"Früher überall häufig",3,14,3,"verbreitet",3,20,"gleichbleibend",4,2,"Abnehmend",9,"wahrscheinlich erloschen, siehe w-album, kategorie 2, Kommentar Tim: o.k., sollten wir etwas zu schreiben","Gleichbleibend verbreitet bis sehr häufig"]
[3998,2014,"Zygaena","filipendulae","Euryöke Art, das bereiteste Lebensraumspektrum aller heimischen Widderchen, keine klare Biotopbevorzugung",1,1,1,1,1,1,1,{"$nulls":7},1,1,null,null,"Hornklee, Sumpfhornklee, Bunte Kronwicke, Wald-Platterbse",null,null,1,{"$nulls":5},1,null,"4_2","2_2, 4_3","Sechsfleck-Rotwidderchen","Zygaenidae (Widderchen)","Verbreitet, aber mehr einzeln",3,"Lokal und vereinzelt",2,137,4,"häufig",3,43,"schwankend",4,9,"Gleichbleibend verbreitet bis sehr häufig",9,null,"Gleichbleibend verbreitet bis sehr häufig"]
[6767,2101,"Euthrix","potatoria","Frische bis feuchte, grasreiche Wegränder, Offenland und Wald, feuchte, nicht überdüngte Fettwiesen, Dämme, Säume, eher nicht auf Magerrasen, Moore,",null,1,1,{"$nulls":6},1,1,null,null,1,{"$nulls":4},"Verschiedene Gräser",null,null,null,1,{"$nulls":4},1,null,"1_4",null,"Gras-Glucke","Lasiocampidae (Glucken)","Ueberall häufig ",4,"nicht selten",3,44,3,"verbreitet",3,40,"gleichbleibend",4,9,"Gleichbleibend verbreitet bis sehr häufig",9,null,"Gleichbleibend verbreitet bis sehr häufig"]
[6788,2120,"Aglia","tau","Rotbuchenwäder, Eichen- Hainbuchenwälder, gelegentlich auch im Siedlungsbereich",{"$nulls":9},1,1,{"$nulls":5},1,null,"Rotbuche, Weide, Birke und andere Laubbäume",1,{"$nulls":8},1,"3_3",null,"Nagelfleck","Saturniidae (Pfauenspinner)","Häufig",4,"Überall...meist einzeln",3,57,4,"häufig",3,60,"schwankend",4,9,"Gleichbleibend verbreitet bis sehr häufig",9,null,"Gleichbleibend verbreitet bis sehr häufig"]
[6794,2119,"Saturnia","pavonia","Heiden, Moore, Schlafluren, Dämme, Gärten, aufgelassene Weinberge",null,1,1,null,null,null,1,1,{"$nulls":5},1,1,null,1,null,"Weide, Hasel, Obstbäume, Erdbeere, Mädesüß u.a.",1,null,1,{"$nulls":6},1,"1_3, 2_1","3_4, 3_6","Nachtpfauenauge","Saturniidae (Pfauenspinner)","Häufig",4,"Verbreitet",3,4,2,"sehr selten",3,30,"abnehmend",2,3,"Abnehmend",3,"Sehr selten, da nur ein Fundort, o.k. als Kommentar einfügen","Gleichbleibend verbreitet bis sehr häufig"]
[6819,2125,"Mimas","tiliae","Auwälder, Laubmischwälder, Parks, Alleen, Gärten, Obstanlagen",{"$nulls":18},"Birke, Erle, Ulme, Obstbäume, Linde",1,{"$nulls":8},1,"4_8, 4_9",null,"Linden-Schwärmer","Sphingidae (Schwärmer)","Ueberall",4,"verbreitet, aber stets einzeln",3,3,1,"sehr selten",3,40,"abnehmend",2,3,"Abnehmend",3," ","Gleichbleibend verbreitet bis sehr häufig"]
[6824,2127,"Laothoe","populi","Kulturfolger, Parks,Gärten, Auwälder, Laubmischwälder, Steinbrüche, Kiesgruben",{"$nulls":8},1,1,1,null,null,null,1,1,1,null,"Pappel, Weide",1,{"$nulls":7},1,null,"4_8","3_4","Pappel-Schwärmer","Sphingidae (Schwärmer)","Häufig",4,"meist nicht selten",3,14,3,"verbreitet",3,50,"gleichbleibend",4,9,"Gleichbleibend verbreitet bis sehr häufig",9,"Führt falsches n zu fehlerhafter Einstufung? Kommentar Tim: Nein, egal ob 205 oder 25, das Tier wäre in der selben Kategorie, da nicht selten (wäre erst unter 15 Tieren der Fall","Gleichbleibend verbreitet bis sehr häufig"]
[6862,2136,"Deilephila","elpenor","Sowohl offene Landschaft als auch Wälder, Standorte von Weidenröschen",null,null,null,1,1,1,{"$nulls":7},1,1,1,null,null,"Weidenröschen, Springkraut, Labkraut",null,null,1,{"$nulls":5},1,null,"3_4",null,"Mittlerer Wein-Schwärmer","Sphingidae (Schwärmer)","Ueberall häufig",4,"Ueberall häufig ",4,33,3,"verbreitet",3,120,"gleichbleibend",4,9,"Gleichbleibend verbreitet bis sehr häufig",9,null,"Gleichbleibend verbreitet bis sehr häufig"]
[6919,1135,"Carterocephalus","palaemon","Auwald-Lichtungen, Moore, feuchte und nasse Waldränder, an Waldstrukturen gebunden, nicht im Offenland",null,1,{"$nulls":4},1,null,1,1,1,{"$nulls":7},"Gräser",null,null,null,1,{"$nulls":4},1,null,null,null,"Gelbwürfeliger Dickkopffalter","Hesperiidae (Dickkopffalter)","Einzeln in lichten Wäldern",2,"nicht selten",3,54,4,"häufig",3,24,"zunehmend",3,9,"Gleichbleibend verbreitet bis sehr häufig",7,null,"Gleichbleibend verbreitet bis sehr häufig"]
[6930,1139,"Ochlodes","venata","Wald und Wegränder am Rande von Staudenfluren, überall",{"$nulls":4},1,1,1,{"$nulls":6},1,1,null,null,null,"Gräser",null,null,null,1,{"$nulls":4},1,null,"4_1","3_1, 3_4, 3_8","Rostfarbiger Dickkopffalter","Hesperiidae (Dickkopffalter)","Ueberall häufig",4,"Überall sehr häufig",5,1,4,"häufig",4,70,"schwankend",4,9,"Gleichbleibend verbreitet bis sehr häufig",9,null,"Gleichbleibend verbreitet bis sehr häufig"]
[6960,1001,"Papilio","machaon","Dämme, Böschungen und Wegränder, Brachen, Rudralflächen, Heiden Moore, Gärten",null,1,1,null,1,{"$nulls":8},1,null,1,null,null,"Umbelliferen (Doldenblütler), insbesondere Möhre, Fenchel, Dill",null,null,1,{"$nulls":5},1,null,"2_2, 4_2, 4_3","4_9","Schwalbenschwanz","Papilionidae (Ritterfalter)","In einzelnen Jahren häufig",3,"verbreitet, meist einzeln",3,36,4,"häufig",4,40,"schwankend",4,9,"Gleichbleibend verbreitet bis sehr häufig",9,"eher schwankend, wir haben den Falter früher nicht gefunden, ist egal, da schwankend und gleichbleibend zusammen gefasst werden","Gleichbleibend verbreitet bis sehr häufig"]
[6973,1010,"Anthocharis","cardamines","Waldwiesen, Waldränder, Kahlschläge, Schneisen, waldnahe Bereiche, Heckenlandschaft, Wacholderheiden,Feuchtweisen, Dämme, Gräben, Bäche, Hohlwege, Steinbrüche",null,null,1,null,null,1,1,1,1,1,1,null,null,1,1,null,null,null,"Diverse Kreuzblütler",null,null,1,{"$nulls":5},1,null,"3_8, 4_3, 4_10","3_2, 4_8","Aurorafalter","Pieridae (Weißlinge)","Häufig",4,"verbreitet.",3,601,5,"sehr häufig",5,200,"schwankend",4,12,"Gleichbleibend verbreitet bis sehr häufig",12,null,"Gleichbleibend verbreitet bis sehr häufig"]
[6995,1006,"Pieris","brassicae","Offenlandbewohner, blumenreiche Dämme und Böschungen, Ruderalflächen, Gärten",{"$nulls":4},1,{"$nulls":8},1,null,1,1,null,"Kohl-Arten",null,null,1,{"$nulls":5},1,null,"3_8, 4_9","4_3","Großer Kohlweißling","Pieridae (Weißlinge)","Sehr gemein und schädlich",7,"Überall häufig",4,306,5,"sehr häufig",4,80,"schwankend",4,12,"Gleichbleibend verbreitet bis sehr häufig",12,"wieso schwankend?, entfällt.","Gleichbleibend verbreitet bis sehr häufig"]
[6998,1007,"Pieris","rapae","Offenlandbewohner, Brachen, Wegränder, Böschungen, Äcker, Gärten",null,null,null,1,1,{"$nulls":8},1,null,null,1,null,"Kohl-Arten, diverse Kreuzblütler",null,null,1,{"$nulls":5},1,null,"4_9","4_1, 4_2","Kleiner Kohlweißling","Pieridae (Weißlinge)","Sehr gemein und schädlich",7,"überall",4,495,5,"sehr häufig",7,600,"schwankend",4,12,"Gleichbleibend verbreitet bis sehr häufig",12,"wieso schwankend? Entfällt","Gleichbleibend verbreitet bis sehr häufig"]
[7000,1006,"Pieris","napi","Eher ein Waldrandbewohner, Auwälder, Laubmischwälder, Böschungen, Dämme",{"$nulls":5},1,1,1,1,{"$nulls":4},1,{"$nulls":4},"Kohl-Arten, diverse Kreuzblütler",null,null,1,{"$nulls":5},1,null,"3_8, 4_9","3_1, 4_3","Grünader-Weißling, Raps-Weißling","Pieridae (Weißlinge)","Sehr gemein und schädlich",7,"Unser häufigster und verbreitetster Tagfalter.",6,596,5,"sehr häufig",6,250,"gleichbleibend",4,10,"Gleichbleibend verbreitet bis sehr häufig",10,"wieso schwankend? Entfällt","Gleichbleibend verbreitet bis sehr häufig"]
[7021,1013,"Colias","hyale","Offenlandbewohner, Böschungen, Dämme, Ruderalflächen, Wiesen und Weiden, Brachen, Magerrasen",1,null,null,1,1,{"$nulls":8},1,null,1,null,null,"Klee-Arten",null,null,1,{"$nulls":5},1,null,"4_1","4_2","Goldene Acht","Pieridae (Weißlinge)","Häufig",4,"vereinzelt..., nicht heimisch...Binnen-Wanderfalter",2,23,3,"verbreitet",2,15,"schwankend",4,9,"Gleichbleibend verbreitet bis sehr häufig",9,null,"Gleichbleibend verbreitet bis sehr häufig"]
[7024,1011,"Gonepteryx","rhamni","Überall",{"$nulls":17},1,"Kreuzdorn, Faulbaum",null,null,1,{"$nulls":4},1,null,null,"3_8","3_1, 3_4","Zitronenfalter","Pieridae (Weißlinge)","Häufig",4,"verbreitet",3,691,6,"gemein",5,150,"schwankend",4,12,"Gleichbleibend verbreitet bis sehr häufig",12,null,"Gleichbleibend verbreitet bis sehr häufig"]
[7034,1095,"Lycaena","phlaeas","Überall  ",{"$nulls":17},1,"Kleiner Sauerampfer, Wiesen-Sauerampfer",null,null,1,{"$nulls":4},1,null,null,"4_2","4_1, 4_10","Kleiner Feuerfalter","Lycaenidae (Bläulinge)","Ueberall häufig",4,"Weit verbreitet",3,10,4,"häufig",4,120,"schwankend",4,9,"Gleichbleibend verbreitet bis sehr häufig",9,null,"Gleichbleibend verbreitet bis sehr häufig"]
[7049,1089,"Neozephyrus","quercus","Eichenwaldränder, einzeln stehende Eichen mit tiefhängenden Ästen",{"$nulls":6},1,null,null,1,{"$nulls":8},"Eiche",1,{"$nulls":6},1,null,null,"3_5","4_8","Blauer Eichen-Zipfelfalter","Lycaenidae (Bläulinge)","Verbreitet und häufig",4,"verbreitet und jahrweise nicht selten",3,61,4,"häufig",3,27,"schwankend",4,9,"Gleichbleibend verbreitet bis sehr häufig",9,null,"Gleichbleibend verbreitet bis sehr häufig"]
[7097,1122,"Celastrina","argiolus","Waldränder, Heiden und Moore, Wiesen mit Gebüschen, feuchte Standorte mit Blutweiderich, Gärten, Parks",null,1,1,1,1,1,1,{"$nulls":9},1,null,"Hopfen, Brombeere, Mädesüß, Weißer Steinklee, Faulbaum, Blutweiderich, Efeu, Heidekraut, iguster, an den Blütenknospen",1,null,1,{"$nulls":6},1,"4_7, 4_10","1_3, 3_1, 3_4, 3_8","Faulbaum-Bläuling","Lycaenidae (Bläulinge)","Nicht selten",3,"Überall verbreitet, aber immer nur einzeln",3,2,4,"häufig",4,100,"schwankend",4,9,"Gleichbleibend verbreitet bis sehr häufig",9,null,"Gleichbleibend verbreitet bis sehr häufig"]
[7163,1108,"Polyommatus","icarus","Offenland, überall",1,1,1,1,1,1,{"$nulls":7},1,null,1,null,null,"Klee-Arten",null,null,1,{"$nulls":5},1,null,"4_2, 4_3","2_2","Hauhechel-Bläuling","Lycaenidae (Bläulinge)","Ueberall häufig",4,"überall...Meist häufig...in manchen Jahren aber auch spärlich",4,705,6,"gemein",6,300,"zunehmend",3,9,"Gleichbleibend verbreitet bis sehr häufig",11,null,"Gleichbleibend verbreitet bis sehr häufig"]
[7248,1051,"Inachis","io","Überall, weniger in höheren Lagen ",{"$nulls":17},1,"Große Brennnessel, Brennnessel",null,null,1,{"$nulls":4},1,null,null,"3_8, 4_10","4_2","Tagpfauenauge","Nymphalidae (Edelfalter)","Ueberall gemein",6,"Nicht selten bis häufig",4,957,7,"sehr gemein",6,300,"schwankend",4,12,"Gleichbleibend verbreitet bis sehr häufig",12,null,"Gleichbleibend verbreitet bis sehr häufig"]
[7250,1052,"Aglais","urticae","Überall, besoders häufig in mittleren und höheren Gebirgslagen, währen I. Io eher in der Ebene zu finden ist",{"$nulls":17},1,"Große Brennnessel, Brennnessel",null,null,1,{"$nulls":4},1,null,null,"4_2, 4_10","4_1, 4_3","Kleiner Fuchs","Nymphalidae (Edelfalter)","Ueberall gemein",6,"Einer der häufigsten Tagfalter.",5,503,7,"sehr gemein",5,250,"schwankend",4,12,"Gleichbleibend verbreitet bis sehr häufig",12,null,"Gleichbleibend verbreitet bis sehr häufig"]
[7252,1056,"Polygonia","c-album","Halbtrockne bis feuchte Wälder und Waldränder, gebüschreiches Gelände, Gärten, Streuobstwiesen (an aufgeplatzten Früchten saugend)",{"$nulls":5},1,1,null,null,1,null,null,1,{"$nulls":5},"Weide, Ulme, Hopfen, Große Brennnessel, Stachebeere, Johannisbeere",1,null,1,{"$nulls":6},1,"3_8, 4_7, 4_9","3_1","C-Falter","Nymphalidae (Edelfalter)","nicht häufig",3,"Überall..., aber immer nur einzeln",3,131,4,"häufig",4,120,"schwankend",4,9,"Gleichbleibend verbreitet bis sehr häufig",9,null,"Gleichbleibend verbreitet bis sehr häufig"]
[7299,1044,"Apatura","iris","Laubholzreiche Wälder des Hügellandes, halbschattige, feuchte Standorte",{"$nulls":9},1,{"$nulls":8},"Pappel, Weide",1,{"$nulls":7},1,null,"3_8","3_1","Großer Schillerfalter","Nymphalidae (Edelfalter)","als Raupe…nicht selten…und doch sieht man den Falter nur selten fliegen",3,"Lokal",3,14,3,"verbreitet",3,28,"gleichbleibend",4,9,"Gleichbleibend verbreitet bis sehr häufig",9,null,"Gleichbleibend verbreitet bis sehr häufig"]
[7307,1030,"Pararge","aegeria","Auenwälder, Laubmischwälder, Lichtungen, Kahlschläge, starke Waldbindung",{"$nulls":6},1,null,1,1,1,{"$nulls":7},"Gräser",null,null,null,1,{"$nulls":4},1,null,"3_3, 3_4, 3_5, 3_8",null,"Waldbrettspiel","Nymphalidae (Edelfalter)","nicht selten",3,"Im Bergland in den letzten 10 Jahren [d. h. 1960-1970, Anm. d. Autoren] recht selten geworden",2,511,5,"sehr häufig",5,250,"schwankend",4,12,{"$f":"IF(AX421=1,\"Einzelfund\",IF(OR(AX421=2,AX421=3),\"Abnehmend\",IF(OR(AX421=4,AX421=7,AX421=8,AX421=11),\"Zunehmend\",IF(AX421=5,\"Gleichbleibend selten\",IF(OR(AX421=6,AX421=9,AX421=10,AX421=12),\"Gleichbleibend verbreitet bis sehr häufig\",\"nicht bewertet\")))))","v":"Gleichbleibend verbreitet bis sehr häufig"},12,null,"Gleichbleibend verbreitet bis sehr häufig"]
[7344,1035,"Aphantopus","hyperantus","Überall, aber eher auf feuchteren Stabndorten als M. Jurtina",{"$nulls":17},1,"Gräser",null,null,null,1,{"$nulls":4},1,null,"4_1","3_1, 3_8, 4_2, 4_3","Schornsteinfeger, Brauner Waldvogel","Nymphalidae (Edelfalter)","Ueberall häufig",4,"Überall",4,620,5,"sehr häufig",4,150,"gleichbleibend",4,12,"Gleichbleibend verbreitet bis sehr häufig",12,null,"Gleichbleibend verbreitet bis sehr häufig"]
[7350,1037,"Maniola","jurtina","Überall,  aber eher auf trockeneren Stabndorten als A. Hyperantus",{"$nulls":17},1,"Gräser",null,null,null,1,{"$nulls":4},1,null,"4_2","2_2, 4_1, 4_3","Großes Ochsenauge","Nymphalidae (Edelfalter)","Ueberall häufig",4,"verbreitet",3,405,7,"sehr gemein",4,150,"schwankend",4,12,"Gleichbleibend verbreitet bis sehr häufig",12,null,"Gleichbleibend verbreitet bis sehr häufig"]
[7481,2172,"Thyatira","batis","Laub- Misch und Nadelwälder, an Waldwegen, Himbeerfluren, feuchte Wiesentäler, Hecken und Gärten",null,1,null,1,1,null,1,null,null,1,1,1,{"$nulls":6},"Brombeere, Himbeere",null,null,1,{"$nulls":5},1,null,null,null,"Rosen-Eulenspinner","Thyatiridae (Eulenspinner)","Nicht selten",3,"Im ganzen Gebiet",4,5,4,"häufig",4,120,"gleichbleibend",4,9,"Gleichbleibend verbreitet bis sehr häufig",9,null,"Gleichbleibend verbreitet bis sehr häufig"]
[7483,2171,"Habrosyne","pyritoides","Keine hohen Standortansprüche, mesophile Saum- und Gebüschgesellschaften, Waldränder, Lichtungen, Gärten, Heckenlandschaft, sonnige Böschungen",{"$nulls":17},1,"Himbeere, Brombeere",null,null,1,{"$nulls":5},1,null,null,null,"Achat-Eulenspinner","Thyatiridae (Eulenspinner)","Meistens selten",2,"Überall",4,59,4,"häufig",4,60,"zunehmend",3,7,"Zunehmend",7,null,"Gleichbleibend verbreitet bis sehr häufig"]
[7486,2175,"Tethea","or","Feuchte bis mesophile Säume und Gebüsche, Waldwege, Waldränder",{"$nulls":5},1,1,{"$nulls":6},1,{"$nulls":4},"Zitter-Pappel, Pappel ",1,{"$nulls":6},1,{"$nulls":4},"Pappel-Eulenspinner","Thyatiridae (Eulenspinner)","Häufig",4,"verbreitet und ...häufig.",4,21,3,"verbreitet",3,27,"gleichbleibend",4,9,"Gleichbleibend verbreitet bis sehr häufig",9,null,"Gleichbleibend verbreitet bis sehr häufig"]
[7488,2173,"Tetheella","fluctuosa","Birkenreiche Wälder, lichte Birkenbestände",{"$nulls":9},1,{"$nulls":8},"Birke ",1,{"$nulls":6},1,null,null,"3_4","3_1","Birken-Eulenspinner","Thyatiridae (Eulenspinner)","Meist einzeln",2,"verbreitet",3,26,3,"verbreitet",3,27,"gleichbleibend",4,9,"Gleichbleibend verbreitet bis sehr häufig",9,null,"Gleichbleibend verbreitet bis sehr häufig"]
[7490,2174,"Ochropacha","duplaris","Feuchte Laubwälder, Täler, lichte Erlengebüschfluren",{"$nulls":8},1,1,{"$nulls":8},"Erle, Pappel",1,{"$nulls":7},1,null,"3_1",null,"Zweipunkt-Eulenspinner","Thyatiridae (Eulenspinner)","nicht häufig",3,"Überall",4,102,4,"häufig",3,20,"gleichbleibend",4,9,"Gleichbleibend verbreitet bis sehr häufig",9,null,"Gleichbleibend verbreitet bis sehr häufig"]
[7492,2177,"Cymatophorina","diluta","Eichenreiche Laubmischwälder, Eichen-Ulmen-Auwälder, Eichen-Hainbuchenwälder",{"$nulls":18},"Eiche",1,{"$nulls":6},1,null,null,"3_5",null,"Violettgrauer Eulenspinner","Thyatiridae (Eulenspinner)","Sehr häufig",5,"verbreitet",3,46,3,"verbreitet",3,35,"abnehmend",2,6,"Gleichbleibend verbreitet bis sehr häufig",6," ","Gleichbleibend verbreitet bis sehr häufig"]
[7498,2178,"Achyla","flavicornis","Überall in Wäldern mit Birken",{"$nulls":5},1,1,1,null,1,1,{"$nulls":7},"Birke ",1,{"$nulls":6},1,{"$nulls":4},"Frühester Eulenspinner","Thyatiridae (Eulenspinner)","überall häufig",4,"verbreitet und häufig",4,6,3,"verbreitet",3,40,"abnehmend",2,2,"Abnehmend",2,"abnehmend","Gleichbleibend verbreitet bis sehr häufig"]
[7503,2116,"Watsonalla","binaria","Warme Eichenwälder, besonnte Waldsäume mit Eichen",{"$nulls":6},1,null,null,1,1,{"$nulls":7},"Eiche",1,{"$nulls":6},1,null,null,"3_5","3_6","Eichen-Sichelflügler","Drepanidae (Sichelflügler)","Verbreitet",3,"verbreitet und häufig",4,77,4,"häufig",4,60,"gleichbleibend",4,9,"Gleichbleibend verbreitet bis sehr häufig",9,null,"Gleichbleibend verbreitet bis sehr häufig"]
[7505,2117,"Watsonalla","cultraria","Buchenwälder",{"$nulls":9},1,{"$nulls":8},"Rotbuche ",1,{"$nulls":6},1,null,null,"3_3",null,"Buchen-Sichelflügler","Drepanidae (Sichelflügler)","Verbreitet und häufig",4,"meist nicht selten",3,7,4,"häufig",4,100,"schwankend",4,9,"Gleichbleibend verbreitet bis sehr häufig",9,null,"Gleichbleibend verbreitet bis sehr häufig"]
[7508,2112,"Drepana","falcataria","Wälder, Waldrandbereiche mit Birken und Erlen, Jungholz scheint bevorzugt zu werden",{"$nulls":6},1,1,{"$nulls":10},"Erle, Birke",1,{"$nulls":7},1,null,null,null,"Gemeiner Sichelflügler, Birkensichelflügler","Drepanidae (Sichelflügler)","Häufig",4,"überall",4,90,4,"häufig",4,80,"gleichbleibend",4,9,"Gleichbleibend verbreitet bis sehr häufig",9,null,"Gleichbleibend verbreitet bis sehr häufig"]
[7517,4001,"Archiearis","parthenias","Birkenbestände mit Weiden als Nektarquelle, anthropogen geprägte Stellen",{"$nulls":5},1,1,{"$nulls":6},1,1,1,1,null,"Birke ",1,{"$nulls":6},1,{"$nulls":4},"Birken-Junfernkind","Geometridae (Spanner)","nicht selten",3,"vereinzelt",2,90,4,"häufig",3,30,"schwankend",4,9,"Gleichbleibend verbreitet bis sehr häufig",9,null,"Gleichbleibend verbreitet bis sehr häufig"]
[7527,4283,"Lomaspilis","marginata","Überall weit verbreitet, zusammen mit Weide und Pappel",{"$nulls":17},1,"Pappel, Weide",1,{"$nulls":7},1,null,null,null,"Scwarzrand-Harlekin","Geometridae (Spanner)","Ueberall häufig",4,"Überall verbreitet und häufig",4,106,4,"häufig",4,150,"gleichbleibend",4,9,"Gleichbleibend verbreitet bis sehr häufig",9,null,"Gleichbleibend verbreitet bis sehr häufig"]
[7530,4284,"Ligdia","adustata","Überall, wo Pfaffenhütchen wächst: Gärten, Waldränder, Gebüsche",{"$nulls":5},1,1,{"$nulls":9},1,null,"Gewöhnliches Pfaffenhütchen",1,{"$nulls":6},1,{"$nulls":4},"Pfaffenhütchen-Harlekinr","Geometridae (Spanner)","Verbreitet, doch nicht häufig",3,"verbreitet ",3,64,4,"häufig",4,70,"gleichbleibend",4,9,"Gleichbleibend verbreitet bis sehr häufig",9,null,"Gleichbleibend verbreitet bis sehr häufig"]
[7539,4323,"Macaria","notata","Überall an Gebüschen und Laubwäldern, Birkenschläge",{"$nulls":5},1,1,null,null,1,{"$nulls":8},"Weide, Birke, Schlehe ",1,{"$nulls":8},1,null,null,"Gelbbrauner Eckflügelspanner","Geometridae (Spanner)","Ueberall häufig",4,"verbreitet...und häufig",4,33,4,"häufig",4,100,"gleichbleibend",4,9,"Gleichbleibend verbreitet bis sehr häufig",9,null,"Gleichbleibend verbreitet bis sehr häufig"]
[7540,4324,"Macaria","alternata","Wälder, Hecken, Gebüsche, Bachtäler, Weinberge, Moore und Heiden",null,1,1,null,null,1,1,1,1,1,1,{"$nulls":7},"Laubbäume",1,{"$nulls":8},1,null,null,"Dunlelgrauer Eckflügelspanner","Geometridae (Spanner)","Einzeln",2,"verbreitet und ziemlich häufig",3,76,4,"häufig",4,80,"zunehmend",3,7,"Zunehmend",7,null,"Gleichbleibend verbreitet bis sehr häufig"]
[7542,4326,"Macaria","liturata","Keine besonderen Anforderungen an den Lebensraum, Nadelwald",{"$nulls":17},1,"Tanne, Fichte, Kiefer",null,1,{"$nulls":6},1,null,null,null,"Violettgrauer Eckflügelspanner","Geometridae (Spanner)","Nicht häufig ",3,"verbreitet und ziemlich häufig",3,13,4,"häufig",4,100,"gleichbleibend",4,9,"Gleichbleibend verbreitet bis sehr häufig",9,null,"Gleichbleibend verbreitet bis sehr häufig"]
[7547,4327,"Chiasmia","clathrata","Extensiv genutzte Wiesen, Kleefelder, Ödland",null,null,null,1,1,{"$nulls":10},1,null,null,"Ginster, Luzerne, Vogel-Wicke, Labkraut",1,null,1,{"$nulls":6},1,"4_2",null,"Klee-Gitterspanner","Geometridae (Spanner)","[Elberfeld] einmal, Ronsdorf , selten",2,"überall",4,92,4,"häufig",4,50,"zunehmend",3,7,"Zunehmend",7,null,"Gleichbleibend verbreitet bis sehr häufig"]
[7561,4333,"Isturgia","limbaria","Ginsterheiden, Waldränder mit Ginster, Sandböden, Bahndämme, Sukzessionsflächen",null,null,1,null,1,null,1,{"$nulls":6},1,1,1,null,null,"Besenginster",1,{"$nulls":6},1,null,null,"2_1","4_2","Schwarzgesäumter Besenginsterspanner","Geometridae (Spanner)","Wo viel Sarothamnus, die Nahrung der Raupe, wächst, ist der Falter auch nicht selten",3,"verbreitet",3,5,3,"verbreitet",3,26,"gleichbleibend",4,9,"Gleichbleibend verbreitet bis sehr häufig",9,null,"Gleichbleibend verbreitet bis sehr häufig"]
[7594,4319,"Cepphis","advenaria","In Wäldern mit Heidelbeeren",{"$nulls":9},1,1,1,{"$nulls":6},"Heidelbeere ",null,null,1,{"$nulls":4},1,{"$nulls":4},"Zackensaum-Heidelbeerspanner","Geometridae (Spanner)","Ueberall häufig",4,"früher wohl häufig bis sehr häufig...Heute nur noch gelegentlich und lokal",2,7,3,"verbreitet",3,20,"schwankend",4,9,"Gleichbleibend verbreitet bis sehr häufig",9,null,"Gleichbleibend verbreitet bis sehr häufig"]
[7596,4320,"Petrophora","chlorosata","In den meisten Waldgesellschaften, nicht auf Kalk",{"$nulls":8},1,1,1,{"$nulls":7},"Adlerfarn ",null,null,1,{"$nulls":4},1,{"$nulls":4},"Adlerfarnspanner","Geometridae (Spanner)","Verbreitet und stellenweise nicht selten",3,"Weit verbreitet",3,69,4,"häufig",4,60,"gleichbleibend",4,9,"Gleichbleibend verbreitet bis sehr häufig",9,null,"Gleichbleibend verbreitet bis sehr häufig"]
[7613,4316,"Opisthograptis","luteolata","Gebüsch und Saumgesellschaften, Brachen, Gärten",{"$nulls":18},"Laubbäume",1,{"$nulls":8},1,null,null,"Gelbspanner","Geometridae (Spanner)","Ueberall gemein ",6,"einer der häufigsten",5,191,4,"häufig",4,80,"abnehmend",2,6,"Gleichbleibend verbreitet bis sehr häufig",6," ","Gleichbleibend verbreitet bis sehr häufig"]
[7620,4322,"Pseudopanthera","macularia","Lichtungen und Schneisen in Laubmischwäldern, Moore, Sandboden, Bahndämme, Böschungen",{"$nulls":18},"Wiesen-Salbei, Taubnessel",null,null,1,{"$nulls":5},1,null,null,null,"Pantherspanner","Geometridae (Spanner)","Ueberall häufig",4,"starker Rückgang zu beobachten",2,114,4,"häufig",4,80,"schwankend",4,9,"Gleichbleibend verbreitet bis sehr häufig",9,null,"Gleichbleibend verbreitet bis sehr häufig"]
[7641,4304,"Selenia","dentaria","Fast alle Laubwälder, nahezu überall",{"$nulls":6},1,null,1,1,{"$nulls":8},"Weide, Bhainbuche, Eiche, Eberesche, Hasel, Hartriegel u.a.",1,{"$nulls":8},1,null,null,"Doppelmondspanner","Geometridae (Spanner)","Nicht selten",3,"überall verbreitet",3,16,3,"verbreitet",4,65,"gleichbleibend",4,9,"Gleichbleibend verbreitet bis sehr häufig",9,null,"Gleichbleibend verbreitet bis sehr häufig"]
[7643,4306,"Selenia","tetralunaria","In einer Vielzahl von laubholzreichen Lebensräumen",{"$nulls":6},1,null,1,1,1,{"$nulls":7},"Weide, Eiche, Schlehe, Esche",1,{"$nulls":8},1,null,null,"Mondfleckspanner","Geometridae (Spanner)","Selten",2,"überall ",4,26,3,"verbreitet",4,60,"schwankend",4,9,"Gleichbleibend verbreitet bis sehr häufig",9,null,"Gleichbleibend verbreitet bis sehr häufig"]
[7659,4314,"Ourapteryx","sambucaria","Oft in Gärten und in der Stadt, Parks, Steinbrüche, Brachen",{"$nulls":4},1,{"$nulls":8},1,1,1,1,null,"Efeu, Waldrebe, Hunds-Rose, Rote Heckenkirsche, Flieder, Holunder",1,{"$nulls":8},1,null,null,"Nachtschwalbenschwanz","Geometridae (Spanner)","Verbreitet, doch meist selten",2,"weitverbreitet und stellenweise häufig",3,5,3,"verbreitet",3,40,"gleichbleibend",4,9,"Gleichbleibend verbreitet bis sehr häufig",9,null,"Gleichbleibend verbreitet bis sehr häufig"]
[7663,4310,"Colotois","pennaria","Gesamte Skala von trockenen bis feuchten Laubmischwäldern, wenig spezialisiert",{"$nulls":9},1,1,{"$nulls":7},"Laubbäume",1,{"$nulls":8},1,null,null,"Federspanner","Geometridae (Spanner)","Ueberall häufig",4,"verbreitet und überall häufig ",4,61,4,"häufig",4,80,"gleichbleibend",4,9,"Gleichbleibend verbreitet bis sehr häufig",9,null,"Gleichbleibend verbreitet bis sehr häufig"]
[7672,4344,"Apocheima","pilosaria","Laubwald, Kulturland, Siedlungsraum",null,null,null,1,1,1,null,null,null,1,null,null,null,1,1,1,1,null,"Laubbäume",1,{"$nulls":8},1,null,null,"Schneespanner","Geometridae (Spanner)","Ueberall nicht selten ",3,"Überall verbreitet und häufig",4,45,3,"verbreitet",3,60,"schwankend",4,9,"Gleichbleibend verbreitet bis sehr häufig",9,null,"Gleichbleibend verbreitet bis sehr häufig"]
[7685,4349,"Biston","strataria","Typischer Laubholzbewohner, alle Lebensräume dieser Art",{"$nulls":6},1,null,1,1,1,{"$nulls":7},"Laubbäume",1,{"$nulls":8},1,null,null,"Pappel-Dickleibspanner","Geometridae (Spanner)","Verbreitet aber nicht häufig",3,"Überall, oft häufig",4,29,3,"verbreitet",4,80,"schwankend",4,9,"Gleichbleibend verbreitet bis sehr häufig",9,null,"Gleichbleibend verbreitet bis sehr häufig"]
[7686,4350,"Biston","betularia","Typischer Laubholzbewohner, alle Lebensräume dieser Art",{"$nulls":6},1,null,1,1,1,{"$nulls":7},"Laubbäume",1,{"$nulls":8},1,null,null,"Birkenspanner","Geometridae (Spanner)","Häufig",4,"verbreitet und häufig",4,99,4,"häufig",4,80,"gleichbleibend",4,9,"Gleichbleibend verbreitet bis sehr häufig",9,null,"Gleichbleibend verbreitet bis sehr häufig"]
[7693,4340,"Agriopis","leucophaearia","Leitart des Eichenniederwaldes, Eichen-Hainbuchenwald",{"$nulls":7},1,null,1,{"$nulls":8},"Weide, Eiche, Hunds-Rose",1,{"$nulls":8},1,"3_5",null,"Weissrauer Breiflügelspanner","Geometridae (Spanner)","Ueberall",4,"verbreitet und häufig",4,44,3,"verbreitet",4,60,"gleichbleibend",4,9,"Gleichbleibend verbreitet bis sehr häufig",9,null,"Gleichbleibend verbreitet bis sehr häufig"]
[7695,4341,"Agriopis","aurantiaria","Wälder, Hecken, Gebüsche, Gärten, Parks",{"$nulls":5},1,1,1,1,1,1,{"$nulls":5},1,null,"Laubbäume",1,{"$nulls":8},1,null,null,"Orangegelber Breitflügelspanner","Geometridae (Spanner)","Selten",2,"weit verbreitet und häufig ",4,69,4,"häufig",4,60,"zunehmend",3,7,"Zunehmend",7,null,"Gleichbleibend verbreitet bis sehr häufig"]
[7696,4342,"Agriopis","marginaria","Überall",{"$nulls":17},1,"Laubbäume",1,{"$nulls":8},1,null,null,"Graugelber Breitflügelspanner","Geometridae (Spanner)","Ueberall häufig",4,"verbreitet und überall häufig",4,243,5,"sehr häufig",4,100,"gleichbleibend",4,12,"Gleichbleibend verbreitet bis sehr häufig",12,null,"Gleichbleibend verbreitet bis sehr häufig"]
[7699,4343,"Erannis","defoliaria","Überall ",{"$nulls":17},1,"Laubbäume und -gehölze",1,{"$nulls":8},1,null,null,"Grosser Frostspanner","Geometridae (Spanner)","häufig ",4,"verbreitet und häufig. In manchen Jahren massenhaft und zuweilen schädlich",5,433,5,"sehr häufig",4,80,"gleichbleibend",4,12,"Gleichbleibend verbreitet bis sehr häufig",12,null,"Gleichbleibend verbreitet bis sehr häufig"]
[7754,4355,"Peribatodes","rhomboidaria","Überall ",{"$nulls":17},1,"Laubbäume, Gehölze, krautige Pflanzen",1,null,1,{"$nulls":6},1,null,null,"Zweifleckiger Baumspanner","Geometridae (Spanner)","Selten",2,"Überall verbreitet",3,56,4,"häufig",4,50,"zunehmend",3,7,"Zunehmend",7,null,"Gleichbleibend verbreitet bis sehr häufig"]
[7777,4359,"Alcis","repandata","Überall   ",{"$nulls":17},1,"Diverse Laubbäume und Sträucher",1,{"$nulls":8},1,"3_7",null,"Wellenlinien-Rindenspanner","Geometridae (Spanner)","Verbreitet aber nicht häufig",3,"Überall und häufig",4,64,4,"häufig",3,50,"gleichbleibend",4,9,"Gleichbleibend verbreitet bis sehr häufig",9,null,"Gleichbleibend verbreitet bis sehr häufig"]
[7784,4365,"Hypomecis","punctinalis","Eine fast überall präsente Art",{"$nulls":17},1,"Weide, Hainbuche, diverse Sträucher",1,{"$nulls":8},1,null,null,"Aschgrauer rindenspanner","Geometridae (Spanner)","Verbreitet und häufig",4,"Überall verbreitet und häufig",4,11,3,"verbreitet",3,50,"gleichbleibend",4,9,"Gleichbleibend verbreitet bis sehr häufig",9,null,"Gleichbleibend verbreitet bis sehr häufig"]
[7796,4367,"Ectropis","crepuscularia","In sehr vielen Lebensräumen",{"$nulls":17},1,"Diverse Laubbäume und Sträucher",1,{"$nulls":8},1,null,null,"Pflaumenspanner","Geometridae (Spanner)","Ueberall häufig",4,"überall und häufig",4,171,4,"häufig",5,100,"gleichbleibend",4,9,"Gleichbleibend verbreitet bis sehr häufig",9,null,"Gleichbleibend verbreitet bis sehr häufig"]
[7800,4370,"Parectropis","similaria","Frische bis feuchte Laubwälder, Auwälder, Bruchwälder, aber auch außerhalb von Wäldern: Fettwiesen, Gärten",null,null,null,1,{"$nulls":4},1,1,{"$nulls":6},1,null,"Hasel, Birke, Erle, Buche, Eiche, Ahorn",1,{"$nulls":8},1,null,null,"Weissfleck-Rindenspanner","Geometridae (Spanner)","Verbreitet und nicht selten",3,"In Laub- und Mischwäldern an warmen Plätzen",2,10,3,"verbreitet",3,26,"schwankend",4,9,"Gleichbleibend verbreitet bis sehr häufig",9,null,"Gleichbleibend verbreitet bis sehr häufig"]
[7824,4291,"Cabera","pusaria","Auwälder, Weichholzbestand, Bruchwälder, Moore, Wegränder, Siedlungen und Stadtgebiet",null,1,{"$nulls":6},1,{"$nulls":4},1,null,null,1,null,"Weide, Birke, Hainbuche, Erle, Traubenkirsche",1,{"$nulls":8},1,null,null,"Linienspanner","Geometridae (Spanner)","Ueberall häufig ",4,"Überall verbreitet und sehr häufig",5,92,4,"häufig",4,50,"schwankend",4,9,"Gleichbleibend verbreitet bis sehr häufig",9,null,"Gleichbleibend verbreitet bis sehr häufig"]
[7826,4292,"Cabera","exanthemata","Auwälder, Weichholzbestand, Bruchwälder, Moore, Wegränder, Siedlungen und Stadtgebiet",null,1,{"$nulls":6},1,{"$nulls":4},1,null,null,1,null,"Weide, Birke, Hainbuche, Erle, Traubenkirsche",1,{"$nulls":8},1,null,null,"Braunstirn-Weißspanner","Geometridae (Spanner)","Ueberall nicht selten",3,"Überall...verbreitet und häufig, aber deutlich seltener als die ähnliche C. pusaria ",4,0,4,"häufig",4,60,"gleichbleibend",4,9,"Gleichbleibend verbreitet bis sehr häufig",9,null,"Gleichbleibend verbreitet bis sehr häufig"]
[7829,4290,"Lomographa","temerata","Im gesamten Spektrum von Laub- und Mischwäldern, in Gärten und Siedlungen",{"$nulls":6},1,null,1,1,1,{"$nulls":5},1,null,"Eiche, Schlehe",1,{"$nulls":7},1,null,null,null,"Schattenbindiger Weissspanner","Geometridae (Spanner)","Ebenso [=Einzeln und selten]",2,"Überall verbreitet und nicht selten",3,46,3,"verbreitet",4,60,"gleichbleibend",4,9,"Gleichbleibend verbreitet bis sehr häufig",9,"zunehmend, da bei Weymer selten. Kommentar Tim: ich habe die Bewertung so vorgenommen, dass die Angaben bei Weymer weniger stark ins Gewicht fallen was die Tendenzen angeht.","Gleichbleibend verbreitet bis sehr häufig"]
[7836,4297,"Campaea","margaritata","Überall, Verschiedenbiotopbewohner",{"$nulls":17},1,"Weide, Hainbuche, Erle, Rotbuche, Apflebaum, Esche, Wilder Wein",1,{"$nulls":8},1,null,null,"Perlglanzspanner","Geometridae (Spanner)","Ueberall … nicht häufig",3,"weit verbreitet und häufig ",4,165,4,"häufig",4,50,"gleichbleibend",4,9,"Gleichbleibend verbreitet bis sehr häufig",9,null,"Gleichbleibend verbreitet bis sehr häufig"]
[7953,4003,"Alsophila","aescularia","Laubholzreiche Waldränder, Binnensäume in Wäldern, Gebüsche, auch in der Kulturlandschaft, in Siedlungen",{"$nulls":5},1,1,{"$nulls":9},1,{"$nulls":14},"Kreuzflügel","Geometridae (Spanner)","Ueberall nicht selten",3,"verbreitet und häufig",4,36,4,"häufig",4,100,"gleichbleibend",4,9,"Gleichbleibend verbreitet bis sehr häufig",9,null,"Gleichbleibend verbreitet bis sehr häufig"]
[7969,4009,"Geometra","papilionaria","Alle Waldtypen, Waldränder, Lichtungen, Schneisen, birkenreiche Vorwaldstadien, Siedlungen, Gärten, Parks",{"$nulls":5},1,1,1,1,1,1,{"$nulls":5},1,null,"Laubbäume",1,{"$nulls":8},1,null,null,"Grünes Blatt","Geometridae (Spanner)","Nicht häufig  ",3,"Überall verbreitet   ",3,3,2,"selten",3,32,"gleichbleibend",4,5,"Gleichbleibend selten",5,"vergleiche 7980, warum unterschiedliche Bewertung? Kommentar Tim: In der Endauswertung egal, da schwankend un gleichbleibend zusammen gefasst werden.","Gleichbleibend verbreitet bis sehr häufig"]
[7980,4011,"Hemithea","aestivaria","Verschiedene Waldtypen, Gebüschreiches Offenland, Gärten, Obstwiesen",null,null,null,1,null,1,1,1,1,1,1,{"$nulls":5},1,null,"Laubbäume",1,{"$nulls":8},1,null,null,"Gebüsch-Grünspanner","Geometridae (Spanner)","Nicht häufig   ",3,"überall   ",4,1,2,"selten",3,40,"schwankend",4,5,"Gleichbleibend selten",5," ","Gleichbleibend verbreitet bis sehr häufig"]
[8016,4022,"Cyclophora","albipunctata","Birkenreiche Laubwälder, Moore, Gärten, Siedlungsbereich",null,1,{"$nulls":4},1,1,1,1,1,{"$nulls":5},1,null,"Birke ",1,{"$nulls":6},1,{"$nulls":4},"Birken-Gürtelpuppenspanner","Geometridae (Spanner)","Ueberall gemein ",6,"Überall",4,30,3,"verbreitet",3,25,"abnehmend",2,6,"Gleichbleibend verbreitet bis sehr häufig",6," ","Gleichbleibend verbreitet bis sehr häufig"]
[8022,4029,"Cyclophora","punctaria","Eichenreiche Laub- und Mischwälder, niedriger Buschbewuchs am Wadrand, Waldwege, Auwälder, Sand- und Kiesböden, Buchenwälder, am wenigesten spezialisierte Art der Gruppe",{"$nulls":6},1,1,1,1,{"$nulls":8},"Eiche",1,{"$nulls":6},1,{"$nulls":4},"Gepunkteter Eichen-Gürtelpuppenspanner","Geometridae (Spanner)","Ueberall häufig",4,"Überall häufig",4,33,3,"verbreitet",3,40,"gleichbleibend",4,9,"Gleichbleibend verbreitet bis sehr häufig",9,null,"Gleichbleibend verbreitet bis sehr häufig"]
[8024,4030,"Cyclophora","linearia","In allen Laubwaldtypen mit Eichen und Buchen",{"$nulls":9},1,1,{"$nulls":7},"Rotbuche ",1,{"$nulls":6},1,null,null,"3_3",null,"Gelber Buchenspanner","Geometridae (Spanner)","Verbreitet und nicht selten",3,"nicht selten, aber weniger häufig als C. punctaria L. ",3,47,3,"verbreitet",4,70,"gleichbleibend",4,9,"Gleichbleibend verbreitet bis sehr häufig",9,null,"Gleichbleibend verbreitet bis sehr häufig"]
[8028,4021,"Timandra","comae","Überall auf feuchten bis trockenen Wiesen und Weiden",null,null,null,1,1,1,{"$nulls":12},"Ampfer und Knöterich",null,null,1,{"$nulls":5},1,null,null,null,"Ampferspanner","Geometridae (Spanner)","Ueberall häufig ",4,"verbreitet und nicht selten ",3,20,3,"verbreitet",4,45,"gleichbleibend",4,9,"Gleichbleibend verbreitet bis sehr häufig",9,null,"Gleichbleibend verbreitet bis sehr häufig"]
[8132,4064,"Idaea","biselata","Eine Art ohne spezielle Lebensraumbindung, im Offenland wie im Wald, „Verschiedenbiotopbewohner“",{"$nulls":17},1,"Welke Pflanzen und Blätter",{"$nulls":6},1,null,null,1,null,null,"Breitgesäumter Zwergspanner","Geometridae (Spanner)","Ueberall häufig",4,"Verbreitet und überall ",4,29,4,"häufig",4,80,"gleichbleibend",4,9,"Gleichbleibend verbreitet bis sehr häufig",9,null,"Gleichbleibend verbreitet bis sehr häufig"]
[8155,4058,"Idaea","seriata","Eng an menschliche Siedlungen gebunden",{"$nulls":16},1,null,"Trockene Pflanzenteile, Pflanzenabfälle",{"$nulls":6},1,null,null,1,"4_9",null,"Grauer Zwergspanner","Geometridae (Spanner)","Verbreitet und nicht selten",3,"überall...Kulturfolger",4,24,3,"verbreitet",4,50,"schwankend",4,9,"Gleichbleibend verbreitet bis sehr häufig",9,null,"Gleichbleibend verbreitet bis sehr häufig"]
[8161,4056,"Idaea","dimidiata","Feuchtgebiete, im Kulturland und in Gärten, Bach- und Flußtäler, Moore, Halbtrockenrasen, Weichholzaue",1,1,{"$nulls":6},1,{"$nulls":7},1,null,"Schlehe ",1,{"$nulls":6},1,{"$nulls":4},"Schwarzpunktierter Kleinspanner","Geometridae (Spanner)","Einzeln und selten ",2,"Etwas weniger häufig als S.[=I.] seriata",3,40,3,"verbreitet",3,35,"gleichbleibend",4,9,"Gleichbleibend verbreitet bis sehr häufig",9,null,"Gleichbleibend verbreitet bis sehr häufig"]
[8184,4073,"Idaea","aversata","Überall  ",{"$nulls":17},1,"Vermoderndes Laub",{"$nulls":6},1,null,null,1,null,null,"Mausohrspanner","Geometridae (Spanner)","überall nicht selten",3,"Einer unserer häufigsten Spanner, überall verbreitet ",5,167,4,"häufig",4,100,"schwankend",4,9,"Gleichbleibend verbreitet bis sehr häufig",9,"gemein, oder sehr gemein, gleichbleibend, Kommetar Tim: o.k., spielt in der Endauswertung keine Rolle mehr, ob gleichbleibend oder schwankend","Gleichbleibend verbreitet bis sehr häufig"]
[8248,4139,"Xanthorhoe","biriviata","Laubholzreiche Wälder, insbesondere Auwälder, Waldränder, Waldwege, wo Springkraut wächst",{"$nulls":6},1,null,1,1,{"$nulls":8},"Springkraut",null,null,1,{"$nulls":4},1,{"$nulls":4},"Kreuzblütler-Blattspanner","Geometridae (Spanner)","selten",2,"Überall",4,50,3,"verbreitet",4,100,"schwankend",4,9,"Gleichbleibend verbreitet bis sehr häufig",9,null,"Gleichbleibend verbreitet bis sehr häufig"]
[8252,4137,"Xanthorhoe","spadicearia","Überall",{"$nulls":17},1,"Diverse krautige Pflanzen",null,null,1,{"$nulls":6},1,null,null,"Gebänderter Labkrautspanner","Geometridae (Spanner)","oft",4,"überall häufig",4,33,4,"häufig",3,35,"gleichbleibend",4,9,"Gleichbleibend verbreitet bis sehr häufig",9,null,"Gleichbleibend verbreitet bis sehr häufig"]
[8253,4138,"Xanthorhoe","ferrugata","Überall ",{"$nulls":16},1,null,"Labkraut",null,null,1,{"$nulls":4},1,{"$nulls":4},"Dunkler Rostfarben-Blattspanner","Geometridae (Spanner)","Sehr häufig ",5,"überall und häufig",4,39,3,"verbreitet",4,60,"abnehmend",2,6,"Gleichbleibend verbreitet bis sehr häufig",6," ","Gleichbleibend verbreitet bis sehr häufig"]
[8255,4135,"Xanthorhoe","montanata","Überall ",{"$nulls":17},1,"Ampfer, Brombeere und andere krautige Pflanzne",null,null,1,{"$nulls":6},1,null,null,"Primelspanner","Geometridae (Spanner)","Häufig ",4,"Nicht selten",3,71,4,"häufig",4,50,"schwankend",4,9,"Gleichbleibend verbreitet bis sehr häufig",9,null,"Gleichbleibend verbreitet bis sehr häufig"]
[8256,4133,"Xanthorhoe","fluctuata","Unspezifische Fundstellen, überall, stickstoffreiche Waldränder",{"$nulls":17},1,"Knoblauchsrauke, Lauchkraut",null,null,1,{"$nulls":5},1,null,null,null,"Garten-Blattspanner","Geometridae (Spanner)","Sehr häufig",5,"verbreitet und nicht selten",3,51,4,"häufig",4,50,"schwankend",4,9,"Gleichbleibend verbreitet bis sehr häufig",9,null,"Gleichbleibend verbreitet bis sehr häufig"]
[8275,4182,"Epirrhoe","alternata","Überall",{"$nulls":17},1,"Labkraut",null,null,1,{"$nulls":4},1,{"$nulls":4},"Graubinden-Labkrautspanner","Geometridae (Spanner)","Ueberall häufig ",4,"meist zahlreich",4,59,4,"häufig",5,170,"gleichbleibend",4,9,"Gleichbleibend verbreitet bis sehr häufig",9,null,"Gleichbleibend verbreitet bis sehr häufig"]
[8289,4169,"Camptogramma","bilineata","Keine Biotoppräferenz, überall",{"$nulls":17},1,"Ampfer, Hauhechel, andere krautige Pflanzen",null,null,1,{"$nulls":6},1,null,null,"Löwenzahnspanner","Geometridae (Spanner)","Ueberall häufig",4,"verbreitet",3,7,3,"verbreitet",4,100,"gleichbleibend",4,9,"Gleichbleibend verbreitet bis sehr häufig",9,null,"Gleichbleibend verbreitet bis sehr häufig"]
[8319,4121,"Cosmorhoe","ocellata","Ein breites Spektrum an Lebensräumen",{"$nulls":17},1,"Labkraut",null,null,1,{"$nulls":4},1,{"$nulls":4},"Schwarzaugen-Bindenspanner","Geometridae (Spanner)","Verbreitet und häufig ",4,"überall",4,14,3,"verbreitet",4,60,"gleichbleibend",4,9,"Gleichbleibend verbreitet bis sehr häufig",9,null,"Gleichbleibend verbreitet bis sehr häufig"]
[8348,4131,"Chloroclysta","truncata","Nadel- und Laubmischwald aller Expositionen mit Unterwuchs an Heidelbeeren, Himbeeren oder anderen potentiellen Raupenfutterpflanzen",{"$nulls":9},1,1,1,{"$nulls":6},"Brennessel, Himbeere, Schlehe, Ahorn, Heidelbeere, u.a.",1,null,1,{"$nulls":6},1,null,null,"Möndchenflecken-Bindenspanner","Geometridae (Spanner)","Häufig ",4,"verbreitet",3,3,4,"häufig",4,11,"schwankend",4,9,{"$f":"IF(AX485=1,\"Einzelfund\",IF(OR(AX485=2,AX485=3),\"Abnehmend\",IF(OR(AX485=4,AX485=7,AX485=8,AX485=11),\"Zunehmend\",IF(AX485=5,\"Gleichbleibend selten\",IF(OR(AX485=6,AX485=9,AX485=10,AX485=12),\"Gleichbleibend verbreitet bis sehr häufig\",\"nicht bewertet\")))))","v":"Gleichbleibend verbreitet bis sehr häufig"},9,null,"Gleichbleibend verbreitet bis sehr häufig"]
[8368,4173,"Electrophaes","corylata","In den meisten Laubwald- und Gebüschgesellschaften, Siedlungsrandbereiche",{"$nulls":5},1,null,null,null,1,1,{"$nulls":5},1,null,"Birke, Gewöhnliche Vogelbeere, Traubenkirsche, Schlehe, Linde",1,{"$nulls":8},1,null,null,"Laubholz-Bindenspanner","Geometridae (Spanner)","Ziemlich häufig und überall",4,"nicht selten",3,22,3,"verbreitet",3,25,"gleichbleibend",4,9,"Gleichbleibend verbreitet bis sehr häufig",9,null,"Gleichbleibend verbreitet bis sehr häufig"]
[8391,4195,"Hydriomena","furcata","Charakterart von Heidelbeerwäldern, Moore, mäßig frische bis feuchte Laub- und Mischwälder",null,1,{"$nulls":7},1,1,1,{"$nulls":6},"Pappel, Weide, Hasel, Rotbuche, Rose, Heidelbeer,. Moorbeere",1,null,1,{"$nulls":6},1,null,null,"Heidelbeer-Palpenspanner","Geometridae (Spanner)","Ueberall häufig",4,"Überall",4,23,3,"verbreitet",3,17,"gleichbleibend",4,9,"Gleichbleibend verbreitet bis sehr häufig",9,null,"Gleichbleibend verbreitet bis sehr häufig"]
[8392,4196,"Hydriomena","impluviata","Charakterart erlenreicher Bruchwälder",{"$nulls":8},1,{"$nulls":9},"Erle ",1,{"$nulls":6},1,null,null,"3_3",null,"Erlen-Palpenspanner","Geometridae (Spanner)","seltener als vorige [=furcata]",3,"Überall und nicht selten",3,14,3,"verbreitet",3,40,"gleichbleibend",4,9,"Gleichbleibend verbreitet bis sehr häufig",9,null,"Gleichbleibend verbreitet bis sehr häufig"]
[8456,4187,"Perizoma","alchemillata","Verschiedenste Waldtypen, Heckenlandschaft, Wegränder, meist auf feuchten Standorten ",{"$nulls":5},1,1,1,1,1,1,1,null,1,{"$nulls":4},"Gewöhnlicher Hohlzahn, Heil-Ziest, Wald-Ziest",null,null,1,{"$nulls":5},1,null,null,null,"Hohlzahn-Kapselspanner","Geometridae (Spanner)","Verbreitet und oft nicht selten ",3,"Verbreitet und überall häufig ",4,75,4,"häufig",4,80,"gleichbleibend",4,9,"Gleichbleibend verbreitet bis sehr häufig",9,null,"Gleichbleibend verbreitet bis sehr häufig"]
[8599,4269,"Gymnoscelis","rufifasciata","Unterschiedliche Standorte, eher wärmeliebend",{"$nulls":17},1,"Blüten von diversen krautigen Pflanzen",{"$nulls":6},1,null,null,1,null,null,"Zwerg-Blütenspanner","Geometridae (Spanner)","Einzeln",2,"verbreitet",3,62,4,"häufig",4,90,"zunehmend",3,7,"Zunehmend",7,null,"Gleichbleibend verbreitet bis sehr häufig"]
[8603,4272,"Rhinoprora","rectangulata","Kulturfolger, in Gärten mit Obstbäumen",{"$nulls":12},1,null,null,null,1,null,"Blüten von Apfel, Kirsche",{"$nulls":6},1,null,1,null,"4_7","3_6","Obstbaum-Blütenspanner","Geometridae (Spanner)","nicht selten",3,"Weit verbereitet und häufig",4,34,3,"verbreitet",3,35,"schwankend",4,9,"Gleichbleibend verbreitet bis sehr häufig",9,null,"Gleichbleibend verbreitet bis sehr häufig"]
[8609,4089,"Chesias","legatella","Standorte von Besenginster, sandig-lehmige Böden",null,null,1,null,1,1,{"$nulls":7},1,1,1,null,null,"Besenginster",null,null,1,{"$nulls":4},1,{"$nulls":4},"Später Ginsterspanner","Geometridae (Spanner)","Manchmal…häufig",3,"verbreitet und ziemlich häufig",3,11,3,"verbreitet",3,20,"gleichbleibend",4,9,"Gleichbleibend verbreitet bis sehr häufig",9,"abnehmend kommentar Tim: abwarten, verscchwindet mit Ginsteerbeständen, kommentieren","Gleichbleibend verbreitet bis sehr häufig"]
[8654,4205,"Euchoeca","nebulata","Feuchte Wälder, Fluß- und Bachtäler, Moore",null,1,{"$nulls":6},1,1,{"$nulls":8},"Grau-Erle, Schwarz-Erle",1,{"$nulls":6},1,null,null,"3_1",null,"Erlengebüschspanner","Geometridae (Spanner)","wie die vorige [=flammeolaria]",2,"zahlreich ",4,19,3,"verbreitet",3,35,"schwankend",4,9,"Gleichbleibend verbreitet bis sehr häufig",9,null,"Gleichbleibend verbreitet bis sehr häufig"]
[8656,4206,"Asthena","albulata","Laubmischwälder in warmen Lagen, Gärten, Obstwiesen, auch in Ortschaften",{"$nulls":9},1,null,null,1,null,null,null,1,null,"Hainbuche",1,{"$nulls":6},1,null,null,"3_3",null,"Ungepunkteter Zierspanner","Geometridae (Spanner)","überall häufig",4,"Überall häufig",4,45,3,"verbreitet",3,35,"gleichbleibend",4,9,"Gleichbleibend verbreitet bis sehr häufig",9,null,"Gleichbleibend verbreitet bis sehr häufig"]
[8660,4204,"Hydrelia","flammeolaria","Sowohl trockene als auch feuchte Standorte ",{"$nulls":17},1,"Grau-Erle, Erle, Spitz-Ahorn",1,{"$nulls":7},1,null,"3_1","4_9","Gelbgewellter Erlen-Blattspanner","Geometridae (Spanner)","Verbreitet und manchmal nicht selten",3,"Überall",4,31,3,"verbreitet",3,35,"schwankend",4,9,"Gleichbleibend verbreitet bis sehr häufig",9,null,"Gleichbleibend verbreitet bis sehr häufig"]
[8716,2152,"Notodonta","dromedarius","Sehr anpassungsfähiger Kulturfolger, überall",{"$nulls":17},1,"Pappel, Weide, Birke, Erle, Linde",1,{"$nulls":8},1,null,null,"Dromedarspinner","Notodontidae (Zahnspinner)","Nicht selten",3,"verbreitet und häufig ",4,62,4,"häufig",4,45,"gleichbleibend",4,9,"Gleichbleibend verbreitet bis sehr häufig",9,null,"Gleichbleibend verbreitet bis sehr häufig"]
[8719,2153,"Notodonta","ziczac","Kulturfolger, überall",{"$nulls":17},1,"Pappel, Weide, Birke, Erle ",1,{"$nulls":8},1,null,null,"Zickzack-Zahnspinner","Notodontidae (Zahnspinner)","Nicht häufig",3,"verbreitet und häufig",4,11,3,"verbreitet",3,40,"schwankend",4,9,"Gleichbleibend verbreitet bis sehr häufig",9,null,"Gleichbleibend verbreitet bis sehr häufig"]
[8721,2148,"Drymonia","dodonaea","Warm-trockene Eichenwälder, auch im Siedlungsbereich, Parks, Bahnanlagen, Weinberge, Steinbrüche",{"$nulls":6},1,null,null,1,1,null,null,null,1,null,1,null,"Eiche",1,{"$nulls":6},1,{"$nulls":4},"Ungefleckter Eichenzahnspinner","Notodontidae (Zahnspinner)","Selten",2,"Überall verbreitet",4,4,4,"häufig",3,35,"zunehmend",3,7,"Zunehmend",7,null,"Gleichbleibend verbreitet bis sehr häufig"]
[8722,2149,"Drymonia","ruficornis","Warm-trockene Eichenwälder, auch im Siedlungsbereich, Parks, Bahnanlagen, Weinberge, Steinbrüche",{"$nulls":6},1,null,null,1,1,null,null,null,1,null,1,null,"Eiche",1,{"$nulls":6},1,null,null,"3_5",null,"Gebänderter Zahnspinner","Notodontidae (Zahnspinner)","Einzeln und selten",2,"häufig",4,9,4,"häufig",4,60,"zunehmend",3,7,"Zunehmend",7,null,"Gleichbleibend verbreitet bis sehr häufig"]
[8727,2150,"Pheosia","tremula","Auwälder, Ufergehölze, Wegränder, Gärten",{"$nulls":8},1,{"$nulls":4},1,null,null,1,null,"Pappel, Weide",1,{"$nulls":7},1,null,null,null,"Pappelzahnspinner","Notodontidae (Zahnspinner)","Häufig",4,"Überall verbreitet und häufig",4,6,2,"selten",3,14,"abnehmend",2,3,"Abnehmend",3," ","Gleichbleibend verbreitet bis sehr häufig"]
[8728,2151,"Pheosia","gnoma","Birkenstandorte, überall",{"$nulls":17},1,"Pappel, Birke ",1,{"$nulls":7},1,null,null,null,"Birkenzahnspinner","Notodontidae (Zahnspinner)","Seltener [als tremula, Anm. d. Autoren]",3,"verbreitet und häufig",4,31,3,"verbreitet",4,60,"schwankend",4,9,"Gleichbleibend verbreitet bis sehr häufig",9,null,"Gleichbleibend verbreitet bis sehr häufig"]
[8732,2164,"Pterostoma","palpina","Erfolgreicher Kulturfolger, überall",{"$nulls":17},1,"Pappel, Weide",1,{"$nulls":7},1,null,null,null,"Schnauzen-Spinner","Notodontidae (Zahnspinner)","Häufig",4,"verbreitet und häufig",4,9,3,"verbreitet",3,40,"gleichbleibend",4,9,"Gleichbleibend verbreitet bis sehr häufig",9,null,"Gleichbleibend verbreitet bis sehr häufig"]
[8738,2162,"Ptilodon","capucina","Überall, gerne im Siedlungsbereich",{"$nulls":17},1,"Pappel, Weide, Erle, Eberesche, Linde",1,{"$nulls":8},1,null,null,"Kamelspinner","Notodontidae (Zahnspinner)","Häufig ",4,"verbreitet und häufig",4,13,4,"häufig",4,80,"gleichbleibend",4,9,"Gleichbleibend verbreitet bis sehr häufig",9,null,"Gleichbleibend verbreitet bis sehr häufig"]
[8750,2166,"Phalera","bucephala","Vielgestaltiger Lebensraum, überall",{"$nulls":17},1,"Pappel, Weide",1,{"$nulls":7},1,null,null,null,"Mondvogel","Notodontidae (Zahnspinner)","Ueberall häufig",4,"überall häufig",4,136,4,"häufig",4,60,"gleichbleibend",4,9,"Gleichbleibend verbreitet bis sehr häufig",9,null,"Gleichbleibend verbreitet bis sehr häufig"]
[8754,2154,"Peridea","anceps","Eichenreiche Auen- und Laubmischwälder, warme, gebüschreiche Trockenhänge",1,{"$nulls":7},1,1,1,null,null,null,1,null,null,null,"Eiche",1,{"$nulls":6},1,null,null,"3_5",null,"Großer Eichen-Zahnspinner","Notodontidae (Zahnspinner)"," nicht selten",3,"häufig",4,9,2,"selten",3,40,"schwankend",4,5,"Gleichbleibend selten",5," ","Gleichbleibend verbreitet bis sehr häufig"]
[8758,2144,"Stauropus","fagi","Auenwälder, Laubmischwälder, Parks, Gärten",{"$nulls":8},1,1,1,{"$nulls":5},1,null,"Hainbuche, Hasel, Birke, Eiche, Ahorn, Obstbäume",1,{"$nulls":8},1,"3_3",null,"Buchen-Spinner","Notodontidae (Zahnspinner)","Verbreitet, aber selten",2,"überall nicht selten bis häufig",3,34,3,"verbreitet",3,35,"gleichbleibend",4,9,"Gleichbleibend verbreitet bis sehr häufig",9,null,"Gleichbleibend verbreitet bis sehr häufig"]
[8778,3012,"Acronicta","aceris","Ahorn und Eichenreiche Laubwälder, Gärten, Parks",{"$nulls":9},1,1,{"$nulls":5},1,null,"Weide, Eiche, Hasel, Ahorn, Roßkastanie",1,{"$nulls":8},1,"4_8",null,"Ahorn-Rindeneule","Noctuidae (Eulenfalter)","Häufig",4,"weit verbreitet, aber einzeln",2,7,3,"verbreitet",3,30,"schwankend",4,9,"Gleichbleibend verbreitet bis sehr häufig",9,null,"Gleichbleibend verbreitet bis sehr häufig"]
[8779,3019,"Acronicta","leporina","Laub- und Laubmischälder, Niederwald, Gärten und Parks",{"$nulls":7},1,null,1,1,{"$nulls":5},1,null,"Pappel, Weide, Birke, Erle ",1,{"$nulls":8},1,null,null,"Woll-Rindeneule","Noctuidae (Eulenfalter)","Häufig",4,"nicht selten",3,12,3,"verbreitet",3,25,"gleichbleibend",4,9,"Gleichbleibend verbreitet bis sehr häufig",9,null,"Gleichbleibend verbreitet bis sehr häufig"]
[8780,3016,"Acronicta","megacephala","Auwälder, Pappelbestände, Waldrand mit Weiden und Pappelbestand, meist in der Nähe von Bächen",{"$nulls":6},1,null,1,{"$nulls":9},"Pappel, Weide, Eiche",1,{"$nulls":8},1,"3_1","4_8","Grosskopf-Rindeneule","Noctuidae (Eulenfalter)","Häufig",4,"verbreitet, aber meist einzeln",3,1,2,"selten",3,60,"abnehmend",2,3,"Abnehmend",3," ","Gleichbleibend verbreitet bis sehr häufig"]
[8789,3020,"Craniophora","ligustri","ligusterreiche Waldmäntel, Säume, Gebüsche, Auwälder, Schluchtwälder, Siedlungsbreich (Ligusterhecken)",{"$nulls":6},1,null,1,1,1,{"$nulls":5},1,null,"Liguster, Flieder, Esche",1,{"$nulls":8},1,null,null,"Liguster-Rindeneule","Noctuidae (Eulenfalter)","einzeln und selten",2,"Einzeln",2,51,4,"häufig",3,30,"zunehmend",3,7,"Zunehmend",7,null,"Gleichbleibend verbreitet bis sehr häufig"]
[8845,3442,"Herminia","tarsicrinalis","Sehr weiter Lebensraum – Spektrum, überall",{"$nulls":17},1,"Vermoderndes Laub",{"$nulls":6},1,null,null,1,null,null,"Brombeer-Zünslereule","Noctuidae (Eulenfalter)","Verbreitet und häufig",4,"verbreitet und nicht selten",3,70,4,"häufig",4,60,"schwankend",4,9,"Gleichbleibend verbreitet bis sehr häufig",9,null,"Gleichbleibend verbreitet bis sehr häufig"]
[8846,3441,"Herminia","grisealis","In den verschiedensten Lebensräumen, am Rand von Laub- und Laubmischwäldern, Gebüsche",{"$nulls":17},1,"Holunder, Hartriegel",1,{"$nulls":7},1,null,"3_3",null,"Schlehen-Zünslereule","Noctuidae (Eulenfalter)","Nicht häufig",3,"häufig",4,10,4,"häufig",4,90,"gleichbleibend",4,9,"Gleichbleibend verbreitet bis sehr häufig",9,"schwankend,ür die Auswwertung egal f","Gleichbleibend verbreitet bis sehr häufig"]
[8858,3440,"Zanclognatha","tarsipennalis","Überall  ",{"$nulls":17},1,"Abgefallene Blätter",{"$nulls":6},1,null,null,1,null,null,"Federfußeule","Noctuidae (Eulenfalter)","selten",2,"verbreitet und häufig",4,72,4,"häufig",4,55,"zunehmend",3,7,"Zunehmend",7,null,"Gleichbleibend verbreitet bis sehr häufig"]
[8874,3397,"Catocala","nupta","Ränder von Auwälder, Laub- und Mischwälder",{"$nulls":6},1,null,1,1,1,{"$nulls":7},"Weide, Pappel",1,{"$nulls":7},1,null,"3_1, 4_8",null,"Rotes Ordensband","Noctuidae (Eulenfalter)","Ueberall häufig",4,"verbreitet",3,2,2,"selten",3,20,"abnehmend",2,3,"Abnehmend",3," ","Gleichbleibend verbreitet bis sehr häufig"]
[8967,3404,"Callistege","mi","Trockenes, mageres Grünland, Ruderalstandorte, Wacholderheiden",1,null,null,null,1,1,{"$nulls":12},"Flüfel-Ginster, Kleearten",null,null,1,{"$nulls":5},1,null,null,null,"Scheck-Tageule","Noctuidae (Eulenfalter)","verbreitet, aber nicht häufig",3,"verbreitet, aber in den letzten Jahren stark zurückgehend",3,16,3,"verbreitet",3,25,"gleichbleibend",4,9,"Gleichbleibend verbreitet bis sehr häufig",9,null,"Gleichbleibend verbreitet bis sehr häufig"]
[8969,3405,"Euclidia","glyphica","Auf Wiesen und Weiden überall",1,1,1,1,1,1,{"$nulls":7},1,1,1,null,null,"Luzerne, Steinklee, Hornklee, Zaun-Wicke",null,null,1,{"$nulls":5},1,null,"4_1",null,"Luzerneule","Noctuidae (Eulenfalter)","Ueberall häufig",4,"scheint gegen Biotopzerstörung weiniger empfindlich zu sein als [mi], mit der sie zusammen vorkommt.",3,250,5,"sehr häufig",4,70,"schwankend",4,12,"Gleichbleibend verbreitet bis sehr häufig",12,null,"Gleichbleibend verbreitet bis sehr häufig"]
[8984,3424,"Scoliopteryx","libatrix","Laubwälder und Mischwälder, Bachtäler, Sukzessionsflächen, Steinbrüche, Kiesgruben, Moore, Gärten und Parks",null,1,null,null,1,null,null,null,1,1,1,{"$nulls":4},1,1,null,"Pappel, Weide, Birke ",1,{"$nulls":8},1,"3_1","4_9","Zackeneule,Krebssuppe","Noctuidae (Eulenfalter)","Ueberall häufig",4,"verbreitet, meist einzeln",3,40,3,"verbreitet",4,50,"gleichbleibend",4,9,"Gleichbleibend verbreitet bis sehr häufig",9,"schwankend, für Endauswertung egal","Gleichbleibend verbreitet bis sehr häufig"]
[8994,3450,"Hypena","proboscidalis","Überall in Brennnesselfluren",null,1,null,null,null,1,1,{"$nulls":6},1,1,1,1,null,"Brennessel",null,null,1,{"$nulls":4},1,{"$nulls":4},"Nessel-Schnabeleule","Noctuidae (Eulenfalter)","Ueberall häufig",4,"Überall häufig bis gemein",6,421,5,"sehr häufig",5,100,"schwankend",4,12,"Gleichbleibend verbreitet bis sehr häufig",12,null,"Gleichbleibend verbreitet bis sehr häufig"]
[9002,3448,"Hypena","crassalis","Wälder mit Heidelbeerbeständen",{"$nulls":9},1,1,1,{"$nulls":6},"Heidelbeere ",null,null,1,{"$nulls":4},1,null,null,"3_1","3_4","Heidelbeer-Schnabeleule","Noctuidae (Eulenfalter)","Ueberall häufig",4,"Verbreitet, aber nicht häufig",3,16,3,"verbreitet",3,18,"gleichbleibend",4,9,"Gleichbleibend verbreitet bis sehr häufig",9,"K 2?, selten, da nur 3 FO, abnehmend kommentieren","Gleichbleibend verbreitet bis sehr häufig"]
[9008,3436,"Rivula","sericealis","Feuchtes, frisches bis mesophiles Grünland, lichte Wälder",{"$nulls":17},1,"Gräser",null,null,null,1,{"$nulls":4},1,null,null,null,"Seideneulchen","Noctuidae (Eulenfalter)","nicht selten",3,"überall verbreitet",4,106,4,"häufig",5,100,"gleichbleibend",4,9,"Gleichbleibend verbreitet bis sehr häufig",9,null,"Gleichbleibend verbreitet bis sehr häufig"]
[9045,3411,"Diachrysia","crysitis","Überall ",{"$nulls":17},1,"Brennnessel, Erdbeere, Lungenkraut, Tabnessel, Natternkopf u.a.",null,null,1,{"$nulls":6},1,"3_1","4_9","Messingeule","Noctuidae (Eulenfalter)","Häufig",4,"verbreitet und überall häufig",4,17,3,"verbreitet",3,35,"gleichbleibend",4,9,"Gleichbleibend verbreitet bis sehr häufig",9,null,"Gleichbleibend verbreitet bis sehr häufig"]
[9114,3381,"Protodeltote","pygarga","Lichte Wälder, Waldränder, Gebüsche, Schlagflure, Steinbrüche, Weinberge, auch in Mooren",null,1,null,null,null,1,1,{"$nulls":7},1,1,null,null,"Rohr-Glanzgras und andere Gräser",null,null,null,1,{"$nulls":4},1,null,null,null,"Waldrasen-Grasmotteneulchen","Noctuidae (Eulenfalter)","Ueberall sehr häufig ",5,"Überall häufig",4,317,5,"sehr häufig",3,50,"schwankend",4,12,"Gleichbleibend verbreitet bis sehr häufig",12,null,"Gleichbleibend verbreitet bis sehr häufig"]
[9169,3430,"Trisateles","emortualis","Verschiedene Waldtypen, Waldrand",{"$nulls":6},1,null,null,1,1,{"$nulls":7},"Hainbuche, Eiche",1,{"$nulls":7},1,null,null,null,"Gelblinien-Spannereule","Noctuidae (Eulenfalter)","Einzeln und selten",2,"Verbreitet, aber nicht häufig ",3,5,3,"verbreitet",3,35,"gleichbleibend",4,9,"Gleichbleibend verbreitet bis sehr häufig",9,null,"Gleichbleibend verbreitet bis sehr häufig"]
[9233,3191,"Shargacucullia","verbasci","Die verbreiteteste Art und den braunen Mönchseulen und mit der größten Bandbreite im Biotopspektrum, Saumgesellschaften, Ruderalflächenm, Steinbrüche, Dämme, Wegränder, Gärten, trockene und warme Standorte",{"$nulls":4},1,1,1,{"$nulls":6},1,1,1,1,null,"Königskerze, Braunwurz",null,null,1,{"$nulls":5},1,null,"4_2","4_4","Königskerzen-Mönch","Noctuidae (Eulenfalter)","Die Raupe öfter",3,"In Sandgebieten und auf Ruderalplätzen",2,56,4,"häufig",3,15,"schwankend",4,9,"Gleichbleibend verbreitet bis sehr häufig",9,"K 5?, selten, da viele Raupen an wenigen FO, kommentieren","Gleichbleibend verbreitet bis sehr häufig"]
[9338,3378,"Panemeria","tenebrata","Blütenreiche, extensiv genutzte, ungedüngte magere bis frische Wiesen und weiden, Böschungen, Wegränder, Ruderal- und Unkrautfluren, Bahndämme,",null,null,null,1,1,{"$nulls":8},1,1,1,null,null,"Gewöhnliches Hornkraut, Quell-Hornkraut, Acker-Hornkraut, Vogelmiere",null,null,1,{"$nulls":4},1,null,null,"4_1",null,"Hornkrauteulchen","Noctuidae (Eulenfalter)","Verbreitet und nicht selten",3,"Falter fliegt tags (Häufigkeit?)","k.A.",10,3,"verbreitet",3,23,"schwankend",4,9,"Gleichbleibend verbreitet bis sehr häufig",9,"K 2 ?, selten, abnehmend, wurde genug gesucht? Lieber hier lassen","Gleichbleibend verbreitet bis sehr häufig"]
[9433,3320,"Paradrina","clavipalpis","Zumeist an trockenen und warmen Standorten, häufig im Haus und in Siedlungen",{"$nulls":16},1,null,"Geren an vertrockneten Pflanzen (z.B. Heu)",{"$nulls":6},1,null,null,1,null,null,"Heu-Staubeule","Noctuidae (Eulenfalter)","überall häufig",4,"häufig",4,12,3,"verbreitet",3,30,"gleichbleibend",4,9,"Gleichbleibend verbreitet bis sehr häufig",9,null,"Gleichbleibend verbreitet bis sehr häufig"]
[9449,3312,"Hoplodrina","octogenaria","Offene und halboffene mesophile Lebensräume, gebüschreiche Säume, Waldränder, Lichtungen, Schneisen, Steinbrüche, Heiden, nicht häufig auf xerothermen Flächen ",null,null,1,null,1,1,1,{"$nulls":7},1,null,null,null,"Labkraut",null,null,1,{"$nulls":4},1,{"$nulls":4},"Gelbbraune Staubeule","Noctuidae (Eulenfalter)","Ueberall häufig ",4,"überall häufig bis gemein",5,95,4,"häufig",3,35,"schwankend",4,9,"Gleichbleibend verbreitet bis sehr häufig",9,null,"Gleichbleibend verbreitet bis sehr häufig"]
[9454,3314,"Hoplodrina","ambigua","Trockenwarme Lebensräume, sübexponierte Hänge, Haltrockenrasen, Ruderalflächen, Steinbrüche, auch in Gärten, Streuobstwiesen, nicht auf zu feuchten Standorten",1,null,null,null,1,{"$nulls":7},1,null,1,1,1,null,"Königskerze und andere krautige Pflanzen",null,null,1,{"$nulls":6},1,null,null,"Hellbraune Staubeule","Noctuidae (Eulenfalter)","Selten",2,"mit zunehmender Höhenlage spärlicher werdend ",2,33,3,"verbreitet",3,40,"gleichbleibend",4,9,"Gleichbleibend verbreitet bis sehr häufig",9,null,"Gleichbleibend verbreitet bis sehr häufig"]
[9456,3340,"Charanyca","trigrammica","In verschiedenen Offenlandhabitaten, Kulturlandschaft, Gärten und Parks",null,null,null,1,1,1,{"$nulls":7},1,1,1,1,null,"Diverse krautige Pflanzen",null,null,1,{"$nulls":6},1,null,null,"Dreilinieneule","Noctuidae (Eulenfalter)","Verbreitet, aber nicht häufig",3,"verbreitet und häufig",3,52,4,"häufig",4,70,"gleichbleibend",4,9,"Gleichbleibend verbreitet bis sehr häufig",9,null,"Gleichbleibend verbreitet bis sehr häufig"]
[9501,3301,"Trachea","atriplicis","Ruderalflächen, Fluren, Straßen und Wegränder, Wassergräben, Ufer, Brachen",null,1,null,1,1,{"$nulls":8},1,null,1,null,null,"Ampfer, Knöterich, Melde",null,null,1,{"$nulls":6},1,"4_2",null,"Meldeneule","Noctuidae (Eulenfalter)","Ueberall…häufig ",4,"Im Bergland vereinzelt",2,0,1,"sehr selten",3,50,"abnehmend",2,3,"Abnehmend",3," ","Gleichbleibend verbreitet bis sehr häufig"]
[9503,3302,"Euplexia","lucipara","Halbschattige bis schattige, kühle Plätze am Rand oder im Wald, in Gärten",{"$nulls":6},1,null,null,1,1,{"$nulls":5},1,null,"Diverse krautige Pflanzen",null,null,1,{"$nulls":6},1,null,null,"Gelbfleck-Waldschatteneule","Noctuidae (Eulenfalter)","Ueberall häufig ",4,"verbreitet",3,50,3,"verbreitet",4,60,"gleichbleibend",4,9,"Gleichbleibend verbreitet bis sehr häufig",9,null,"Gleichbleibend verbreitet bis sehr häufig"]
[9505,3303,"Phlogophora","meticulosa","Überall",{"$nulls":17},1,"Diverse krautige Pflanzen",null,null,1,{"$nulls":6},1,"4_9",null,"Achateule","Noctuidae (Eulenfalter)","Ueberall häufig ",4,"in manchen Jahren recht häufig",3,164,4,"häufig",4,80,"schwankend",4,9,"Gleichbleibend verbreitet bis sehr häufig",9,null,"Gleichbleibend verbreitet bis sehr häufig"]
[9550,3344,"Cosmia","trapezina","Überall in Laubmischwäldern und Laubwäldern",{"$nulls":9},1,1,{"$nulls":7},"Diverse Laubbäume, andere Raupen (Mordraupe)",1,{"$nulls":8},1,null,null,"Trapez-Eule","Noctuidae (Eulenfalter)","Ueberall sehr gemein",7,"häufig bis gemein",6,221,5,"sehr häufig",4,80,"abnehmend",2,10,"Gleichbleibend verbreitet bis sehr häufig",10,"gleichbleibend","Gleichbleibend verbreitet bis sehr häufig"]
[9556,3254,"Xanthia","togata","Frische bis feuchte Weidenstandorte, halbschattige Waldwegränder, an Bächen, Bruchwälder, Steinbrüche, Ruderalflächen, kühlfeuchte Lagen",null,1,null,null,1,null,null,1,{"$nulls":6},1,1,null,null,"Pappel, Weide, Moorbeere",1,null,1,{"$nulls":6},1,null,null,"Violett-Gelbeule","Noctuidae (Eulenfalter)","Ueberall häufig",4,"weit verbreitet",3,17,3,"verbreitet",3,25,"gleichbleibend",4,9,"Gleichbleibend verbreitet bis sehr häufig",9,null,"Gleichbleibend verbreitet bis sehr häufig"]
[9557,3253,"Xanthia","aurago","Rotbuchenreiche Wälder",{"$nulls":9},1,1,{"$nulls":7},"Hainbuche, Rotbuche, Eiche, Heidelbeere",1,null,1,{"$nulls":6},1,"3_3",null,"Gold-Gelbeule","Noctuidae (Eulenfalter)","Ueberall",4,"verbreitet",3,32,3,"verbreitet",4,50,"gleichbleibend",4,9,"Gleichbleibend verbreitet bis sehr häufig",9,null,"Gleichbleibend verbreitet bis sehr häufig"]
[9559,3255,"Xanthia","icteritia","Salweidenbestände, Uferzonen, Gärten, Waldrand",null,1,{"$nulls":4},1,null,1,{"$nulls":7},1,null,"Zitter-Pappel, Pappel, Weide",1,{"$nulls":8},1,null,null,"Bleich-Gelbeule","Noctuidae (Eulenfalter)","etwas häufiger [als togata]",4,"verbreitet und oftmals zahlreich",3,4,2,"selten",3,10,"abnehmend",2,3,"Abnehmend",3," ","Gleichbleibend verbreitet bis sehr häufig"]
[9566,3246,"Agrochola","circellaris","Euryöke Art, Standorte von Pappeln und Weiden",{"$nulls":17},1,"Pappel, Weide",1,{"$nulls":7},1,null,null,null,"Rötlichgelbe Herbsteule","Noctuidae (Eulenfalter)","Ueberall häufig",4,"überall",4,175,4,"häufig",4,80,"gleichbleibend",4,9,"Gleichbleibend verbreitet bis sehr häufig",9,null,"Gleichbleibend verbreitet bis sehr häufig"]
[9575,3247,"Agrochola","helvola","Sehr breites Biotopspektrum, feuchte bis trockene Standorte, überall",{"$nulls":17},1,"Weide, Hasel, Pappel, Himbeere, Brombeere, Schlehe, Heidelbeere, Moorbeere, Blut-Storchschnabel",1,null,1,{"$nulls":6},1,null,null,"Rötliche Herbsteule","Noctuidae (Eulenfalter)","Eben so häufig [wie die \"ueberall häufige\" circellaris, Anm. d. Autoren]",4,"verbreitet, aber nur lokal häufig ",3,5,3,"verbreitet",3,17,"gleichbleibend",4,2,"Abnehmend",2,"K 2 ?, selten, abnehmend o.k","Gleichbleibend verbreitet bis sehr häufig"]
[9600,3236,"Conistra","vaccinii","Überall",{"$nulls":17},1,"Sal-weide, Erle, Eiche, u.a.",1,{"$nulls":8},1,null,null,"Heidelbeer-Wintereule","Noctuidae (Eulenfalter)","Ueberall sehr gemein ",7,"Überall häufig bis gemein",6,254,6,"gemein",7,250,"gleichbleibend",4,12,"Gleichbleibend verbreitet bis sehr häufig",12,null,"Gleichbleibend verbreitet bis sehr häufig"]
[9676,3212,"Xylocampa","areola","Waldwege, Lichtungen, Schläge, Gärten",{"$nulls":6},1,null,1,1,1,{"$nulls":5},1,null,"Geißblatt",null,null,1,{"$nulls":4},1,null,null,"3_8","3_5","Geißblatteule","Noctuidae (Eulenfalter)","Ueberall",4,"ziemlich häufig ",4,5,1,"sehr selten",3,40,"abnehmend",2,3,"Abnehmend",3," ","Gleichbleibend verbreitet bis sehr häufig"]
[9682,3213,"Allophyes","oxyacanthae","Alle Schlehenhabitate auf feuchten und trockenen Standorten: Hecken, Waldrand, Gebüsche, auch auf Obstwiesen",{"$nulls":4},1,1,1,{"$nulls":6},1,null,1,1,null,"Schlehe, Weißdorn, Obstbäume",1,{"$nulls":7},1,null,"3_6","4_6","Weißdorneule","Noctuidae (Eulenfalter)","Ziemlich häufig",4,"nicht selten",3,37,3,"verbreitet",4,60,"gleichbleibend",4,9,"Gleichbleibend verbreitet bis sehr häufig",9,null,"Gleichbleibend verbreitet bis sehr häufig"]
[9748,3273,"Apamea","monoglypha","Überall, euryöke Art",{"$nulls":16},1,null,"Gräser",null,null,null,1,{"$nulls":4},1,null,null,null,"Grosse Grasbüscheleule","Noctuidae (Eulenfalter)","Ueberall gemein",6,"häufig bis gemein",5,60,4,"häufig",4,70,"abnehmend",2,6,"Gleichbleibend verbreitet bis sehr häufig",6," ","Gleichbleibend verbreitet bis sehr häufig"]
[9752,3268,"Apamea","lithoxylaea","Frische bis trockene Rasengesellschaften, magere Glatthaferwiesen, Saumgesellschaften, Steinbrüche, Ackerrandstreifen",1,null,null,1,null,1,1,{"$nulls":6},1,{"$nulls":4},"Gräser",null,null,null,1,{"$nulls":4},1,null,null,null,"Weislichgelbe Grasbüscheleule","Noctuidae (Eulenfalter)","Einzeln",2,"Überall",4,11,3,"verbreitet",3,20,"schwankend",4,9,"Gleichbleibend verbreitet bis sehr häufig",9,null,"Gleichbleibend verbreitet bis sehr häufig"]
[9755,3271,"Apamea","crenata","Grasfluren im Wald oder am Waldrand, Bachufer, Feuchtwiessen, Moore, Heiden, Kiesgruben, Steinbrüche",null,1,{"$nulls":4},1,null,1,{"$nulls":9},"Gräser, Brombeere",null,null,1,1,{"$nulls":5},1,null,null,"Große Veränderliche Grasbüscheleule","Noctuidae (Eulenfalter)","überall nicht selten  ",3,"im Bergland sehr zahlreich  ",5,0,2,"selten",3,35,"schwankend",4,5,"Gleichbleibend selten",5," ","Gleichbleibend verbreitet bis sehr häufig"]
[9786,3290,"Mesoligia","furuncula","Wiesen in sonniger, warmer, offener Lage, Brachen, Dämme, Böschungen",null,null,null,1,1,{"$nulls":8},1,1,1,null,null,"Gräser",null,null,null,1,{"$nulls":4},1,null,null,null,"Trockenrasen-Halmeulchen","Noctuidae (Eulenfalter)","Selten…",2,"meist einzeln",2,220,5,"sehr häufig",3,40,"zunehmend",3,11,"Zunehmend",11,null,"Gleichbleibend verbreitet bis sehr häufig"]
[9801,3298,"Luperina","testacea","Offene, grasreiche Lebensräume, trocken bis mäßig feuchte Standorte, Halbtrockenrasen, Heiden, Ackerbrachen, Bahndämme, Wegränder, Gärten und Parks",1,null,1,null,1,{"$nulls":8},1,null,1,1,null,"Gräser",null,null,null,1,{"$nulls":4},1,null,null,null,"Lehmfarbige Graswurzeleule","Noctuidae (Eulenfalter)","war 1864 bei Barmen häufig…Sonst nur einzeln",2,"verbreitet und nicht selten ",3,20,3,"verbreitet",3,24,"gleichbleibend",4,9,"Gleichbleibend verbreitet bis sehr häufig",9,null,"Gleichbleibend verbreitet bis sehr häufig"]
[9917,3128,"Lacanobia","oleracea","Wald und Offenland, Kulturland, Gärten und Parks",{"$nulls":17},1,"Waldrebe, Kohlarten, Johannisbeere, Schlehe, Lupine, Erbse, Heidekraut, Paprika, Tomaten, u.a.",null,null,1,{"$nulls":6},1,"4_9",null,"Gemüseeule","Noctuidae (Eulenfalter)","Ueberall zeimlich häufig",4,"verbreitet und häufig",4,17,3,"verbreitet",3,30,"gleichbleibend",4,9,"Gleichbleibend verbreitet bis sehr häufig",9,null,"Gleichbleibend verbreitet bis sehr häufig"]
[9927,3123,"Aetheria","dysodea","Am Rande und innerhalb von Ortschaften, Ruderalflächen, z.B. Straßenränder, Bahndämme, Gleisanlagen, auch in Gärten, Standorte der Raupenfutterpflanzen",{"$nulls":4},1,1,{"$nulls":7},1,1,1,1,null,"Mauerlattich, Wilder Lattich, Kopfsalat, Hasenlattich",null,null,1,{"$nulls":4},1,{"$nulls":4},"Kompasslatticheule","Noctuidae (Eulenfalter)","Verbreitet und nicht selten",3,"Wuppertal-Dornap (05.6.0990…)",1,93,4,"häufig",3,15,"schwankend",4,9,"Gleichbleibend verbreitet bis sehr häufig",9,"Arealerweiterer","Gleichbleibend verbreitet bis sehr häufig"]
[9984,3116,"Melanchra","persicariae","Überall   ",{"$nulls":17},1,"Polyphag an krautigen Pflanzen",null,null,1,{"$nulls":6},1,null,null,"Flohkrauteule","Noctuidae (Eulenfalter)","Ueberall häufig",4,"verbreitet und ziemlich häufig",4,53,4,"häufig",3,35,"gleichbleibend",4,9,{"$f":"IF(AX549=1,\"Einzelfund\",IF(OR(AX549=2,AX549=3),\"Abnehmend\",IF(OR(AX549=4,AX549=7,AX549=8,AX549=11),\"Zunehmend\",IF(AX549=5,\"Gleichbleibend selten\",IF(OR(AX549=6,AX549=9,AX549=10,AX549=12),\"Gleichbleibend verbreitet bis sehr häufig\",\"nicht bewertet\")))))","v":"Gleichbleibend verbreitet bis sehr häufig"},9,null,"Gleichbleibend verbreitet bis sehr häufig"]
[9987,3107,"Mamestra","brassicae","große Vielfalt an Lebensräumen, eher im Offenland",{"$nulls":16},1,null,"Diverse krautige Pflanzen",null,null,1,{"$nulls":6},1,"4_9",null,"Kohleule","Noctuidae (Eulenfalter)","Sehr gemein",7,"häufig und verbreitet",4,41,4,"häufig",3,35,"abnehmend",2,6,"Gleichbleibend verbreitet bis sehr häufig",6," ","Gleichbleibend verbreitet bis sehr häufig"]
[9993,3137,"Polia","nebulosa","in Wald und Gebüschnähe überall",{"$nulls":5},1,1,1,1,1,1,{"$nulls":7},"Diverse krautige Pflanzen und Laubbäume",1,null,1,{"$nulls":6},1,null,null,"Waldstauden-Blättereule","Noctuidae (Eulenfalter)","Ueberall sehr häufig",5,"verbreitet und ziemlich häufig",4,47,3,"verbreitet",3,35,"abnehmend",2,6,"Gleichbleibend verbreitet bis sehr häufig",6," ","Gleichbleibend verbreitet bis sehr häufig"]
[10001,3159,"Mythimna","ferrago","Ein Ubiquist, alle grasreichen Lebensräume",{"$nulls":17},1,"Gräser",null,null,null,1,{"$nulls":4},1,null,null,null,"Kaputzen-Graseule","Noctuidae (Eulenfalter)","Ueberall häufig",4,"verbreitet und häufig",4,60,4,"häufig",3,25,"gleichbleibend",4,9,"Gleichbleibend verbreitet bis sehr häufig",9,null,"Gleichbleibend verbreitet bis sehr häufig"]
[10002,3160,"Mythimna","albipuncta","Mäßig trockenwarme Standorte, Gebüsche und Säume, Böschungen, Dämme, Straßen und Wegränder, Brachen, Ruderalflächen, Uferböschungen, Gärten",1,null,1,1,1,1,{"$nulls":7},1,1,1,1,null,"Gräser",null,null,null,1,{"$nulls":4},1,null,null,null,"Weißpunkt-Graseule","Noctuidae (Eulenfalter)","In einzelnen Jahren häufig, meistens aber seltener",3,"vereinzelt ",2,31,3,"verbreitet",3,40,"schwankend",4,9,"Gleichbleibend verbreitet bis sehr häufig",9,null,"Gleichbleibend verbreitet bis sehr häufig"]
[10037,3154,"Orthosia","incerta","Alle laubholzreichen Wälder und Gebüschgesellschaften, überall",{"$nulls":5},1,1,null,1,1,1,null,null,1,1,1,1,null,"Pappel, Weide u.a. Gehölze",1,{"$nulls":8},1,null,null,"Variable Kätzcheneule","Noctuidae (Eulenfalter)","Ueberall häufig",4,"verbreitet und sehr häufig ",5,60,4,"häufig",6,80,"schwankend",4,9,"Gleichbleibend verbreitet bis sehr häufig",9,"gleichbleibend","Gleichbleibend verbreitet bis sehr häufig"]
[10038,3148,"Orthosia","gothica","Alle laubholzreichen Wälder und Gebüschgesellschaften, überall",{"$nulls":5},1,1,null,1,1,1,null,null,1,1,1,1,null,"Pappel, Weide u.a. Gehölze",1,{"$nulls":8},1,null,null,"Gothica-Kätzcheneule","Noctuidae (Eulenfalter)","Ueberall häufig ",4,"Überall verbreitet und sehr häufig",5,45,4,"häufig",4,120,"schwankend",4,9,"Gleichbleibend verbreitet bis sehr häufig",9,"gleichbleibend","Gleichbleibend verbreitet bis sehr häufig"]
[10039,3153,"Orthosia","cruda","Hecken und Gebüsche, überall",{"$nulls":5},1,1,{"$nulls":11},"Pappel, Weide u.a. Gehölze",1,{"$nulls":8},1,null,null,"Kleine Kätzcheneule","Noctuidae (Eulenfalter)","Sehr häufig überall",5,"sehr häufig",5,16,4,"häufig",5,90,"gleichbleibend",4,9,"Gleichbleibend verbreitet bis sehr häufig",9,null,"Gleichbleibend verbreitet bis sehr häufig"]
[10044,3152,"Orthosia","cerasi","Hecken und Gebüsche, überall",{"$nulls":5},1,1,1,1,1,1,{"$nulls":7},"Pappel, Weide u.a. Gehölze",1,{"$nulls":8},1,null,null,"Rundflügel-Kätzcheneule","Noctuidae (Eulenfalter)","Die gemeinste Art dieser Gattung",6,"sehr häufig bis gemein",6,110,4,"häufig",6,100,"abnehmend",2,6,"Gleichbleibend verbreitet bis sehr häufig",6,"gleichbleibend","Gleichbleibend verbreitet bis sehr häufig"]
[10050,3149,"Orthosia","munda","Wälder und Gebüsche, überall",{"$nulls":5},1,1,null,null,1,1,1,{"$nulls":6},"Pappel, Weide u.a. Gehölze",1,{"$nulls":8},1,null,null,"Zweifleck-Kätzcheneule","Noctuidae (Eulenfalter)","Nicht selten",3,"verbreitet und häufig",4,31,4,"häufig",4,80,"gleichbleibend",4,9,"Gleichbleibend verbreitet bis sehr häufig",9,null,"Gleichbleibend verbreitet bis sehr häufig"]
[10062,3157,"Cerapteryx","graminis","Sehr unterschiedliche Lebensräume, Wiesen und Weiden, meist in Kontakt zu Wäldern",{"$nulls":17},1,"Gräser",null,null,null,1,{"$nulls":4},1,null,null,null,"Dreizack-Graseule","Noctuidae (Eulenfalter)","hier selten",2,"verbreitet und nicht selten",3,34,3,"verbreitet",3,35,"gleichbleibend",4,9,"Gleichbleibend verbreitet bis sehr häufig",9,"schwankend","Gleichbleibend verbreitet bis sehr häufig"]
[10065,3141,"Tholera","decimalis","Auf frischen bis trockenen Standorten, oft im Wirtschaftsgrünland und Gärten",null,null,null,1,1,{"$nulls":11},1,null,"Gräser",null,null,null,1,{"$nulls":4},1,null,null,null,"Weissgerippte Lolcheule","Noctuidae (Eulenfalter)","Ueberall häufig",4,"Überall verbreitet und häufig ",4,9,3,"verbreitet",3,30,"gleichbleibend",4,9,"Gleichbleibend verbreitet bis sehr häufig",9,null,"Gleichbleibend verbreitet bis sehr häufig"]
[10082,3077,"Axylia","putris","frische bis feuchte Lebensräume, krautreiche Saumgesellschaften",null,1,null,null,null,1,1,{"$nulls":6},1,null,null,1,null,"Waldrebe, vermutlich aber polyphag",null,null,1,{"$nulls":6},1,null,null,"Putris-Erdeule","Noctuidae (Eulenfalter)","Selten, seit 1863 nur in einzelnen Ex.[emplaren] ",2,"häufig ",4,105,4,"häufig",4,100,"zunehmend",3,7,"Zunehmend",7,null,"Gleichbleibend verbreitet bis sehr häufig"]
[10086,3072,"Ochropleura","plecta","mesophiles Offenland",null,null,1,1,1,1,{"$nulls":7},1,1,1,1,null,"Diverse krautige Pflanzen",null,null,1,{"$nulls":6},1,"4_9",null,"Hellrandige Erdeule","Noctuidae (Eulenfalter)","Ueberall häufig, in einzelnen Jahren sehr gemein",4,"sehr häufig",5,254,5,"sehr häufig",4,60,"gleichbleibend",4,12,"Gleichbleibend verbreitet bis sehr häufig",12,null,"Gleichbleibend verbreitet bis sehr häufig"]
[10089,3063,"Diarsia","mendica","Mäßig trockene bis feuchte Standorte in Heidelbeerbeständen, Heiden, luftfeuchte Standorte im Wald und am waldrand, Moore",null,1,1,null,null,null,1,null,null,1,1,{"$nulls":7},"Wurmfarn, Schlüsselblume, Heidelbeere, Moorbeere",null,null,1,{"$nulls":6},1,null,null,"Primel-Erdeule","Noctuidae (Eulenfalter)","Ebenso [= häufig, wie brunnea] ",4,"zuweilen häufig",4,61,4,"häufig",3,26,"gleichbleibend",4,9,"Gleichbleibend verbreitet bis sehr häufig",9,null,"Gleichbleibend verbreitet bis sehr häufig"]
[10092,3064,"Diarsia","brunnea","mäßig trockene bis feuchte halbschattige Plätze im Laub- Misch und Nadelwald, Waldränder mit Staudenfluren",{"$nulls":6},1,null,null,1,1,null,null,1,{"$nulls":4},"Diverse Gehölze und krautigen Pflanzen",1,null,1,{"$nulls":6},1,null,null,"Braune Erdeule","Noctuidae (Eulenfalter)","Ueberall häufig",4,"verbreitet",3,56,4,"häufig",3,40,"schwankend",4,9,"Gleichbleibend verbreitet bis sehr häufig",9,null,"Gleichbleibend verbreitet bis sehr häufig"]
[10096,3096,"Noctua","pronuba","Überall",{"$nulls":17},1,"Gräser und krautige Pflanzen",null,null,1,1,{"$nulls":5},1,"4_9",null,"Hausmutter","Noctuidae (Eulenfalter)","Sehr gemein",7,"Häufig bis massenhaft auftretend",7,531,7,"sehr gemein",6,250,"gleichbleibend",4,12,"Gleichbleibend verbreitet bis sehr häufig",12,null,"Gleichbleibend verbreitet bis sehr häufig"]
[10099,3100,"Noctua","comes","Euryöke Art, überall",{"$nulls":17},1,"Polyphag an krautigen Pflanzen und gehözen",1,null,1,{"$nulls":6},1,null,null,"Breitflügelige Bandeule","Noctuidae (Eulenfalter)","Nicht selten",3,"vereinzelt bis häufig",4,54,4,"häufig",4,50,"gleichbleibend",4,9,"Gleichbleibend verbreitet bis sehr häufig",9,null,"Gleichbleibend verbreitet bis sehr häufig"]
[10100,3097,"Noctua","fimbriata","Übiquitäre Art",{"$nulls":17},1,"Polyphag an  krautigen Pflanzen und Gehölzen",1,null,1,{"$nulls":6},1,null,null,"Bunte Bandeule","Noctuidae (Eulenfalter)","häufig ",4,"in gleicher Häufigkeit wie die vorherige Art [d. h. vereinzelt bis häufig] ",4,9,3,"verbreitet",4,50,"gleichbleibend",4,9,"Gleichbleibend verbreitet bis sehr häufig",9,null,"Gleichbleibend verbreitet bis sehr häufig"]
[10105,3098,"Noctua","interjecta","Überall",{"$nulls":17},1,"Polyphag an krautigen Pflanzen und gehözen",1,null,1,{"$nulls":6},1,null,null,"Hellbraune Bandeule","Noctuidae (Eulenfalter)","Einzeln und selten ",2,"vereinzelt bis häufig ",3,39,3,"verbreitet",3,35,"gleichbleibend",4,9,"Gleichbleibend verbreitet bis sehr häufig",9,null,"Gleichbleibend verbreitet bis sehr häufig"]
[10199,3069,"Xestia","c-nigrum","euryöke Art",{"$nulls":17},1,"Gräser und krautige Pflanzen",null,null,1,1,{"$nulls":5},1,null,null,"Schwarzes C","Noctuidae (Eulenfalter)","Häufig",4,"überall häufig bis gemein",5,620,5,"sehr häufig",6,300,"gleichbleibend",4,12,"Gleichbleibend verbreitet bis sehr häufig",12,null,"Gleichbleibend verbreitet bis sehr häufig"]
[10200,3071,"Xestia","ditrapezium","alle Lebensräume mit gut entwwickelter Kraut und Strauchschicht",{"$nulls":18},"Himbeere, Schlehe, Heidelbeere",1,null,1,{"$nulls":6},1,null,null,"Trapez-Bodeneule","Noctuidae (Eulenfalter)","Keine Angaben",0,"vereinzelt bis häufig",4,23,3,"verbreitet",3,17,"schwankend",4,9,"Gleichbleibend verbreitet bis sehr häufig",9,null,"Gleichbleibend verbreitet bis sehr häufig"]
[10201,3070,"Xestia","triangulum","Kraut- und staudenreiche Standorte im Waldrandbereich und Gebüschzonen, im Kluturland und in Siedlungen",{"$nulls":5},1,1,{"$nulls":6},1,1,1,1,null,"Diverse Gehölze und krautigen Pflanzen",1,null,1,{"$nulls":6},1,null,null,"Triangel-Bodeneule","Noctuidae (Eulenfalter)","einzeln",2,"verbreitet und häufig",4,16,3,"verbreitet",4,50,"schwankend",4,9,"Gleichbleibend verbreitet bis sehr häufig",9,null,"Gleichbleibend verbreitet bis sehr häufig"]
[10211,3075,"Xestia","sexstrigata","Wälder und Waldrandnähe, feuchte Bachtäler, Gebüschreiche Moore, Baggerseen, Bruchwälder, Auwälder, Steinbrüche, Kiesgruben",null,1,{"$nulls":6},1,1,1,null,null,null,1,null,null,null,"vermutlich polyphag",1,null,1,{"$nulls":6},1,"2_1",null,"Sechlinien-Bodeneule","Noctuidae (Eulenfalter)","Selten. Am 5. Aug.[ust] 1870 einmal",2,"Verbreitet aber meist einzeln",2,50,4,"häufig",3,28,"zunehmend",3,7,"Zunehmend",7,null,"Gleichbleibend verbreitet bis sehr häufig"]
[10212,3076,"Xestia","xanthographa","überall   ",{"$nulls":17},1,"Gräser, krautige Pflanzen, Schlehe",1,null,1,1,{"$nulls":5},1,null,null,"Braune Spätsommer-Bodeneule","Noctuidae (Eulenfalter)","Verbreitet und nicht selten",3,"Überall...und häufig bis sehr häufig",5,193,6,"gemein",4,80,"zunehmend",3,9,"Gleichbleibend verbreitet bis sehr häufig",11,null,"Gleichbleibend verbreitet bis sehr häufig"]
[10232,3085,"Anaplectoides","prasina","Krautreiche, lichte Wälder, Waldränder und Gebüsche, auch in Ortschaften",{"$nulls":5},1,1,null,null,1,1,{"$nulls":5},1,null,"Diverse krautige Pflanzen",null,null,1,{"$nulls":6},1,null,null,"Lauchgrüne Eule","Noctuidae (Eulenfalter)","Nicht häufig",3,"verbreitet und ziemlich häufig",3,22,3,"verbreitet",3,24,"gleichbleibend",4,9,"Gleichbleibend verbreitet bis sehr häufig",9,null,"Gleichbleibend verbreitet bis sehr häufig"]
[10348,3043,"Agrotis","exclamationis","Mesophiles Grasland, Wirtschaftswiesen, Gärten, Parks eher im Offenland, dort überall",null,null,null,1,1,{"$nulls":8},1,1,1,1,null,"polyphag an  krautigen Pflanzen und Gräsern",null,null,1,1,{"$nulls":5},1,"4_9",null,"Ausrufungszeichen, Gemeine Graseule","Noctuidae (Eulenfalter)","Häufig",4,"häufig bis gemein",6,409,5,"sehr häufig",6,300,"schwankend",4,12,"Gleichbleibend verbreitet bis sehr häufig",12,null,"Gleichbleibend verbreitet bis sehr häufig"]
[10351,3038,"Agrotis","segetum","In den meistren Offenlandhabitaten",1,1,1,1,1,1,{"$nulls":9},1,null,null,"polyphag an  krautigen Pflanzen und Gehölzen",1,null,1,{"$nulls":6},1,null,null,"Saateule","Noctuidae (Eulenfalter)","Gemein",6,"verbreitet ",3,30,3,"verbreitet",4,50,"abnehmend",2,6,"Gleichbleibend verbreitet bis sehr häufig",6," ","Gleichbleibend verbreitet bis sehr häufig"]
[10372,3004,"Colocasia","coryli","Überall in Laub- und Laubmischwaldgesellschaften",{"$nulls":9},1,1,{"$nulls":7},"Laubbäume",1,{"$nulls":8},1,null,null,"Haseleule","Noctuidae (Eulenfalter)","Häufig",4,"verbreitet",3,1,4,"häufig",4,80,"schwankend",4,9,"Gleichbleibend verbreitet bis sehr häufig",9,null,"Gleichbleibend verbreitet bis sehr häufig"]
[10387,2075,"Calliteara","pudibunda","Überall",{"$nulls":17},1,"Diverse Laubbäume und Sträucher",1,{"$nulls":8},1,"3_3","3_5","Streckfuß","Lymantriidae (Trägspinner)","Ueberall gemein",6,"überall häufig ",4,207,5,"sehr häufig",5,120,"schwankend",4,12,"Gleichbleibend verbreitet bis sehr häufig",12,"314 Falter, aber antiqua nur 28! O.k.","Gleichbleibend verbreitet bis sehr häufig"]
[10397,2076,"Orgyia","antiqua","Überall ",{"$nulls":17},1,"Diverse Laubbäume und Sträucher",1,{"$nulls":8},1,null,null,"Kleiner Bürstenspinner","Lymantriidae (Trägspinner)","Gemein",6,"manchmal häufig",4,73,6,"häufig",4,50,"gleichbleibend",4,12,"Gleichbleibend verbreitet bis sehr häufig",12,"saniert.","Gleichbleibend verbreitet bis sehr häufig"]
[10451,3393,"Pseudoips","prasinana","Feuchte Laubwälder, Gärten und Parks",{"$nulls":9},1,1,{"$nulls":5},1,null,"Laubbäume",1,{"$nulls":8},1,"3_3",null,"Buchenkahneule","Noctuidae (Eulenfalter)","Ueberall",4,"verbreitet und nicht selten",3,33,3,"verbreitet",4,50,"gleichbleibend",4,9,"Gleichbleibend verbreitet bis sehr häufig",9,null,"Gleichbleibend verbreitet bis sehr häufig"]
[10483,2049,"Atolmis","rubricollis","Nadelholzreiche Wälder, Laubwälder auf frischen bis feuchten Standorten, Moore, Gärten, Obstwiesen, Industriebrachen",null,1,{"$nulls":8},1,1,1,null,null,1,null,null,"Flechten",{"$nulls":6},1,1,{"$nulls":4},"Rotkragen-Flechtenbärchen","Arctiidae (Bärenspinner)","Nicht häufig",3,"verbreitet",3,0,2,"selten",4,80,"gleichbleibend",4,5,"Gleichbleibend selten",5," ","Gleichbleibend verbreitet bis sehr häufig"]
[10487,2039,"Eilema","depressa","Breites ökologischen Spektrum, innerhalb und am Rande von Laubmischwald, Nadelwald und gehölzreicher Offenlandschaft",{"$nulls":17},1,"Flechten",{"$nulls":5},1,null,1,null,null,"3_7",null,"Nadelwald-Flechtenbärchen","Arctiidae (Bärenspinner)","Selten",2,"häufig",4,40,3,"verbreitet",4,50,"schwankend",4,9,"Gleichbleibend verbreitet bis sehr häufig",9,null,"Gleichbleibend verbreitet bis sehr häufig"]
[10489,2041,"Eilema","lurideola","Breites ökologischen Spektrum, innerhalb und am Rande von Laubmischwald, Nadelwald und gehölzreicher Offenlandschaft",{"$nulls":17},1,"Flechten, Algen, Moose",{"$nulls":5},1,null,null,1,null,null,null,"Grauleib-Flechtenbärchen","Arctiidae (Bärenspinner)","Selten",2,"Im ganzen Gebiet",3,29,3,"verbreitet",3,17,"gleichbleibend",4,9,"Gleichbleibend verbreitet bis sehr häufig",9,"sehr selten, nur 3 FO kommentieren","Gleichbleibend verbreitet bis sehr häufig"]
[10490,2042,"Eilema","complana","Das gesamte Spektrum trockener bis feuchter Wälder, Siedlungsraum, auch in Steinbrüchen, Gärten",{"$nulls":9},1,1,1,{"$nulls":4},1,null,"Flechten",{"$nulls":5},1,null,1,{"$nulls":4},"Gelbleib-Flechtenbärchen","Arctiidae (Bärenspinner)","Ueberall häufig",4,"recht häufig",4,16,4,"häufig",4,50,"gleichbleibend",4,9,"Gleichbleibend verbreitet bis sehr häufig",9,null,"Gleichbleibend verbreitet bis sehr häufig"]
[10499,2046,"Eilema","sororcula","Vielgestaltig, laubholzreiche Wälder, besonders in Felsschluchtwäldern, Steinbrüche, in Siedlungen",{"$nulls":9},1,1,null,null,null,1,null,1,null,"Flechten",{"$nulls":5},1,null,1,{"$nulls":4},"Dottergelbes Flechtenbärchen","Arctiidae (Bärenspinner)","Verbreitet, aber nicht häufig ",3,"in allen Zonen ",3,20,4,"häufig",5,100,"gleichbleibend",4,9,"Gleichbleibend verbreitet bis sehr häufig",9,null,"Gleichbleibend verbreitet bis sehr häufig"]
[10550,2054,"Phragmatobia","fuliginosa","Überall, Pionierart (häufige Art in der Trümmerflora nach dem 2. Weltkrieg)",{"$nulls":17},1,"Polyphag an  krautigen Pflanzen",null,null,1,{"$nulls":6},1,null,null,"Zimt-Bär","Arctiidae (Bärenspinner)","Häufig",4,"verbreitet und sehr zahlreich",4,15,4,"häufig",5,120,"gleichbleibend",4,9,"Gleichbleibend verbreitet bis sehr häufig",9,null,"Gleichbleibend verbreitet bis sehr häufig"]
[10566,2057,"Spilosoma","lutea","Wenig anspruchsvolle Art, überall",{"$nulls":17},1,"Polyphag an Sträuchern und krautigen Pflanzen",1,null,1,{"$nulls":6},1,null,null,"Gelber Fleckleibbär","Arctiidae (Bärenspinner)","Nicht häufig",3,"Überall",4,7,4,"häufig",4,60,"gleichbleibend",4,9,"Gleichbleibend verbreitet bis sehr häufig",9,null,"Gleichbleibend verbreitet bis sehr häufig"]
[10567,2058,"Spilosoma","lubricipeda","Verschiedenste Lebensräume, nicht allzu anspruchsvolle Art, Hauptlebensraum: Wiesen, Hochstaudenfluren, Brachland, auch in Gärten und Parks",{"$nulls":17},1,"Polyphag an Sträuchern und krautigen Pflanzen",1,null,1,{"$nulls":6},1,null,null,"Punktierter Fleckleibbär","Arctiidae (Bärenspinner)","Sehr häufig",5,"Überall häufig",4,100,4,"häufig",5,100,"gleichbleibend",4,9,"Gleichbleibend verbreitet bis sehr häufig",9,null,"Gleichbleibend verbreitet bis sehr häufig"]
[10607,2071,"Tyria","jacobaeae","Halbtrockenrasen, magere Wiesen, auch auf Feuchtwiesen",1,1,1,1,1,{"$nulls":13},"Sumpf-Greiskraut, Raukenblättriges Greiskraut, Jakobs-Greiskraut, Wasser-Greiskraut",null,null,1,{"$nulls":4},1,null,null,"4_3",null,"Jakobskraut-Bär","Arctiidae (Bärenspinner)","An einzelnen Stellen häufig",4,"sehr vereinzelt",1,43,4,"häufig",4,80,"schwankend",4,9,"Gleichbleibend verbreitet bis sehr häufig",9,null,"Gleichbleibend verbreitet bis sehr häufig",null,{"$f":"COUNTA(AI393:AI589)","v":72},{"$f":"COUNTA(W393:W589)","v":59}]
[747,null,"Diplodoma","laichartingella","Laubholz- und nadelholzreiche Wälder, Gebüsche auf trocknene, waremen Standorten",{"$nulls":18},"Algen und Flechten, Moose, auch andere Insekten",{"$nulls":5},1,1,null,1,null,null,null,"Faulholz-Sackträger","Psychidae (Echte Sackträger)","Keine Angaben",0,"Schloß Burg (19.6.1949…) ",1,0,0,"verschwunden",0,0,"nicht bewertet"," "," ","nicht bewertet"," "," ",{"$f":"IF(BA590=1,\"Einzelfund\",IF(OR(BA590=2,BA590=3),\"Abnehmend\",IF(OR(BA590=4,BA590=7,BA590=8,BA590=11),\"Zunehmend\",IF(BA590=5,\"Gleichbleibend selten\",IF(OR(BA590=6,BA590=9,BA590=10,BA590=12),\"Gleichbleibend verbreitet bis sehr häufig\",\"nicht bewertet\")))))","v":"nicht bewertet"}]
[751,null,"Narycia","duplicella","Wälder, gebüschem, Obstwiesen, Alleebäume, Denkmäler, Mauern, Zäune",{"$nulls":18},"Flechten",{"$nulls":5},1,null,1,{"$nulls":4},"Schwarzer Motten-Sackträger","Psychidae (Echte Sackträger)","Keine Angaben",0,"  Mehrere Funde in W und SG zwischen 1974-1978",1,0,0,"verschwunden",1,1,"nicht bewertet"," "," ","nicht bewertet"," "," ","nicht bewertet"]
[762,null,"Dahlica","triquetrella","Wälder auf luftfeuchten Standorten mit hohem Buchenanteil, offene Schneisen in Fichtenweldern, Felsflure, Wiesen, Brachen, Weinberge, auch im Siedlungsbereich",{"$nulls":18},"Flechten",{"$nulls":5},1,null,1,{"$nulls":4},"Dreikant-Zwerg-Sackträger","Psychidae (Echte Sackträger)","Keine Angaben",0,"Solingen-Glüder (9.04.1978 5 Säcke…)",1,1,2,"selten",0,0,"nicht bewertet"," "," ","nicht bewertet"," "," ","nicht bewertet"]
[765,null,"Dahlica","lichenella","Wälder, Felsen, eher auf warmen, nicht zu feuchten Standorten",{"$nulls":18},"Algen",{"$nulls":5},1,null,1,{"$nulls":4},"Eingeschlechtlicher Zwerg-Sackträger","Psychidae (Echte Sackträger)","Keine Angaben",0,"  Mehrere Funde in W zwischen 1975-1977",1,0,0,"verschwunden",0,0,"nicht bewertet"," "," ","nicht bewertet"," "," ","nicht bewertet"]
[784,null,"Dahlica","sauteri","Sonnige Randbereiche von lichten Laub- und Nadelwäldern, offene Stellen in Mooren, Felsen, nicht auf Kalkboden",{"$nulls":18},"Flechten",{"$nulls":5},1,null,1,{"$nulls":4},"Sauters Zwerg-Sackträger","Psychidae (Echte Sackträger)","Keine Angaben",0,"Mehrere Funde in Wuppertal  zwischen 1973-1977. Daneben meldet Nippel (1994) einen Fund von 1988 vom Eskesberg in Wuppertal.",1,0,0,"verschwunden",0,0,"nicht bewertet"," "," ","nicht bewertet"," "," ","nicht bewertet"]
[815,null,"Taleporia","tubulosa","Sehr anpassungsfähige Art, überall",{"$nulls":18},"Algen und Flechten, andere Insekten ",{"$nulls":5},1,null,null,1,null,null,null,"Röhren-Sackträger","Psychidae (Echte Sackträger)","Keine Angaben",0,"Überall...verbreitet und häufig",4,53,4,"häufig",3,25,"nicht bewertet"," "," ","nicht bewertet"," "," ","nicht bewertet"]
[866,null,"Bacotia","claustrella","Alte Laub- und Nadelwälder auf feuchten bis mäßig trockenen Standorten, auf kalkarmen Böden",{"$nulls":18},"Algen und Flechten ",{"$nulls":5},1,null,1,{"$nulls":4},"Glocken-Sackträger","Psychidae (Echte Sackträger)","Ein Ex. 1866 erzogen",1,"Mehrere Exemplare 1977 im Marscheider Bachtal in W.",1,0,0,"verschwunden",1,1,"nicht bewertet"," "," ","nicht bewertet"," "," ","nicht bewertet"]
[868,null,"Proutia","betulina","Feuchte, auch trockene lichte Laub- und Nadelwälder, Obstwiesen, Industriebrachen, eher wärmeliebend",{"$nulls":18},"Algen",{"$nulls":6},1,1,{"$nulls":4},"Birken-Sackträger","Psychidae (Echte Sackträger)","Keine Angaben",0,"Mehrere Exemplare in W und SG zwischen 1973 und 1978.",1,0,0,"verschwunden",0,0,"nicht bewertet"," "," ","nicht bewertet"," "," ","nicht bewertet"]
[877,2187,"Psyche","casta","Überall, im Wald, auf Wiesen, im Siedlungsbereich",{"$nulls":18},"Hainbuche, Rotbuche, Feld-Ulme, Brombeere, Trauben-Eiche, Schlehe, Faulbaum u.a.",1,{"$nulls":11},"Kleiner Rauch-Sackträger","Psychidae (Echte Sackträger)","Alljährlich oft erzogen ",4,"im ganzen Gebiet",4,46,3,"verbreitet",3,30,"nicht bewertet"," "," ","nicht bewertet"," "," ","nicht bewertet"]
[926,2186,"Epichnopterix","plumella","Auf ungedüngten Wiesen aller offenen Standorte, nicht im Wald",{"$nulls":18},"Schwingel, Pfeifengras, Frühlings-Fingerkraut, Wicke, Spitz-wegerich",null,null,1,1,{"$nulls":5},1,null,null,"Wiesen-Sackträger","Psychidae (Echte Sackträger)","selten    ",2,"Keine neuen Funde, zitieren nur Weymer",0,0,0,"verschwunden",0,0,"nicht bewertet"," "," ","nicht bewertet"," "," ","nicht bewertet"]
[932,null,"Epichnopterix","sieboldi","Magerrasen, auf felsigen und kalkreichen Standorten, Trockenhänge, Heiden, wärmeliebend",{"$nulls":18},"Frühlings-GFingerkraut,. Gewöhnlcihes Sonnenröschen, Edel-Gamander",null,null,1,{"$nulls":5},1,null,null,null,"Siebolds-Felsflur-Sackträger","Psychidae (Echte Sackträger)","1865 fand ich einmal den Sack dieser Art und erzog ein Männchen daraus",0,"Dieser einzige bekannte Fund müsste durch weitere Funde bestätigt werden",0,0,0,"verschwunden",0,0,"nicht bewertet"," "," ","nicht bewertet"," "," ","nicht bewertet"]
[961,2184,"Canephora","hirsuta","Offenland, Wiesen, auch an Gebüschen, in lockeren Baumbeständen, Heiden, Ginsterheide, Kulturbrachen, eher auf trockenen und warmen Standorten",{"$nulls":18},"Feld-Ulme, Weißdorn, Brombeere, Besenginster, Storchschnabel, Feld-Ahorn, Sanddorn, Wiesen-Salbei, Großer Wegerich, Spitz-Wegerich",1,null,1,{"$nulls":6},1,null,null,"Grosser Sackträger","Psychidae (Echte Sackträger)","einzeln ",2,"nennen je einen Fund aus RS von 1928 und aus W von 1942",1,0,0,"verschwunden",0,0,"nicht bewertet"," "," ","nicht bewertet"," "," ","nicht bewertet"]
[1012,2185,"Sterrhopterix","fusca","Große ökologische Valenz, Wälder, Gebüsche, Siedlungs- und Kulturland",{"$nulls":18},"Trespe, Seegras, Feldulme, Schlehe, Sanddorn",1,null,null,1,{"$nulls":4},1,null,null,null,"Laubholz-Sackträger","Psychidae (Echte Sackträger)","selten",1,"1925-1934 4 Säcke [aus Wuppertal, Anm. d. Autoren] in coll. FUHLROTT-Museum…",1,0,0,"verschwunden",0,0,"nicht bewertet"," "," ","nicht bewertet"," "," ","nicht bewertet"]
[4026,2193,"Pennisetia","hylaeiformis","Waldschläge, Waldrand, Waldwege, Himbeerkulturen",{"$nulls":18},"Himbeere, im Mark",null,null,1,{"$nulls":4},1,null,null,"3_8","3_4, 4_9","Himbeerenglasflügler","Sesiidae (Glasflügler)","in mehreren Exemplaren ",2,"Die Art dürfte mit der Himbeere im gesamten Gebiet vorkommen",4,27,3,"verbreitet",4,50,"nicht bewertet"," "," ","nicht bewertet"," "," ","nicht bewertet"]
[4030,2189,"Sesia","apiformis","Offene Landschaft mit frei stehenden Pappeln, Flussufer, Straßenbäume",{"$nulls":18},"Pappeln, in den Wurzeln",{"$nulls":4},1,null,null,1,null,null,"4_8","3_1","Bienglasflügler, Hornissenglasflügler","Sesiidae (Glasflügler)","Ueberall",4,"In allen größeren Pappelbeständen",4,0,1,"sehr selten",3,30,"nicht bewertet"," "," ","nicht bewertet"," "," ","nicht bewertet"]
[4032,2191,"Sesia","bembeciformis","Ruderalflächen, Steinbrüche, Gärten, Hecken und Feldgehölze",{"$nulls":18},"Weiden, in Stämmen und Wurzeln",{"$nulls":4},1,null,1,1,{"$nulls":4},"Grosser Weiden-Glasflügler","Sesiidae (Glasflügler)","Keine Angaben",0,"Von dieser allgemein sehr seltenen Art in unserem Gebiet nur zwei Falter ",1,0,0,"verschwunden",0,0,"nicht bewertet"," "," ","nicht bewertet"," "," ","nicht bewertet"]
[4039,2190,"Paranthrene","tabaniformis","Auwälder, eher wärmeliebend, Weinberge, sonnige Waldränder",{"$nulls":18},"Zitter-Pappel, Silber-Pappel, Schwarz-Pappel, im Holz",{"$nulls":6},1,1,{"$nulls":4},"Kleiner Pappel-Glasflügler ","Sesiidae (Glasflügler)","Verbreitet und häufig",4,"seltener als S. apiformis",3,0,0,"verschwunden",3,17,"nicht bewertet"," "," ","nicht bewertet"," "," ","nicht bewertet"]
[4044,2194,"Synanthedon","scoliaeformis","Lichte, feuchte Wälder, halbschttige Waldränder, Eichen-Hainbuchen-Wald, Birken in Mooren",{"$nulls":18},"Hänge-Birke, Moor-Birke, im Holz",{"$nulls":6},1,1,{"$nulls":4},"Grosser Birken-Glasflügler","Sesiidae (Glasflügler)","Eine ausgeflogene Puppe dieser Art…unter Birkenrinde…fand ich einmal im Jahre 1864 auf dem Nützenberge [in W.-Elberfeld, Amn. d. Autoren]",1,"Keine Nachweise seit Weymer",0,0,0,"verschwunden",2,10,"nicht bewertet"," "," ","nicht bewertet"," "," ","nicht bewertet"]
[4045,2195,"Synanthedon","spheciformis","Erlenreiche Gehölze in feuchten Wiesen, lichte Stellen in Wäldern, Waldränder, Kahlschläge, Steinbrüche",{"$nulls":18},"Hänge-Birke, Moor-Birke, Schwarz-Erle, im Holz",{"$nulls":6},1,1,null,null,"3_1, 3_4",null,"Erlenglasflügler","Sesiidae (Glasflügler)","Sehr selten ",1,"seltener im Bergland",2,7,2,"selten",2,6,"nicht bewertet"," "," ","nicht bewertet"," "," ","nicht bewertet"]
[4048,2201,"Synanthedon","culiciformis","Waldgebiete, Kahlschläge, Moore, wärmeliebend",{"$nulls":18},"Hänge-Birke, Schwarz-Erle, im Holz",{"$nulls":6},1,1,null,null,"3_4","1_1, 1_3, 2_1, 3_1","Birkenglasflügler","Sesiidae (Glasflügler)","Selten",2,"Bisher selten  ",2,3,1,"sehr selten",1,3,"nicht bewertet"," "," ","nicht bewertet"," "," ","nicht bewertet"]
[4051,2202,"Synanthedon","formicaeformis","Überall",{"$nulls":18},"Weiden und Pappeln, im Holz",{"$nulls":6},1,1,null,null,"3_1",null,"Weidenglasflügler","Sesiidae (Glasflügler)","Keine Angaben",0,"Keine Angaben",0,3,1,"sehr selten",3,40,"nicht bewertet"," "," ","nicht bewertet"," "," ","nicht bewertet"]
[4059,2199,"Synanthedon","vespiformis","Eichenwälder",{"$nulls":18},"Buchen und Eichen, im Holz und in „Krebs“",{"$nulls":6},1,1,null,null,"3_4, 3_5",null,"Eichenglasflügler","Sesiidae (Glasflügler)","1 Ex. auf dem Nützenberge [in W.-Elberfeld, Anm. d. Autoren] am 17.Juli 1864",0,"vereinzelt  ",2,0,0,"verschwunden",3,30,"nicht bewertet"," "," ","nicht bewertet"," "," ","nicht bewertet"]
[4060,2200,"Synanthedon","myopaeformis","Obstbaumpflanzungen, Streuobstwiesen",{"$nulls":18},"Apfelbaum, Mehlbeerbaum, Rotdorn",1,{"$nulls":7},1,null,"4_7",null,"Apfelbaumglasflügler","Sesiidae (Glasflügler)","eine Anzahl bereits ausgeschlüpfter Puppen…aus einem Kirschbaum",2,"Vereinzelt und selten",2,0,0,"verschwunden",3,30,"nicht bewertet"," "," ","nicht bewertet"," "," ","nicht bewertet"]
[4064,2196,"Synanthedon","tipuliformis","Gärten, Obstplantagen, eher wäremliebend",{"$nulls":18},"Stachebeere, Johannisbeere",null,null,1,{"$nulls":5},1,null,"4_9",null,"Johannisbeerglasflügler","Sesiidae (Glasflügler)","Oft in Gärten",4,"In Garten- und Parklandschaften mit Johannisbeerbeständen",3,0,0,"verschwunden",3,20,"nicht bewertet"," "," ",{"$f":"IF(AX613=1,\"Einzelfund\",IF(OR(AX613=2,AX613=3),\"Abnehmend\",IF(OR(AX613=4,AX613=7,AX613=8,AX613=11),\"Zunehmend\",IF(AX613=5,\"Gleichbleibend selten\",IF(OR(AX613=6,AX613=9,AX613=10,AX613=12),\"Gleichbleibend verbreitet bis sehr häufig\",\"nicht bewertet\")))))","v":"nicht bewertet"}," "," ","nicht bewertet"]
[4070,null,"Bembecia ","ichneumoniformis",{"$nulls":32},"Hornklee-Glasflügler","Sesiidae (Glasflügler)","keine Angaben",0,"keine Angaben",0,0,1,"verschwunden",3,{"$nulls":4},"nicht bewertet",null,null,"nicht bewertet"]
[4140,2205,"Chamaesphecia","empiformis","Wegränder, Säume, Dämme, Ruderalflächen, lichte Wälder, Wacholderheiden, Wenberge",{"$nulls":18},"Zypressen-Wolfsmilch, an den Wurzeln",{"$nulls":4},1,null,null,1,{"$nulls":4},"Zypressenwolfsmilch-Glasflügler","Sesiidae (Glasflügler)","auf Euphorbia cyparissias meistens mehrere Ex. zusammen",2,"nur ältere Funde",0,0,0,"verschwunden",1,1,"nicht bewertet"," "," ",{"$f":"IF(AX615=1,\"Einzelfund\",IF(OR(AX615=2,AX615=3),\"Abnehmend\",IF(OR(AX615=4,AX615=7,AX615=8,AX615=11),\"Zunehmend\",IF(AX615=5,\"Gleichbleibend selten\",IF(OR(AX615=6,AX615=9,AX615=10,AX615=12),\"Gleichbleibend verbreitet bis sehr häufig\",\"nicht bewertet\")))))","v":"nicht bewertet"}," "," ",{"$f":"IF(BA615=1,\"Einzelfund\",IF(OR(BA615=2,BA615=3),\"Abnehmend\",IF(OR(BA615=4,BA615=7,BA615=8,BA615=11),\"Zunehmend\",IF(BA615=5,\"Gleichbleibend selten\",IF(OR(BA615=6,BA615=9,BA615=10,BA615=12),\"Gleichbleibend verbreitet bis sehr häufig\",\"nicht bewertet\")))))","v":"nicht bewertet"}]
[6828,2122,"Agrius","convolvuli","Wanderfalter, Offenland, Raupen oft an Ackwinden auf Unkrautfluren, Weinbergen, in Gärten, auf Äckern",{"$nulls":18},"Zaun-Winde, Acker-Winde, Winde",null,null,1,{"$nulls":4},1,null,null,"4_9",null,"Winden-Schwärmer","Sphingidae (Schwärmer)","Nur in einzelnen Jahren häufig ",2," bei uns nicht heimisch wandert ein ",2,1,1,"sehr selten",1,6,"Wanderfalter"," "," ","nicht bewertet"," "," ","nicht bewertet"]
[6830,2121,"Acherontia","atropos","Wanderfalter, Offenland, Raupen auf Kartoffeläckern",{"$nulls":18},"Liguster, Kartoffel, Stechapfel, Tabak, Sommerflieder",null,null,1,{"$nulls":5},1,null,"4_9",null,"Totenkopf-Schwärmer","Sphingidae (Schwärmer)","Bei Elberf.[eld] sehr selten, dagegen bei Wald…in einzelnen Jahren oft als Raupe auf Kartoffeln",1,"bei uns nicht heimisch und fliegt als Wanderfalter meist selten…ein. ",2,0,0,"verschwunden",1,1,"Wanderfalter"," "," ","nicht bewertet"," "," ","nicht bewertet"]
[6843,2132,"Macroglossum","stellatarum","Wanderfalter, Offenlandbewohner, Falter auch gerne auch in Gärten, Raupen an Straßenränder, Ruderalflächen, Wiesen mit Labkraut ",{"$nulls":18},"Labkraut",null,null,1,{"$nulls":4},1,{"$nulls":4},"Taubenschwänzchen ","Sphingidae (Schwärmer)","Häufig",4,"bei uns nicht bodenständig...In den letzten Jahren [d.h. vor 1974, Anm. d. Autoren] selten beobachtet",2,4,2,"selten",3,35,"Wanderfalter"," "," ","nicht bewertet"," "," ","nicht bewertet"]
[6845,2130,"Daphnis","nerii","Wanderfalter aus dem Tropen",{"$nulls":18},"Nicht heimisch",{"$nulls":12},"Oleander-Schwärmer","Sphingidae (Schwärmer)","Seit 1846 nicht mehr   ",0,"seit 50 Jahren [von 1974 rückgerechnet, Anm. d. Autoren] nicht mehr… ",1,0,0,"verschwunden",0,0,"Wanderfalter",null,null,"nicht bewertet",null,"K6, Wanderfalter, o.k","nicht bewertet"]
[6860,2135,"Hyles","livornica","Wanderfalter aus dem Tropen",{"$nulls":18},"Nicht heimisch",{"$nulls":12},"Linien-Schwärmer","Sphingidae (Schwärmer)","einmal   ",1,"sehr seltener Zuwanderer bei uns nicht heimisch   ",1,0,0,"verschwunden",0,0,"Wanderfalter",null,null,"nicht bewertet",null,"K6, Wanderfalter o.k.","nicht bewertet"]
[6865,2138,"Hippotion","celerio","Wanderfalter aus dem Tropen",{"$nulls":18},"Nicht heimisch",{"$nulls":12},"Großer Wein-Schwärmer","Sphingidae (Schwärmer)","Nur höchst selten   ",1,"bei uns nicht bodenständig ",1,0,0,"verschwunden",0,0,"Wanderfalter",null,null,"nicht bewertet",null,"K6, Wanderfalter o.k.","nicht bewertet"]
[6923,1136,"Thymelicus","lineola","Überall, tendenziell eher auf trockeneren Standorten im Vergleich zu  T. sylvestris",{"$nulls":18},"Gräser",null,null,null,1,{"$nulls":4},1,null,"4_2","2_1, 4_3, 4_4","Schwarzkolbiger Braun-Dickkopffalter","Hesperiidae (Dickkopffalter)","Keine Angabe (da gleich sylvestris)",6,"verbreitet, aber viel seltener als A. silvester",3,60,4,"häufig",4,60,"nicht bewertet"," "," ","nicht bewertet"," "," ","nicht bewertet"]
[6924,1138,"Thymelicus","sylvestris","Überall, tendenziell eher auch auf feuchteren Standorten im Vergleich zu  T. Lineola",{"$nulls":18},"Wolliges Honiggras, Weiches Honiggras",null,null,null,1,null,null,null,1,null,null,"4_2","1_4, 4_1, 4_3, 4_4","Braunkolbiger Braun-Dickkopffalter","Hesperiidae (Dickkopffalter)","Ueberall gemein",6,"Überall sehr häufig",5,205,5,"sehr häufig",4,50,"nicht bewertet"," "," ","nicht bewertet"," "," ","nicht bewertet"]
[6966,1016,"Leptidea","sinapis"," Offenland und offene Flächen im Wald, besonders auf ger- und Trockenrasen, Waldsäume, Böschungen, Straßenränder, Talwiesen, Kiesgruben, Steinbrüche, Gärten, Weinberge, nicht in Mooren",{"$nulls":18},"Sichelklee, Gewöhnlicher Hornklee, Bunte Kronwecke, Vogel-Wicke, Wiesen-Platterbse",null,null,1,{"$nulls":5},1,null,"3_8","3_6","Tintenfleck-Weißling","Pieridae (Weißlinge)","Seit 1863 nicht mehr",0,"  um die Jahrhundertwende [19./20. Jh.!, Anm. d. Autoren] verschwunden",0,0,0,"verschwunden",0,null,"Einzelfund(e)",1,1,"Einzelfund",1," ","nicht bewertet"]
[6967,null,"Leptidea","reali",{"$nulls":30},"-","-","Tintenfleck-Weißling","Pieridae (Weißlinge)","Keine Angabe",0,"Keine Angabe",0,0,1,"sehr selten",1,10,"Einzelfund(e)",1,1,"Einzelfund",1," ","nicht bewertet"]
[7005,1009,"Pontia","daplidice","Offenlandbewohner, Hochwasserdämme, Kiesflächen, Ödland, Trockenrasen, eher wärmeliebend",{"$nulls":18},"Wilde Resede",null,null,1,{"$nulls":4},1,null,null,"4_2",null,"Reseda-Weißling","Pieridae (Weißlinge)","Sehr einzeln",1,"nicht bodenständig",1,0,0,"verschwunden",0,0,"Wanderfalter",null,null,"nicht bewertet",null,"K6, sehr selten, Wanderfalter, Nachtrag o.k",{"$f":"IF(BA626=1,\"Einzelfund\",IF(OR(BA626=2,BA626=3),\"Abnehmend\",IF(OR(BA626=4,BA626=7,BA626=8,BA626=11),\"Zunehmend\",IF(BA626=5,\"Gleichbleibend selten\",IF(OR(BA626=6,BA626=9,BA626=10,BA626=12),\"Gleichbleibend verbreitet bis sehr häufig\",\"nicht bewertet\")))))","v":"nicht bewertet"}]
[7015,1014,"Colias","croceus","Wanderfalter, nicht bodenständig, Offenlandbewohner, Kulturlandbewohner",{"$nulls":18},"Luzerne, Gewöhnlicher ornklee, Klee, Bunte Kronwicke",null,null,1,{"$nulls":5},1,null,null,null,"Wander-Gelbling, Postillon","Pieridae (Weißlinge)","Meistens einzeln",2,"Wanderfalter,...nicht heimisch",3,29,3,"verbreitet",3,35,"Wanderfalter"," "," ","nicht bewertet"," "," ","nicht bewertet"]
[7210,1076,"Issoria","lathonia","Offene Flächen, Wiesenböschungen, Brachland, Ruderalflächen, Schuttfluren, „Steppentier“",null,null,1,1,1,{"$nulls":8},1,1,1,null,null,"Acker-Stiefmütterchen",null,null,1,{"$nulls":4},1,null,null,"4_2",null,"Kleiner Perlmuttfalter","Nymphalidae (Edelfalter)","Ueberall häufig",4,"Bei uns 1954 zuletzt gefunden",1,2,1,"sehr selten",1,5,"Wanderfalter",null,null,"nicht bewertet",null,"K6, Wanderfalter o.k.","nicht bewertet"]
[7243,1049,"Vanessa","atalanta","Wanderfalter, nicht bodenständig  ",{"$nulls":18},"Große Brennnessel, Brennnessel",null,null,1,{"$nulls":4},1,null,null,"4_7","3_1, 3_8, 4_2, 4_3, 4_9","Admiral","Nymphalidae (Edelfalter)","Ziemlich häufig",4,"Wanderfalter...Überall",4,407,5,"sehr häufig",4,100,"Wanderfalter"," "," ","nicht bewertet"," "," ","nicht bewertet"]
[7245,1050,"Vanessa","cardui","Wanderfalter, nicht bodenständig  ",{"$nulls":18},"Große Brennnessel, Brennnessel, , Distel-Arten, Malverarten, Wiesn-Bärenklau, Natterkopf, Wegerich-Arten, Gewöhnlicher Beifuß, Huflattich u.a.",null,null,1,{"$nulls":4},1,null,null,"4_2","4_1, 4_3, 4_9","Distelfalter","Nymphalidae (Edelfalter)","Seit einer Reihe von Jahren nicht häufig, früher mehrere Jahre hintereinander gemein.",4,"Wanderfalter...überall",4,125,4,"häufig",4,60,"Wanderfalter"," "," ","nicht bewertet"," "," ","nicht bewertet"]
[7778,4360,"Alcis","bastelbergeri","Nadelwälder und Mischwälder der (sub)montanen Stufe",{"$nulls":10},1,1,{"$nulls":6},"Waldrebe, Himbeere",null,null,1,{"$nulls":5},1,null,null,null,"Batelbergers Rindenspanner","Geometridae (Spanner)","Arealerweiterer, der zu Weymers Zeiten noch nicht bei uns vorkam",0,"verbreitet und nicht selten  ",3,0,0,"verschwunden",0,0,"Einzelfund(e)"," ",null,"nicht bewertet",null,"War die Art jemals in unserem Raum, unklare räumliche Zuordnung, eher K 6 o.k","nicht bewertet"]
[8211,null,"Rhodometra","sacraria","Wanderfalter",{"$nulls":18},"Vogelknöterich",null,null,1,{"$nulls":4},1,{"$nulls":4},"Schwefelgelber Schmuckspanner","Geometridae (Spanner)","Keine Angaben",0,"Keine Angaben",0,0,1,"sehr selten",0,0,"Wanderfalter"," "," ","nicht bewertet"," "," ","nicht bewertet"]
[8246,4141,"Orthonama","obstipata","Wanderfalter",{"$nulls":18},"Chrysanthemen u.a.",null,null,1,{"$nulls":5},1,null,null,null,"Uferstauden-Blattspanner","Geometridae (Spanner)","Keine Angaben",0,"Keine Angaben, Roland meldet je einen Falter vom 10.10.96 und 14.10.98 aus der Ohligser Heide, Kinkler (1999)",1,1,1,"sehr selten",1,4,"Wanderfalter"," "," ","nicht bewertet"," "," ","nicht bewertet"]
[8314,4199,"Pelurga","comitata","Nährstoffreiche Unkrautflure, Ruderalstandorte, Bahnanlghen, Straßenräder, Schuttplätze",{"$nulls":18},"Melden- und Gänsefußarten",null,null,1,{"$nulls":5},1,null,"4_2","4_9","Melden-Blattspanner","Geometridae (Spanner)","Keine Angaben",0,"einzeln  ",2,0,0,"verschwunden",0,0,"Einzelfund(e)",1,null,"nicht bewertet",null,"War er jemals da, unklare räuml. Zuordnung o.k","nicht bewertet"]
[8343,4132,"Chloroclysta","citrata","Moore, Moorwälder, Waldmäntel und Waldränder",null,1,{"$nulls":4},1,null,1,{"$nulls":9},"Heidelbeere ",null,null,1,{"$nulls":4},1,{"$nulls":4},"Spitzwinkel-Bindenspanner","Geometridae (Spanner)","Einzeln und selten   ",2,"verbreitet., aber im Gegensatz zu D. [=C.] truncata meist einzeln",2,0,1,"sehr selten",1,8,"gleichbleibend",4,5,"nicht bewertet",5," ","nicht bewertet"]
[8357,4123,"Thera","variata","Misch- und Nadelwälder, Gärten, Parks",{"$nulls":10},1,1,{"$nulls":4},1,null,"Weißtane, Fichte",null,1,{"$nulls":6},1,null,"3_7",null,"Veränderlicher Nadelholzspanner","Geometridae (Spanner)","Einzeln  ",2,"sehr häufig",5,3,2,"selten",2,7,"nicht bewertet"," "," ",{"$f":"IF(AX636=1,\"Einzelfund\",IF(OR(AX636=2,AX636=3),\"Abnehmend\",IF(OR(AX636=4,AX636=7,AX636=8,AX636=11),\"Zunehmend\",IF(AX636=5,\"Gleichbleibend selten\",IF(OR(AX636=6,AX636=9,AX636=10,AX636=12),\"Gleichbleibend verbreitet bis sehr häufig\",\"nicht bewertet\")))))","v":"nicht bewertet"}," ","Datengrundlage wg. Schwieriger Bestimmung unsicher",{"$f":"IF(BA636=1,\"Einzelfund\",IF(OR(BA636=2,BA636=3),\"Abnehmend\",IF(OR(BA636=4,BA636=7,BA636=8,BA636=11),\"Zunehmend\",IF(BA636=5,\"Gleichbleibend selten\",IF(OR(BA636=6,BA636=9,BA636=10,BA636=12),\"Gleichbleibend verbreitet bis sehr häufig\",\"nicht bewertet\")))))","v":"nicht bewertet"}]
[8358,"                           4123a","Thera","britannica","Misch- und Nadelwälder, Gärten, Parks",{"$nulls":18},"Weißtane, Fichte",null,1,{"$nulls":6},1,null,"4_9",null,"Sägezahnfühler-Nadelholzspanner","Geometridae (Spanner)","Artentrennung von variata erfolgte erst 1942, von daher keine Meldung durch Weymer möglich","-","noch weiter verbreitet",3,0,2,"selten",2,8,"nicht bewertet"," "," ",{"$f":"IF(AX637=1,\"Einzelfund\",IF(OR(AX637=2,AX637=3),\"Abnehmend\",IF(OR(AX637=4,AX637=7,AX637=8,AX637=11),\"Zunehmend\",IF(AX637=5,\"Gleichbleibend selten\",IF(OR(AX637=6,AX637=9,AX637=10,AX637=12),\"Gleichbleibend verbreitet bis sehr häufig\",\"nicht bewertet\")))))","v":"nicht bewertet"}," ","Datengrundlage wg. Schwieriger Bestimmung unsicher",{"$f":"IF(BA637=1,\"Einzelfund\",IF(OR(BA637=2,BA637=3),\"Abnehmend\",IF(OR(BA637=4,BA637=7,BA637=8,BA637=11),\"Zunehmend\",IF(BA637=5,\"Gleichbleibend selten\",IF(OR(BA637=6,BA637=9,BA637=10,BA637=12),\"Gleichbleibend verbreitet bis sehr häufig\",\"nicht bewertet\")))))","v":"nicht bewertet"}]
[8366,4113,"Eustroma","reticulata","Wälder, Wegränder im Wald",{"$nulls":6},1,null,null,1,1,{"$nulls":7},"Impatiens-Arten",null,null,1,{"$nulls":4},1,null,null,"3_2","3_1","Netzspanner","Geometridae (Spanner)","Keine Angaben",0,"verbreitet ",3,0,0,"verschwunden",1,3,"schwankend",4,null,{"$f":"IF(AX638=1,\"Einzelfund\",IF(OR(AX638=2,AX638=3),\"Abnehmend\",IF(OR(AX638=4,AX638=7,AX638=8,AX638=11),\"Zunehmend\",IF(AX638=5,\"Gleichbleibend selten\",IF(OR(AX638=6,AX638=9,AX638=10,AX638=12),\"Gleichbleibend verbreitet bis sehr häufig\",\"nicht bewertet\")))))","v":"nicht bewertet"},null,"K 6, weil unklare räuml. Zuordnung? O.k.",{"$f":"IF(BA638=1,\"Einzelfund\",IF(OR(BA638=2,BA638=3),\"Abnehmend\",IF(OR(BA638=4,BA638=7,BA638=8,BA638=11),\"Zunehmend\",IF(BA638=5,\"Gleichbleibend selten\",IF(OR(BA638=6,BA638=9,BA638=10,BA638=12),\"Gleichbleibend verbreitet bis sehr häufig\",\"nicht bewertet\")))))","v":"nicht bewertet"}]
[8442,4104,"Epirrita","dilutata","Siedlungsraum, Eichen-Hainbuchen-Wald, Eichen-Ulmen-Wald",{"$nulls":9},1,1,{"$nulls":5},1,null,"Pappel, Birke, Eiche, Weißorn, Rose, Schlehe, Ahorn, Heidelbeere",1,{"$nulls":8},1,null,null,"Bräunlicher Laubholz-Herbstspanner","Geometridae (Spanner)","Ueberall…häufig",4,"Überall...verbreitet und ziemlich häufig",3,9,2,"selten",1,5,"nicht bewertet"," "," ",{"$f":"IF(AX639=1,\"Einzelfund\",IF(OR(AX639=2,AX639=3),\"Abnehmend\",IF(OR(AX639=4,AX639=7,AX639=8,AX639=11),\"Zunehmend\",IF(AX639=5,\"Gleichbleibend selten\",IF(OR(AX639=6,AX639=9,AX639=10,AX639=12),\"Gleichbleibend verbreitet bis sehr häufig\",\"nicht bewertet\")))))","v":"nicht bewertet"}," ","Datengrundlage wg. Schwieriger Bestimmung unsicher o.k",{"$f":"IF(BA639=1,\"Einzelfund\",IF(OR(BA639=2,BA639=3),\"Abnehmend\",IF(OR(BA639=4,BA639=7,BA639=8,BA639=11),\"Zunehmend\",IF(BA639=5,\"Gleichbleibend selten\",IF(OR(BA639=6,BA639=9,BA639=10,BA639=12),\"Gleichbleibend verbreitet bis sehr häufig\",\"nicht bewertet\")))))","v":"nicht bewertet"}]
[8443,4105,"Epirrita","christyi","Laubholzreiche Wälder ",{"$nulls":18},"Laubbäume",1,{"$nulls":8},1,"3_3",null,"Grauer Rotbuchen-Herbstspanner","Geometridae (Spanner)","Artabtrennung von dilutata erfolgte erst im 20. Jhd","-","verbreitet und nicht selten.  ",3,1,1,"sehr selten",1,3,"nicht bewertet"," "," ",{"$f":"IF(AX640=1,\"Einzelfund\",IF(OR(AX640=2,AX640=3),\"Abnehmend\",IF(OR(AX640=4,AX640=7,AX640=8,AX640=11),\"Zunehmend\",IF(AX640=5,\"Gleichbleibend selten\",IF(OR(AX640=6,AX640=9,AX640=10,AX640=12),\"Gleichbleibend verbreitet bis sehr häufig\",\"nicht bewertet\")))))","v":"nicht bewertet"}," ","Datengrundlage wg. Schwieriger Bestimmung unsichero.k.",{"$f":"IF(BA640=1,\"Einzelfund\",IF(OR(BA640=2,BA640=3),\"Abnehmend\",IF(OR(BA640=4,BA640=7,BA640=8,BA640=11),\"Zunehmend\",IF(BA640=5,\"Gleichbleibend selten\",IF(OR(BA640=6,BA640=9,BA640=10,BA640=12),\"Gleichbleibend verbreitet bis sehr häufig\",\"nicht bewertet\")))))","v":"nicht bewertet"}]
[8444,4106,"Epirrita","autumnata","Fichten – Tannenwald mit Heidelbeerbeständen, Moore",{"$nulls":18},"Hänge-Birke, Heidelbeere",1,null,1,{"$nulls":5},1,null,"3_3",null,"Moorgebüsch-Herbstspanner","Geometridae (Spanner)","Keine Angaben",0,"lokal und selten",2,0,0,"verschwunden",1,5,"Einzelfund(e)",1,1,"nicht bewertet",1," ","nicht bewertet"]
[8447,4103,"Operophtera","brumata","Überall ",{"$nulls":17},1,"Laubbäume und -gehölze",1,{"$nulls":8},1,null,null,"Kleiner Frostspanner","Geometridae (Spanner)","Sehr gemein",7,"überall häufig bis gemein",6,904,7,"sehr gemein",5,100,"schwankend",4,12,"nicht bewertet",12,null,"nicht bewertet"]
[8448,4102,"Operophtera","fagata","Lichte Rotbuchenwälder",{"$nulls":9},1,1,{"$nulls":7},"Birke, Rotbuche, Feldahorn, Erberesche",1,{"$nulls":8},1,"3_3","3_5","Buchenfrostspanner","Geometridae (Spanner)","Mehrmals  ",2,"überall verbreitet und häufig.  ",4,1,1,"sehr selten",2,16,"schwankend",4,5,"nicht bewertet",5," ","nicht bewertet"]
[8475,4208,"Eupithecia","tenuiata","Bestände von Weiden: Waldränder, Auen, Bruchwälder, Wege, Böschungen, auch in Gärten",{"$nulls":5},1,1,1,{"$nulls":5},1,null,null,1,null,"Weidenblüten",{"$nulls":6},1,1,{"$nulls":4},"Salweiden-Blütenspanner","Geometridae (Spanner)","Selten",2,"verbreitet und nicht selten",3,20,3,"verbreitet",1,2,"gleichbleibend",4,null,{"$f":"IF(AX644=1,\"Einzelfund\",IF(OR(AX644=2,AX644=3),\"Abnehmend\",IF(OR(AX644=4,AX644=7,AX644=8,AX644=11),\"Zunehmend\",IF(AX644=5,\"Gleichbleibend selten\",IF(OR(AX644=6,AX644=9,AX644=10,AX644=12),\"Gleichbleibend verbreitet bis sehr häufig\",\"nicht bewertet\")))))","v":"nicht bewertet"},null,"schwankend, eventuell K 6 o.k, eupithecien habe ich jetzt auch ganz rausgeschmissen",{"$f":"IF(BA644=1,\"Einzelfund\",IF(OR(BA644=2,BA644=3),\"Abnehmend\",IF(OR(BA644=4,BA644=7,BA644=8,BA644=11),\"Zunehmend\",IF(BA644=5,\"Gleichbleibend selten\",IF(OR(BA644=6,BA644=9,BA644=10,BA644=12),\"Gleichbleibend verbreitet bis sehr häufig\",\"nicht bewertet\")))))","v":"nicht bewertet"}]
[8477,4210,"Eupithecia","haworthiata","Waldränder, waldwege",{"$nulls":18},"Blüten von Waldrebe",{"$nulls":6},1,1,{"$nulls":4},"Waldreben-Blütenspanner","Geometridae (Spanner)","Nicht genannt",0,"nur ein Nachweis",1,0,2,"selten",2,15,"nicht bewertet"," "," ","nicht bewertet"," "," ","nicht bewertet"]
[8479,4212,"Eupithecia","plumbeolata","Lichte Wälder mit Wachtelweizen-Beständen",{"$nulls":8},1,1,1,{"$nulls":7},"Blüten von Wachtelweizen, Klappertopf ",{"$nulls":6},1,1,null,null,"3_4, 3_5",null,"Wachtelweizen-Blütenspanner","Geometridae (Spanner)","auf dem Nützenberg [in Elberfeld, Anm. d. Autoren]",2,"Verbreitet, aber immer nur einzeln",2,0,0,"verschwunden",0,0,"abnehmend",2,null,"nicht bewertet",null," ","nicht bewertet"]
[8481,4213,"Eupithecia","abietaria","Fichten und Tannenwälder",{"$nulls":18},"Zapfen von Fichten",{"$nulls":6},1,1,null,null,"3_7",null,"Fichtenzapfen-Blütenspanner","Geometridae (Spanner)","Keine Angaben",0,"Immer nur einzeln",2,6,2,"selten",1,4,"nicht bewertet"," "," ","nicht bewertet"," "," ","nicht bewertet"]
[8482,4214,"Eupithecia","analoga","Schonungen mit mittelgroßen Fichten",{"$nulls":11},1,{"$nulls":6},"Gallen der Fichtengallenlaus",{"$nulls":6},1,1,null,null,"3_7",null,"Fichtengallen-Blütenspanner","Geometridae (Spanner)","Einzeln",2,"etwas häufiger [als abietaria]",2,0,0,"verschwunden",0,0,"abnehmend",2,null,"nicht bewertet",null," ","nicht bewertet"]
[8483,4215,"Eupithecia","linariata","Offenes Gelände, sonnige, warme Standorte, Ruderalflächen, Bahndämme",{"$nulls":18},"Blüten von Gewöhnlichem Leinkraut",{"$nulls":6},1,1,{"$nulls":4},"Leinkraut-Blütenspanner","Geometridae (Spanner)","Keine Angaben",0,"verbreitet und häufig",4,10,3,"verbreitet",1,4,"nicht bewertet"," "," ","nicht bewertet"," "," ","nicht bewertet"]
[8484,4216,"Eupithecia","pulchellata","Waldschläge, Brachen im Wald",{"$nulls":6},1,{"$nulls":11},"Blüten von rotem Fingerhut",{"$nulls":6},1,1,null,null,"3_7",null,"Rotfingerhut-Blütenspanner","Geometridae (Spanner)","Keine Angaben  ",0,"mehr in den höheren Lagen des Berglandes  ",2,1,1,"sehr selten",2,16,"schwankend",4,null,"nicht bewertet",null," ","nicht bewertet"]
[8491,4220,"Eupithecia","exiguata","Hecken, Gebüsche, gerne an feuchten Standorten",{"$nulls":5},1,1,{"$nulls":11},"Eberesche, Himbeere, Schlehe, Roter Hartriegel, Sommerflieder",{"$nulls":6},1,null,null,1,"3_6",null,"Hecken-Blütenspanner","Geometridae (Spanner)","Nicht häufig",3,"Neuere Nachweise fehlen. [d. h. Letztnachweis in unserem Untersuchungsgebiet erfolgte am 04.4.0932 in Wuppertal-Ronsdorf, Amn. d. Autoren]",0,0,0,"verschwunden",0,0,"abnehmend",2,null,"nicht bewertet",null," ","nicht bewertet"]
[8494,4222,"Eupithecia","valerianata","Feuchte, geschütrzte Staudenflure mit Baldrian",{"$nulls":18},"Blüten von Baldrian",{"$nulls":6},1,1,{"$nulls":4},"Baldrian-Blütenspanner","Geometridae (Spanner)","Keine Angaben",0,"Keine Angaben",0,0,1,"sehr selten",1,1,"Einzelfund(e)",1,null,"nicht bewertet",null," ","nicht bewertet"]
[8502,4225,"Eupithecia","venosata","Offene, sonnige Stellen, Magerrasen, Bahndämme",1,null,null,1,{"$nulls":10},1,1,null,null,"Blüten von Leimkraut, Lichtnelke",{"$nulls":6},1,1,null,null,"4_4",null,"Geschmückter Taubenkropf-Blütenspanner","Geometridae (Spanner)","Keine Angaben",0,"vereinzelt",2,3,1,"sehr selten",1,4,"schwankend",4,null,"nicht bewertet",null," ","nicht bewertet"]
[8509,4228,"Eupithecia","centaureata","Besiedelt eine Vielzahl von Lebensräumen, Ruderalflächen, auch in Gärten",{"$nulls":17},1,"Diverse Kräuter",{"$nulls":6},1,null,null,1,"4_2",null,"Mondfleckiger Blütenspanner","Geometridae (Spanner)","Verbreitet, aber selten",2,"Überall häufig",3,5,3,"verbreitet",3,23,"gleichbleibend",4,null,"nicht bewertet",null,null,"nicht bewertet"]
[8519,4234,"Eupithecia","intricata","Wacholderheiden, Magerrasen, Gärten",{"$nulls":18},"Wacholder",{"$nulls":6},1,1,null,null,"4_9","2_1","Großer Wachholder-Blütenspanner","Geometridae (Spanner)","Keine Angaben",0,"erstmals 1932 in unserem Gebiet...heute überall...Kulturfolger",4,17,3,"verbreitet",3,15,"nicht bewertet"," ",null,"nicht bewertet",null," ","nicht bewertet"]
[8526,4236,"Eupithecia","satyrata","Blütenreiche Kraut- und Hochstaudenfluren",{"$nulls":4},1,1,1,{"$nulls":6},1,1,1,null,null,"Birke, Wiesen-Knöterich, Gewöhnlicher Odermennig, Großer Wiesenknopf, Hauhechel, Hornklee, Johanniskraut, Bibernelle, Bärwurz, Wald-Engelwurz und viele andere Kräuter",{"$nulls":6},1,null,null,1,null,null,"Flockenblumen-Blütenspanner","Geometridae (Spanner)","Nicht selten",3,"Vereinzelt",3,0,1,"sehr selten",1,2,"abnehmend",2,null,"nicht bewertet",null," ","nicht bewertet"]
[8527,4238,"Eupithecia","absinthiata","Hochstudenfluren an Waldrändern, Lichtungen, Brachen, Bachtäleren",null,1,null,null,1,null,1,{"$nulls":11},"Diverse Kräuter",{"$nulls":6},1,null,null,1,null,null,"Wermut-Blütenspanner","Geometridae (Spanner)","Bei Elb.[erfeld] und Barmen",2,"nicht selten",3,10,3,"verbreitet",2,8,"gleichbleibend",4,null,"nicht bewertet",null,null,"nicht bewertet"]
[8528,4239,"Eupithecia","goossensiata","Calluna-Heiden",{"$nulls":18},"Blüten von Heidekraut",{"$nulls":6},1,null,null,1,"2_1","1_3","Goossens' Blütenspanner","Geometridae (Spanner)","Keine Angaben",0,"verbreitet aber einzeln",2,0,0,"verschwunden",0,0,"Einzelfund(e)",1,null,"nicht bewertet",null," ","nicht bewertet"]
[8530,4240,"Eupithecia","expallidata","Eher feuchte Hochstaudenfure an waldrändern",{"$nulls":18},"Blüten und Früchte von Greiskraut und Goldrute",{"$nulls":6},1,1,{"$nulls":4},"Fuchs'-Kreuzkraut-Blütenspanner","Geometridae (Spanner)","Keine Angaben",0,"nicht selten ",3,11,3,"verbreitet",1,1,"nicht bewertet"," ",null,"nicht bewertet",null," ","nicht bewertet"]
[8531,4241,"Eupithecia","assimilata","Waldwege, Waldränder, Ufergehölze",{"$nulls":18},"Blüten und Früchte von Hopfen",{"$nulls":6},1,1,{"$nulls":4},"Hopfen-Blütenspanner","Geometridae (Spanner)","keine Angaben",0,"nicht selten",3,11,3,"verbreitet",3,20,"nicht bewertet"," ",null,"nicht bewertet",null," ","nicht bewertet"]
[8534,4242,"Eupithecia","vulgata","Ein breites Spektrum an Lebensräumen, Kulturfolger",{"$nulls":17},1,"Polyphag an verschiedenen Pflanzen",{"$nulls":6},1,null,null,1,null,null,"Gemeiner Blütenspanner","Geometridae (Spanner)","häufig",4,"Weit verbreitet und meist häufig",4,6,3,"verbreitet",2,12,"gleichbleibend",4,null,"nicht bewertet",null,null,"nicht bewertet"]
[8535,4237,"Eupithecia","tripunctaria","Staudensäume, Waldränder, Feldgehölze",{"$nulls":18},"Diverse Blüten krautiger Pflanzen",{"$nulls":6},1,null,null,1,null,null,"Dreipunkt-Blütenspanner","Geometridae (Spanner)","[zwei]mal",1,"Überall häufig",4,10,3,"verbreitet",3,30,"nicht bewertet"," ",null,"nicht bewertet",null," ","nicht bewertet"]
[8537,4244,"Eupithecia","subfuscata","Keine hohen Ansprüche an den Lebensraum, hohe ökologische Valenz",{"$nulls":17},1,"Polyphag an verschiedenen Pflanzen",{"$nulls":6},1,null,null,1,null,null,"Waldkräuter-Blütenspanner","Geometridae (Spanner)","Verbreitet und nicht selten",3,"Bei uns die häufigste Blütenspanner-Art. Überall",4,6,3,"verbreitet",3,20,"schwankend",4,null,"nicht bewertet",null,null,"nicht bewertet"]
[8538,4245,"Eupithecia","icterata","Waldränder, Wiesen, Wegränder, Bahndämme",null,null,null,1,null,null,1,{"$nulls":7},1,1,null,null,"Schafgarbe, Beifuß",{"$nulls":6},1,1,{"$nulls":4},"Schafgarben-Blütenspanner","Geometridae (Spanner)","Einmal   ",1,"Nicht selten   ",3,2,1,"sehr selten",1,5,"schwankend",4,null,"nicht bewertet",null," ","nicht bewertet"]
[8539,4246,"Eupithecia","succenturiata","Offene Landschaften, Ruderalstandorte, Brachen, Bahndämme",{"$nulls":18},"Beifuß",{"$nulls":6},1,1,{"$nulls":4},"Beifuß-Blütenspanner","Geometridae (Spanner)","Keine Angaben",0,"Nicht selten ",3,14,3,"verbreitet",3,16,"nicht bewertet"," ",null,"nicht bewertet",null," ","nicht bewertet"]
[8546,4249,"Eupithecia","subumbrata","Magerrasen, magere Weiden",{"$nulls":18},"Blüten diverser krautiger Pflanzen",{"$nulls":6},1,null,null,1,null,null,"Kräuter-Blütenspanner","Geometridae (Spanner)","Nur einmal bei Elb.[erfeld]…   ",1,"Neben dem Fund von Weymer nennen K. nur einen weitereren Fund vom 30.5.1964 aus Solingen",0,0,0,"verschwunden",0,0,"Einzelfund(e)",1,null,"nicht bewertet",null," ","nicht bewertet"]
[8553,4252,"Eupithecia","simpliciata","Brach- und Ruderalflächen, Weinberge, Steinbrüche",{"$nulls":18},"Melde, Gänsefuß",{"$nulls":6},1,null,1,null,null,null,"Melden-Blütenspanner","Geometridae (Spanner)","Keine Angaben",0,"Wuppertal-Ronsdorf (17.07.1945 4 F[alter])",1,0,0,"verschwunden",0,0,"Einzelfund(e)",1,null,"nicht bewertet",null," ","nicht bewertet"]
[8565,4255,"Eupithecia","indigata","Kiefernmischwälder, Kiefernwälder",{"$nulls":11},1,{"$nulls":6},"Wald-Kiefer",{"$nulls":6},1,1,null,null,"3_7",null,"Kiefern-Blütenspanner","Geometridae (Spanner)","bei Barmen einzeln",2,"Seit 30 Jahren [d.h. seit 1946] nicht mehr",1,0,0,"verschwunden",2,9,"abnehmend",2,null,"nicht bewertet",null," ","nicht bewertet"]
[8567,4256,"Eupithecia","pimpinellata","Magerrasen, magere Wiesen und Bahndämme, trockene Wald- und Gebüschsäume",{"$nulls":18},"Blüten und Samen von Kleiner Bibernelle",{"$nulls":6},1,1,{"$nulls":4},"Bibernellen-Blütenspanner","Geometridae (Spanner)","Keine Angaben",0,"verbreitet, aber einzeln",2,0,0,"verschwunden",1,1,"Einzelfund(e)",1,null,"nicht bewertet",null," ","nicht bewertet"]
[8570,4259,"Eupithecia","nanata","Heiden und Moore",null,1,1,{"$nulls":15},"Heidekraut",{"$nulls":6},1,null,null,1,"2_1","3_4","Heidekraut-Blütenspanner","Geometridae (Spanner)","Ueberall häufig",4,"nicht mehr so häufig wie früher",3,3,1,"sehr selten",1,3,"abnehmend",2,null,"nicht bewertet",null," ","nicht bewertet"]
[8573,4260,"Eupithecia","innotata","Hecken und Gehölze, Magere Standorte",1,{"$nulls":4},1,null,1,{"$nulls":10},"Blüten diverser Gehölze, Blüten von Beifuß",{"$nulls":6},1,null,null,1,null,null,"Feldbeifuß-Blütenspanner","Geometridae (Spanner)","Keine Angaben",0,"spärlich ",2,4,1,"sehr selten",0,0,"schwankend",4,null,"nicht bewertet",null,null,"nicht bewertet"]
[8577,4261,"Eupithecia","virgaureata","Überall ",{"$nulls":18},"Blüten diverser krautiger Pflanzen",{"$nulls":6},1,1,{"$nulls":4},"Rötlicher Goldruten-Blütenspanner","Geometridae (Spanner)","Keine Angaben",0,"Wuppertal-Eskesberg (15.+17.5.1990 Wiemert)",1,6,3,"verbreitet",3,17,"nicht bewertet"," "," ","nicht bewertet",null," ","nicht bewertet"]
[8578,4262,"Eupithecia","abbreviata","Besonnte Waldsäume",{"$nulls":18},"Eiche",{"$nulls":6},1,1,null,null,"3_5",null,"Eichen-Blütenspanner","Geometridae (Spanner)","Selten…",0,"Eine häufige und überall verbreitete Blütenspannerart...\" ",4,97,4,"häufig",4,100,"nicht bewertet"," "," ","nicht bewertet",null," ","nicht bewertet"]
[8583,4264,"Eupithecia","pusillata","Wacholderheiden",null,null,1,{"$nulls":15},"Gewöhnlicher Wacholder",{"$nulls":6},1,1,null,null,"4_9",null,"Kleiner Wacholder-Blütenspanner","Geometridae (Spanner)","Ueberall häufig",4,"häufig und überall verbreitet",4,0,0,"verschwunden",0,0,"abnehmend",2,null,"nicht bewertet",null," ","nicht bewertet"]
[8592,4268,"Eupithecia","lanceata","Wäldr mit hohem Fichtennteil",{"$nulls":18},"Fichte",{"$nulls":6},1,1,null,null,"3_7",null,"Fichten-Blütenspanner","Geometridae (Spanner)","Keine Angaben",0,"Keine Nachweise",0,1,1,"sehr selten",3,34,"Einzelfund(e)",1,null,"nicht bewertet",null," ","nicht bewertet"]
[8595,4265,"Eupithecia","lariciata","Waldbewohner, Lärchenwälder, Mischwälder",{"$nulls":6},1,null,null,null,1,1,{"$nulls":6},"Lärche",{"$nulls":6},1,1,{"$nulls":4},"Lärchen-Blütenspanner","Geometridae (Spanner)","Selten",2,"verbreitet, aber nicht häufig  ",3,5,1,"sehr selten",1,6,"schwankend",4,null,"nicht bewertet",null," ","nicht bewertet"]
[8596,4266,"Eupithecia","tantillaria","Nadelwälder",{"$nulls":18},"Lärche, Fichte, Dugasie",{"$nulls":6},1,null,1,null,"3_7",null,"Nadelgehölz-Blütenspanner","Geometridae (Spanner)","Keine Angaben",0,"Sehr häufig und...überall verbreitet",5,33,3,"verbreitet",4,100,"nicht bewertet"," ",null,"nicht bewertet",null," ","nicht bewertet"]
[8620,4092,"Aplocera","plagiata","Trocken-warme Sand- Kies und Schotterböden, Bahnanlagen, Wacholderheiden",{"$nulls":18},"Echtes Johanniskraut ",null,null,1,{"$nulls":4},1,null,null,"2_3, 4_4",null,"Grosser Johanniskrautspanner","Geometridae (Spanner)","Ueberall häufig",4,"im Bergland selten",2,0,0,"verschwunden",1,2,"nicht bewertet"," "," ","nicht bewertet"," "," ","nicht bewertet"]
[8622,4093,"Aplocera","efformata","Trocken-warme Sand- Kies und Schotterböden, Bahnanlagen",{"$nulls":18},"Echtes Johanniskraut ",null,null,1,{"$nulls":4},1,null,null,"4_2",null,"Sandheiden-Johanniskrautspanner","Geometridae (Spanner)","Von Weymer nicht von plagiata getrennt gemeldet",0,"Über das ganze Gebiet verbreitet und häufig.\" ",4,210,5,"sehr häufig",4,70,"nicht bewertet"," "," ","nicht bewertet"," "," ","nicht bewertet"]
[8776,3010,"Acronicta","tridens","Gebüschreiche Waldränder und Binnensäume, Waldwege, Schneisen, Lichtungen in warmen Eichengesellschaften, gern auf Sandboden, am Rand von Trockenrasen",1,{"$nulls":4},1,1,null,null,1,1,{"$nulls":7},"Weide, Eiche, Erle, Weißdorn, Schlehe",1,{"$nulls":8},1,null,null,"Dreizack-Pfeileule","Noctuidae (Eulenfalter)","Nicht selten",3,"selten ",2,0,0,"verschwunden",0,0,"abnehmend",2,null,"nicht bewertet",null,"K6, schwer bestimmbar o.k","nicht bewertet"]
[8777,3009,"Acronicta","psi","Wald, Waldrand, Lichtungen, Hecken und Säume",{"$nulls":5},1,1,null,null,1,1,null,null,1,null,null,1,null,"Laubbäume",1,{"$nulls":8},1,null,null,"Pfeileule","Noctuidae (Eulenfalter)","Ueberall gemein",6,"verbreitet und nicht selten",3,0,2,"selten",1,6,"abnehmend",2,null,"nicht bewertet",null,"K6, schwer bestimmbaro.k","nicht bewertet"]
[8781,3007,"Acronicta","strigosa","Warme Auwälder, Gebüschmäntel, Bach und Flußtäler, eher wwärmeliebend",{"$nulls":18},"Schlehe",1,{"$nulls":6},1,null,null,"3_6",null,"Striemen-Rindeneule","Noctuidae (Eulenfalter)","keine Angaben",0,"nicht mehr beobachtet",1,0,0,"verschwunden",0,0,"Einzelfund(e)",1,null,"nicht bewertet",1,"War er jemals da, unklare räuml. Zuordnung o.k","nicht bewertet"]
[9056,3414,"Autographa","gamma","Wanderfalter, nicht heimisch",{"$nulls":18},"Diverse krautige Pflanzen",null,null,1,{"$nulls":6},1,null,null,"Gammaeule","Noctuidae (Eulenfalter)","sehr gemein",7,"überall zu finden",4,445,5,"sehr häufig",5,300,"Wanderfalter"," "," ","nicht bewertet"," "," ","nicht bewertet"]
[9091,3421,"Abrostola","tripartita","Brennesselfluren an feuchten, nährstoffreichen und kühlen Standorten an Waldrändern, Bächen, Teichen, Ruderalfluren",null,1,null,null,1,null,1,{"$nulls":11},"Große Brennnesel",null,null,1,{"$nulls":4},1,{"$nulls":4},"Dunkelgraue Nessel-Höckereule","Noctuidae (Eulenfalter)","Häufig",4,"verbreitet und nicht selten",3,17,3,"verbreitet",3,35,"gleichbleibend",4,9,"nicht bewertet",9,null,"nicht bewertet"]
[9093,3423,"Abrostola","triplasia","Brennesselfluren, Bachufer, Moore",null,1,{"$nulls":6},1,{"$nulls":9},"Brennessel",null,null,1,{"$nulls":4},1,{"$nulls":4},"Silbergraue Nessel-Höckereule","Noctuidae (Eulenfalter)","Ueberall häufig",4,"weniger häufig als tripartita",2,3,2,"selten",3,30,"abnehmend",2,3,"nicht bewertet",3," ","nicht bewertet"]
[9307,3261,"Amphipyra","pyramidea","Überall im Laubwald, Laubwaldnähe, Siedlungsbereich",{"$nulls":7},1,null,1,1,{"$nulls":7},"Diverse Laubbäume, Sträucher und krautige Pflanzen",1,null,1,{"$nulls":6},1,null,null,"Pyramideneule","Noctuidae (Eulenfalter)","Ueberall häufig",4,"verbreitet und häufig",4,19,3,"verbreitet",4,150,"gleichbleibend",4,null,{"$f":"IF(AX686=1,\"Einzelfund\",IF(OR(AX686=2,AX686=3),\"Abnehmend\",IF(OR(AX686=4,AX686=7,AX686=8,AX686=11),\"Zunehmend\",IF(AX686=5,\"Gleichbleibend selten\",IF(OR(AX686=6,AX686=9,AX686=10,AX686=12),\"Gleichbleibend verbreitet bis sehr häufig\",\"nicht bewertet\")))))","v":"nicht bewertet"},null,"Abtrennung von Berbara o.k",{"$f":"IF(BA686=1,\"Einzelfund\",IF(OR(BA686=2,BA686=3),\"Abnehmend\",IF(OR(BA686=4,BA686=7,BA686=8,BA686=11),\"Zunehmend\",IF(BA686=5,\"Gleichbleibend selten\",IF(OR(BA686=6,BA686=9,BA686=10,BA686=12),\"Gleichbleibend verbreitet bis sehr häufig\",\"nicht bewertet\")))))","v":"nicht bewertet"}]
[9308,null,"Amphipyra","berbera","Überall im Laubwald, Laubwaldnähe, Siedlungsbereich",{"$nulls":6},1,null,1,1,1,{"$nulls":5},1,null,"Diverse Laubbäume, Sträucher und krautige Pflanzen",1,null,1,{"$nulls":6},1,null,null,"Svenssons Pyramideneule","Noctuidae (Eulenfalter)","Keine Angaben in der historischen Literatur, die Arttrennung von pyramidea erfolgte erst 1968",0,"Keine Angaben in der historischen Literatur, die Arttrennung von pyramidea erfolgte erst 0957",0,6,3,"verbreitet",4,60,"zunehmend",3,null,{"$f":"IF(AX687=1,\"Einzelfund\",IF(OR(AX687=2,AX687=3),\"Abnehmend\",IF(OR(AX687=4,AX687=7,AX687=8,AX687=11),\"Zunehmend\",IF(AX687=5,\"Gleichbleibend selten\",IF(OR(AX687=6,AX687=9,AX687=10,AX687=12),\"Gleichbleibend verbreitet bis sehr häufig\",\"nicht bewertet\")))))","v":"nicht bewertet"},null,"K 6, Neubeschreibung o.k.",{"$f":"IF(BA687=1,\"Einzelfund\",IF(OR(BA687=2,BA687=3),\"Abnehmend\",IF(OR(BA687=4,BA687=7,BA687=8,BA687=11),\"Zunehmend\",IF(BA687=5,\"Gleichbleibend selten\",IF(OR(BA687=6,BA687=9,BA687=10,BA687=12),\"Gleichbleibend verbreitet bis sehr häufig\",\"nicht bewertet\")))))","v":"nicht bewertet"}]
[9364,3368,"Heliothis","viriplaca","Sonnige blütenbreiche Magerrasen, Trockenrasen, Säume und Ruderalflur",{"$nulls":18},"Diverse krautige Pflanzen",null,null,1,{"$nulls":6},1,null,null,"Karden-Sonneneule","Noctuidae (Eulenfalter)","Selten",2,"Keine neuen Angaben",0,0,0,"verschwunden",0,0,"Wanderfalter"," "," ",{"$f":"IF(AX688=1,\"Einzelfund\",IF(OR(AX688=2,AX688=3),\"Abnehmend\",IF(OR(AX688=4,AX688=7,AX688=8,AX688=11),\"Zunehmend\",IF(AX688=5,\"Gleichbleibend selten\",IF(OR(AX688=6,AX688=9,AX688=10,AX688=12),\"Gleichbleibend verbreitet bis sehr häufig\",\"nicht bewertet\")))))","v":"nicht bewertet"}," "," ",{"$f":"IF(BA688=1,\"Einzelfund\",IF(OR(BA688=2,BA688=3),\"Abnehmend\",IF(OR(BA688=4,BA688=7,BA688=8,BA688=11),\"Zunehmend\",IF(BA688=5,\"Gleichbleibend selten\",IF(OR(BA688=6,BA688=9,BA688=10,BA688=12),\"Gleichbleibend verbreitet bis sehr häufig\",\"nicht bewertet\")))))","v":"nicht bewertet"}]
[9367,3370,"Heliothis","peltigera","Wanderfalter, nicht heimisch",{"$nulls":18},"polyphag an krautigen Pflanzen",null,null,1,{"$nulls":6},1,null,null,"Bilsenkraut-Blüteneule","Noctuidae (Eulenfalter)","Keine Angaben",0,"Wanderfalter   Roland meldet einen Falter vom 24.6.2002, Ohligser Heide, Schumacher (2003",1,0,0,"verschwunden",1,2,"Einzelfund(e)",1,null,{"$f":"IF(AX689=1,\"Einzelfund\",IF(OR(AX689=2,AX689=3),\"Abnehmend\",IF(OR(AX689=4,AX689=7,AX689=8,AX689=11),\"Zunehmend\",IF(AX689=5,\"Gleichbleibend selten\",IF(OR(AX689=6,AX689=9,AX689=10,AX689=12),\"Gleichbleibend verbreitet bis sehr häufig\",\"nicht bewertet\")))))","v":"nicht bewertet"},null,"K6, Wanderfalter o.k",{"$f":"IF(BA689=1,\"Einzelfund\",IF(OR(BA689=2,BA689=3),\"Abnehmend\",IF(OR(BA689=4,BA689=7,BA689=8,BA689=11),\"Zunehmend\",IF(BA689=5,\"Gleichbleibend selten\",IF(OR(BA689=6,BA689=9,BA689=10,BA689=12),\"Gleichbleibend verbreitet bis sehr häufig\",\"nicht bewertet\")))))","v":"nicht bewertet"}]
[9460,3311,"Spodoptera","exigua","Wanderfalter, nicht heimisch",{"$nulls":18},"polyphag an krautigen Pflanzen",null,null,1,{"$nulls":6},1,null,null,"Knöterich-Seidenglanzeule","Noctuidae (Eulenfalter)","Keine Angaben",0,"Ein Wanderfalter, der ganz selten zufliegt   ",1,0,0,"verschwunden",1,2,"Wanderfalter"," "," ",{"$f":"IF(AX690=1,\"Einzelfund\",IF(OR(AX690=2,AX690=3),\"Abnehmend\",IF(OR(AX690=4,AX690=7,AX690=8,AX690=11),\"Zunehmend\",IF(AX690=5,\"Gleichbleibend selten\",IF(OR(AX690=6,AX690=9,AX690=10,AX690=12),\"Gleichbleibend verbreitet bis sehr häufig\",\"nicht bewertet\")))))","v":"nicht bewertet"}," "," ",{"$f":"IF(BA690=1,\"Einzelfund\",IF(OR(BA690=2,BA690=3),\"Abnehmend\",IF(OR(BA690=4,BA690=7,BA690=8,BA690=11),\"Zunehmend\",IF(BA690=5,\"Gleichbleibend selten\",IF(OR(BA690=6,BA690=9,BA690=10,BA690=12),\"Gleichbleibend verbreitet bis sehr häufig\",\"nicht bewertet\")))))","v":"nicht bewertet"}]
[9780,3285,"Oligia","strigilis","Weites Spektrum grasreicher Lebensräume, feuchte und trockene Standorte",1,1,1,1,1,1,1,{"$nulls":5},1,null,null,1,1,null,"Gräser",null,null,null,1,{"$nulls":4},1,null,null,null,"Striegel-Halmeulchen","Noctuidae (Eulenfalter)","sehr häufig",5,"verbreitet und häufig",4,166,4,"häufig",3,30,"gleichbleibend",4,9,"nicht bewertet",9,null,"nicht bewertet"]
[9781,3286,"Oligia","versicolor","überall, nicht auf xerothermen Standorten",{"$nulls":18},"Gräser",null,null,null,1,{"$nulls":4},1,null,null,null,"Buntes Halmeulchen","Noctuidae (Eulenfalter)","Keine Angaben da die Artentrennung erst im 20. Jhd erfolgte  ",0,"Wuppertal-Gelpe (27.06.76…) ",1,1,1,"sehr selten",1,3,"Einzelfund(e)",1,null,{"$f":"IF(AX692=1,\"Einzelfund\",IF(OR(AX692=2,AX692=3),\"Abnehmend\",IF(OR(AX692=4,AX692=7,AX692=8,AX692=11),\"Zunehmend\",IF(AX692=5,\"Gleichbleibend selten\",IF(OR(AX692=6,AX692=9,AX692=10,AX692=12),\"Gleichbleibend verbreitet bis sehr häufig\",\"nicht bewertet\")))))","v":"nicht bewertet"},null,"K6 ?, schwer zu bestimmen? O.k",{"$f":"IF(BA692=1,\"Einzelfund\",IF(OR(BA692=2,BA692=3),\"Abnehmend\",IF(OR(BA692=4,BA692=7,BA692=8,BA692=11),\"Zunehmend\",IF(BA692=5,\"Gleichbleibend selten\",IF(OR(BA692=6,BA692=9,BA692=10,BA692=12),\"Gleichbleibend verbreitet bis sehr häufig\",\"nicht bewertet\")))))","v":"nicht bewertet"}]
[9782,3287,"Oligia","latruncula","überall",{"$nulls":16},1,null,"Gräser",null,null,null,1,{"$nulls":4},1,null,null,null,"Dunkles Halmeulchen","Noctuidae (Eulenfalter)","sehr häufig",5,"häufig",4,46,3,"verbreitet",2,10,"abnehmend",2,6,"nicht bewertet",6," ","nicht bewertet"]
[9789,3284,"Mesapamea","secalis","überall,meidet nasse oder extrem trockene Standorten",{"$nulls":18},"Gräser",null,null,null,1,{"$nulls":4},1,null,null,null,"Getreide-Halmeule","Noctuidae (Eulenfalter)","Ueberall sehr gemein",7,"häufig bis gemein ",6,0,2,"selten",2,10,"nicht bewertet"," "," ",{"$f":"IF(AX694=1,\"Einzelfund\",IF(OR(AX694=2,AX694=3),\"Abnehmend\",IF(OR(AX694=4,AX694=7,AX694=8,AX694=11),\"Zunehmend\",IF(AX694=5,\"Gleichbleibend selten\",IF(OR(AX694=6,AX694=9,AX694=10,AX694=12),\"Gleichbleibend verbreitet bis sehr häufig\",\"nicht bewertet\")))))","v":"nicht bewertet"}," ","Datengrundlage wg. Schwieriger Bestimmung unsicher o.k",{"$f":"IF(BA694=1,\"Einzelfund\",IF(OR(BA694=2,BA694=3),\"Abnehmend\",IF(OR(BA694=4,BA694=7,BA694=8,BA694=11),\"Zunehmend\",IF(BA694=5,\"Gleichbleibend selten\",IF(OR(BA694=6,BA694=9,BA694=10,BA694=12),\"Gleichbleibend verbreitet bis sehr häufig\",\"nicht bewertet\")))))","v":"nicht bewertet"}]
[9790,null,"Mesapamea","didyma","überall,meidet nasse oder extrem trockene Standorten",{"$nulls":18},"Gräser",null,null,null,1,{"$nulls":4},1,null,null,null,"Didyma Halmeule","Noctuidae (Eulenfalter)","Keine Angaben, da die Artentrennung von secalis erst 1983 erfolgte ",0,"M. didyma…überwiegt [secalis] ",0,9,2,"selten",1,5,"nicht bewertet"," "," ","nicht bewertet"," ","Datengrundlage wg. Schwieriger Bestimmung unsicher o.k","nicht bewertet"]
[10006,3169,"Mythimna","impura","euryoke Feuchtgebiertsart, Uferzonen, Auwälder, feuchte Waldränder",null,1,{"$nulls":4},1,null,1,{"$nulls":9},"Seggen, Schilfrohr, Glatthafer, Wald-Reitgras",null,null,null,1,{"$nulls":4},1,null,null,null,"Stumpfflügel-Graseule","Noctuidae (Eulenfalter)","Selten, auch nur in 2 Ex.[emplaren] aufgefunden",1,"verbreitet und häufig",3,5,4,"häufig",4,70,"zunehmend",3,null,"nicht bewertet",8,null,"nicht bewertet"]
[10007,3171,"Mythimna","pallens","Offenland, Moore, Talauen, Wiesen und Weiden (extensiv bewirtschaftet)",null,1,null,1,1,null,null,null,1,{"$nulls":9},"Süßgräser",null,null,null,1,{"$nulls":4},1,null,null,null,"Bleiche Graseule","Noctuidae (Eulenfalter)","Ueberall häufig",4,"überall",4,6,2,"selten",3,20,"abnehmend",2,null,"nicht bewertet",3," ","nicht bewertet"]
[10102,3099,"Noctua","janthina","Euyöke Art, überall",{"$nulls":17},1,"Pappel, Brennessel, Rote Hecknkirsche u.a.",1,{"$nulls":8},1,"4_9",null,"Janthina-Bandeule","Noctuidae (Eulenfalter)","einzeln",2,"wie die beiden vorherigen Arten [d.h. vereinzelt bis häufig]",3,5,3,"verbreitet",4,50,"gleichbleibend",4,null,"nicht bewertet",null,"trennung von janthe","nicht bewertet"]
[10103,null,"Noctua","janthe","Generalist",{"$nulls":18},"Schlehe, Roter Hartriegel",1,{"$nulls":7},1,null,null,null,"Janthe-Bandeule","Noctuidae (Eulenfalter)","Keine Angaben, da die Art erst 1991 von janthina getrennt wurde",0,"Keine Angaben, da die Art erst 1991 von janthina getrennt wurde",0,0,1,"sehr selten",3,25,"Einzelfund(e)",1,null,"nicht bewertet",null,"K6, Art neu beschrieben","nicht bewertet"]
[10238,3060,"Peridroma","saucia","Wanderfalter",{"$nulls":18},"Polyphag an  krautigen Pflanzen",null,null,1,{"$nulls":6},1,null,null,"Leineule","Noctuidae (Eulenfalter)","Selten",2,"Ein Wanderfalter bei uns nicht selten  ",3,0,0,"verschwunden",1,1,"Wanderfalter"," "," ","nicht bewertet"," "," ","nicht bewertet"]
[10266,3027,"Euxoa","aquilina","Sandmagerrasen, offene Sandflächen, Binnendünen, Steinbrüche, Weinberge, Baggerseen, ",{"$nulls":18},"polyphag an  krautigen Pflanzen",null,null,1,{"$nulls":6},1,null,null,"Getreideeule","Noctuidae (Eulenfalter)","nicht häufig",3,"Weymer 1878 meldet diese Art noch als variation von E. tritici, von welcher sie inzwischen als eigene Art abgetrennt wurde. Die Beobachtungen Weymers blieben bis heute die einzigen über das Vorkommen dieser Art in unserem Faunengebiet. Auch hier wären…neuere Funde zur Klärung notwendig",0,0,0,"verschwunden",0,0,"nicht bewertet"," "," ","nicht bewertet"," "," ","nicht bewertet"]
[10280,3034,"Euxoa","tritici","Sandmagerrasen, Binnendünen",1,null,1,null,null,1,{"$nulls":12},"Wurzeln",{"$nulls":4},1,{"$nulls":4},1,"2_1",null,"Weizeneule","Noctuidae (Eulenfalter)","Nicht häufig",3,"Keine Funde seit Weymer",0,0,0,"verschwunden",0,0,"nicht bewertet"," "," ","nicht bewertet"," "," ","nicht bewertet"]
[10346,3037,"Agrotis","ipsilon","Überall ",{"$nulls":17},1,"polyphag an  krautigen Pflanzen, auch Gemüse und Getreide",null,null,1,1,{"$nulls":5},1,null,null,"Ypsiloneule","Noctuidae (Eulenfalter)","überall häufig",4,"Überall",4,15,4,"häufig",4,45,"Wanderfalter",4,null,"nicht bewertet",null,"K 6 Wanderfalter","nicht bewertet"]
[10528,2051,"Coscinia","cribraria","Wanderfalter",{"$nulls":29},"2_1",null,"Weißer Gras-Bär","Arctiidae (Bärenspinner)","früher einmal in der Gegend von Ohligs gef.[unden].   ",1,"nur ältere Funde ",0,0,0,"verschwunden",0,0,"Wanderfalter"," "," ","nicht bewertet"," "," ","nicht bewertet"]
[10535,2052,"Utetheisa","pulchella","Wanderfalter",{"$nulls":18},"Natternkopf",null,null,1,{"$nulls":4},1,{"$nulls":4},"Harlekinbär","Arctiidae (Bärenspinner)","zwei…mal…bei Elberfeld  ",1,"nicht bodenständig Wanderfalter  ",1,0,0,"verschwunden",0,0,"Wanderfalter"," "," ","nicht bewertet"," "," ","nicht bewertet"]
[6997,null,"Pieris","mannii",{"$nulls":32},"Karstweißling","Pieridae (Weißlinge)","war nicht vorhanden ",0,"war nicht vorhanden ",0,0,0,"war nicht vorhanden ",3,17,null,null,null,"nicht vorhanden ",null,null,"Zunehmend"]
[7093,1099,"Cupido","argiades","Frische bis feuchte, magere Wiesen im Offenland und Wald, Ruderalgelände, Böschungen, Dämme, Straßenränder, BrachenSteinbrüche",{"$nulls":18},"Luzerne, Roter Wiesen-Klee, Gewöhnlicher Hornklee, Sumpf-Hornklee",null,null,1,{"$nulls":5},1,null,null,null,"Kurzschwänziger Bläuling","Lycaenidae (Bläulinge)","Im Juli 1858…seitdem nicht wieder",1,"Keine Funde seit Weymer",0,0,0,"verschwunden",4,40,"Einzelfund(e)",1,1,{"$f":"IF(AX707=1,\"Einzelfund\",IF(OR(AX707=2,AX707=3),\"Abnehmend\",IF(OR(AX707=4,AX707=7,AX707=8,AX707=11),\"Zunehmend\",IF(AX707=5,\"Gleichbleibend selten\",IF(OR(AX707=6,AX707=9,AX707=10,AX707=12),\"Gleichbleibend verbreitet bis sehr häufig\",\"nicht bewertet\")))))","v":"Einzelfund"},1," ","Zunehmend"]
[7213,1074,"Brenthis","ino","Flachmoorweisen, Mädesüß-Hochstaudenfluren, Röhrichte und Seggenrieder, Pfeifengraswieen, an Gräben, Talwiesen, Quellhänge, feuchte Waldwiesen",null,1,{"$nulls":4},1,null,1,{"$nulls":9},"Mädesüß, Fleischfarbenes Knabenkraut, Großer Wiesenknopf",null,null,1,{"$nulls":5},1,null,"1_4","4_3","Mädesüß-Perlmuttfalter","Nymphalidae (Edelfalter)","Keine Angaben",0,"Gegenüber früher häufiger! Weymer...notierte das Tier noch nicht",4,360,5,"sehr häufig",2,10,"zunehmend",3,11,"Zunehmend",11,null,"Zunehmend"]
[7255,1057,"Araschnia","levana","Waldart, Randstrukturen mesophiler und feuchter Laub- und Nadelwälder, Waldwege, Kahlschläge, Waldweisen, Waldnahe Feuchtgebiete, Steinbrüche, Brachland in Waldnähe, gelegentlich in Gärten",null,1,null,null,1,null,1,1,1,1,1,{"$nulls":4},1,1,null,"Große Brennnessel, Brennnessel",null,null,1,{"$nulls":4},1,null,null,"3_8","3_1, 4_1","Landkärtchen, Netzfalter","Nymphalidae (Edelfalter)","wurden früher…gefunden",0,"gegenüber früher sehr viel häufiger",4,446,5,"sehr häufig",5,100,"zunehmend",3,11,"Zunehmend",11,null,"Zunehmend"]
[7533,4286,"Stegania","trimaculata","Wärmeliebend, Auenwälder, gebunden an Pappelanpflanzungen",{"$nulls":18},"Pappeln",1,{"$nulls":6},1,{"$nulls":4},"Dreifleck-Pappelspanner","Geometridae (Spanner)","Keine Angaben",0,"Keine Angaben  Roland meldet einen Falter von 9.94 aus der Ohligser Heide, Kinkler (1996) sowie vom 21.8.2001 aus Solingen, Schumacher (2002)",0,0,1,"sehr selten",2,20,"Einzelfund(e)",1,1,"Einzelfund",1," ","Zunehmend"]
[7844,4295,"Pungeleria","capreolaria","Nadel- und Mischwälder, Moorwälder",null,1,{"$nulls":8},1,1,{"$nulls":6},"Weißtanne, Fichte, Kiefer",null,1,{"$nulls":6},1,null,"3_7",null,"Brauner Nadelwald-Spanner","Geometridae (Spanner)","Als Arealerweiterer zu Weymers Zeiten bei uns noch nicht bodenständig  ",0,"Keine Angaben für unser Untersuchungsgebiet, aber:  Als Arealerweiterer in den lichten älteren Fichtenwäldern des Berglandes…auch andernorts…häufiger geworden ",2,5,1,"sehr selten",3,29,"schwankend"," ",4,"Zunehmend",4,"Arealerweiterer","Zunehmend"]
[7916,4387,"Siona","lineata","Extensiv genutzte, magere Wiesen, wärmeliebend, Waldlichtungen, ruderale Sandflure, Weinberge, Kiesgruben",1,null,null,1,1,null,1,{"$nulls":7},1,1,null,null,"Diverse krautige Pflanzen",null,null,1,{"$nulls":6},1,"2_2","3_6, 4_3","Weisser Schwarzaderspanner","Geometridae (Spanner)","Arealerweiterer, der im 19. Jhd von Weymer noch nicht beobachtet werden konnte ",0,"Wuppertal-Dornap (22.5.1990-Sch[mitz])",1,0,2,"selten",3,30,"zunehmend"," ",4,"Zunehmend",4,"Arealerweiterer","Zunehmend"]
[8167,4060,"Idaea","subsericeata","Wärmeliebende Art, Kulturland, Sie4dlungsraum, Brachen, Gärten, Feuchtwiesen, Magerrasen, Weinberge,",{"$nulls":18},"diverse Kräuter ?",null,null,1,{"$nulls":6},1,null,null,"Graulinien-Zwergspanner","Geometridae (Spanner)","Die Art gehört laut Roter Liste (1999) zu den Arealerweiterern. Es gibt keine publizierten alten Beobachtungen aus dem Untersuchungsgebiet",0,"Die Art gehört laut Roter Liste (1999) zu den Arealerweiterern. Es gibt keine publizierten alten Beobachtungen aus dem Untersuchungsgebiet",0,2,1,"sehr selten",3,21,"Einzelfund(e)",null,1,"Einzelfund",1,"Arealerweiterer","Zunehmend"]
[8249,4140,"Xanthorhoe","designata","Wälder und Gebüsche, Lichtungen, Feuchtwiesen, Moore, Gärten",null,1,null,null,null,1,1,1,1,1,1,{"$nulls":5},1,null,"Knoblauchsrauke, Lauchkraut",null,null,1,{"$nulls":5},1,null,null,null,"Aschgrauer Labkrautspanner","Geometridae (Spanner)","Selten",2,"Nicht selten",3,90,4,"häufig",4,100,"zunehmend",3,7,"Zunehmend",7,null,"Zunehmend"]
[8316,4151,"Lampropteryx","suffumata","Schattig bis halbschttige in Laub- Misch und Nadelwald, Gebüsche, Lichtungn, nicht auf trockenen Standorten, Moore",{"$nulls":5},1,1,null,null,1,1,1,{"$nulls":6},"Galium   ",null,null,1,{"$nulls":4},1,{"$nulls":4},"Labkraut-Bindenspanner","Geometridae (Spanner)","Keine Angaben",0,"lokal und einzeln",2,4,2,"selten",4,50,"zunehmend",3,4,"Zunehmend",4," ","Zunehmend"]
[8338,4172,"Ecliptopera","silaceata","Wälder, Wegränder im Wald",{"$nulls":6},1,1,1,1,1,{"$nulls":7},"Impatiens-Arten",null,null,1,{"$nulls":4},1,{"$nulls":4},"Braunleibiger Springkrautspanner","Geometridae (Spanner)","selten",2,"mehr oder weniger zahlreich",3,52,4,"häufig",4,70,"zunehmend",3,7,"Zunehmend",7,null,"Zunehmend"]
[8339,4171,"Ecliptopera","capitata","Wälder, Wegränder im Wald",{"$nulls":8},1,1,1,{"$nulls":7},"Impatiens-Arten",null,null,1,{"$nulls":4},1,null,null,"3_1",null,"Gelbleibiger Springkrautspanner","Geometridae (Spanner)","Selten…bei Elb.[erfeld] nur einmal auf dem Nützenberge",1,"Überall, aber meist einzeln",2,6,3,"verbreitet",3,35,"zunehmend",3,8,"Zunehmend",8,null,"Zunehmend"]
[8341,2129,"Chloroclysta","siterata","Binnensäume und Randbereiche von lichten Laubwäldern, heckenreiches Offenland, Wacholderheiden, Steinbrüche, Streuobstwiesen, Gärten",null,null,1,null,null,1,1,null,null,1,1,null,1,null,null,null,1,null,"Diverse Laubbäume und Sträucher",1,{"$nulls":8},1,null,null,"Olivgrüner Bindenspanner","Geometridae (Spanner)","Selten  ",2,"Von dieser Art liegen uns nur die alten Daten von Pique´ [W.-Ronsdorf: 0.00.0900, 00.9.0924, 04.9.0926] und Weymer aus Wuppertal vor.",1,5,1,"sehr selten",4,70,"gleichbleibend",4,5,"Gleichbleibend selten",5,"selten, aber zunehmend, eher in Kategorie 3´Kommentar Tim: 6 Falter sind ja auch niccht viel. Daher eeher gleichbleibend selten","Zunehmend"]
[8385,4145,"Colostygia","pectinataria","Fast alle wald- und gebüschreiche Lebensräume, nicht auf sehr trockenen Stanorten",{"$nulls":6},1,1,1,1,1,{"$nulls":7},"Weißdorn ",1,{"$nulls":6},1,{"$nulls":4},"Braungrüner Waldwiesen-Blattspanner","Geometridae (Spanner)","In einzelnen Jahren häufig",3,"verbreitet und nicht selten ",3,35,3,"verbreitet",5,100,"gleichbleibend",4,9,"Gleichbleibend verbreitet bis sehr häufig",9,null,"Zunehmend"]
[8402,4278,"Horisme","tersata","Wälder, Waldränder, Hecken, Ruderalflächen",{"$nulls":5},1,1,null,1,1,1,{"$nulls":7},"Waldrebe",null,null,1,{"$nulls":4},1,null,null,"3_6","3_8, 4_4","Graubrauner Waldrebenspanner","Geometridae (Spanner)","Keine Angaben",0,"Keine Angaben",0,16,3,"verbreitet",3,30,"zunehmend",3,8,"Zunehmend",8,null,"Zunehmend"]
[8601,4270,"Chloroclystis","v-ata","Überall",{"$nulls":17},1,"Blüten diverser krautiger Pflanzen",{"$nulls":6},1,null,null,1,null,null,"Grüner Blütenspanner","Geometridae (Spanner)","Nicht genannt",0,"heute überall weit verbreitet und häufig",4,95,4,"häufig",4,70,"zunehmend",3,8,"Zunehmend",8,null,"Zunehmend"]
[8689,null,"Thaumetopoea ","processionea",{"$nulls":30},"3_5",null,"Eichen-Prozessionspinner","Notodontidae (Zahnspinner)","war nicht vorhanden ",0,"war nicht vorhanden ",0,0,0,"war nicht vorhanden ",4,50,null,null,null,"nicht vorhanden ",null,null,"Zunehmend"]
[8723,2160,"Drymonia","obliterata","Rotbuchenbestände, an kühlen und auch an warmen Standorten",{"$nulls":9},1,1,{"$nulls":7},"Rotbuche ",1,{"$nulls":6},1,null,null,"3_3",null,"Buchen-Zahnspinner","Notodontidae (Zahnspinner)","Selten",2,"Verbreitet aber nicht häufig",3,53,4,"häufig",4,70,"zunehmend",3,7,{"$f":"IF(AX723=1,\"Einzelfund\",IF(OR(AX723=2,AX723=3),\"Abnehmend\",IF(OR(AX723=4,AX723=7,AX723=8,AX723=11),\"Zunehmend\",IF(AX723=5,\"Gleichbleibend selten\",IF(OR(AX723=6,AX723=9,AX723=10,AX723=12),\"Gleichbleibend verbreitet bis sehr häufig\",\"nicht bewertet\")))))","v":"Zunehmend"},7,null,"Zunehmend"]
[8739,2163,"Ptilodon","cucullina","Auenwälder und Laubmischwälder in der Ebene, gebüschreiche Trockenhnge im Hügelland, Siedlungen mit Ahornbeständern",{"$nulls":18},"Berg-Ahorn, Feld-Ahorn, Ahorn",1,{"$nulls":6},1,{"$nulls":4},"Ahorn-Zahnspinner","Notodontidae (Zahnspinner)","Keine Angaben",0,"Keine Angaben",0,0,1,"sehr selten",3,20,"Einzelfund(e)",1,1,"Einzelfund",1," ","Zunehmend"]
[8801,3024,"Cryphia","algae","eher wärmeliebend, in Laubmischwäldern, Streuobstwiesen, Parks und Gärten",{"$nulls":9},1,1,null,1,null,null,null,1,null,"Flechten",{"$nulls":5},1,null,1,null,null,"4_4",null,"Dunkelgrüne Flechteneule","Noctuidae (Eulenfalter)","selten, einmal erzogen aus einer Raupe",1,"Das Auftreten dieser Art im Gebiet scheint starken Schwankungen zu unterliegen",2,14,3,"verbreitet",3,37,"zunehmend",3,8,"Zunehmend",8,null,"Zunehmend"]
[9051,3415,"Macdunnoughia","confusa","Offenland, fast überall, sonnige Waldwiesen, Ruderalstellen, Gärten, Brachen",1,1,1,1,1,1,{"$nulls":7},1,1,1,1,null,"Diverse krautige Pflanzen",null,null,1,{"$nulls":6},1,null,null,"Schafgarben-Silbereule","Noctuidae (Eulenfalter)","keine Angaben",0,"im kühleren Bergland vereinzelt, die erste Beobachtung kommt vom 30.7.1945",2,7,2,"selten",3,20,"zunehmend",3,4,"Zunehmend",4," ","Zunehmend"]
[9116,3382,"Deltote","deceptoria","Halbtrockenrasen, Weinberge, Wacholderheiden, Moore, Waldrand",1,1,1,null,null,null,1,{"$nulls":11},"Gräser",null,null,null,1,{"$nulls":4},1,null,"1_4","1_3","Buschrasen-Grasmotteneulchen","Noctuidae (Eulenfalter)","Keine Angaben",0,"Auf trockenen und feuchtwarmen Grasplätzen des Berglandes...häufig",2,16,3,"verbreitet",3,22,"zunehmend",3,8,"Zunehmend",8,"eher selten, nur vier Fundorte, kommentieren","Zunehmend"]
[9118,3384,"Deltote","bankiana","Feuchte Offenlandbiotope, Schlagflure, auch auf trockenwarmen Lebensräumen",1,1,1,1,null,null,1,{"$nulls":11},"Gräser",null,null,null,1,{"$nulls":4},1,null,null,null,"Silbereulchen","Noctuidae (Eulenfalter)","Keine Angaben",0,"spärlich...Sie scheint sich jetzt langsam im Bergland auszubreiten",2,42,3,"verbreitet",3,40,"zunehmend",3,8,"Zunehmend",8,null,"Zunehmend"]
[9229,3192,"Shargacucullia","scrophulariae","Lichte Laub- und Laubmischwälder, Waldsäume, Vorwaldstadien mit Braunwurzbeständen, Gräben, Bachufer",{"$nulls":5},1,1,1,1,1,1,{"$nulls":7},"Braunwurzarten, Königskerze",null,null,1,{"$nulls":5},1,null,"3_1","3_6, 3_8","Braunwurz-Mönch","Noctuidae (Eulenfalter)","Keine Funde im Untersuchungsgebiet",0,"verbreitet, aber einzeln",2,25,4,"häufig",3,32,"zunehmend",3,8,"Zunehmend",8,"eher verbreitet, nur sechs Fundorte, kommentar Tim: wo Braunwwurz steht, gibt es die Raupen.","Zunehmend"]
[9240,3195,"Calophasia","lunula","Leinkrautbestände an offenen, ssonnigen und meist trockenen Standorten, Ruderalflächen, Kiesgruben, Gleisanlgen, Trümmerflora",{"$nulls":4},1,{"$nulls":8},1,1,1,null,null,"Gewöhnliches Leinkraut, Gestreiftes Leinkraut, Alpen-Leinkraut, Leinkraut, unechtes Tännel-Leinkraut",null,null,1,{"$nulls":4},1,null,null,"4_2, 4_3","4_4","Möndcheneule","Noctuidae (Eulenfalter)","Keine Angaben",0,"Im Bergland nur vereinzelt",2,62,4,"häufig",3,16,"zunehmend",3,8,"Zunehmend",8,null,"Zunehmend"]
[9396,3327,"Elaphria","venustula","in einer vielzahl unterschiedlicher Lebensräume, eher im mesophilen Bereich",{"$nulls":17},1,"Brombeere, Fingerkraut, Hunds-Rose, Besenginster",null,null,1,{"$nulls":6},1,null,null,"Marmoriertes Gebüscheulchen","Noctuidae (Eulenfalter)","Selten",2,"Weit verbreitet und stellenweise häufig ",4,70,4,"häufig",4,60,"zunehmend",3,7,"Zunehmend",7,null,"Zunehmend"]
[9424,null,"Caradrina","kadenii",{"$nulls":32},"Kadens Staubeule","Noctuidae (Eulenfalter)","war nicht vorhanden ",0,"war nicht vorhanden ",0,null,0,"war nicht vorhanden ",1,3,null,null,null,"nicht vorhanden",null,null,"Zunehmend"]
[9445,null,"Caradrina","gilva",{"$nulls":32},"Reingraue Staubeule","Noctuidae (Eulenfalter)","war nicht vorhanden ",0,"war nicht vorhanden ",0,0,0,"war nicht vorhanden ",2,7,null,null,null,"nicht vorhanden ",null,null,"Zunehmend"]
[9569,3244,"Agrochola","lota","Auwälder, Feuchtgebiete, Steinbrüche, Gärten, Parks",null,1,{"$nulls":6},1,{"$nulls":5},1,null,1,null,"Pappel, Ahorn, Erle, Weide",1,{"$nulls":8},1,"3_1",null,"Dunkelgraue Herbsteule","Noctuidae (Eulenfalter)","selten",2,"Meist einzeln",2,36,3,"verbreitet",4,50,"gleichbleibend",4,9,{"$f":"IF(AX734=1,\"Einzelfund\",IF(OR(AX734=2,AX734=3),\"Abnehmend\",IF(OR(AX734=4,AX734=7,AX734=8,AX734=11),\"Zunehmend\",IF(AX734=5,\"Gleichbleibend selten\",IF(OR(AX734=6,AX734=9,AX734=10,AX734=12),\"Gleichbleibend verbreitet bis sehr häufig\",\"nicht bewertet\")))))","v":"Gleichbleibend verbreitet bis sehr häufig"},9,null,"Zunehmend"]
[9571,3245,"Agrochola","macilenta","Laubwälder ",{"$nulls":6},1,1,1,1,1,{"$nulls":7},"Eiche, Ulme ",1,{"$nulls":7},1,null,"3_3, 3_5",null,"Gelbbraune Herbsteule","Noctuidae (Eulenfalter)","Noch seltener als vorige [=lota]",2,"Häufig",4,30,4,"häufig",4,100,"zunehmend",3,7,"Zunehmend",7,null,"Zunehmend"]
[9591,3239,"Omphaloscelis","lunosa","Feuchtwiesen-Bruchwaldkomplex, Wiesengelände",null,1,null,1,{"$nulls":4},1,{"$nulls":9},"Gräser",null,null,null,1,{"$nulls":4},1,null,null,null,"Mondfleck-Herbsteule","Noctuidae (Eulenfalter)","Keine Angaben",0,"Arealerweiterer; Roland meldet je einen Falter von Sept.1993 und 94 aus der Ohligser Heide, Kinkler (1996)",2,29,3,"verbreitet",4,50,"zunehmend",3,8,"Zunehmend",8,"Arealerweiterer","Zunehmend"]
[9596,3230,"Eupsilia","transversa","Laubmischwälder, gebüsche, Säume, Gärten, Parks",{"$nulls":5},1,null,null,null,1,1,null,null,1,null,null,1,null,"Diverse Laubbäume",1,{"$nulls":8},1,null,null,"Satellit-Wintereule","Noctuidae (Eulenfalter)","Verbreitet aber nicht häufig ",3,"überall häufig",4,617,7,"sehr gemein",6,250,"zunehmend",3,11,"Zunehmend",11,null,"Zunehmend"]
[9603,3234,"Conistra","rubiginosa","Laubwälder, Mischwälder, Ränder und Säume, Gärten, Parks",{"$nulls":5},1,1,null,null,1,1,{"$nulls":5},1,null,"Flieder, Obstbäume, Besenginster, Heidekraut, u.a.",1,null,1,{"$nulls":6},1,null,null,"Schwarzgefleckte Wintereule","Noctuidae (Eulenfalter)","Einmal",1,"offenbar früher schon selten...nicht mehr festgestellt",1,40,3,"verbreitet",4,100,"zunehmend",3,8,"Zunehmend",8,null,"Zunehmend"]
[9611,3233,"Conistra","erythrocephala","Eichenreiche Laubwälder, Waldränder",{"$nulls":6},1,null,null,1,1,{"$nulls":7},"Eiche",1,{"$nulls":6},1,null,null,"3_6",null,"Rotkopf-Wintereule","Noctuidae (Eulenfalter)","selten",2,"Nach einigen Jahrzehnten Pause",2,6,3,"verbreitet",4,50,"gleichbleibend",4,9,"Gleichbleibend verbreitet bis sehr häufig",9,"Arealerweiterer","Zunehmend"]
[9774,3282,"Apamea","scolopacina","überall, vor allem im waldreichen Gelände",{"$nulls":5},1,1,1,1,1,1,1,{"$nulls":4},1,null,"Gräser",null,null,null,1,{"$nulls":4},1,null,"3_5","3_1, 3_8","Bräunlichgelbe Grasbüscheleule","Noctuidae (Eulenfalter)","Keine Angaben",0,"jahrweise...häufig",3,6,3,"verbreitet",4,50,"zunehmend",3,8,"Zunehmend",8,null,"Zunehmend"]
[9784,3288,"Oligia","fasciuncula","auf feuchten Wiesen",null,1,{"$nulls":4},1,null,1,{"$nulls":9},"Gräser",null,null,null,1,{"$nulls":4},1,null,null,null,"Moorwiesen-Halmeulchen","Noctuidae (Eulenfalter)","Keine Angaben, da die Art erst im 20. Jhd. in das Untersuchungsgebiet eingewandert ist; ",0,"verbreitete und häufige Art",4,66,4,"häufig",4,70,"zunehmend",3,8,"Zunehmend",8,null,"Zunehmend"]
[9933,3126,"Hadena","bicruris","Trockene, sonnige Wegränder, Wiesenböschungen, Unkrautflure, Steinbrüche mit Beständen von Lichtnelke",null,null,null,1,1,1,1,{"$nulls":7},1,1,null,null,"Taubenkropf, Tag-Lichtnelke, Weiße Lichtnelke",null,null,1,{"$nulls":4},1,null,null,"4_2",null,"Lichtnelkeneule","Noctuidae (Eulenfalter)","Keine Angaben",0,"verbreitet, aber einzeln",2,1,2,"selten",3,25,"zunehmend",3,4,"Zunehmend",4," ","Zunehmend"]
[10005,3170,"Mythimna","straminea","Schilfröhrichte an Bächen, Seen, Flüssen",{"$nulls":18},"Schlanke Segge, Schilfrohr",null,null,null,1,{"$nulls":4},1,null,"1_5",null,"Spitzflügel-Graseule","Noctuidae (Eulenfalter)","Keine Angaben",0,"Keine Angaben",0,2,1,"sehr selten",2,10,"Einzelfund(e)",1,1,"Einzelfund",1," ","Zunehmend"]
[10010,3172,"Mythimna","obsoleta","Charakterart der Schilfröhrichte, Verlandungszone von Seen, Teichen, Bächen, Gräben",{"$nulls":18},"Schilfrohr",null,null,null,1,null,null,null,1,null,null,"1_5",null,"Schilf-Graseule","Noctuidae (Eulenfalter)","Keine Angaben",0,"Keine Angaben",0,1,1,"sehr selten",2,10,"Einzelfund(e)",1,1,"Einzelfund",1," ","Zunehmend"]
[10343,"3044b","Agrotis","puta","Sandmagerrasen, Ödland, Ruderalflächen, extensiv genutztes Ackerland, grasige Wegränder, Baggerseen, Kiesgruben, auch im Siedlungsbereich, Industriebrachen",{"$nulls":18},"polyphag an  krautigen Pflanzen",null,null,1,{"$nulls":6},1,null,null,"Schmalflügelige Erdeule","Noctuidae (Eulenfalter)","Weder bei W. noch K. Angaben zu dieser Art aus unserem Gebiet, Arealerweiterer. Roland meldet je einen Falter vom 29.7. und 21.8.2001 aus Solingen, Schumacher (2002).",0,"Weder bei W. noch K. Angaben zu dieser Art aus unserem Gebiet, Arealerweiterer. Roland meldet je einen Falter vom 19.6. und 10.7.1000 aus Solingen, Schumacher (1001).",0,3,1,"sehr selten",4,60,"Einzelfund(e)",1,1,"Einzelfund",1,"Arealerweiterer","Zunehmend"]
[10376,2082,"Lymantria","dispar","Eher atlantische Art, lichte, warme Laubwälder",{"$nulls":9},1,1,{"$nulls":7},"Fast alle Pflanzen, meist Laubbäume",1,null,1,{"$nulls":6},1,"4_8",null,"Schwamm-Spinner","Lymantriidae (Trägspinner)","Bei Elb.[erfeld] weniger, dagegen bei Ohligs…gemein",5,"heute sehr selten",1,1,1,"sehr selten",4,60,"abnehmend",2,3,"Abnehmend",3," ","Zunehmend"]
[10488,2040,"Eilema","griseola","Laubholzreiche Feuchtgebiete, Bruch und Auenwälder, mesiphile Laumischwälder, eher wäremliebend",{"$nulls":8},1,1,{"$nulls":8},"Flechten",{"$nulls":5},1,null,1,null,null,"3_1",null,"Bleigraues Flechtenbärchen","Arctiidae (Bärenspinner)","Keine Angaben",0,"In den Moorgebieten der Mittelterrasse vorkommend...Solingen-Ohligs (31.7.1938); Roland meldet je einen Falter im Juni und Juli 1994 aus der Ohligser Heide, Kinkler 1996a.",1,1,2,"selten",3,35,"zunehmend",3,4,"Zunehmend",4," ","Zunehmend"]
[10493,null,"Eilema ","caniola",{"$nulls":32},"Weißgraues Flechtenbärchen","Arctiidae (Bärenspinner)","war nicht vorhanden ",0,"war nicht vorhanden ",0,0,0,"war nicht vorhanden ",3,14,null,null,null,"nicht vorhanden ",null,null,"Zunehmend",null,{"$f":"COUNTA(AI706:AI748)","v":21},{"$f":"COUNTA(W706:W748)","v":2}]
[]
[{"$nulls":4},"Summe",65,162,77,81,90,147,222,62,143,173,162,44,30,106,90,97,137,83]

{"sheet":"Tabelle2","index":1,"n_rows":0,"n_cols":0,"rows_kept":0,"cut":false,"hidden":false,"merged":[]}

{"sheet":"Tabelle3","index":2,"n_rows":0,"n_cols":0,"rows_kept":0,"cut":false,"hidden":false,"merged":[]}